Workbook

Sheet TEST PAGE (hidden)
C1: USM | D1: CSI | E1: NWC | F1: UAM | G1: L&C | H1: BGSU | I1: MTSU | J1: PLNU | AV1: Head to Head | AW1: H/L | AX1: 7th Tourn. | AY1: 8th Tourn.
B2: Novice Indivudual | C2: USM (9/25-26) | D2: CSI (9/24-25) | E2: NW College (9/24-25) | F2: UAM (10/8-10) | G2: L & C / Whitman (10/8-10) | H2: BGSU (10/16-17) | I2: MTSU (10/22-23) | J2: PLNU (10/22-23) | AR2: over 6/2nd host | AS2: Total Points | AT2: Tournament Count | AU2: Best Top 6 | AV2: 1st Tie Breaker | AW2: 2nd Tie Breaker | AX2: 3rd Tie Breaker | AY2: 4th Tie Breaker | AZ2: 5th Tie Breaker
A3: ACU | B3: UT- Jenkins | F3: 4 | I3: 13 | M3: 11 | O3: 16 | Q3: 13 | AS3: =SUM($C3:$AR3) -> 57 | AT3: =COUNTA(C3:AQ3) -> 5 | AU3: =IF($AT3<=6,SUM($C3:$AQ3),SUMPRODUCT(LARGE($C3:$AQ3,{1,2,3,4,5,6}))) -> 57 | AV3: =IF(AND($AT3>=6,AU3=AU4),"Manual Calc Needed","") ->  | AW3: =IF(AND($AT3>=6,$AV3="Tie"),"Manual Calc Needed"," ") ->  | AX3: =IFERROR(SUMPRODUCT(LARGE($C3:$AQ3,{1,2,3,4})), "") -> 53 | AY3: =IF(AND($AT3>=6,$AV3="Tie",AX3=AX4),"Manual Calc Needed"," ") ->  | AZ3: =IFERROR(SUMPRODUCT(LARGE($C3:$AQ3,{1,2,3,4,5,6,7,8})), "") -> 
A4: ACU | B4: Lee- Kinder | I4: 5 | K4: 11 | N4: 8 | S4: 5 | T4: 10 | W4: 7 | Y4: 6 | AC4: 15 | AR4: -10 | AS4: =SUM($C4:$AR4) -> 57 | AT4: =COUNTA(C4:AQ4) -> 8 | AU4: =IF($AT4<=6,SUM($C4:$AQ4),SUMPRODUCT(LARGE($C4:$AQ4,{1,2,3,4,5,6}))) -> 57 | AV4: =IF(AND($AT4>=6,AU4=AU5),"Manual Calc Needed","") ->  | AW4: =IF(AND($AT4>=6,$AV4="Tie"),"Manual Calc Needed"," ") ->  | AX4: =IFERROR(SUMPRODUCT(LARGE($C4:$AQ4,{1,2,3,4})), "") -> 44 | AY4: =IF(AND($AT4>=6,$AV4="Tie",AX4=AX5),"Manual Calc Needed"," ") ->  | AZ4: =IFERROR(SUMPRODUCT(LARGE($C4:$AQ4,{1,2,3,4,5,6,7,8})), "") -> 67
A5: ACU | B5: UCA- King | D5: 5 | F5: 8 | K5: 8 | T5: 12 | Y5: 9 | AB5: 7 | AS5: 49 | AT5: =COUNTA(C5:AQ5) -> 6 | AU5: =IF($AT5<=6,SUM($C5:$AQ5),SUMPRODUCT(LARGE($C5:$AQ5,{1,2,3,4,5,6}))) -> 49 | AX5: =IFERROR(SUMPRODUCT(LARGE($C5:$AQ5,{1,2,3,4})), "") -> 37 | AZ5: =IFERROR(SUMPRODUCT(LARGE($C5:$AQ5,{1,2,3,4,5,6,7,8})), "") -> 
A6: BU | B6: OkBU- Webber | D6: 7 | E6: 4 | K6: 17 | Q6: 3 | W6: 8 | AB6: 8 | AS6: 47 | AT6: 6 | AU6: =IF($AT6<=6,SUM($C6:$AQ6),SUMPRODUCT(LARGE($C6:$AQ6,{1,2,3,4,5,6}))) -> 47 | AX6: =IFERROR(SUMPRODUCT(LARGE($C6:$AQ6,{1,2,3,4})), "") -> 40 | AZ6: =IFERROR(SUMPRODUCT(LARGE($C6:$AQ6,{1,2,3,4,5,6,7,8})), "") -> 
A7: BU | B7: LTU- Dean | I7: 5 | K7: 7 | N7: 13 | Q7: 3 | T7: 5 | Y7: 2 | AC7: 13 | AR7: -2 | AS7: 46 | AT7: 7 | AU7: =IF($AT7<=6,SUM($C7:$AQ7),SUMPRODUCT(LARGE($C7:$AQ7,{1,2,3,4,5,6}))) -> 46 | AX7: =IFERROR(SUMPRODUCT(LARGE($C7:$AQ7,{1,2,3,4})), "") -> 38 | AZ7: =IFERROR(SUMPRODUCT(LARGE($C7:$AQ7,{1,2,3,4,5,6,7,8})), "") -> 
A8: DBU | B8: SMU- Waite | E8: 5 | L8: 12 | N8: 7 | W8: 4 | Y8: 8 | AC8: 8 | AS8: 44 | AT8: 6 | AU8: =IF($AT8<=6,SUM($C8:$AQ8),SUMPRODUCT(LARGE($C8:$AQ8,{1,2,3,4,5,6}))) -> 44 | AV8: Manual Calc Needed | AX8: =IFERROR(SUMPRODUCT(LARGE($C8:$AQ8,{1,2,3,4})), "") -> 35 | AZ8: =IFERROR(SUMPRODUCT(LARGE($C8:$AQ8,{1,2,3,4,5,6,7,8})), "") -> 
A9: DBU | B9: USM- Duley | F9: 5 | S9: 9 | T9: 15 | Y9: 15 | AS9: 44 | AT9: 4 | AU9: =IF($AT9<=6,SUM($C9:$AQ9),SUMPRODUCT(LARGE($C9:$AQ9,{1,2,3,4,5,6}))) -> 44 | AX9: =IFERROR(SUMPRODUCT(LARGE($C9:$AQ9,{1,2,3,4})), "") -> 44 | AZ9: =IFERROR(SUMPRODUCT(LARGE($C9:$AQ9,{1,2,3,4,5,6,7,8})), "") -> 
A10: ETBU | B10: UU- Huddleston | D10: 15 | F10: 4 | I10: 15 | M10: 5 | AS10: 39 | AT10: 4 | AU10: =IF($AT10<=6,SUM($C10:$AQ10),SUMPRODUCT(LARGE($C10:$AQ10,{1,2,3,4,5,6}))) -> 39 | AX10: =IFERROR(SUMPRODUCT(LARGE($C10:$AQ10,{1,2,3,4})), "") -> 39 | AZ10: =IFERROR(SUMPRODUCT(LARGE($C10:$AQ10,{1,2,3,4,5,6,7,8})), "") -> 
A11: HPU | B11: SFA- Kemp | K11: 8 | L11: 8 | N11: 4 | W11: 5 | Y11: 6 | AC11: 6 | AS11: 37 | AT11: 6 | AU11: =IF($AT11<=6,SUM($C11:$AQ11),SUMPRODUCT(LARGE($C11:$AQ11,{1,2,3,4,5,6}))) -> 37 | AX11: =IFERROR(SUMPRODUCT(LARGE($C11:$AQ11,{1,2,3,4})), "") -> 28 | AZ11: =IFERROR(SUMPRODUCT(LARGE($C11:$AQ11,{1,2,3,4,5,6,7,8})), "") -> 
A12: HPU | B12: LC- Baugh | E12: 7 | K12: 9 | N12: 7 | Y12: 13 | AS12: 36 | AT12: 4 | AU12: =IF($AT12<=6,SUM($C12:$AQ12),SUMPRODUCT(LARGE($C12:$AQ12,{1,2,3,4,5,6}))) -> 36 | AX12: =IFERROR(SUMPRODUCT(LARGE($C12:$AQ12,{1,2,3,4})), "") -> 36 | AZ12: =IFERROR(SUMPRODUCT(LARGE($C12:$AQ12,{1,2,3,4,5,6,7,8})), "") -> 
A13: JSCC | B13: LTU- Kruskie | D13: 6 | I13: 6 | K13: 4 | N13: 7 | Q13: 7 | T13: 5 | Y13: 5 | AR13: -4 | AS13: 36 | AT13: 7 | AU13: =IF($AT13<=6,SUM($C13:$AQ13),SUMPRODUCT(LARGE($C13:$AQ13,{1,2,3,4,5,6}))) -> 36 | AX13: =IFERROR(SUMPRODUCT(LARGE($C13:$AQ13,{1,2,3,4})), "") -> 26 | AZ13: =IFERROR(SUMPRODUCT(LARGE($C13:$AQ13,{1,2,3,4,5,6,7,8})), "") -> 
A14: JSCC | B14: UU- Thompson | D14: 8 | I14: 7 | O14: 15 | Y14: 4 | AS14: 34 | AT14: 4 | AU14: =IF($AT14<=6,SUM($C14:$AQ14),SUMPRODUCT(LARGE($C14:$AQ14,{1,2,3,4,5,6}))) -> 34 | AX14: =IFERROR(SUMPRODUCT(LARGE($C14:$AQ14,{1,2,3,4})), "") -> 34 | AZ14: =IFERROR(SUMPRODUCT(LARGE($C14:$AQ14,{1,2,3,4,5,6,7,8})), "") -> 
A15: JSCC | B15: BPCC- Stoneman | D15: 3 | E15: 4 | I15: 3 | K15: 3 | N15: 8 | S15: 6 | T15: 9 | AR15: -3 | AS15: 33 | AT15: 7 | AU15: =IF($AT15<=6,SUM($C15:$AQ15),SUMPRODUCT(LARGE($C15:$AQ15,{1,2,3,4,5,6}))) -> 33 | AX15: =IFERROR(SUMPRODUCT(LARGE($C15:$AQ15,{1,2,3,4})), "") -> 27 | AZ15: =IFERROR(SUMPRODUCT(LARGE($C15:$AQ15,{1,2,3,4,5,6,7,8})), "") -> 
A16: LSUS | B16: OkBU- Pipes | D16: 3 | E16: 3 | K16: 9 | Q16: 4 | W16: 2 | AB16: 10 | AS16: 31 | AT16: 6 | AU16: =IF($AT16<=6,SUM($C16:$AQ16),SUMPRODUCT(LARGE($C16:$AQ16,{1,2,3,4,5,6}))) -> 31 | AV16: Manual Calc Needed | AX16: =IFERROR(SUMPRODUCT(LARGE($C16:$AQ16,{1,2,3,4})), "") -> 26 | AZ16: =IFERROR(SUMPRODUCT(LARGE($C16:$AQ16,{1,2,3,4,5,6,7,8})), "") -> 
A17: LSUS | B17: UU- Sheilley | D17: 9 | M17: 10 | O17: 10 | Y17: 2 | AS17: 31 | AT17: 4 | AU17: =IF($AT17<=6,SUM($C17:$AQ17),SUMPRODUCT(LARGE($C17:$AQ17,{1,2,3,4,5,6}))) -> 31 | AX17: =IFERROR(SUMPRODUCT(LARGE($C17:$AQ17,{1,2,3,4})), "") -> 31 | AZ17: =IFERROR(SUMPRODUCT(LARGE($C17:$AQ17,{1,2,3,4,5,6,7,8})), "") -> 
A18: LSUS | B18: NACC- Ivy | D18: 3 | K18: 3 | S18: 4 | T18: 7 | Y18: 11 | AS18: 28 | AT18: 5 | AU18: =IF($AT18<=6,SUM($C18:$AQ18),SUMPRODUCT(LARGE($C18:$AQ18,{1,2,3,4,5,6}))) -> 28 | AX18: =IFERROR(SUMPRODUCT(LARGE($C18:$AQ18,{1,2,3,4})), "") -> 25 | AZ18: =IFERROR(SUMPRODUCT(LARGE($C18:$AQ18,{1,2,3,4,5,6,7,8})), "") -> 
A19: LTU | B19: WhU- Lorenc | G19: 11 | J19: 5 | P19: 12 | AS19: 28 | AT19: 3 | AU19: =IF($AT19<=6,SUM($C19:$AQ19),SUMPRODUCT(LARGE($C19:$AQ19,{1,2,3,4,5,6}))) -> 28 | AX19: =IFERROR(SUMPRODUCT(LARGE($C19:$AQ19,{1,2,3,4})), "") ->  | AZ19: =IFERROR(SUMPRODUCT(LARGE($C19:$AQ19,{1,2,3,4,5,6,7,8})), "") -> 
A20: LTU | B20: ACU- Kahongo | L20: 11 | N20: 13 | X20: 2 | AS20: 26 | AT20: 3 | AU20: =IF($AT20<=6,SUM($C20:$AQ20),SUMPRODUCT(LARGE($C20:$AQ20,{1,2,3,4,5,6}))) -> 26 | AX20: =IFERROR(SUMPRODUCT(LARGE($C20:$AQ20,{1,2,3,4})), "") ->  | AZ20: =IFERROR(SUMPRODUCT(LARGE($C20:$AQ20,{1,2,3,4,5,6,7,8})), "") -> 
A21: MSU | B21: LCC- Brown | G21: 2 | P21: 4 | R21: 8 | U21: 8 | Z21: 4 | AS21: 26 | AT21: 5 | AU21: =IF($AT21<=6,SUM($C21:$AQ21),SUMPRODUCT(LARGE($C21:$AQ21,{1,2,3,4,5,6}))) -> 26 | AX21: =IFERROR(SUMPRODUCT(LARGE($C21:$AQ21,{1,2,3,4})), "") -> 24 | AZ21: =IFERROR(SUMPRODUCT(LARGE($C21:$AQ21,{1,2,3,4,5,6,7,8})), "") -> 
A22: MSU | B22: UT- Winningham | F22: 3 | I22: 6 | O22: 3 | Q22: 7 | V22: 7 | AS22: 26 | AT22: 5 | AU22: =IF($AT22<=6,SUM($C22:$AQ22),SUMPRODUCT(LARGE($C22:$AQ22,{1,2,3,4,5,6}))) -> 26 | AX22: =IFERROR(SUMPRODUCT(LARGE($C22:$AQ22,{1,2,3,4})), "") -> 23 | AZ22: =IFERROR(SUMPRODUCT(LARGE($C22:$AQ22,{1,2,3,4,5,6,7,8})), "") -> 
A23: MSU | B23: WhU- Plunkett | G23: 3 | J23: 3 | P23: 3 | U23: 3 | Y23: 9 | AH23: 5 | AS23: 26 | AT23: 6 | AU23: =IF($AT23<=6,SUM($C23:$AQ23),SUMPRODUCT(LARGE($C23:$AQ23,{1,2,3,4,5,6}))) -> 26 | AX23: =IFERROR(SUMPRODUCT(LARGE($C23:$AQ23,{1,2,3,4})), "") -> 20 | AZ23: =IFERROR(SUMPRODUCT(LARGE($C23:$AQ23,{1,2,3,4,5,6,7,8})), "") -> 
A24: MTSU | B24: CoM- Pannell | D24: 4 | K24: 4 | N24: 11 | S24: 6 | AS24: 25 | AT24: 4 | AU24: =IF($AT24<=6,SUM($C24:$AQ24),SUMPRODUCT(LARGE($C24:$AQ24,{1,2,3,4,5,6}))) -> 25 | AX24: =IFERROR(SUMPRODUCT(LARGE($C24:$AQ24,{1,2,3,4})), "") -> 25 | AZ24: =IFERROR(SUMPRODUCT(LARGE($C24:$AQ24,{1,2,3,4,5,6,7,8})), "") -> 
A25: MTSU | B25: LCC- Mahoney | G25: 2 | J25: 3 | P25: 7 | R25: 4 | U25: 3 | Z25: 6 | AS25: 25 | AT25: 6 | AU25: =IF($AT25<=6,SUM($C25:$AQ25),SUMPRODUCT(LARGE($C25:$AQ25,{1,2,3,4,5,6}))) -> 25 | AV25: Manual Calc Needed | AX25: =IFERROR(SUMPRODUCT(LARGE($C25:$AQ25,{1,2,3,4})), "") -> 20 | AZ25: =IFERROR(SUMPRODUCT(LARGE($C25:$AQ25,{1,2,3,4,5,6,7,8})), "") -> 
A26: MTSU | B26: LCC- Tovar | G26: 5 | J26: 11 | P26: 9 | AS26: 25 | AT26: 3 | AU26: =IF($AT26<=6,SUM($C26:$AQ26),SUMPRODUCT(LARGE($C26:$AQ26,{1,2,3,4,5,6}))) -> 25 | AX26: =IFERROR(SUMPRODUCT(LARGE($C26:$AQ26,{1,2,3,4})), "") ->  | AZ26: =IFERROR(SUMPRODUCT(LARGE($C26:$AQ26,{1,2,3,4,5,6,7,8})), "") -> 
A27: MTSU | B27: MiSU- Kroneberger | O27: 3 | T27: 5 | V27: 8 | Y27: 7 | AB27: 2 | AS27: 25 | AT27: 5 | AU27: =IF($AT27<=6,SUM($C27:$AQ27),SUMPRODUCT(LARGE($C27:$AQ27,{1,2,3,4,5,6}))) -> 25 | AX27: =IFERROR(SUMPRODUCT(LARGE($C27:$AQ27,{1,2,3,4})), "") -> 23 | AZ27: =IFERROR(SUMPRODUCT(LARGE($C27:$AQ27,{1,2,3,4,5,6,7,8})), "") -> 
A28: MTSU | B28: UU- Geary | D28: 11 | M28: 7 | O28: 7 | AS28: 25 | AT28: 3 | AU28: =IF($AT28<=6,SUM($C28:$AQ28),SUMPRODUCT(LARGE($C28:$AQ28,{1,2,3,4,5,6}))) -> 25 | AX28: =IFERROR(SUMPRODUCT(LARGE($C28:$AQ28,{1,2,3,4})), "") ->  | AZ28: =IFERROR(SUMPRODUCT(LARGE($C28:$AQ28,{1,2,3,4,5,6,7,8})), "") -> 
A29: OKBU | B29: BPCC- Robison | S29: 1 | T29: 1 | W29: 9 | AC29: 13 | AS29: 24 | AT29: 4 | AU29: =IF($AT29<=6,SUM($C29:$AQ29),SUMPRODUCT(LARGE($C29:$AQ29,{1,2,3,4,5,6}))) -> 24 | AX29: =IFERROR(SUMPRODUCT(LARGE($C29:$AQ29,{1,2,3,4})), "") -> 24 | AZ29: =IFERROR(SUMPRODUCT(LARGE($C29:$AQ29,{1,2,3,4,5,6,7,8})), "") -> 
A30: OKBU | B30: OKBU- Jenkins | C30: 3 | AS30: 3 | AT30: 1 | AU30: =IF($AT30<=6,SUM($C30:$AQ30),SUMPRODUCT(LARGE($C30:$AQ30,{1,2,3,4,5,6}))) -> 3 | AX30: =IFERROR(SUMPRODUCT(LARGE($C30:$AQ30,{1,2,3,4})), "") ->  | AZ30: =IFERROR(SUMPRODUCT(LARGE($C30:$AQ30,{1,2,3,4,5,6,7,8})), "") -> 
A31: OKBU | B31: OKBU- Kolacny | C31: 3 | AS31: 3 | AT31: 1 | AU31: =IF($AT31<=6,SUM($C31:$AQ31),SUMPRODUCT(LARGE($C31:$AQ31,{1,2,3,4,5,6}))) -> 3 | AX31: =IFERROR(SUMPRODUCT(LARGE($C31:$AQ31,{1,2,3,4})), "") ->  | AZ31: =IFERROR(SUMPRODUCT(LARGE($C31:$AQ31,{1,2,3,4,5,6,7,8})), "") -> 
A32: OKBU | B32: OKBU- Witt | C32: 2 | AS32: 2 | AT32: 1 | AU32: =IF($AT32<=6,SUM($C32:$AQ32),SUMPRODUCT(LARGE($C32:$AQ32,{1,2,3,4,5,6}))) -> 2 | AX32: =IFERROR(SUMPRODUCT(LARGE($C32:$AQ32,{1,2,3,4})), "") ->  | AZ32: =IFERROR(SUMPRODUCT(LARGE($C32:$AQ32,{1,2,3,4,5,6,7,8})), "") -> 
A33: PU | B33: PU- Powell | C33: 4 | AS33: 4 | AT33: 1 | AU33: =IF($AT33<=6,SUM($C33:$AQ33),SUMPRODUCT(LARGE($C33:$AQ33,{1,2,3,4,5,6}))) -> 4 | AX33: =IFERROR(SUMPRODUCT(LARGE($C33:$AQ33,{1,2,3,4})), "") ->  | AZ33: =IFERROR(SUMPRODUCT(LARGE($C33:$AQ33,{1,2,3,4,5,6,7,8})), "") -> 
A34: SMU | B34: SMU- Hazen | C34: 7 | AS34: 7 | AT34: 1 | AU34: =IF($AT34<=6,SUM($C34:$AQ34),SUMPRODUCT(LARGE($C34:$AQ34,{1,2,3,4,5,6}))) -> 7 | AX34: =IFERROR(SUMPRODUCT(LARGE($C34:$AQ34,{1,2,3,4})), "") ->  | AZ34: =IFERROR(SUMPRODUCT(LARGE($C34:$AQ34,{1,2,3,4,5,6,7,8})), "") -> 
A35: SMU | B35: SMU- LaRoe | C35: 7 | AS35: 7 | AT35: 1 | AU35: =IF($AT35<=6,SUM($C35:$AQ35),SUMPRODUCT(LARGE($C35:$AQ35,{1,2,3,4,5,6}))) -> 7 | AX35: =IFERROR(SUMPRODUCT(LARGE($C35:$AQ35,{1,2,3,4})), "") ->  | AZ35: =IFERROR(SUMPRODUCT(LARGE($C35:$AQ35,{1,2,3,4,5,6,7,8})), "") -> 
A36: UA | B36: UA- Appleton | C36: 2 | AS36: 2 | AT36: 1 | AU36: =IF($AT36<=6,SUM($C36:$AQ36),SUMPRODUCT(LARGE($C36:$AQ36,{1,2,3,4,5,6}))) -> 2 | AX36: =IFERROR(SUMPRODUCT(LARGE($C36:$AQ36,{1,2,3,4})), "") ->  | AZ36: =IFERROR(SUMPRODUCT(LARGE($C36:$AQ36,{1,2,3,4,5,6,7,8})), "") -> 
A37: UA | B37: UA- Hubbard | C37: 2 | AS37: 2 | AT37: 1 | AU37: =IF($AT37<=6,SUM($C37:$AQ37),SUMPRODUCT(LARGE($C37:$AQ37,{1,2,3,4,5,6}))) -> 2 | AX37: =IFERROR(SUMPRODUCT(LARGE($C37:$AQ37,{1,2,3,4})), "") ->  | AZ37: =IFERROR(SUMPRODUCT(LARGE($C37:$AQ37,{1,2,3,4,5,6,7,8})), "") -> 
A38: UA | B38: UA- Jamison | C38: 3 | AS38: 3 | AT38: 1 | AU38: =IF($AT38<=6,SUM($C38:$AQ38),SUMPRODUCT(LARGE($C38:$AQ38,{1,2,3,4,5,6}))) -> 3 | AX38: =IFERROR(SUMPRODUCT(LARGE($C38:$AQ38,{1,2,3,4})), "") ->  | AZ38: =IFERROR(SUMPRODUCT(LARGE($C38:$AQ38,{1,2,3,4,5,6,7,8})), "") -> 
A39: UA | B39: UA- Onisei | C39: 2 | AS39: 2 | AT39: 1 | AU39: =IF($AT39<=6,SUM($C39:$AQ39),SUMPRODUCT(LARGE($C39:$AQ39,{1,2,3,4,5,6}))) -> 2 | AX39: =IFERROR(SUMPRODUCT(LARGE($C39:$AQ39,{1,2,3,4})), "") ->  | AZ39: =IFERROR(SUMPRODUCT(LARGE($C39:$AQ39,{1,2,3,4,5,6,7,8})), "") -> 
A40: UF | B40: UF- Benerjee | C40: 3 | AS40: 3 | AT40: 1 | AU40: =IF($AT40<=6,SUM($C40:$AQ40),SUMPRODUCT(LARGE($C40:$AQ40,{1,2,3,4,5,6}))) -> 3 | AX40: =IFERROR(SUMPRODUCT(LARGE($C40:$AQ40,{1,2,3,4})), "") ->  | AZ40: =IFERROR(SUMPRODUCT(LARGE($C40:$AQ40,{1,2,3,4,5,6,7,8})), "") -> 
A41: UF- Levis | B41: UF- Levis-Betancour | C41: 2 | AS41: 2 | AT41: 1 | AU41: =IF($AT41<=6,SUM($C41:$AQ41),SUMPRODUCT(LARGE($C41:$AQ41,{1,2,3,4,5,6}))) -> 2 | AX41: =IFERROR(SUMPRODUCT(LARGE($C41:$AQ41,{1,2,3,4})), "") ->  | AZ41: =IFERROR(SUMPRODUCT(LARGE($C41:$AQ41,{1,2,3,4,5,6,7,8})), "") -> 
A42: UNT | B42: UNT- Posca | C42: 3 | AS42: 3 | AT42: 1 | AU42: =IF($AT42<=6,SUM($C42:$AQ42),SUMPRODUCT(LARGE($C42:$AQ42,{1,2,3,4,5,6}))) -> 3 | AX42: =IFERROR(SUMPRODUCT(LARGE($C42:$AQ42,{1,2,3,4})), "") ->  | AZ42: =IFERROR(SUMPRODUCT(LARGE($C42:$AQ42,{1,2,3,4,5,6,7,8})), "") -> 
A43: UTK | B43: UTK- Deshpande | C43: 4 | AS43: 4 | AT43: 1 | AU43: =IF($AT43<=6,SUM($C43:$AQ43),SUMPRODUCT(LARGE($C43:$AQ43,{1,2,3,4,5,6}))) -> 4 | AX43: =IFERROR(SUMPRODUCT(LARGE($C43:$AQ43,{1,2,3,4})), "") ->  | AZ43: =IFERROR(SUMPRODUCT(LARGE($C43:$AQ43,{1,2,3,4,5,6,7,8})), "") -> 
A44: UTK | B44: UTK- Ober | C44: 5 | AS44: 5 | AT44: 1 | AU44: =IF($AT44<=6,SUM($C44:$AQ44),SUMPRODUCT(LARGE($C44:$AQ44,{1,2,3,4,5,6}))) -> 5 | AX44: =IFERROR(SUMPRODUCT(LARGE($C44:$AQ44,{1,2,3,4})), "") ->  | AZ44: =IFERROR(SUMPRODUCT(LARGE($C44:$AQ44,{1,2,3,4,5,6,7,8})), "") -> 
A45: UTK | B45: UTK- Thurber | C45: 3 | AS45: 3 | AT45: 1 | AU45: =IF($AT45<=6,SUM($C45:$AQ45),SUMPRODUCT(LARGE($C45:$AQ45,{1,2,3,4,5,6}))) -> 3 | AX45: =IFERROR(SUMPRODUCT(LARGE($C45:$AQ45,{1,2,3,4})), "") ->  | AZ45: =IFERROR(SUMPRODUCT(LARGE($C45:$AQ45,{1,2,3,4,5,6,7,8})), "") -> 
A46: UTK | B46: UTK- Wilson | C46: 2 | AS46: 2 | AT46: 1 | AU46: =IF($AT46<=6,SUM($C46:$AQ46),SUMPRODUCT(LARGE($C46:$AQ46,{1,2,3,4,5,6}))) -> 2 | AX46: =IFERROR(SUMPRODUCT(LARGE($C46:$AQ46,{1,2,3,4})), "") ->  | AZ46: =IFERROR(SUMPRODUCT(LARGE($C46:$AQ46,{1,2,3,4,5,6,7,8})), "") -> 
A47: WCU | B47: WCU- Abner | C47: 2 | AS47: 2 | AT47: 1 | AU47: =IF($AT47<=6,SUM($C47:$AQ47),SUMPRODUCT(LARGE($C47:$AQ47,{1,2,3,4,5,6}))) -> 2 | AX47: =IFERROR(SUMPRODUCT(LARGE($C47:$AQ47,{1,2,3,4})), "") ->  | AZ47: =IFERROR(SUMPRODUCT(LARGE($C47:$AQ47,{1,2,3,4,5,6,7,8})), "") -> 
A48: WCU | B48: WCU- Bilich | C48: 3 | AS48: 3 | AT48: 1 | AU48: =IF($AT48<=6,SUM($C48:$AQ48),SUMPRODUCT(LARGE($C48:$AQ48,{1,2,3,4,5,6}))) -> 3 | AX48: =IFERROR(SUMPRODUCT(LARGE($C48:$AQ48,{1,2,3,4})), "") ->  | AZ48: =IFERROR(SUMPRODUCT(LARGE($C48:$AQ48,{1,2,3,4,5,6,7,8})), "") -> 
A49: WCU | B49: WCU- Croft | C49: 5 | AS49: 5 | AT49: 1 | AU49: =IF($AT49<=6,SUM($C49:$AQ49),SUMPRODUCT(LARGE($C49:$AQ49,{1,2,3,4,5,6}))) -> 5 | AX49: =IFERROR(SUMPRODUCT(LARGE($C49:$AQ49,{1,2,3,4})), "") ->  | AZ49: =IFERROR(SUMPRODUCT(LARGE($C49:$AQ49,{1,2,3,4,5,6,7,8})), "") -> 
A50: WCU | B50: WCU- Gilbertson | C50: 3 | AS50: 3 | AT50: 1 | AU50: =IF($AT50<=6,SUM($C50:$AQ50),SUMPRODUCT(LARGE($C50:$AQ50,{1,2,3,4,5,6}))) -> 3 | AX50: =IFERROR(SUMPRODUCT(LARGE($C50:$AQ50,{1,2,3,4})), "") ->  | AZ50: =IFERROR(SUMPRODUCT(LARGE($C50:$AQ50,{1,2,3,4,5,6,7,8})), "") -> 
A51: WCU | B51: WCU- Rogers | C51: 3 | AS51: 3 | AT51: 1 | AU51: =IF($AT51<=6,SUM($C51:$AQ51),SUMPRODUCT(LARGE($C51:$AQ51,{1,2,3,4,5,6}))) -> 3 | AX51: =IFERROR(SUMPRODUCT(LARGE($C51:$AQ51,{1,2,3,4})), "") ->  | AZ51: =IFERROR(SUMPRODUCT(LARGE($C51:$AQ51,{1,2,3,4,5,6,7,8})), "") -> 
AS52: 0 | AT52: 0 | AU52: =IF($AT52<=6,SUM($C52:$AQ52),SUMPRODUCT(LARGE($C52:$AQ52,{1,2,3,4,5,6}))) -> 0 | AX52: =IFERROR(SUMPRODUCT(LARGE($C52:$AQ52,{1,2,3,4})), "") ->  | AZ52: =IFERROR(SUMPRODUCT(LARGE($C52:$AQ52,{1,2,3,4,5,6,7,8})), "") -> 
AS53: 0 | AT53: 0 | AU53: =IF($AT53<=6,SUM($C53:$AQ53),SUMPRODUCT(LARGE($C53:$AQ53,{1,2,3,4,5,6}))) -> 0 | AX53: =IFERROR(SUMPRODUCT(LARGE($C53:$AQ53,{1,2,3,4})), "") ->  | AZ53: =IFERROR(SUMPRODUCT(LARGE($C53:$AQ53,{1,2,3,4,5,6,7,8})), "") -> 
AS54: 0 | AT54: 0 | AU54: =IF($AT54<=6,SUM($C54:$AQ54),SUMPRODUCT(LARGE($C54:$AQ54,{1,2,3,4,5,6}))) -> 0 | AX54: =IFERROR(SUMPRODUCT(LARGE($C54:$AQ54,{1,2,3,4})), "") ->  | AZ54: =IFERROR(SUMPRODUCT(LARGE($C54:$AQ54,{1,2,3,4,5,6,7,8})), "") -> 
AS55: 0 | AT55: 0 | AU55: =IF($AT55<=6,SUM($C55:$AQ55),SUMPRODUCT(LARGE($C55:$AQ55,{1,2,3,4,5,6}))) -> 0 | AX55: =IFERROR(SUMPRODUCT(LARGE($C55:$AQ55,{1,2,3,4})), "") ->  | AZ55: =IFERROR(SUMPRODUCT(LARGE($C55:$AQ55,{1,2,3,4,5,6,7,8})), "") -> 
AS56: 0 | AT56: 0 | AU56: =IF($AT56<=6,SUM($C56:$AQ56),SUMPRODUCT(LARGE($C56:$AQ56,{1,2,3,4,5,6}))) -> 0 | AX56: =IFERROR(SUMPRODUCT(LARGE($C56:$AQ56,{1,2,3,4})), "") ->  | AZ56: =IFERROR(SUMPRODUCT(LARGE($C56:$AQ56,{1,2,3,4,5,6,7,8})), "") -> 
AS57: 0 | AT57: 0 | AU57: =IF($AT57<=6,SUM($C57:$AQ57),SUMPRODUCT(LARGE($C57:$AQ57,{1,2,3,4,5,6}))) -> 0 | AX57: =IFERROR(SUMPRODUCT(LARGE($C57:$AQ57,{1,2,3,4})), "") ->  | AZ57: =IFERROR(SUMPRODUCT(LARGE($C57:$AQ57,{1,2,3,4,5,6,7,8})), "") -> 
AS58: 0 | AT58: 0 | AU58: =IF($AT58<=6,SUM($C58:$AQ58),SUMPRODUCT(LARGE($C58:$AQ58,{1,2,3,4,5,6}))) -> 0 | AX58: =IFERROR(SUMPRODUCT(LARGE($C58:$AQ58,{1,2,3,4})), "") ->  | AZ58: =IFERROR(SUMPRODUCT(LARGE($C58:$AQ58,{1,2,3,4,5,6,7,8})), "") -> 
AS59: 0 | AT59: 0 | AU59: =IF($AT59<=6,SUM($C59:$AQ59),SUMPRODUCT(LARGE($C59:$AQ59,{1,2,3,4,5,6}))) -> 0 | AX59: =IFERROR(SUMPRODUCT(LARGE($C59:$AQ59,{1,2,3,4})), "") ->  | AZ59: =IFERROR(SUMPRODUCT(LARGE($C59:$AQ59,{1,2,3,4,5,6,7,8})), "") -> 
AS60: 0 | AT60: 0 | AU60: =IF($AT60<=6,SUM($C60:$AQ60),SUMPRODUCT(LARGE($C60:$AQ60,{1,2,3,4,5,6}))) -> 0 | AX60: =IFERROR(SUMPRODUCT(LARGE($C60:$AQ60,{1,2,3,4})), "") ->  | AZ60: =IFERROR(SUMPRODUCT(LARGE($C60:$AQ60,{1,2,3,4,5,6,7,8})), "") -> 
AS61: 0 | AT61: 0 | AU61: =IF($AT61<=6,SUM($C61:$AQ61),SUMPRODUCT(LARGE($C61:$AQ61,{1,2,3,4,5,6}))) -> 0 | AX61: =IFERROR(SUMPRODUCT(LARGE($C61:$AQ61,{1,2,3,4})), "") ->  | AZ61: =IFERROR(SUMPRODUCT(LARGE($C61:$AQ61,{1,2,3,4,5,6,7,8})), "") -> 
AS62: 0 | AT62: 0 | AU62: =IF($AT62<=6,SUM($C62:$AQ62),SUMPRODUCT(LARGE($C62:$AQ62,{1,2,3,4,5,6}))) -> 0 | AX62: =IFERROR(SUMPRODUCT(LARGE($C62:$AQ62,{1,2,3,4})), "") ->  | AZ62: =IFERROR(SUMPRODUCT(LARGE($C62:$AQ62,{1,2,3,4,5,6,7,8})), "") -> 
AS63: 0 | AT63: 0 | AU63: =IF($AT63<=6,SUM($C63:$AQ63),SUMPRODUCT(LARGE($C63:$AQ63,{1,2,3,4,5,6}))) -> 0 | AX63: =IFERROR(SUMPRODUCT(LARGE($C63:$AQ63,{1,2,3,4})), "") ->  | AZ63: =IFERROR(SUMPRODUCT(LARGE($C63:$AQ63,{1,2,3,4,5,6,7,8})), "") -> 
AS64: 0 | AT64: 0 | AU64: =IF($AT64<=6,SUM($C64:$AQ64),SUMPRODUCT(LARGE($C64:$AQ64,{1,2,3,4,5,6}))) -> 0 | AX64: =IFERROR(SUMPRODUCT(LARGE($C64:$AQ64,{1,2,3,4})), "") ->  | AZ64: =IFERROR(SUMPRODUCT(LARGE($C64:$AQ64,{1,2,3,4,5,6,7,8})), "") -> 
AS65: 0 | AT65: 0 | AU65: =IF($AT65<=6,SUM($C65:$AQ65),SUMPRODUCT(LARGE($C65:$AQ65,{1,2,3,4,5,6}))) -> 0 | AX65: =IFERROR(SUMPRODUCT(LARGE($C65:$AQ65,{1,2,3,4})), "") ->  | AZ65: =IFERROR(SUMPRODUCT(LARGE($C65:$AQ65,{1,2,3,4,5,6,7,8})), "") -> 
AS66: 0 | AT66: 0 | AU66: =IF($AT66<=6,SUM($C66:$AQ66),SUMPRODUCT(LARGE($C66:$AQ66,{1,2,3,4,5,6}))) -> 0 | AX66: =IFERROR(SUMPRODUCT(LARGE($C66:$AQ66,{1,2,3,4})), "") ->  | AZ66: =IFERROR(SUMPRODUCT(LARGE($C66:$AQ66,{1,2,3,4,5,6,7,8})), "") -> 
AS67: 0 | AT67: 0 | AU67: =IF($AT67<=6,SUM($C67:$AQ67),SUMPRODUCT(LARGE($C67:$AQ67,{1,2,3,4,5,6}))) -> 0 | AX67: =IFERROR(SUMPRODUCT(LARGE($C67:$AQ67,{1,2,3,4})), "") ->  | AZ67: =IFERROR(SUMPRODUCT(LARGE($C67:$AQ67,{1,2,3,4,5,6,7,8})), "") -> 
AS68: =SUM($C68:$AR68) -> 0 | AT68: =COUNTA(C68:AQ68) -> 0 | AU68: =IF($AT68<=6,SUM($C68:$AQ68),SUMPRODUCT(LARGE($C68:$AQ68,{1,2,3,4,5,6}))) -> 0 | AV68: =IF(AND($AT68>=6,AU68=AU69),"Manual Calc Needed","") ->  | AW68: =IF(AND($AT68>=6,$AV68="Tie"),"Manual Calc Needed"," ") ->  | AX68: =IFERROR(SUMPRODUCT(LARGE($C68:$AQ68,{1,2,3,4})), "") ->  | AY68: =IF(AND($AT68>=6,$AV68="Tie",AX68=AX69),"Manual Calc Needed"," ") ->  | AZ68: =IFERROR(SUMPRODUCT(LARGE($C68:$AQ68,{1,2,3,4,5,6,7,8})), "") -> 
AS69: 0 | AT69: 0 | AU69: =IF($AT69<=6,SUM($C69:$AQ69),SUMPRODUCT(LARGE($C69:$AQ69,{1,2,3,4,5,6}))) -> 0 | AX69: =IFERROR(SUMPRODUCT(LARGE($C69:$AQ69,{1,2,3,4})), "") ->  | AZ69: =IFERROR(SUMPRODUCT(LARGE($C69:$AQ69,{1,2,3,4,5,6,7,8})), "") -> 
AS70: 0 | AT70: 0 | AU70: =IF($AT70<=6,SUM($C70:$AQ70),SUMPRODUCT(LARGE($C70:$AQ70,{1,2,3,4,5,6}))) -> 0 | AX70: =IFERROR(SUMPRODUCT(LARGE($C70:$AQ70,{1,2,3,4})), "") ->  | AZ70: =IFERROR(SUMPRODUCT(LARGE($C70:$AQ70,{1,2,3,4,5,6,7,8})), "") -> 
AS71: 0 | AT71: 0 | AU71: =IF($AT71<=6,SUM($C71:$AQ71),SUMPRODUCT(LARGE($C71:$AQ71,{1,2,3,4,5,6}))) -> 0 | AX71: =IFERROR(SUMPRODUCT(LARGE($C71:$AQ71,{1,2,3,4})), "") ->  | AZ71: =IFERROR(SUMPRODUCT(LARGE($C71:$AQ71,{1,2,3,4,5,6,7,8})), "") -> 
AS72: 0 | AT72: 0 | AU72: =IF($AT72<=6,SUM($C72:$AQ72),SUMPRODUCT(LARGE($C72:$AQ72,{1,2,3,4,5,6}))) -> 0 | AX72: =IFERROR(SUMPRODUCT(LARGE($C72:$AQ72,{1,2,3,4})), "") ->  | AZ72: =IFERROR(SUMPRODUCT(LARGE($C72:$AQ72,{1,2,3,4,5,6,7,8})), "") -> 
AS73: 0 | AT73: 0 | AU73: =IF($AT73<=6,SUM($C73:$AQ73),SUMPRODUCT(LARGE($C73:$AQ73,{1,2,3,4,5,6}))) -> 0 | AX73: =IFERROR(SUMPRODUCT(LARGE($C73:$AQ73,{1,2,3,4})), "") ->  | AZ73: =IFERROR(SUMPRODUCT(LARGE($C73:$AQ73,{1,2,3,4,5,6,7,8})), "") -> 
AS74: 0 | AT74: 0 | AU74: =IF($AT74<=6,SUM($C74:$AQ74),SUMPRODUCT(LARGE($C74:$AQ74,{1,2,3,4,5,6}))) -> 0 | AX74: =IFERROR(SUMPRODUCT(LARGE($C74:$AQ74,{1,2,3,4})), "") ->  | AZ74: =IFERROR(SUMPRODUCT(LARGE($C74:$AQ74,{1,2,3,4,5,6,7,8})), "") -> 
AS75: 0 | AT75: 0 | AU75: =IF($AT75<=6,SUM($C75:$AQ75),SUMPRODUCT(LARGE($C75:$AQ75,{1,2,3,4,5,6}))) -> 0 | AX75: =IFERROR(SUMPRODUCT(LARGE($C75:$AQ75,{1,2,3,4})), "") ->  | AZ75: =IFERROR(SUMPRODUCT(LARGE($C75:$AQ75,{1,2,3,4,5,6,7,8})), "") -> 
AS76: 0 | AT76: 0 | AU76: =IF($AT76<=6,SUM($C76:$AQ76),SUMPRODUCT(LARGE($C76:$AQ76,{1,2,3,4,5,6}))) -> 0 | AX76: =IFERROR(SUMPRODUCT(LARGE($C76:$AQ76,{1,2,3,4})), "") ->  | AZ76: =IFERROR(SUMPRODUCT(LARGE($C76:$AQ76,{1,2,3,4,5,6,7,8})), "") -> 
AS77: 0 | AT77: 0 | AU77: =IF($AT77<=6,SUM($C77:$AQ77),SUMPRODUCT(LARGE($C77:$AQ77,{1,2,3,4,5,6}))) -> 0 | AX77: =IFERROR(SUMPRODUCT(LARGE($C77:$AQ77,{1,2,3,4})), "") ->  | AZ77: =IFERROR(SUMPRODUCT(LARGE($C77:$AQ77,{1,2,3,4,5,6,7,8})), "") -> 
AS78: 0 | AT78: 0 | AU78: =IF($AT78<=6,SUM($C78:$AQ78),SUMPRODUCT(LARGE($C78:$AQ78,{1,2,3,4,5,6}))) -> 0 | AX78: =IFERROR(SUMPRODUCT(LARGE($C78:$AQ78,{1,2,3,4})), "") ->  | AZ78: =IFERROR(SUMPRODUCT(LARGE($C78:$AQ78,{1,2,3,4,5,6,7,8})), "") -> 
AS79: 0 | AT79: 0 | AU79: =IF($AT79<=6,SUM($C79:$AQ79),SUMPRODUCT(LARGE($C79:$AQ79,{1,2,3,4,5,6}))) -> 0 | AX79: =IFERROR(SUMPRODUCT(LARGE($C79:$AQ79,{1,2,3,4})), "") ->  | AZ79: =IFERROR(SUMPRODUCT(LARGE($C79:$AQ79,{1,2,3,4,5,6,7,8})), "") -> 
AS80: 0 | AT80: 0 | AU80: =IF($AT80<=6,SUM($C80:$AQ80),SUMPRODUCT(LARGE($C80:$AQ80,{1,2,3,4,5,6}))) -> 0 | AX80: =IFERROR(SUMPRODUCT(LARGE($C80:$AQ80,{1,2,3,4})), "") ->  | AZ80: =IFERROR(SUMPRODUCT(LARGE($C80:$AQ80,{1,2,3,4,5,6,7,8})), "") -> 
AS81: 0 | AT81: 0 | AU81: =IF($AT81<=6,SUM($C81:$AQ81),SUMPRODUCT(LARGE($C81:$AQ81,{1,2,3,4,5,6}))) -> 0 | AX81: =IFERROR(SUMPRODUCT(LARGE($C81:$AQ81,{1,2,3,4})), "") ->  | AZ81: =IFERROR(SUMPRODUCT(LARGE($C81:$AQ81,{1,2,3,4,5,6,7,8})), "") -> 
AS82: 0 | AT82: 0 | AU82: =IF($AT82<=6,SUM($C82:$AQ82),SUMPRODUCT(LARGE($C82:$AQ82,{1,2,3,4,5,6}))) -> 0 | AX82: =IFERROR(SUMPRODUCT(LARGE($C82:$AQ82,{1,2,3,4})), "") ->  | AZ82: =IFERROR(SUMPRODUCT(LARGE($C82:$AQ82,{1,2,3,4,5,6,7,8})), "") -> 
AS83: 0 | AT83: 0 | AU83: =IF($AT83<=6,SUM($C83:$AQ83),SUMPRODUCT(LARGE($C83:$AQ83,{1,2,3,4,5,6}))) -> 0 | AX83: =IFERROR(SUMPRODUCT(LARGE($C83:$AQ83,{1,2,3,4})), "") ->  | AZ83: =IFERROR(SUMPRODUCT(LARGE($C83:$AQ83,{1,2,3,4,5,6,7,8})), "") -> 
AS84: 0 | AT84: 0 | AU84: =IF($AT84<=6,SUM($C84:$AQ84),SUMPRODUCT(LARGE($C84:$AQ84,{1,2,3,4,5,6}))) -> 0 | AX84: =IFERROR(SUMPRODUCT(LARGE($C84:$AQ84,{1,2,3,4})), "") ->  | AZ84: =IFERROR(SUMPRODUCT(LARGE($C84:$AQ84,{1,2,3,4,5,6,7,8})), "") -> 
AS85: 0 | AT85: 0 | AU85: =IF($AT85<=6,SUM($C85:$AQ85),SUMPRODUCT(LARGE($C85:$AQ85,{1,2,3,4,5,6}))) -> 0 | AX85: =IFERROR(SUMPRODUCT(LARGE($C85:$AQ85,{1,2,3,4})), "") ->  | AZ85: =IFERROR(SUMPRODUCT(LARGE($C85:$AQ85,{1,2,3,4,5,6,7,8})), "") -> 
AS86: 0 | AT86: 0 | AU86: =IF($AT86<=6,SUM($C86:$AQ86),SUMPRODUCT(LARGE($C86:$AQ86,{1,2,3,4,5,6}))) -> 0 | AX86: =IFERROR(SUMPRODUCT(LARGE($C86:$AQ86,{1,2,3,4})), "") ->  | AZ86: =IFERROR(SUMPRODUCT(LARGE($C86:$AQ86,{1,2,3,4,5,6,7,8})), "") -> 
AS87: 0 | AT87: 0 | AU87: =IF($AT87<=6,SUM($C87:$AQ87),SUMPRODUCT(LARGE($C87:$AQ87,{1,2,3,4,5,6}))) -> 0 | AX87: =IFERROR(SUMPRODUCT(LARGE($C87:$AQ87,{1,2,3,4})), "") ->  | AZ87: =IFERROR(SUMPRODUCT(LARGE($C87:$AQ87,{1,2,3,4,5,6,7,8})), "") -> 
AS88: 0 | AT88: 0 | AU88: =IF($AT88<=6,SUM($C88:$AQ88),SUMPRODUCT(LARGE($C88:$AQ88,{1,2,3,4,5,6}))) -> 0 | AX88: =IFERROR(SUMPRODUCT(LARGE($C88:$AQ88,{1,2,3,4})), "") ->  | AZ88: =IFERROR(SUMPRODUCT(LARGE($C88:$AQ88,{1,2,3,4,5,6,7,8})), "") -> 
AS89: 0 | AT89: 0 | AU89: =IF($AT89<=6,SUM($C89:$AQ89),SUMPRODUCT(LARGE($C89:$AQ89,{1,2,3,4,5,6}))) -> 0 | AX89: =IFERROR(SUMPRODUCT(LARGE($C89:$AQ89,{1,2,3,4})), "") ->  | AZ89: =IFERROR(SUMPRODUCT(LARGE($C89:$AQ89,{1,2,3,4,5,6,7,8})), "") -> 
AS90: 0 | AT90: 0 | AU90: =IF($AT90<=6,SUM($C90:$AQ90),SUMPRODUCT(LARGE($C90:$AQ90,{1,2,3,4,5,6}))) -> 0 | AX90: =IFERROR(SUMPRODUCT(LARGE($C90:$AQ90,{1,2,3,4})), "") ->  | AZ90: =IFERROR(SUMPRODUCT(LARGE($C90:$AQ90,{1,2,3,4,5,6,7,8})), "") -> 
AS91: 0 | AT91: 0 | AU91: =IF($AT91<=6,SUM($C91:$AQ91),SUMPRODUCT(LARGE($C91:$AQ91,{1,2,3,4,5,6}))) -> 0 | AX91: =IFERROR(SUMPRODUCT(LARGE($C91:$AQ91,{1,2,3,4})), "") ->  | AZ91: =IFERROR(SUMPRODUCT(LARGE($C91:$AQ91,{1,2,3,4,5,6,7,8})), "") -> 
AS92: 0 | AT92: 0 | AU92: =IF($AT92<=6,SUM($C92:$AQ92),SUMPRODUCT(LARGE($C92:$AQ92,{1,2,3,4,5,6}))) -> 0 | AX92: =IFERROR(SUMPRODUCT(LARGE($C92:$AQ92,{1,2,3,4})), "") ->  | AZ92: =IFERROR(SUMPRODUCT(LARGE($C92:$AQ92,{1,2,3,4,5,6,7,8})), "") -> 
AS93: 0 | AT93: 0 | AU93: =IF($AT93<=6,SUM($C93:$AQ93),SUMPRODUCT(LARGE($C93:$AQ93,{1,2,3,4,5,6}))) -> 0 | AX93: =IFERROR(SUMPRODUCT(LARGE($C93:$AQ93,{1,2,3,4})), "") ->  | AZ93: =IFERROR(SUMPRODUCT(LARGE($C93:$AQ93,{1,2,3,4,5,6,7,8})), "") -> 
AS94: 0 | AT94: 0 | AU94: =IF($AT94<=6,SUM($C94:$AQ94),SUMPRODUCT(LARGE($C94:$AQ94,{1,2,3,4,5,6}))) -> 0 | AX94: =IFERROR(SUMPRODUCT(LARGE($C94:$AQ94,{1,2,3,4})), "") ->  | AZ94: =IFERROR(SUMPRODUCT(LARGE($C94:$AQ94,{1,2,3,4,5,6,7,8})), "") -> 
AS95: 0 | AT95: 0 | AU95: =IF($AT95<=6,SUM($C95:$AQ95),SUMPRODUCT(LARGE($C95:$AQ95,{1,2,3,4,5,6}))) -> 0 | AX95: =IFERROR(SUMPRODUCT(LARGE($C95:$AQ95,{1,2,3,4})), "") ->  | AZ95: =IFERROR(SUMPRODUCT(LARGE($C95:$AQ95,{1,2,3,4,5,6,7,8})), "") -> 
AS96: 0 | AT96: 0 | AU96: =IF($AT96<=6,SUM($C96:$AQ96),SUMPRODUCT(LARGE($C96:$AQ96,{1,2,3,4,5,6}))) -> 0 | AX96: =IFERROR(SUMPRODUCT(LARGE($C96:$AQ96,{1,2,3,4})), "") ->  | AZ96: =IFERROR(SUMPRODUCT(LARGE($C96:$AQ96,{1,2,3,4,5,6,7,8})), "") -> 
AS97: 0 | AT97: 0 | AU97: =IF($AT97<=6,SUM($C97:$AQ97),SUMPRODUCT(LARGE($C97:$AQ97,{1,2,3,4,5,6}))) -> 0 | AX97: =IFERROR(SUMPRODUCT(LARGE($C97:$AQ97,{1,2,3,4})), "") ->  | AZ97: =IFERROR(SUMPRODUCT(LARGE($C97:$AQ97,{1,2,3,4,5,6,7,8})), "") -> 
AS98: 0 | AT98: 0 | AU98: =IF($AT98<=6,SUM($C98:$AQ98),SUMPRODUCT(LARGE($C98:$AQ98,{1,2,3,4,5,6}))) -> 0 | AX98: =IFERROR(SUMPRODUCT(LARGE($C98:$AQ98,{1,2,3,4})), "") ->  | AZ98: =IFERROR(SUMPRODUCT(LARGE($C98:$AQ98,{1,2,3,4,5,6,7,8})), "") -> 
AS99: 0 | AT99: 0 | AU99: =IF($AT99<=6,SUM($C99:$AQ99),SUMPRODUCT(LARGE($C99:$AQ99,{1,2,3,4,5,6}))) -> 0 | AX99: =IFERROR(SUMPRODUCT(LARGE($C99:$AQ99,{1,2,3,4})), "") ->  | AZ99: =IFERROR(SUMPRODUCT(LARGE($C99:$AQ99,{1,2,3,4,5,6,7,8})), "") -> 
AS100: 0 | AT100: 0 | AU100: =IF($AT100<=6,SUM($C100:$AQ100),SUMPRODUCT(LARGE($C100:$AQ100,{1,2,3,4,5,6}))) -> 0 | AX100: =IFERROR(SUMPRODUCT(LARGE($C100:$AQ100,{1,2,3,4})), "") ->  | AZ100: =IFERROR(SUMPRODUCT(LARGE($C100:$AQ100,{1,2,3,4,5,6,7,8})), "") -> 
AS101: 0 | AT101: 0 | AU101: =IF($AT101<=6,SUM($C101:$AQ101),SUMPRODUCT(LARGE($C101:$AQ101,{1,2,3,4,5,6}))) -> 0 | AX101: =IFERROR(SUMPRODUCT(LARGE($C101:$AQ101,{1,2,3,4})), "") ->  | AZ101: =IFERROR(SUMPRODUCT(LARGE($C101:$AQ101,{1,2,3,4,5,6,7,8})), "") -> 
AS102: 0 | AT102: 0 | AU102: =IF($AT102<=6,SUM($C102:$AQ102),SUMPRODUCT(LARGE($C102:$AQ102,{1,2,3,4,5,6}))) -> 0 | AX102: =IFERROR(SUMPRODUCT(LARGE($C102:$AQ102,{1,2,3,4})), "") ->  | AZ102: =IFERROR(SUMPRODUCT(LARGE($C102:$AQ102,{1,2,3,4,5,6,7,8})), "") -> 
AS103: 0 | AT103: 0 | AU103: =IF($AT103<=6,SUM($C103:$AQ103),SUMPRODUCT(LARGE($C103:$AQ103,{1,2,3,4,5,6}))) -> 0 | AX103: =IFERROR(SUMPRODUCT(LARGE($C103:$AQ103,{1,2,3,4})), "") ->  | AZ103: =IFERROR(SUMPRODUCT(LARGE($C103:$AQ103,{1,2,3,4,5,6,7,8})), "") -> 
AS104: 0 | AT104: 0 | AU104: =IF($AT104<=6,SUM($C104:$AQ104),SUMPRODUCT(LARGE($C104:$AQ104,{1,2,3,4,5,6}))) -> 0 | AX104: =IFERROR(SUMPRODUCT(LARGE($C104:$AQ104,{1,2,3,4})), "") ->  | AZ104: =IFERROR(SUMPRODUCT(LARGE($C104:$AQ104,{1,2,3,4,5,6,7,8})), "") -> 
AS105: 0 | AT105: 0 | AU105: =IF($AT105<=6,SUM($C105:$AQ105),SUMPRODUCT(LARGE($C105:$AQ105,{1,2,3,4,5,6}))) -> 0 | AX105: =IFERROR(SUMPRODUCT(LARGE($C105:$AQ105,{1,2,3,4})), "") ->  | AZ105: =IFERROR(SUMPRODUCT(LARGE($C105:$AQ105,{1,2,3,4,5,6,7,8})), "") -> 
AS106: 0 | AT106: 0 | AU106: =IF($AT106<=6,SUM($C106:$AQ106),SUMPRODUCT(LARGE($C106:$AQ106,{1,2,3,4,5,6}))) -> 0 | AX106: =IFERROR(SUMPRODUCT(LARGE($C106:$AQ106,{1,2,3,4})), "") ->  | AZ106: =IFERROR(SUMPRODUCT(LARGE($C106:$AQ106,{1,2,3,4,5,6,7,8})), "") -> 
AS107: 0 | AT107: 0 | AU107: =IF($AT107<=6,SUM($C107:$AQ107),SUMPRODUCT(LARGE($C107:$AQ107,{1,2,3,4,5,6}))) -> 0 | AX107: =IFERROR(SUMPRODUCT(LARGE($C107:$AQ107,{1,2,3,4})), "") ->  | AZ107: =IFERROR(SUMPRODUCT(LARGE($C107:$AQ107,{1,2,3,4,5,6,7,8})), "") -> 
AS108: 0 | AT108: 0 | AU108: =IF($AT108<=6,SUM($C108:$AQ108),SUMPRODUCT(LARGE($C108:$AQ108,{1,2,3,4,5,6}))) -> 0 | AX108: =IFERROR(SUMPRODUCT(LARGE($C108:$AQ108,{1,2,3,4})), "") ->  | AZ108: =IFERROR(SUMPRODUCT(LARGE($C108:$AQ108,{1,2,3,4,5,6,7,8})), "") -> 
AS109: 0 | AT109: 0 | AU109: =IF($AT109<=6,SUM($C109:$AQ109),SUMPRODUCT(LARGE($C109:$AQ109,{1,2,3,4,5,6}))) -> 0 | AX109: =IFERROR(SUMPRODUCT(LARGE($C109:$AQ109,{1,2,3,4})), "") ->  | AZ109: =IFERROR(SUMPRODUCT(LARGE($C109:$AQ109,{1,2,3,4,5,6,7,8})), "") -> 
AS110: 0 | AT110: 0 | AU110: =IF($AT110<=6,SUM($C110:$AQ110),SUMPRODUCT(LARGE($C110:$AQ110,{1,2,3,4,5,6}))) -> 0 | AX110: =IFERROR(SUMPRODUCT(LARGE($C110:$AQ110,{1,2,3,4})), "") ->  | AZ110: =IFERROR(SUMPRODUCT(LARGE($C110:$AQ110,{1,2,3,4,5,6,7,8})), "") -> 
AS111: 0 | AT111: 0 | AU111: =IF($AT111<=6,SUM($C111:$AQ111),SUMPRODUCT(LARGE($C111:$AQ111,{1,2,3,4,5,6}))) -> 0 | AX111: =IFERROR(SUMPRODUCT(LARGE($C111:$AQ111,{1,2,3,4})), "") ->  | AZ111: =IFERROR(SUMPRODUCT(LARGE($C111:$AQ111,{1,2,3,4,5,6,7,8})), "") -> 
AS112: 0 | AT112: 0 | AU112: =IF($AT112<=6,SUM($C112:$AQ112),SUMPRODUCT(LARGE($C112:$AQ112,{1,2,3,4,5,6}))) -> 0 | AX112: =IFERROR(SUMPRODUCT(LARGE($C112:$AQ112,{1,2,3,4})), "") ->  | AZ112: =IFERROR(SUMPRODUCT(LARGE($C112:$AQ112,{1,2,3,4,5,6,7,8})), "") -> 
AS113: 0 | AT113: 0 | AU113: =IF($AT113<=6,SUM($C113:$AQ113),SUMPRODUCT(LARGE($C113:$AQ113,{1,2,3,4,5,6}))) -> 0 | AX113: =IFERROR(SUMPRODUCT(LARGE($C113:$AQ113,{1,2,3,4})), "") ->  | AZ113: =IFERROR(SUMPRODUCT(LARGE($C113:$AQ113,{1,2,3,4,5,6,7,8})), "") -> 
AS114: 0 | AT114: 0 | AU114: =IF($AT114<=6,SUM($C114:$AQ114),SUMPRODUCT(LARGE($C114:$AQ114,{1,2,3,4,5,6}))) -> 0 | AX114: =IFERROR(SUMPRODUCT(LARGE($C114:$AQ114,{1,2,3,4})), "") ->  | AZ114: =IFERROR(SUMPRODUCT(LARGE($C114:$AQ114,{1,2,3,4,5,6,7,8})), "") -> 
AS115: 0 | AT115: 0 | AU115: =IF($AT115<=6,SUM($C115:$AQ115),SUMPRODUCT(LARGE($C115:$AQ115,{1,2,3,4,5,6}))) -> 0 | AX115: =IFERROR(SUMPRODUCT(LARGE($C115:$AQ115,{1,2,3,4})), "") ->  | AZ115: =IFERROR(SUMPRODUCT(LARGE($C115:$AQ115,{1,2,3,4,5,6,7,8})), "") -> 
AS116: 0 | AT116: 0 | AU116: =IF($AT116<=6,SUM($C116:$AQ116),SUMPRODUCT(LARGE($C116:$AQ116,{1,2,3,4,5,6}))) -> 0 | AX116: =IFERROR(SUMPRODUCT(LARGE($C116:$AQ116,{1,2,3,4})), "") ->  | AZ116: =IFERROR(SUMPRODUCT(LARGE($C116:$AQ116,{1,2,3,4,5,6,7,8})), "") -> 
AS117: 0 | AT117: 0 | AU117: =IF($AT117<=6,SUM($C117:$AQ117),SUMPRODUCT(LARGE($C117:$AQ117,{1,2,3,4,5,6}))) -> 0 | AX117: =IFERROR(SUMPRODUCT(LARGE($C117:$AQ117,{1,2,3,4})), "") ->  | AZ117: =IFERROR(SUMPRODUCT(LARGE($C117:$AQ117,{1,2,3,4,5,6,7,8})), "") -> 
AS118: 0 | AT118: 0 | AU118: =IF($AT118<=6,SUM($C118:$AQ118),SUMPRODUCT(LARGE($C118:$AQ118,{1,2,3,4,5,6}))) -> 0 | AX118: =IFERROR(SUMPRODUCT(LARGE($C118:$AQ118,{1,2,3,4})), "") ->  | AZ118: =IFERROR(SUMPRODUCT(LARGE($C118:$AQ118,{1,2,3,4,5,6,7,8})), "") -> 
AS119: 0 | AT119: 0 | AU119: =IF($AT119<=6,SUM($C119:$AQ119),SUMPRODUCT(LARGE($C119:$AQ119,{1,2,3,4,5,6}))) -> 0 | AX119: =IFERROR(SUMPRODUCT(LARGE($C119:$AQ119,{1,2,3,4})), "") ->  | AZ119: =IFERROR(SUMPRODUCT(LARGE($C119:$AQ119,{1,2,3,4,5,6,7,8})), "") -> 
AS120: 0 | AT120: 0 | AU120: =IF($AT120<=6,SUM($C120:$AQ120),SUMPRODUCT(LARGE($C120:$AQ120,{1,2,3,4,5,6}))) -> 0 | AX120: =IFERROR(SUMPRODUCT(LARGE($C120:$AQ120,{1,2,3,4})), "") ->  | AZ120: =IFERROR(SUMPRODUCT(LARGE($C120:$AQ120,{1,2,3,4,5,6,7,8})), "") -> 
AS121: 0 | AT121: 0 | AU121: =IF($AT121<=6,SUM($C121:$AQ121),SUMPRODUCT(LARGE($C121:$AQ121,{1,2,3,4,5,6}))) -> 0 | AX121: =IFERROR(SUMPRODUCT(LARGE($C121:$AQ121,{1,2,3,4})), "") ->  | AZ121: =IFERROR(SUMPRODUCT(LARGE($C121:$AQ121,{1,2,3,4,5,6,7,8})), "") -> 
AS122: 0 | AT122: 0 | AU122: =IF($AT122<=6,SUM($C122:$AQ122),SUMPRODUCT(LARGE($C122:$AQ122,{1,2,3,4,5,6}))) -> 0 | AX122: =IFERROR(SUMPRODUCT(LARGE($C122:$AQ122,{1,2,3,4})), "") ->  | AZ122: =IFERROR(SUMPRODUCT(LARGE($C122:$AQ122,{1,2,3,4,5,6,7,8})), "") -> 
AS123: 0 | AT123: 0 | AU123: =IF($AT123<=6,SUM($C123:$AQ123),SUMPRODUCT(LARGE($C123:$AQ123,{1,2,3,4,5,6}))) -> 0 | AX123: =IFERROR(SUMPRODUCT(LARGE($C123:$AQ123,{1,2,3,4})), "") ->  | AZ123: =IFERROR(SUMPRODUCT(LARGE($C123:$AQ123,{1,2,3,4,5,6,7,8})), "") -> 
AS124: 0 | AT124: 0 | AU124: =IF($AT124<=6,SUM($C124:$AQ124),SUMPRODUCT(LARGE($C124:$AQ124,{1,2,3,4,5,6}))) -> 0 | AX124: =IFERROR(SUMPRODUCT(LARGE($C124:$AQ124,{1,2,3,4})), "") ->  | AZ124: =IFERROR(SUMPRODUCT(LARGE($C124:$AQ124,{1,2,3,4,5,6,7,8})), "") -> 
AS125: 0 | AT125: 0 | AU125: =IF($AT125<=6,SUM($C125:$AQ125),SUMPRODUCT(LARGE($C125:$AQ125,{1,2,3,4,5,6}))) -> 0 | AX125: =IFERROR(SUMPRODUCT(LARGE($C125:$AQ125,{1,2,3,4})), "") ->  | AZ125: =IFERROR(SUMPRODUCT(LARGE($C125:$AQ125,{1,2,3,4,5,6,7,8})), "") -> 
AS126: 0 | AT126: 0 | AU126: =IF($AT126<=6,SUM($C126:$AQ126),SUMPRODUCT(LARGE($C126:$AQ126,{1,2,3,4,5,6}))) -> 0 | AX126: =IFERROR(SUMPRODUCT(LARGE($C126:$AQ126,{1,2,3,4})), "") ->  | AZ126: =IFERROR(SUMPRODUCT(LARGE($C126:$AQ126,{1,2,3,4,5,6,7,8})), "") -> 
AS127: 0 | AT127: 0 | AU127: =IF($AT127<=6,SUM($C127:$AQ127),SUMPRODUCT(LARGE($C127:$AQ127,{1,2,3,4,5,6}))) -> 0 | AX127: =IFERROR(SUMPRODUCT(LARGE($C127:$AQ127,{1,2,3,4})), "") ->  | AZ127: =IFERROR(SUMPRODUCT(LARGE($C127:$AQ127,{1,2,3,4,5,6,7,8})), "") -> 
AS128: 0 | AT128: 0 | AU128: =IF($AT128<=6,SUM($C128:$AQ128),SUMPRODUCT(LARGE($C128:$AQ128,{1,2,3,4,5,6}))) -> 0 | AX128: =IFERROR(SUMPRODUCT(LARGE($C128:$AQ128,{1,2,3,4})), "") ->  | AZ128: =IFERROR(SUMPRODUCT(LARGE($C128:$AQ128,{1,2,3,4,5,6,7,8})), "") -> 
AS129: 0 | AT129: 0 | AU129: =IF($AT129<=6,SUM($C129:$AQ129),SUMPRODUCT(LARGE($C129:$AQ129,{1,2,3,4,5,6}))) -> 0 | AX129: =IFERROR(SUMPRODUCT(LARGE($C129:$AQ129,{1,2,3,4})), "") ->  | AZ129: =IFERROR(SUMPRODUCT(LARGE($C129:$AQ129,{1,2,3,4,5,6,7,8})), "") -> 
AS130: 0 | AT130: 0 | AU130: =IF($AT130<=6,SUM($C130:$AQ130),SUMPRODUCT(LARGE($C130:$AQ130,{1,2,3,4,5,6}))) -> 0 | AX130: =IFERROR(SUMPRODUCT(LARGE($C130:$AQ130,{1,2,3,4})), "") ->  | AZ130: =IFERROR(SUMPRODUCT(LARGE($C130:$AQ130,{1,2,3,4,5,6,7,8})), "") -> 
AS131: 0 | AT131: 0 | AU131: =IF($AT131<=6,SUM($C131:$AQ131),SUMPRODUCT(LARGE($C131:$AQ131,{1,2,3,4,5,6}))) -> 0 | AX131: =IFERROR(SUMPRODUCT(LARGE($C131:$AQ131,{1,2,3,4})), "") ->  | AZ131: =IFERROR(SUMPRODUCT(LARGE($C131:$AQ131,{1,2,3,4,5,6,7,8})), "") -> 
AS132: =SUM($C132:$AR132) -> 0 | AT132: =COUNTA(C132:AQ132) -> 0 | AU132: =IF($AT132<=6,SUM($C132:$AQ132),SUMPRODUCT(LARGE($C132:$AQ132,{1,2,3,4,5,6}))) -> 0 | AV132: =IF(AND($AT132>=6,AU132=AU133),"Manual Calc Needed","") ->  | AW132: =IF(AND($AT132>=6,$AV132="Tie"),"Manual Calc Needed"," ") ->  | AX132: =IFERROR(SUMPRODUCT(LARGE($C132:$AQ132,{1,2,3,4})), "") ->  | AY132: =IF(AND($AT132>=6,$AV132="Tie",AX132=AX133),"Manual Calc Needed"," ") ->  | AZ132: =IFERROR(SUMPRODUCT(LARGE($C132:$AQ132,{1,2,3,4,5,6,7,8})), "") -> 
AS133: 0 | AT133: 0 | AU133: =IF($AT133<=6,SUM($C133:$AQ133),SUMPRODUCT(LARGE($C133:$AQ133,{1,2,3,4,5,6}))) -> 0 | AX133: =IFERROR(SUMPRODUCT(LARGE($C133:$AQ133,{1,2,3,4})), "") ->  | AZ133: =IFERROR(SUMPRODUCT(LARGE($C133:$AQ133,{1,2,3,4,5,6,7,8})), "") -> 
AS134: 0 | AT134: 0 | AU134: =IF($AT134<=6,SUM($C134:$AQ134),SUMPRODUCT(LARGE($C134:$AQ134,{1,2,3,4,5,6}))) -> 0 | AX134: =IFERROR(SUMPRODUCT(LARGE($C134:$AQ134,{1,2,3,4})), "") ->  | AZ134: =IFERROR(SUMPRODUCT(LARGE($C134:$AQ134,{1,2,3,4,5,6,7,8})), "") -> 
AS135: 0 | AT135: 0 | AU135: =IF($AT135<=6,SUM($C135:$AQ135),SUMPRODUCT(LARGE($C135:$AQ135,{1,2,3,4,5,6}))) -> 0 | AX135: =IFERROR(SUMPRODUCT(LARGE($C135:$AQ135,{1,2,3,4})), "") ->  | AZ135: =IFERROR(SUMPRODUCT(LARGE($C135:$AQ135,{1,2,3,4,5,6,7,8})), "") -> 
AS136: 0 | AT136: 0 | AU136: =IF($AT136<=6,SUM($C136:$AQ136),SUMPRODUCT(LARGE($C136:$AQ136,{1,2,3,4,5,6}))) -> 0 | AX136: =IFERROR(SUMPRODUCT(LARGE($C136:$AQ136,{1,2,3,4})), "") ->  | AZ136: =IFERROR(SUMPRODUCT(LARGE($C136:$AQ136,{1,2,3,4,5,6,7,8})), "") -> 
AS137: 0 | AT137: 0 | AU137: =IF($AT137<=6,SUM($C137:$AQ137),SUMPRODUCT(LARGE($C137:$AQ137,{1,2,3,4,5,6}))) -> 0 | AX137: =IFERROR(SUMPRODUCT(LARGE($C137:$AQ137,{1,2,3,4})), "") ->  | AZ137: =IFERROR(SUMPRODUCT(LARGE($C137:$AQ137,{1,2,3,4,5,6,7,8})), "") -> 
AS138: 0 | AT138: 0 | AU138: =IF($AT138<=6,SUM($C138:$AQ138),SUMPRODUCT(LARGE($C138:$AQ138,{1,2,3,4,5,6}))) -> 0 | AX138: =IFERROR(SUMPRODUCT(LARGE($C138:$AQ138,{1,2,3,4})), "") ->  | AZ138: =IFERROR(SUMPRODUCT(LARGE($C138:$AQ138,{1,2,3,4,5,6,7,8})), "") -> 
AS139: 0 | AT139: 0 | AU139: =IF($AT139<=6,SUM($C139:$AQ139),SUMPRODUCT(LARGE($C139:$AQ139,{1,2,3,4,5,6}))) -> 0 | AX139: =IFERROR(SUMPRODUCT(LARGE($C139:$AQ139,{1,2,3,4})), "") ->  | AZ139: =IFERROR(SUMPRODUCT(LARGE($C139:$AQ139,{1,2,3,4,5,6,7,8})), "") -> 
AS140: 0 | AT140: 0 | AU140: =IF($AT140<=6,SUM($C140:$AQ140),SUMPRODUCT(LARGE($C140:$AQ140,{1,2,3,4,5,6}))) -> 0 | AX140: =IFERROR(SUMPRODUCT(LARGE($C140:$AQ140,{1,2,3,4})), "") ->  | AZ140: =IFERROR(SUMPRODUCT(LARGE($C140:$AQ140,{1,2,3,4,5,6,7,8})), "") -> 
AS141: 0 | AT141: 0 | AU141: =IF($AT141<=6,SUM($C141:$AQ141),SUMPRODUCT(LARGE($C141:$AQ141,{1,2,3,4,5,6}))) -> 0 | AX141: =IFERROR(SUMPRODUCT(LARGE($C141:$AQ141,{1,2,3,4})), "") ->  | AZ141: =IFERROR(SUMPRODUCT(LARGE($C141:$AQ141,{1,2,3,4,5,6,7,8})), "") -> 
AS142: 0 | AT142: 0 | AU142: =IF($AT142<=6,SUM($C142:$AQ142),SUMPRODUCT(LARGE($C142:$AQ142,{1,2,3,4,5,6}))) -> 0 | AX142: =IFERROR(SUMPRODUCT(LARGE($C142:$AQ142,{1,2,3,4})), "") ->  | AZ142: =IFERROR(SUMPRODUCT(LARGE($C142:$AQ142,{1,2,3,4,5,6,7,8})), "") -> 
AS143: 0 | AT143: 0 | AU143: =IF($AT143<=6,SUM($C143:$AQ143),SUMPRODUCT(LARGE($C143:$AQ143,{1,2,3,4,5,6}))) -> 0 | AX143: =IFERROR(SUMPRODUCT(LARGE($C143:$AQ143,{1,2,3,4})), "") ->  | AZ143: =IFERROR(SUMPRODUCT(LARGE($C143:$AQ143,{1,2,3,4,5,6,7,8})), "") -> 
AS144: 0 | AT144: 0 | AU144: =IF($AT144<=6,SUM($C144:$AQ144),SUMPRODUCT(LARGE($C144:$AQ144,{1,2,3,4,5,6}))) -> 0 | AX144: =IFERROR(SUMPRODUCT(LARGE($C144:$AQ144,{1,2,3,4})), "") ->  | AZ144: =IFERROR(SUMPRODUCT(LARGE($C144:$AQ144,{1,2,3,4,5,6,7,8})), "") -> 
AS145: 0 | AT145: 0 | AU145: =IF($AT145<=6,SUM($C145:$AQ145),SUMPRODUCT(LARGE($C145:$AQ145,{1,2,3,4,5,6}))) -> 0 | AX145: =IFERROR(SUMPRODUCT(LARGE($C145:$AQ145,{1,2,3,4})), "") ->  | AZ145: =IFERROR(SUMPRODUCT(LARGE($C145:$AQ145,{1,2,3,4,5,6,7,8})), "") -> 
AS146: 0 | AT146: 0 | AU146: =IF($AT146<=6,SUM($C146:$AQ146),SUMPRODUCT(LARGE($C146:$AQ146,{1,2,3,4,5,6}))) -> 0 | AX146: =IFERROR(SUMPRODUCT(LARGE($C146:$AQ146,{1,2,3,4})), "") ->  | AZ146: =IFERROR(SUMPRODUCT(LARGE($C146:$AQ146,{1,2,3,4,5,6,7,8})), "") -> 
AS147: 0 | AT147: 0 | AU147: =IF($AT147<=6,SUM($C147:$AQ147),SUMPRODUCT(LARGE($C147:$AQ147,{1,2,3,4,5,6}))) -> 0 | AX147: =IFERROR(SUMPRODUCT(LARGE($C147:$AQ147,{1,2,3,4})), "") ->  | AZ147: =IFERROR(SUMPRODUCT(LARGE($C147:$AQ147,{1,2,3,4,5,6,7,8})), "") -> 
AS148: 0 | AT148: 0 | AU148: =IF($AT148<=6,SUM($C148:$AQ148),SUMPRODUCT(LARGE($C148:$AQ148,{1,2,3,4,5,6}))) -> 0 | AX148: =IFERROR(SUMPRODUCT(LARGE($C148:$AQ148,{1,2,3,4})), "") ->  | AZ148: =IFERROR(SUMPRODUCT(LARGE($C148:$AQ148,{1,2,3,4,5,6,7,8})), "") -> 
AS149: 0 | AT149: 0 | AU149: =IF($AT149<=6,SUM($C149:$AQ149),SUMPRODUCT(LARGE($C149:$AQ149,{1,2,3,4,5,6}))) -> 0 | AX149: =IFERROR(SUMPRODUCT(LARGE($C149:$AQ149,{1,2,3,4})), "") ->  | AZ149: =IFERROR(SUMPRODUCT(LARGE($C149:$AQ149,{1,2,3,4,5,6,7,8})), "") -> 
AS150: 0 | AT150: 0 | AU150: =IF($AT150<=6,SUM($C150:$AQ150),SUMPRODUCT(LARGE($C150:$AQ150,{1,2,3,4,5,6}))) -> 0 | AX150: =IFERROR(SUMPRODUCT(LARGE($C150:$AQ150,{1,2,3,4})), "") ->  | AZ150: =IFERROR(SUMPRODUCT(LARGE($C150:$AQ150,{1,2,3,4,5,6,7,8})), "") -> 
AS151: 0 | AT151: 0 | AU151: =IF($AT151<=6,SUM($C151:$AQ151),SUMPRODUCT(LARGE($C151:$AQ151,{1,2,3,4,5,6}))) -> 0 | AX151: =IFERROR(SUMPRODUCT(LARGE($C151:$AQ151,{1,2,3,4})), "") ->  | AZ151: =IFERROR(SUMPRODUCT(LARGE($C151:$AQ151,{1,2,3,4,5,6,7,8})), "") -> 
AS152: 0 | AT152: 0 | AU152: =IF($AT152<=6,SUM($C152:$AQ152),SUMPRODUCT(LARGE($C152:$AQ152,{1,2,3,4,5,6}))) -> 0 | AX152: =IFERROR(SUMPRODUCT(LARGE($C152:$AQ152,{1,2,3,4})), "") ->  | AZ152: =IFERROR(SUMPRODUCT(LARGE($C152:$AQ152,{1,2,3,4,5,6,7,8})), "") -> 
AS153: 0 | AT153: 0 | AU153: =IF($AT153<=6,SUM($C153:$AQ153),SUMPRODUCT(LARGE($C153:$AQ153,{1,2,3,4,5,6}))) -> 0 | AX153: =IFERROR(SUMPRODUCT(LARGE($C153:$AQ153,{1,2,3,4})), "") ->  | AZ153: =IFERROR(SUMPRODUCT(LARGE($C153:$AQ153,{1,2,3,4,5,6,7,8})), "") -> 
AS154: 0 | AT154: 0 | AU154: =IF($AT154<=6,SUM($C154:$AQ154),SUMPRODUCT(LARGE($C154:$AQ154,{1,2,3,4,5,6}))) -> 0 | AX154: =IFERROR(SUMPRODUCT(LARGE($C154:$AQ154,{1,2,3,4})), "") ->  | AZ154: =IFERROR(SUMPRODUCT(LARGE($C154:$AQ154,{1,2,3,4,5,6,7,8})), "") -> 
AS155: 0 | AT155: 0 | AU155: =IF($AT155<=6,SUM($C155:$AQ155),SUMPRODUCT(LARGE($C155:$AQ155,{1,2,3,4,5,6}))) -> 0 | AX155: =IFERROR(SUMPRODUCT(LARGE($C155:$AQ155,{1,2,3,4})), "") ->  | AZ155: =IFERROR(SUMPRODUCT(LARGE($C155:$AQ155,{1,2,3,4,5,6,7,8})), "") -> 
AS156: 0 | AT156: 0 | AU156: =IF($AT156<=6,SUM($C156:$AQ156),SUMPRODUCT(LARGE($C156:$AQ156,{1,2,3,4,5,6}))) -> 0 | AX156: =IFERROR(SUMPRODUCT(LARGE($C156:$AQ156,{1,2,3,4})), "") ->  | AZ156: =IFERROR(SUMPRODUCT(LARGE($C156:$AQ156,{1,2,3,4,5,6,7,8})), "") -> 
AS157: 0 | AT157: 0 | AU157: =IF($AT157<=6,SUM($C157:$AQ157),SUMPRODUCT(LARGE($C157:$AQ157,{1,2,3,4,5,6}))) -> 0 | AX157: =IFERROR(SUMPRODUCT(LARGE($C157:$AQ157,{1,2,3,4})), "") ->  | AZ157: =IFERROR(SUMPRODUCT(LARGE($C157:$AQ157,{1,2,3,4,5,6,7,8})), "") -> 
AS158: 0 | AT158: 0 | AU158: =IF($AT158<=6,SUM($C158:$AQ158),SUMPRODUCT(LARGE($C158:$AQ158,{1,2,3,4,5,6}))) -> 0 | AX158: =IFERROR(SUMPRODUCT(LARGE($C158:$AQ158,{1,2,3,4})), "") ->  | AZ158: =IFERROR(SUMPRODUCT(LARGE($C158:$AQ158,{1,2,3,4,5,6,7,8})), "") -> 
AS159: 0 | AT159: 0 | AU159: =IF($AT159<=6,SUM($C159:$AQ159),SUMPRODUCT(LARGE($C159:$AQ159,{1,2,3,4,5,6}))) -> 0 | AX159: =IFERROR(SUMPRODUCT(LARGE($C159:$AQ159,{1,2,3,4})), "") ->  | AZ159: =IFERROR(SUMPRODUCT(LARGE($C159:$AQ159,{1,2,3,4,5,6,7,8})), "") -> 
AS160: 0 | AT160: 0 | AU160: =IF($AT160<=6,SUM($C160:$AQ160),SUMPRODUCT(LARGE($C160:$AQ160,{1,2,3,4,5,6}))) -> 0 | AX160: =IFERROR(SUMPRODUCT(LARGE($C160:$AQ160,{1,2,3,4})), "") ->  | AZ160: =IFERROR(SUMPRODUCT(LARGE($C160:$AQ160,{1,2,3,4,5,6,7,8})), "") -> 
AS161: 0 | AT161: 0 | AU161: =IF($AT161<=6,SUM($C161:$AQ161),SUMPRODUCT(LARGE($C161:$AQ161,{1,2,3,4,5,6}))) -> 0 | AX161: =IFERROR(SUMPRODUCT(LARGE($C161:$AQ161,{1,2,3,4})), "") ->  | AZ161: =IFERROR(SUMPRODUCT(LARGE($C161:$AQ161,{1,2,3,4,5,6,7,8})), "") -> 
AS162: 0 | AT162: 0 | AU162: =IF($AT162<=6,SUM($C162:$AQ162),SUMPRODUCT(LARGE($C162:$AQ162,{1,2,3,4,5,6}))) -> 0 | AX162: =IFERROR(SUMPRODUCT(LARGE($C162:$AQ162,{1,2,3,4})), "") ->  | AZ162: =IFERROR(SUMPRODUCT(LARGE($C162:$AQ162,{1,2,3,4,5,6,7,8})), "") -> 
AS163: 0 | AT163: 0 | AU163: =IF($AT163<=6,SUM($C163:$AQ163),SUMPRODUCT(LARGE($C163:$AQ163,{1,2,3,4,5,6}))) -> 0 | AX163: =IFERROR(SUMPRODUCT(LARGE($C163:$AQ163,{1,2,3,4})), "") ->  | AZ163: =IFERROR(SUMPRODUCT(LARGE($C163:$AQ163,{1,2,3,4,5,6,7,8})), "") -> 
AS164: 0 | AT164: 0 | AU164: =IF($AT164<=6,SUM($C164:$AQ164),SUMPRODUCT(LARGE($C164:$AQ164,{1,2,3,4,5,6}))) -> 0 | AX164: =IFERROR(SUMPRODUCT(LARGE($C164:$AQ164,{1,2,3,4})), "") ->  | AZ164: =IFERROR(SUMPRODUCT(LARGE($C164:$AQ164,{1,2,3,4,5,6,7,8})), "") -> 
AS165: 0 | AT165: 0 | AU165: =IF($AT165<=6,SUM($C165:$AQ165),SUMPRODUCT(LARGE($C165:$AQ165,{1,2,3,4,5,6}))) -> 0 | AX165: =IFERROR(SUMPRODUCT(LARGE($C165:$AQ165,{1,2,3,4})), "") ->  | AZ165: =IFERROR(SUMPRODUCT(LARGE($C165:$AQ165,{1,2,3,4,5,6,7,8})), "") -> 
AS166: 0 | AT166: 0 | AU166: =IF($AT166<=6,SUM($C166:$AQ166),SUMPRODUCT(LARGE($C166:$AQ166,{1,2,3,4,5,6}))) -> 0 | AX166: =IFERROR(SUMPRODUCT(LARGE($C166:$AQ166,{1,2,3,4})), "") ->  | AZ166: =IFERROR(SUMPRODUCT(LARGE($C166:$AQ166,{1,2,3,4,5,6,7,8})), "") -> 
AS167: 0 | AT167: 0 | AU167: =IF($AT167<=6,SUM($C167:$AQ167),SUMPRODUCT(LARGE($C167:$AQ167,{1,2,3,4,5,6}))) -> 0 | AX167: =IFERROR(SUMPRODUCT(LARGE($C167:$AQ167,{1,2,3,4})), "") ->  | AZ167: =IFERROR(SUMPRODUCT(LARGE($C167:$AQ167,{1,2,3,4,5,6,7,8})), "") -> 
AS168: 0 | AT168: 0 | AU168: =IF($AT168<=6,SUM($C168:$AQ168),SUMPRODUCT(LARGE($C168:$AQ168,{1,2,3,4,5,6}))) -> 0 | AX168: =IFERROR(SUMPRODUCT(LARGE($C168:$AQ168,{1,2,3,4})), "") ->  | AZ168: =IFERROR(SUMPRODUCT(LARGE($C168:$AQ168,{1,2,3,4,5,6,7,8})), "") -> 
AS169: 0 | AT169: 0 | AU169: =IF($AT169<=6,SUM($C169:$AQ169),SUMPRODUCT(LARGE($C169:$AQ169,{1,2,3,4,5,6}))) -> 0 | AX169: =IFERROR(SUMPRODUCT(LARGE($C169:$AQ169,{1,2,3,4})), "") ->  | AZ169: =IFERROR(SUMPRODUCT(LARGE($C169:$AQ169,{1,2,3,4,5,6,7,8})), "") -> 
AS170: 0 | AT170: 0 | AU170: =IF($AT170<=6,SUM($C170:$AQ170),SUMPRODUCT(LARGE($C170:$AQ170,{1,2,3,4,5,6}))) -> 0 | AX170: =IFERROR(SUMPRODUCT(LARGE($C170:$AQ170,{1,2,3,4})), "") ->  | AZ170: =IFERROR(SUMPRODUCT(LARGE($C170:$AQ170,{1,2,3,4,5,6,7,8})), "") -> 
AS171: 0 | AT171: 0 | AU171: =IF($AT171<=6,SUM($C171:$AQ171),SUMPRODUCT(LARGE($C171:$AQ171,{1,2,3,4,5,6}))) -> 0 | AX171: =IFERROR(SUMPRODUCT(LARGE($C171:$AQ171,{1,2,3,4})), "") ->  | AZ171: =IFERROR(SUMPRODUCT(LARGE($C171:$AQ171,{1,2,3,4,5,6,7,8})), "") -> 
AS172: 0 | AT172: 0 | AU172: =IF($AT172<=6,SUM($C172:$AQ172),SUMPRODUCT(LARGE($C172:$AQ172,{1,2,3,4,5,6}))) -> 0 | AX172: =IFERROR(SUMPRODUCT(LARGE($C172:$AQ172,{1,2,3,4})), "") ->  | AZ172: =IFERROR(SUMPRODUCT(LARGE($C172:$AQ172,{1,2,3,4,5,6,7,8})), "") -> 
AS173: 0 | AT173: 0 | AU173: =IF($AT173<=6,SUM($C173:$AQ173),SUMPRODUCT(LARGE($C173:$AQ173,{1,2,3,4,5,6}))) -> 0 | AX173: =IFERROR(SUMPRODUCT(LARGE($C173:$AQ173,{1,2,3,4})), "") ->  | AZ173: =IFERROR(SUMPRODUCT(LARGE($C173:$AQ173,{1,2,3,4,5,6,7,8})), "") -> 
AS174: 0 | AT174: 0 | AU174: =IF($AT174<=6,SUM($C174:$AQ174),SUMPRODUCT(LARGE($C174:$AQ174,{1,2,3,4,5,6}))) -> 0 | AX174: =IFERROR(SUMPRODUCT(LARGE($C174:$AQ174,{1,2,3,4})), "") ->  | AZ174: =IFERROR(SUMPRODUCT(LARGE($C174:$AQ174,{1,2,3,4,5,6,7,8})), "") -> 
AS175: 0 | AT175: 0 | AU175: =IF($AT175<=6,SUM($C175:$AQ175),SUMPRODUCT(LARGE($C175:$AQ175,{1,2,3,4,5,6}))) -> 0 | AX175: =IFERROR(SUMPRODUCT(LARGE($C175:$AQ175,{1,2,3,4})), "") ->  | AZ175: =IFERROR(SUMPRODUCT(LARGE($C175:$AQ175,{1,2,3,4,5,6,7,8})), "") -> 
AS176: 0 | AT176: 0 | AU176: =IF($AT176<=6,SUM($C176:$AQ176),SUMPRODUCT(LARGE($C176:$AQ176,{1,2,3,4,5,6}))) -> 0 | AX176: =IFERROR(SUMPRODUCT(LARGE($C176:$AQ176,{1,2,3,4})), "") ->  | AZ176: =IFERROR(SUMPRODUCT(LARGE($C176:$AQ176,{1,2,3,4,5,6,7,8})), "") -> 
AS177: 0 | AT177: 0 | AU177: =IF($AT177<=6,SUM($C177:$AQ177),SUMPRODUCT(LARGE($C177:$AQ177,{1,2,3,4,5,6}))) -> 0 | AX177: =IFERROR(SUMPRODUCT(LARGE($C177:$AQ177,{1,2,3,4})), "") ->  | AZ177: =IFERROR(SUMPRODUCT(LARGE($C177:$AQ177,{1,2,3,4,5,6,7,8})), "") -> 
AS178: 0 | AT178: 0 | AU178: =IF($AT178<=6,SUM($C178:$AQ178),SUMPRODUCT(LARGE($C178:$AQ178,{1,2,3,4,5,6}))) -> 0 | AX178: =IFERROR(SUMPRODUCT(LARGE($C178:$AQ178,{1,2,3,4})), "") ->  | AZ178: =IFERROR(SUMPRODUCT(LARGE($C178:$AQ178,{1,2,3,4,5,6,7,8})), "") -> 
AS179: 0 | AT179: 0 | AU179: =IF($AT179<=6,SUM($C179:$AQ179),SUMPRODUCT(LARGE($C179:$AQ179,{1,2,3,4,5,6}))) -> 0 | AX179: =IFERROR(SUMPRODUCT(LARGE($C179:$AQ179,{1,2,3,4})), "") ->  | AZ179: =IFERROR(SUMPRODUCT(LARGE($C179:$AQ179,{1,2,3,4,5,6,7,8})), "") -> 
AS180: 0 | AT180: 0 | AU180: =IF($AT180<=6,SUM($C180:$AQ180),SUMPRODUCT(LARGE($C180:$AQ180,{1,2,3,4,5,6}))) -> 0 | AX180: =IFERROR(SUMPRODUCT(LARGE($C180:$AQ180,{1,2,3,4})), "") ->  | AZ180: =IFERROR(SUMPRODUCT(LARGE($C180:$AQ180,{1,2,3,4,5,6,7,8})), "") -> 
AS181: 0 | AT181: 0 | AU181: =IF($AT181<=6,SUM($C181:$AQ181),SUMPRODUCT(LARGE($C181:$AQ181,{1,2,3,4,5,6}))) -> 0 | AX181: =IFERROR(SUMPRODUCT(LARGE($C181:$AQ181,{1,2,3,4})), "") ->  | AZ181: =IFERROR(SUMPRODUCT(LARGE($C181:$AQ181,{1,2,3,4,5,6,7,8})), "") -> 
AS182: 0 | AT182: 0 | AU182: =IF($AT182<=6,SUM($C182:$AQ182),SUMPRODUCT(LARGE($C182:$AQ182,{1,2,3,4,5,6}))) -> 0 | AX182: =IFERROR(SUMPRODUCT(LARGE($C182:$AQ182,{1,2,3,4})), "") ->  | AZ182: =IFERROR(SUMPRODUCT(LARGE($C182:$AQ182,{1,2,3,4,5,6,7,8})), "") -> 
AS183: 0 | AT183: 0 | AU183: =IF($AT183<=6,SUM($C183:$AQ183),SUMPRODUCT(LARGE($C183:$AQ183,{1,2,3,4,5,6}))) -> 0 | AX183: =IFERROR(SUMPRODUCT(LARGE($C183:$AQ183,{1,2,3,4})), "") ->  | AZ183: =IFERROR(SUMPRODUCT(LARGE($C183:$AQ183,{1,2,3,4,5,6,7,8})), "") -> 
AS184: 0 | AT184: 0 | AU184: =IF($AT184<=6,SUM($C184:$AQ184),SUMPRODUCT(LARGE($C184:$AQ184,{1,2,3,4,5,6}))) -> 0 | AX184: =IFERROR(SUMPRODUCT(LARGE($C184:$AQ184,{1,2,3,4})), "") ->  | AZ184: =IFERROR(SUMPRODUCT(LARGE($C184:$AQ184,{1,2,3,4,5,6,7,8})), "") -> 
AS185: 0 | AT185: 0 | AU185: =IF($AT185<=6,SUM($C185:$AQ185),SUMPRODUCT(LARGE($C185:$AQ185,{1,2,3,4,5,6}))) -> 0 | AX185: =IFERROR(SUMPRODUCT(LARGE($C185:$AQ185,{1,2,3,4})), "") ->  | AZ185: =IFERROR(SUMPRODUCT(LARGE($C185:$AQ185,{1,2,3,4,5,6,7,8})), "") -> 
AS186: 0 | AT186: 0 | AU186: =IF($AT186<=6,SUM($C186:$AQ186),SUMPRODUCT(LARGE($C186:$AQ186,{1,2,3,4,5,6}))) -> 0 | AX186: =IFERROR(SUMPRODUCT(LARGE($C186:$AQ186,{1,2,3,4})), "") ->  | AZ186: =IFERROR(SUMPRODUCT(LARGE($C186:$AQ186,{1,2,3,4,5,6,7,8})), "") -> 
AS187: 0 | AT187: 0 | AU187: =IF($AT187<=6,SUM($C187:$AQ187),SUMPRODUCT(LARGE($C187:$AQ187,{1,2,3,4,5,6}))) -> 0 | AX187: =IFERROR(SUMPRODUCT(LARGE($C187:$AQ187,{1,2,3,4})), "") ->  | AZ187: =IFERROR(SUMPRODUCT(LARGE($C187:$AQ187,{1,2,3,4,5,6,7,8})), "") -> 
AS188: 0 | AT188: 0 | AU188: =IF($AT188<=6,SUM($C188:$AQ188),SUMPRODUCT(LARGE($C188:$AQ188,{1,2,3,4,5,6}))) -> 0 | AX188: =IFERROR(SUMPRODUCT(LARGE($C188:$AQ188,{1,2,3,4})), "") ->  | AZ188: =IFERROR(SUMPRODUCT(LARGE($C188:$AQ188,{1,2,3,4,5,6,7,8})), "") -> 
AS189: 0 | AT189: 0 | AU189: =IF($AT189<=6,SUM($C189:$AQ189),SUMPRODUCT(LARGE($C189:$AQ189,{1,2,3,4,5,6}))) -> 0 | AX189: =IFERROR(SUMPRODUCT(LARGE($C189:$AQ189,{1,2,3,4})), "") ->  | AZ189: =IFERROR(SUMPRODUCT(LARGE($C189:$AQ189,{1,2,3,4,5,6,7,8})), "") -> 
AS190: 0 | AT190: 0 | AU190: =IF($AT190<=6,SUM($C190:$AQ190),SUMPRODUCT(LARGE($C190:$AQ190,{1,2,3,4,5,6}))) -> 0 | AX190: =IFERROR(SUMPRODUCT(LARGE($C190:$AQ190,{1,2,3,4})), "") ->  | AZ190: =IFERROR(SUMPRODUCT(LARGE($C190:$AQ190,{1,2,3,4,5,6,7,8})), "") -> 
AS191: 0 | AT191: 0 | AU191: =IF($AT191<=6,SUM($C191:$AQ191),SUMPRODUCT(LARGE($C191:$AQ191,{1,2,3,4,5,6}))) -> 0 | AX191: =IFERROR(SUMPRODUCT(LARGE($C191:$AQ191,{1,2,3,4})), "") ->  | AZ191: =IFERROR(SUMPRODUCT(LARGE($C191:$AQ191,{1,2,3,4,5,6,7,8})), "") -> 
AS192: 0 | AT192: 0 | AU192: =IF($AT192<=6,SUM($C192:$AQ192),SUMPRODUCT(LARGE($C192:$AQ192,{1,2,3,4,5,6}))) -> 0 | AX192: =IFERROR(SUMPRODUCT(LARGE($C192:$AQ192,{1,2,3,4})), "") ->  | AZ192: =IFERROR(SUMPRODUCT(LARGE($C192:$AQ192,{1,2,3,4,5,6,7,8})), "") -> 
AS193: 0 | AT193: 0 | AU193: =IF($AT193<=6,SUM($C193:$AQ193),SUMPRODUCT(LARGE($C193:$AQ193,{1,2,3,4,5,6}))) -> 0 | AX193: =IFERROR(SUMPRODUCT(LARGE($C193:$AQ193,{1,2,3,4})), "") ->  | AZ193: =IFERROR(SUMPRODUCT(LARGE($C193:$AQ193,{1,2,3,4,5,6,7,8})), "") -> 
AS194: 0 | AT194: 0 | AU194: =IF($AT194<=6,SUM($C194:$AQ194),SUMPRODUCT(LARGE($C194:$AQ194,{1,2,3,4,5,6}))) -> 0 | AX194: =IFERROR(SUMPRODUCT(LARGE($C194:$AQ194,{1,2,3,4})), "") ->  | AZ194: =IFERROR(SUMPRODUCT(LARGE($C194:$AQ194,{1,2,3,4,5,6,7,8})), "") -> 
AS195: 0 | AT195: 0 | AU195: =IF($AT195<=6,SUM($C195:$AQ195),SUMPRODUCT(LARGE($C195:$AQ195,{1,2,3,4,5,6}))) -> 0 | AX195: =IFERROR(SUMPRODUCT(LARGE($C195:$AQ195,{1,2,3,4})), "") ->  | AZ195: =IFERROR(SUMPRODUCT(LARGE($C195:$AQ195,{1,2,3,4,5,6,7,8})), "") -> 
AS196: =SUM($C196:$AR196) -> 0 | AT196: =COUNTA(C196:AQ196) -> 0 | AU196: =IF($AT196<=6,SUM($C196:$AQ196),SUMPRODUCT(LARGE($C196:$AQ196,{1,2,3,4,5,6}))) -> 0 | AV196: =IF(AND($AT196>=6,AU196=AU197),"Manual Calc Needed","") ->  | AW196: =IF(AND($AT196>=6,$AV196="Tie"),"Manual Calc Needed"," ") ->  | AX196: =IFERROR(SUMPRODUCT(LARGE($C196:$AQ196,{1,2,3,4})), "") ->  | AY196: =IF(AND($AT196>=6,$AV196="Tie",AX196=AX197),"Manual Calc Needed"," ") ->  | AZ196: =IFERROR(SUMPRODUCT(LARGE($C196:$AQ196,{1,2,3,4,5,6,7,8})), "") -> 
AS197: 0 | AT197: 0 | AU197: =IF($AT197<=6,SUM($C197:$AQ197),SUMPRODUCT(LARGE($C197:$AQ197,{1,2,3,4,5,6}))) -> 0 | AX197: =IFERROR(SUMPRODUCT(LARGE($C197:$AQ197,{1,2,3,4})), "") ->  | AZ197: =IFERROR(SUMPRODUCT(LARGE($C197:$AQ197,{1,2,3,4,5,6,7,8})), "") -> 
AS198: 0 | AT198: 0 | AU198: =IF($AT198<=6,SUM($C198:$AQ198),SUMPRODUCT(LARGE($C198:$AQ198,{1,2,3,4,5,6}))) -> 0 | AX198: =IFERROR(SUMPRODUCT(LARGE($C198:$AQ198,{1,2,3,4})), "") ->  | AZ198: =IFERROR(SUMPRODUCT(LARGE($C198:$AQ198,{1,2,3,4,5,6,7,8})), "") -> 
AS199: 0 | AT199: 0 | AU199: =IF($AT199<=6,SUM($C199:$AQ199),SUMPRODUCT(LARGE($C199:$AQ199,{1,2,3,4,5,6}))) -> 0 | AX199: =IFERROR(SUMPRODUCT(LARGE($C199:$AQ199,{1,2,3,4})), "") ->  | AZ199: =IFERROR(SUMPRODUCT(LARGE($C199:$AQ199,{1,2,3,4,5,6,7,8})), "") -> 
AS200: 0 | AT200: 0 | AU200: =IF($AT200<=6,SUM($C200:$AQ200),SUMPRODUCT(LARGE($C200:$AQ200,{1,2,3,4,5,6}))) -> 0 | AX200: =IFERROR(SUMPRODUCT(LARGE($C200:$AQ200,{1,2,3,4})), "") ->  | AZ200: =IFERROR(SUMPRODUCT(LARGE($C200:$AQ200,{1,2,3,4,5,6,7,8})), "") -> 
... 500 more rows

Sheet Abbreviations
A1: Program Code | B1: Program ( X - Community College) (I - Independent) | D1: Tournament Code | E1: Tournament
A2: ACU | B2: Abilene Christian University | D2: USM | E2: University of Southern Mississippi
A3: ADA | B3: Angleton Debate Association (I) | D3: CSI | E3: College of Southern Idaho
A4: ADL | B4: American Debate League (I) | D4: NWC | E4: Northwest College
A5: ASU | B5: Arkansas State University | D5: UAM | E5: University of Arkansas- Monticello
A6: AzCU | B6: Arizona Christian University | D6: L&CC | E6: Lewis & Clark College
A7: BAC | B7: Belmont Abbey College | D7: BGSU 1 | E7: Bowling Green State University - Cyber
A8: BGSU | B8: Bowling Green State University | D8: BGSU 2 | E8: Bowling Green State University - Classic
A9: BHSU | B9: Black Hills State University | D9: MTSU | E9: Middle Tennessee State University
A10: BPCC | B10: Bossier Parish Community College (X) | D10: PLNU | E10: Point Loma Nazarene University
A11: BSU | B11: Boise State University | D11: LSUS | E11: Louisiana State University- Shreveport
A12: BU | B12: Belmont University | D12: ETBU | E12: East Texas Baptist University
A13: BuCC | B13: Butler Community College (X) | D13: LiC | E13: Linfield College
A14: ButU | B14: Butler University | D14: ACU | E14: Abelene Christian University
A15: BuU | B15: Bushnell University | D15: LCC | E15: Lower Columbia College
A16: CasC | B16: Casper College (X)
A17: CC | B17: Colorado College
A18: CCU | B18: Colorado Christian University
A19: CSI | B19: College of Southern Idaho (X)
A20: CSLB | B20: California State Long Beach
A21: CUI | B21: Concordia University Irvine
A22: CWI | B22: College of Western Idaho (X)
A23: DBU | B23: Dallas Baptist University
A24: DiU | B24: Dillard University
A25: DuqU | B25: Duquesne University
A26: EaWU | B26: Eastern Washington University
A27: ECC | B27: El Camino College (X)
A28: ETBU | B28: East Texas Baptist University
A29: FSCJ | B29: Florida State College - Jacksonville
A30: FSU | B30: Florida State University
A31: GC | B31: Grossmont College (X)
A32: GCC | B32: Grove City College
A33: GCU | B33: Grand Canyon University
A34: GTU | B34: Georgia Tech University
A35: HiC | B35: Hillsdale College
A36: HoU | B36: Hofstra University
A37: HPU | B37: Howard Payne Univeristy
A38: IC | B38: Ithaca College
A39: ISU | B39: Idaho State University
A40: JSCC | B40: Jefferson State Community College (X)
A41: KWU | B41: Kansas Wesleyan University
A42: L&CC | B42: Lewis & Clark College
A43: LC | B43: Louisiana College (new name Louisiana Christian University)
A44: LCC | B44: Lower Columbia College (X)
A45: Lee | B45: Lee College (X)
A46: LiC | B46: Linfield College
A47: LPC | B47: Las Positas College (X)
A48: LPDA | B48: Lincoln-Polaris Debate Association (I)
A49: LSCO | B49: Lamar State College- Orange (X)
A50: LSU | B50: Louisiana State University
A51: LSUS | B51: Louisiana State University-Shreveport
A52: LTU | B52: Louisiana Tech University
A53: LU | B53: Lynn University
A54: MarU | B54: Marion University
A55: MHCC | B55: Mt. Hood Community College (X)
A56: MoC | B56: Morehouse College
A57: MSCC | B57: Motlow State Community College
A58: MslU | B58: Marshall University
A59: MSU | B59: Mississippi State University
A60: MTCC | B60: McDowell Technical Community College (X)
A61: MTSU | B61: Middle Tennessee State University
A62: MuSU | B62: Murray State University
A63: MuU | B63: Muskingum University
A64: MVC | B64: Missouri Valley College
A65: NACC | B65: Northwest Arkansas Community College (X)
A66: NDSU | B66: North Dakota State University
A67: NNU | B67: Northwest Nazarene University
A68: NwC | B68: Northwest College (X)
A69: NWSU | B69: Northwestern State University
A70: OCC | B70: Orange Coast College (X)
A71: OCTC | B71: Owensboro Community & Technical College (X)
A72: OhU | B72: Ohio University
A73: OkBU | B73: Oklahoma Baptist University
A74: ORU | B74: Oral Roberts University
A75: OSU | B75: Oregon State University
A76: OU | B76: Otterbein University
A77: PacU | B77: Pacific University
A78: PaU | B78: Park University
A79: PC | B79: Palomar College (X)
A80: PHC | B80: Patrick Henry College
A81: PVAM | B81: Prairie View A&M University
A82: QC | B82: Queens College
A83: RHCC | B83: Rio Hondo Community College (X)
A84: SC | B84: Simpson College
A85: SEA | B85: Southeast Arkansas College (X)
A86: SMU | B86: Southern Methodist University
A87: StAC | B87: Saint Anselm College
A88: SU | B88: Seatle University
A89: TaCC | B89: Tallahassee Community College (X)
A90: TAMU | B90: Texas A&M University
A91: TCC | B91: Tulsa Community College (X)
A92: TCU | B92: Texas Christian University
A93: TGS | B93: The Garner School (I)
A94: TJC | B94: Tyler Junior College (X)
A95: TMP | B95: The Mountain Pass (I)
A96: TnSU | B96: Tennessee State University
A97: TSU | B97: Texas Southern University
A98: TTU | B98: Tennessee Technological University
A99: TxSU | B99: Texas State University
A100: UA | B100: University of Arkansas
A101: UAA | B101: Univeristy of Alaska-Anchorage
A102: UAM | B102: University of Arkansas-Monticello
A103: Ubama | B103: University of Alabama
A104: UC | B104: University of the Cumberlands
A105: UCA | B105: University of Central Arkansas
A106: UCF | B106: University of Central Florida
A107: UCSB | B107: University of California Santa Barbara
A108: UCSD | B108: University of California San Diego
A109: UF | B109: University of Florida
A110: UMo | B110: University of Montana
A111: UNG | B111: University of North Georgia
A112: UNR | B112: University of Nevada at Reno
A113: UNT | B113: University of North Texas
A114: UP | B114: University of Portland
A115: USFSP | B115: University of South Florida-St. Petersburg
A116: USM | B116: University of Southern Mississippi
A117: USU | B117: Utah State University
A118: UTK | B118: University of Tennessee-Knoxville
A119: UU | B119: Union University
A120: UUt | B120: University of Utah
A121: UWB | B121: University of Washington-Bothell
A122: VSU | B122: Valdosta State University
A123: WCU | B123: William Carey University
A124: WeCU | B124: West Chester University
A125: WhU | B125: Whitworth University
A126: WSU | B126: Weber State University
A127: WTAM | B127: West Texas A & M

Sheet Founders
C1: USM | D1: CSI | E1: NWC | F1: UAM | G1: L&C | H1: BGS1 | I1: BGS2 | J1: MTSU | K1: PLNU | L1: LSUS | M1: LiC | N1: ETBU | O1: ACU | P1: LCC | BA1: Head to Head | BB1: H/L | BC1: 7th Tourn. | BD1: 8th Tourn.
B2: Squad | C2: USM (9/25-26) | D2: CSI (9/24-25) | E2: NW College (9/24-25) | F2: UAM (10/8-10) | G2: L & C / Whitman (10/8-10) | H2: BGSU 1 (10/16-17) | I2: BGSU 2(10/16-17) | J2: MTSU (10/22-23) | K2: PLNU (10/22-23) | L2: LSUS (11/5-7) | M2: LiC (11/12-14) | N2: ETBU (11/19-20) | O2: ACU (12/3-5) | P2: LCC (12/4-6) | AW2: over 6/2nd host | AX2: Total Points | AY2: Tournament Count | AZ2: Best Top 6 | BA2: 1st Tie Breaker | BB2: 2nd Tie Breaker | BC2: 3rd Tie Breaker | BD2: 4th Tie Breaker
B3: ACU | C3: 90 | F3: 84 | L3: 53 | N3: 57 | O3: 5 | AX3: =SUM($C3:$AW3) -> 289 | AY3: =COUNTA(C3:AV3) -> 5 | AZ3: =IF($AY3<=6,SUM($C3:$AV3),SUMPRODUCT(LARGE($C3:$AV3,{1,2,3,4,5,6}))) -> 289 | BA3: =IF(AND($AY3>=6,AZ3=AZ4),"Manual Calc Needed","") ->  | BB3: =IFERROR(SUMPRODUCT(LARGE($C3:$AV3,{1,2,3,4})), "") -> 284 | BC3: =IFERROR(SUMPRODUCT(LARGE($C3:$AV3,{1,2,3,4,5,6,7})), "") ->  | BD3: =IFERROR(SUMPRODUCT(LARGE($C3:$AV3,{1,2,3,4,5,6,7,8})), "") -> 
B4: ASU | C4: 3 | F4: 21 | J4: 18 | O4: 17 | AX4: =SUM($C4:$AW4) -> 59 | AY4: =COUNTA(C4:AV4) -> 4 | AZ4: =IF($AY4<=6,SUM($C4:$AV4),SUMPRODUCT(LARGE($C4:$AV4,{1,2,3,4,5,6}))) -> 59 | BA4: =IF(AND($AY4>=6,AZ4=AZ5),"Manual Calc Needed","") ->  | BB4: =IFERROR(SUMPRODUCT(LARGE($C4:$AV4,{1,2,3,4})), "") -> 59 | BC4: =IFERROR(SUMPRODUCT(LARGE($C4:$AV4,{1,2,3,4,5,6,7})), "") ->  | BD4: =IFERROR(SUMPRODUCT(LARGE($C4:$AV4,{1,2,3,4,5,6,7,8})), "") -> 
B5: BGSU | G5: 6 | H5: 1 | AX5: =SUM($C5:$AW5) -> 7 | AY5: =COUNTA(C5:AV5) -> 2 | AZ5: =IF($AY5<=6,SUM($C5:$AV5),SUMPRODUCT(LARGE($C5:$AV5,{1,2,3,4,5,6}))) -> 7 | BA5: =IF(AND($AY5>=6,AZ5=AZ6),"Manual Calc Needed","") ->  | BB5: =IFERROR(SUMPRODUCT(LARGE($C5:$AV5,{1,2,3,4})), "") ->  | BC5: =IFERROR(SUMPRODUCT(LARGE($C5:$AV5,{1,2,3,4,5,6,7})), "") ->  | BD5: =IFERROR(SUMPRODUCT(LARGE($C5:$AV5,{1,2,3,4,5,6,7,8})), "") -> 
B6: BHSU | E6: 6 | AX6: =SUM($C6:$AW6) -> 6 | AY6: =COUNTA(C6:AV6) -> 1 | AZ6: =IF($AY6<=6,SUM($C6:$AV6),SUMPRODUCT(LARGE($C6:$AV6,{1,2,3,4,5,6}))) -> 6 | BA6: =IF(AND($AY6>=6,AZ6=AZ7),"Manual Calc Needed","") ->  | BB6: =IFERROR(SUMPRODUCT(LARGE($C6:$AV6,{1,2,3,4})), "") ->  | BC6: =IFERROR(SUMPRODUCT(LARGE($C6:$AV6,{1,2,3,4,5,6,7})), "") ->  | BD6: =IFERROR(SUMPRODUCT(LARGE($C6:$AV6,{1,2,3,4,5,6,7,8})), "") -> 
B7: BPCC | C7: 7 | F7: 6 | J7: 1 | L7: 8 | N7: 15 | O7: 18 | AX7: =SUM($C7:$AW7) -> 55 | AY7: =COUNTA(C7:AV7) -> 6 | AZ7: =IF($AY7<=6,SUM($C7:$AV7),SUMPRODUCT(LARGE($C7:$AV7,{1,2,3,4,5,6}))) -> 55 | BA7: =IF(AND($AY7>=6,AZ7=AZ8),"Manual Calc Needed","") ->  | BB7: =IFERROR(SUMPRODUCT(LARGE($C7:$AV7,{1,2,3,4})), "") -> 48 | BC7: =IFERROR(SUMPRODUCT(LARGE($C7:$AV7,{1,2,3,4,5,6,7})), "") ->  | BD7: =IFERROR(SUMPRODUCT(LARGE($C7:$AV7,{1,2,3,4,5,6,7,8})), "") -> 
B8: BSU | D8: 13 | G8: =13+35 -> 48 | M8: 27 | AX8: =SUM($C8:$AW8) -> 88 | AY8: =COUNTA(C8:AV8) -> 3 | AZ8: =IF($AY8<=6,SUM($C8:$AV8),SUMPRODUCT(LARGE($C8:$AV8,{1,2,3,4,5,6}))) -> 88 | BA8: =IF(AND($AY8>=6,AZ8=AZ9),"Manual Calc Needed","") ->  | BB8: =IFERROR(SUMPRODUCT(LARGE($C8:$AV8,{1,2,3,4})), "") ->  | BC8: =IFERROR(SUMPRODUCT(LARGE($C8:$AV8,{1,2,3,4,5,6,7})), "") ->  | BD8: =IFERROR(SUMPRODUCT(LARGE($C8:$AV8,{1,2,3,4,5,6,7,8})), "") -> 
B9: BU | C9: 10 | F9: 3 | J9: 27 | AX9: =SUM($C9:$AW9) -> 40 | AY9: =COUNTA(C9:AV9) -> 3 | AZ9: =IF($AY9<=6,SUM($C9:$AV9),SUMPRODUCT(LARGE($C9:$AV9,{1,2,3,4,5,6}))) -> 40 | BA9: =IF(AND($AY9>=6,AZ9=AZ10),"Manual Calc Needed","") ->  | BB9: =IFERROR(SUMPRODUCT(LARGE($C9:$AV9,{1,2,3,4})), "") ->  | BC9: =IFERROR(SUMPRODUCT(LARGE($C9:$AV9,{1,2,3,4,5,6,7})), "") ->  | BD9: =IFERROR(SUMPRODUCT(LARGE($C9:$AV9,{1,2,3,4,5,6,7,8})), "") -> 
B10: ButU | G10: 8 | AX10: =SUM($C10:$AW10) -> 8 | AY10: =COUNTA(C10:AV10) -> 1 | AZ10: =IF($AY10<=6,SUM($C10:$AV10),SUMPRODUCT(LARGE($C10:$AV10,{1,2,3,4,5,6}))) -> 8 | BA10: =IF(AND($AY10>=6,AZ10=AZ11),"Manual Calc Needed","") ->  | BB10: =IFERROR(SUMPRODUCT(LARGE($C10:$AV10,{1,2,3,4})), "") ->  | BC10: =IFERROR(SUMPRODUCT(LARGE($C10:$AV10,{1,2,3,4,5,6,7})), "") ->  | BD10: =IFERROR(SUMPRODUCT(LARGE($C10:$AV10,{1,2,3,4,5,6,7,8})), "") -> 
B11: CasC | E11: 28 | I11: 17 | AX11: =SUM($C11:$AW11) -> 45 | AY11: =COUNTA(C11:AV11) -> 2 | AZ11: =IF($AY11<=6,SUM($C11:$AV11),SUMPRODUCT(LARGE($C11:$AV11,{1,2,3,4,5,6}))) -> 45 | BA11: =IF(AND($AY11>=6,AZ11=AZ12),"Manual Calc Needed","") ->  | BB11: =IFERROR(SUMPRODUCT(LARGE($C11:$AV11,{1,2,3,4})), "") ->  | BC11: =IFERROR(SUMPRODUCT(LARGE($C11:$AV11,{1,2,3,4,5,6,7})), "") ->  | BD11: =IFERROR(SUMPRODUCT(LARGE($C11:$AV11,{1,2,3,4,5,6,7,8})), "") -> 
B12: CC | K12: 11 | AX12: =SUM($C12:$AW12) -> 11 | AY12: =COUNTA(C12:AV12) -> 1 | AZ12: =IF($AY12<=6,SUM($C12:$AV12),SUMPRODUCT(LARGE($C12:$AV12,{1,2,3,4,5,6}))) -> 11 | BA12: =IF(AND($AY12>=6,AZ12=AZ13),"Manual Calc Needed","") ->  | BB12: =IFERROR(SUMPRODUCT(LARGE($C12:$AV12,{1,2,3,4})), "") ->  | BC12: =IFERROR(SUMPRODUCT(LARGE($C12:$AV12,{1,2,3,4,5,6,7})), "") ->  | BD12: =IFERROR(SUMPRODUCT(LARGE($C12:$AV12,{1,2,3,4,5,6,7,8})), "") -> 
B13: CCU | E13: 11 | G13: =17+20+10 -> 47 | AX13: =SUM($C13:$AW13) -> 58 | AY13: =COUNTA(C13:AV13) -> 2 | AZ13: =IF($AY13<=6,SUM($C13:$AV13),SUMPRODUCT(LARGE($C13:$AV13,{1,2,3,4,5,6}))) -> 58 | BA13: =IF(AND($AY13>=6,AZ13=AZ14),"Manual Calc Needed","") ->  | BB13: =IFERROR(SUMPRODUCT(LARGE($C13:$AV13,{1,2,3,4})), "") ->  | BC13: =IFERROR(SUMPRODUCT(LARGE($C13:$AV13,{1,2,3,4,5,6,7})), "") ->  | BD13: =IFERROR(SUMPRODUCT(LARGE($C13:$AV13,{1,2,3,4,5,6,7,8})), "") -> 
B14: CSI | D14: 28 | G14: 18 | M14: 18 | O14: 36 | AX14: =SUM($C14:$AW14) -> 100 | AY14: =COUNTA(C14:AV14) -> 4 | AZ14: =IF($AY14<=6,SUM($C14:$AV14),SUMPRODUCT(LARGE($C14:$AV14,{1,2,3,4,5,6}))) -> 100 | BA14: =IF(AND($AY14>=6,AZ14=AZ15),"Manual Calc Needed","") ->  | BB14: =IFERROR(SUMPRODUCT(LARGE($C14:$AV14,{1,2,3,4})), "") -> 100 | BC14: =IFERROR(SUMPRODUCT(LARGE($C14:$AV14,{1,2,3,4,5,6,7})), "") ->  | BD14: =IFERROR(SUMPRODUCT(LARGE($C14:$AV14,{1,2,3,4,5,6,7,8})), "") -> 
B15: CSLB | K15: 10 | AX15: =SUM($C15:$AW15) -> 10 | AY15: =COUNTA(C15:AV15) -> 1 | AZ15: =IF($AY15<=6,SUM($C15:$AV15),SUMPRODUCT(LARGE($C15:$AV15,{1,2,3,4,5,6}))) -> 10 | BA15: =IF(AND($AY15>=6,AZ15=AZ16),"Manual Calc Needed","") ->  | BB15: =IFERROR(SUMPRODUCT(LARGE($C15:$AV15,{1,2,3,4})), "") ->  | BC15: =IFERROR(SUMPRODUCT(LARGE($C15:$AV15,{1,2,3,4,5,6,7})), "") ->  | BD15: =IFERROR(SUMPRODUCT(LARGE($C15:$AV15,{1,2,3,4,5,6,7,8})), "") -> 
B16: CUI | K16: 9 | AX16: =SUM($C16:$AW16) -> 9 | AY16: =COUNTA(C16:AV16) -> 1 | AZ16: =IF($AY16<=6,SUM($C16:$AV16),SUMPRODUCT(LARGE($C16:$AV16,{1,2,3,4,5,6}))) -> 9 | BA16: =IF(AND($AY16>=6,AZ16=AZ17),"Manual Calc Needed","") ->  | BB16: =IFERROR(SUMPRODUCT(LARGE($C16:$AV16,{1,2,3,4})), "") ->  | BC16: =IFERROR(SUMPRODUCT(LARGE($C16:$AV16,{1,2,3,4,5,6,7})), "") ->  | BD16: =IFERROR(SUMPRODUCT(LARGE($C16:$AV16,{1,2,3,4,5,6,7,8})), "") -> 
B17: CWI | G17: 30 | M17: 29 | P17: 33 | AX17: =SUM($C17:$AW17) -> 92 | AY17: =COUNTA(C17:AV17) -> 3 | AZ17: =IF($AY17<=6,SUM($C17:$AV17),SUMPRODUCT(LARGE($C17:$AV17,{1,2,3,4,5,6}))) -> 92 | BA17: =IF(AND($AY17>=6,AZ17=AZ18),"Manual Calc Needed","") ->  | BB17: =IFERROR(SUMPRODUCT(LARGE($C17:$AV17,{1,2,3,4})), "") ->  | BC17: =IFERROR(SUMPRODUCT(LARGE($C17:$AV17,{1,2,3,4,5,6,7})), "") ->  | BD17: =IFERROR(SUMPRODUCT(LARGE($C17:$AV17,{1,2,3,4,5,6,7,8})), "") -> 
B18: DBU | C18: 30 | J18: =6+5+5+24 -> 40 | L18: 42 | N18: 45 | AX18: =SUM($C18:$AW18) -> 157 | AY18: =COUNTA(C18:AV18) -> 4 | AZ18: =IF($AY18<=6,SUM($C18:$AV18),SUMPRODUCT(LARGE($C18:$AV18,{1,2,3,4,5,6}))) -> 157 | BA18: =IF(AND($AY18>=6,AZ18=AZ19),"Manual Calc Needed","") ->  | BB18: =IFERROR(SUMPRODUCT(LARGE($C18:$AV18,{1,2,3,4})), "") -> 157 | BC18: =IFERROR(SUMPRODUCT(LARGE($C18:$AV18,{1,2,3,4,5,6,7})), "") ->  | BD18: =IFERROR(SUMPRODUCT(LARGE($C18:$AV18,{1,2,3,4,5,6,7,8})), "") -> 
B19: DU | AX19: =SUM($C19:$AW19) -> 0 | AY19: =COUNTA(C19:AV19) -> 0 | AZ19: =IF($AY19<=6,SUM($C19:$AV19),SUMPRODUCT(LARGE($C19:$AV19,{1,2,3,4,5,6}))) -> 0 | BA19: =IF(AND($AY19>=6,AZ19=AZ20),"Manual Calc Needed","") ->  | BB19: =IFERROR(SUMPRODUCT(LARGE($C19:$AV19,{1,2,3,4})), "") ->  | BC19: =IFERROR(SUMPRODUCT(LARGE($C19:$AV19,{1,2,3,4,5,6,7})), "") ->  | BD19: =IFERROR(SUMPRODUCT(LARGE($C19:$AV19,{1,2,3,4,5,6,7,8})), "") -> 
B20: ECC | K20: 45 | AX20: =SUM($C20:$AW20) -> 45 | AY20: =COUNTA(C20:AV20) -> 1 | AZ20: =IF($AY20<=6,SUM($C20:$AV20),SUMPRODUCT(LARGE($C20:$AV20,{1,2,3,4,5,6}))) -> 45 | BA20: =IF(AND($AY20>=6,AZ20=AZ21),"Manual Calc Needed","") ->  | BB20: =IFERROR(SUMPRODUCT(LARGE($C20:$AV20,{1,2,3,4})), "") ->  | BC20: =IFERROR(SUMPRODUCT(LARGE($C20:$AV20,{1,2,3,4,5,6,7})), "") ->  | BD20: =IFERROR(SUMPRODUCT(LARGE($C20:$AV20,{1,2,3,4,5,6,7,8})), "") -> 
B21: ETBU | C21: 9 | H21: 13 | N21: 16 | AX21: =SUM($C21:$AW21) -> 38 | AY21: =COUNTA(C21:AV21) -> 3 | AZ21: =IF($AY21<=6,SUM($C21:$AV21),SUMPRODUCT(LARGE($C21:$AV21,{1,2,3,4,5,6}))) -> 38 | BA21: =IF(AND($AY21>=6,AZ21=AZ22),"Manual Calc Needed","") ->  | BB21: =IFERROR(SUMPRODUCT(LARGE($C21:$AV21,{1,2,3,4})), "") ->  | BC21: =IFERROR(SUMPRODUCT(LARGE($C21:$AV21,{1,2,3,4,5,6,7})), "") ->  | BD21: =IFERROR(SUMPRODUCT(LARGE($C21:$AV21,{1,2,3,4,5,6,7,8})), "") -> 
B22: FSCJ | H22: 9 | AX22: =SUM($C22:$AW22) -> 9 | AY22: =COUNTA(C22:AV22) -> 1 | AZ22: =IF($AY22<=6,SUM($C22:$AV22),SUMPRODUCT(LARGE($C22:$AV22,{1,2,3,4,5,6}))) -> 9 | BA22: =IF(AND($AY22>=6,AZ22=AZ23),"Manual Calc Needed","") ->  | BB22: =IFERROR(SUMPRODUCT(LARGE($C22:$AV22,{1,2,3,4})), "") ->  | BC22: =IFERROR(SUMPRODUCT(LARGE($C22:$AV22,{1,2,3,4,5,6,7})), "") ->  | BD22: =IFERROR(SUMPRODUCT(LARGE($C22:$AV22,{1,2,3,4,5,6,7,8})), "") -> 
B23: FSU | G23: 6 | AX23: =SUM($C23:$AW23) -> 6 | AY23: =COUNTA(C23:AV23) -> 1 | AZ23: =IF($AY23<=6,SUM($C23:$AV23),SUMPRODUCT(LARGE($C23:$AV23,{1,2,3,4,5,6}))) -> 6 | BA23: =IF(AND($AY23>=6,AZ23=AZ24),"Manual Calc Needed","") ->  | BB23: =IFERROR(SUMPRODUCT(LARGE($C23:$AV23,{1,2,3,4})), "") ->  | BC23: =IFERROR(SUMPRODUCT(LARGE($C23:$AV23,{1,2,3,4,5,6,7})), "") ->  | BD23: =IFERROR(SUMPRODUCT(LARGE($C23:$AV23,{1,2,3,4,5,6,7,8})), "") -> 
B24: GC | K24: 2 | AX24: =SUM($C24:$AW24) -> 2 | AY24: =COUNTA(C24:AV24) -> 1 | AZ24: =IF($AY24<=6,SUM($C24:$AV24),SUMPRODUCT(LARGE($C24:$AV24,{1,2,3,4,5,6}))) -> 2 | BA24: =IF(AND($AY24>=6,AZ24=AZ25),"Manual Calc Needed","") ->  | BB24: =IFERROR(SUMPRODUCT(LARGE($C24:$AV24,{1,2,3,4})), "") ->  | BC24: =IFERROR(SUMPRODUCT(LARGE($C24:$AV24,{1,2,3,4,5,6,7})), "") ->  | BD24: =IFERROR(SUMPRODUCT(LARGE($C24:$AV24,{1,2,3,4,5,6,7,8})), "") -> 
B25: GCC | H25: 11 | AX25: =SUM($C25:$AW25) -> 11 | AY25: =COUNTA(C25:AV25) -> 1 | AZ25: =IF($AY25<=6,SUM($C25:$AV25),SUMPRODUCT(LARGE($C25:$AV25,{1,2,3,4,5,6}))) -> 11 | BA25: =IF(AND($AY25>=6,AZ25=AZ26),"Manual Calc Needed","") ->  | BB25: =IFERROR(SUMPRODUCT(LARGE($C25:$AV25,{1,2,3,4})), "") ->  | BC25: =IFERROR(SUMPRODUCT(LARGE($C25:$AV25,{1,2,3,4,5,6,7})), "") ->  | BD25: =IFERROR(SUMPRODUCT(LARGE($C25:$AV25,{1,2,3,4,5,6,7,8})), "") -> 
B26: GCU | K26: 19 | AX26: =SUM($C26:$AW26) -> 19 | AY26: =COUNTA(C26:AV26) -> 1 | AZ26: =IF($AY26<=6,SUM($C26:$AV26),SUMPRODUCT(LARGE($C26:$AV26,{1,2,3,4,5,6}))) -> 19 | BA26: =IF(AND($AY26>=6,AZ26=AZ27),"Manual Calc Needed","") ->  | BB26: =IFERROR(SUMPRODUCT(LARGE($C26:$AV26,{1,2,3,4})), "") ->  | BC26: =IFERROR(SUMPRODUCT(LARGE($C26:$AV26,{1,2,3,4,5,6,7})), "") ->  | BD26: =IFERROR(SUMPRODUCT(LARGE($C26:$AV26,{1,2,3,4,5,6,7,8})), "") -> 
B27: GTU | G27: 18 | AX27: =SUM($C27:$AW27) -> 18 | AY27: =COUNTA(C27:AV27) -> 1 | AZ27: =IF($AY27<=6,SUM($C27:$AV27),SUMPRODUCT(LARGE($C27:$AV27,{1,2,3,4,5,6}))) -> 18 | BA27: =IF(AND($AY27>=6,AZ27=AZ28),"Manual Calc Needed","") ->  | BB27: =IFERROR(SUMPRODUCT(LARGE($C27:$AV27,{1,2,3,4})), "") ->  | BC27: =IFERROR(SUMPRODUCT(LARGE($C27:$AV27,{1,2,3,4,5,6,7})), "") ->  | BD27: =IFERROR(SUMPRODUCT(LARGE($C27:$AV27,{1,2,3,4,5,6,7,8})), "") -> 
B28: HiC | H28: 1 | I28: 14 | AX28: =SUM($C28:$AW28) -> 15 | AY28: =COUNTA(C28:AV28) -> 2 | AZ28: =IF($AY28<=6,SUM($C28:$AV28),SUMPRODUCT(LARGE($C28:$AV28,{1,2,3,4,5,6}))) -> 15 | BA28: =IF(AND($AY28>=6,AZ28=AZ29),"Manual Calc Needed","") ->  | BB28: =IFERROR(SUMPRODUCT(LARGE($C28:$AV28,{1,2,3,4})), "") ->  | BC28: =IFERROR(SUMPRODUCT(LARGE($C28:$AV28,{1,2,3,4,5,6,7})), "") ->  | BD28: =IFERROR(SUMPRODUCT(LARGE($C28:$AV28,{1,2,3,4,5,6,7,8})), "") -> 
B29: HPU | C29: 33 | N29: 24 | AX29: =SUM($C29:$AW29) -> 57 | AY29: =COUNTA(C29:AV29) -> 2 | AZ29: =IF($AY29<=6,SUM($C29:$AV29),SUMPRODUCT(LARGE($C29:$AV29,{1,2,3,4,5,6}))) -> 57 | BA29: =IF(AND($AY29>=6,AZ29=AZ30),"Manual Calc Needed","") ->  | BB29: =IFERROR(SUMPRODUCT(LARGE($C29:$AV29,{1,2,3,4})), "") ->  | BC29: =IFERROR(SUMPRODUCT(LARGE($C29:$AV29,{1,2,3,4,5,6,7})), "") ->  | BD29: =IFERROR(SUMPRODUCT(LARGE($C29:$AV29,{1,2,3,4,5,6,7,8})), "") -> 
B30: HU | L30: 12 | AX30: =SUM($C30:$AW30) -> 12 | AY30: =COUNTA(C30:AV30) -> 1 | AZ30: =IF($AY30<=6,SUM($C30:$AV30),SUMPRODUCT(LARGE($C30:$AV30,{1,2,3,4,5,6}))) -> 12 | BA30: =IF(AND($AY30>=6,AZ30=AZ31),"Manual Calc Needed","") ->  | BB30: =IFERROR(SUMPRODUCT(LARGE($C30:$AV30,{1,2,3,4})), "") ->  | BC30: =IFERROR(SUMPRODUCT(LARGE($C30:$AV30,{1,2,3,4,5,6,7})), "") ->  | BD30: =IFERROR(SUMPRODUCT(LARGE($C30:$AV30,{1,2,3,4,5,6,7,8})), "") -> 
B31: IC | H31: 4 | I31: 3 | AX31: =SUM($C31:$AW31) -> 7 | AY31: =COUNTA(C31:AV31) -> 2 | AZ31: =IF($AY31<=6,SUM($C31:$AV31),SUMPRODUCT(LARGE($C31:$AV31,{1,2,3,4,5,6}))) -> 7 | BA31: =IF(AND($AY31>=6,AZ31=AZ32),"Manual Calc Needed","") ->  | BB31: =IFERROR(SUMPRODUCT(LARGE($C31:$AV31,{1,2,3,4})), "") ->  | BC31: =IFERROR(SUMPRODUCT(LARGE($C31:$AV31,{1,2,3,4,5,6,7})), "") ->  | BD31: =IFERROR(SUMPRODUCT(LARGE($C31:$AV31,{1,2,3,4,5,6,7,8})), "") -> 
B32: ISU | D32: 24 | G32: 6 | M32: 15 | AX32: =SUM($C32:$AW32) -> 45 | AY32: =COUNTA(C32:AV32) -> 3 | AZ32: =IF($AY32<=6,SUM($C32:$AV32),SUMPRODUCT(LARGE($C32:$AV32,{1,2,3,4,5,6}))) -> 45 | BA32: =IF(AND($AY32>=6,AZ32=AZ33),"Manual Calc Needed","") ->  | BB32: =IFERROR(SUMPRODUCT(LARGE($C32:$AV32,{1,2,3,4})), "") ->  | BC32: =IFERROR(SUMPRODUCT(LARGE($C32:$AV32,{1,2,3,4,5,6,7})), "") ->  | BD32: =IFERROR(SUMPRODUCT(LARGE($C32:$AV32,{1,2,3,4,5,6,7,8})), "") -> 
B33: JSCC | C33: 19 | F33: 16 | O33: 22 | AX33: =SUM($C33:$AW33) -> 57 | AY33: =COUNTA(C33:AV33) -> 3 | AZ33: =IF($AY33<=6,SUM($C33:$AV33),SUMPRODUCT(LARGE($C33:$AV33,{1,2,3,4,5,6}))) -> 57 | BA33: =IF(AND($AY33>=6,AZ33=AZ34),"Manual Calc Needed","") ->  | BB33: =IFERROR(SUMPRODUCT(LARGE($C33:$AV33,{1,2,3,4})), "") ->  | BC33: =IFERROR(SUMPRODUCT(LARGE($C33:$AV33,{1,2,3,4,5,6,7})), "") ->  | BD33: =IFERROR(SUMPRODUCT(LARGE($C33:$AV33,{1,2,3,4,5,6,7,8})), "") -> 
B34: KWU | E34: 23 | AX34: =SUM($C34:$AW34) -> 23 | AY34: =COUNTA(C34:AV34) -> 1 | AZ34: =IF($AY34<=6,SUM($C34:$AV34),SUMPRODUCT(LARGE($C34:$AV34,{1,2,3,4,5,6}))) -> 23 | BA34: =IF(AND($AY34>=6,AZ34=AZ35),"Manual Calc Needed","") ->  | BB34: =IFERROR(SUMPRODUCT(LARGE($C34:$AV34,{1,2,3,4})), "") ->  | BC34: =IFERROR(SUMPRODUCT(LARGE($C34:$AV34,{1,2,3,4,5,6,7})), "") ->  | BD34: =IFERROR(SUMPRODUCT(LARGE($C34:$AV34,{1,2,3,4,5,6,7,8})), "") -> 
B35: L&CC | G35: 23 | M35: 4 | P35: 1 | AX35: =SUM($C35:$AW35) -> 28 | AY35: =COUNTA(C35:AV35) -> 3 | AZ35: =IF($AY35<=6,SUM($C35:$AV35),SUMPRODUCT(LARGE($C35:$AV35,{1,2,3,4,5,6}))) -> 28 | BA35: =IF(AND($AY35>=6,AZ35=AZ36),"Manual Calc Needed","") ->  | BB35: =IFERROR(SUMPRODUCT(LARGE($C35:$AV35,{1,2,3,4})), "") ->  | BC35: =IFERROR(SUMPRODUCT(LARGE($C35:$AV35,{1,2,3,4,5,6,7})), "") ->  | BD35: =IFERROR(SUMPRODUCT(LARGE($C35:$AV35,{1,2,3,4,5,6,7,8})), "") -> 
B36: LC | F36: 15 | N36: 15 | AX36: =SUM($C36:$AW36) -> 30 | AY36: =COUNTA(C36:AV36) -> 2 | AZ36: =IF($AY36<=6,SUM($C36:$AV36),SUMPRODUCT(LARGE($C36:$AV36,{1,2,3,4,5,6}))) -> 30 | BA36: =IF(AND($AY36>=6,AZ36=AZ37),"Manual Calc Needed","") ->  | BB36: =IFERROR(SUMPRODUCT(LARGE($C36:$AV36,{1,2,3,4})), "") ->  | BC36: =IFERROR(SUMPRODUCT(LARGE($C36:$AV36,{1,2,3,4,5,6,7})), "") ->  | BD36: =IFERROR(SUMPRODUCT(LARGE($C36:$AV36,{1,2,3,4,5,6,7,8})), "") -> 
B37: LCC | M37: 6 | P37: 18 | AX37: =SUM($C37:$AW37) -> 24 | AY37: =COUNTA(C37:AV37) -> 2 | AZ37: =IF($AY37<=6,SUM($C37:$AV37),SUMPRODUCT(LARGE($C37:$AV37,{1,2,3,4,5,6}))) -> 24 | BA37: =IF(AND($AY37>=6,AZ37=AZ38),"Manual Calc Needed","") ->  | BB37: =IFERROR(SUMPRODUCT(LARGE($C37:$AV37,{1,2,3,4})), "") ->  | BC37: =IFERROR(SUMPRODUCT(LARGE($C37:$AV37,{1,2,3,4,5,6,7})), "") ->  | BD37: =IFERROR(SUMPRODUCT(LARGE($C37:$AV37,{1,2,3,4,5,6,7,8})), "") -> 
B38: Lee | F38: 14 | L38: 17 | N38: 35 | O38: 26 | AX38: =SUM($C38:$AW38) -> 92 | AY38: =COUNTA(C38:AV38) -> 4 | AZ38: =IF($AY38<=6,SUM($C38:$AV38),SUMPRODUCT(LARGE($C38:$AV38,{1,2,3,4,5,6}))) -> 92 | BA38: =IF(AND($AY38>=6,AZ38=AZ39),"Manual Calc Needed","") ->  | BB38: =IFERROR(SUMPRODUCT(LARGE($C38:$AV38,{1,2,3,4})), "") -> 92 | BC38: =IFERROR(SUMPRODUCT(LARGE($C38:$AV38,{1,2,3,4,5,6,7})), "") ->  | BD38: =IFERROR(SUMPRODUCT(LARGE($C38:$AV38,{1,2,3,4,5,6,7,8})), "") -> 
B39: LSCO | F39: 3 | AX39: =SUM($C39:$AW39) -> 3 | AY39: =COUNTA(C39:AV39) -> 1 | AZ39: =IF($AY39<=6,SUM($C39:$AV39),SUMPRODUCT(LARGE($C39:$AV39,{1,2,3,4,5,6}))) -> 3 | BA39: =IF(AND($AY39>=6,AZ39=AZ40),"Manual Calc Needed","") ->  | BB39: =IFERROR(SUMPRODUCT(LARGE($C39:$AV39,{1,2,3,4})), "") ->  | BC39: =IFERROR(SUMPRODUCT(LARGE($C39:$AV39,{1,2,3,4,5,6,7})), "") ->  | BD39: =IFERROR(SUMPRODUCT(LARGE($C39:$AV39,{1,2,3,4,5,6,7,8})), "") -> 
B40: LSUS | C40: 22 | F40: 23 | J40: =3+14+3+9 -> 29 | L40: 8 | N40: 42 | O40: 7 | AX40: =SUM($C40:$AW40) -> 131 | AY40: =COUNTA(C40:AV40) -> 6 | AZ40: =IF($AY40<=6,SUM($C40:$AV40),SUMPRODUCT(LARGE($C40:$AV40,{1,2,3,4,5,6}))) -> 131 | BA40: =IF(AND($AY40>=6,AZ40=AZ41),"Manual Calc Needed","") ->  | BB40: =IFERROR(SUMPRODUCT(LARGE($C40:$AV40,{1,2,3,4})), "") -> 116 | BC40: =IFERROR(SUMPRODUCT(LARGE($C40:$AV40,{1,2,3,4,5,6,7})), "") ->  | BD40: =IFERROR(SUMPRODUCT(LARGE($C40:$AV40,{1,2,3,4,5,6,7,8})), "") -> 
B41: LTU | C41: 13 | F41: 13 | L41: =3+6+5+3 -> 17 | N41: 6 | O41: 18 | AX41: =SUM($C41:$AW41) -> 67 | AY41: =COUNTA(C41:AV41) -> 5 | AZ41: =IF($AY41<=6,SUM($C41:$AV41),SUMPRODUCT(LARGE($C41:$AV41,{1,2,3,4,5,6}))) -> 67 | BA41: =IF(AND($AY41>=6,AZ41=AZ42),"Manual Calc Needed","") ->  | BB41: =IFERROR(SUMPRODUCT(LARGE($C41:$AV41,{1,2,3,4})), "") -> 61 | BC41: =IFERROR(SUMPRODUCT(LARGE($C41:$AV41,{1,2,3,4,5,6,7})), "") ->  | BD41: =IFERROR(SUMPRODUCT(LARGE($C41:$AV41,{1,2,3,4,5,6,7,8})), "") -> 
B42: LU | H42: 1 | I42: 1 | AX42: =SUM($C42:$AW42) -> 2 | AY42: =COUNTA(C42:AV42) -> 2 | AZ42: =IF($AY42<=6,SUM($C42:$AV42),SUMPRODUCT(LARGE($C42:$AV42,{1,2,3,4,5,6}))) -> 2 | BA42: =IF(AND($AY42>=6,AZ42=AZ43),"Manual Calc Needed","") ->  | BB42: =IFERROR(SUMPRODUCT(LARGE($C42:$AV42,{1,2,3,4})), "") ->  | BC42: =IFERROR(SUMPRODUCT(LARGE($C42:$AV42,{1,2,3,4,5,6,7})), "") ->  | BD42: =IFERROR(SUMPRODUCT(LARGE($C42:$AV42,{1,2,3,4,5,6,7,8})), "") -> 
B43: MHCC | G43: 2 | AX43: =SUM($C43:$AW43) -> 2 | AY43: =COUNTA(C43:AV43) -> 1 | AZ43: =IF($AY43<=6,SUM($C43:$AV43),SUMPRODUCT(LARGE($C43:$AV43,{1,2,3,4,5,6}))) -> 2 | BA43: =IF(AND($AY43>=6,AZ43=AZ44),"Manual Calc Needed","") ->  | BB43: =IFERROR(SUMPRODUCT(LARGE($C43:$AV43,{1,2,3,4})), "") ->  | BC43: =IFERROR(SUMPRODUCT(LARGE($C43:$AV43,{1,2,3,4,5,6,7})), "") ->  | BD43: =IFERROR(SUMPRODUCT(LARGE($C43:$AV43,{1,2,3,4,5,6,7,8})), "") -> 
B44: MoC | AX44: =SUM($C44:$AW44) -> 0 | AY44: =COUNTA(C44:AV44) -> 0 | AZ44: =IF($AY44<=6,SUM($C44:$AV44),SUMPRODUCT(LARGE($C44:$AV44,{1,2,3,4,5,6}))) -> 0 | BA44: =IF(AND($AY44>=6,AZ44=AZ45),"Manual Calc Needed","") ->  | BB44: =IFERROR(SUMPRODUCT(LARGE($C44:$AV44,{1,2,3,4})), "") ->  | BC44: =IFERROR(SUMPRODUCT(LARGE($C44:$AV44,{1,2,3,4,5,6,7})), "") ->  | BD44: =IFERROR(SUMPRODUCT(LARGE($C44:$AV44,{1,2,3,4,5,6,7,8})), "") -> 
B45: MSCC | L45: 5 | AX45: =SUM($C45:$AW45) -> 5 | AY45: =COUNTA(C45:AV45) -> 1 | AZ45: =IF($AY45<=6,SUM($C45:$AV45),SUMPRODUCT(LARGE($C45:$AV45,{1,2,3,4,5,6}))) -> 5 | BA45: =IF(AND($AY45>=6,AZ45=AZ46),"Manual Calc Needed","") ->  | BB45: =IFERROR(SUMPRODUCT(LARGE($C45:$AV45,{1,2,3,4})), "") ->  | BC45: =IFERROR(SUMPRODUCT(LARGE($C45:$AV45,{1,2,3,4,5,6,7})), "") ->  | BD45: =IFERROR(SUMPRODUCT(LARGE($C45:$AV45,{1,2,3,4,5,6,7,8})), "") -> 
B46: MslU | H46: 5 | I46: 5 | AX46: =SUM($C46:$AW46) -> 10 | AY46: =COUNTA(C46:AV46) -> 2 | AZ46: =IF($AY46<=6,SUM($C46:$AV46),SUMPRODUCT(LARGE($C46:$AV46,{1,2,3,4,5,6}))) -> 10 | BA46: =IF(AND($AY46>=6,AZ46=AZ47),"Manual Calc Needed","") ->  | BB46: =IFERROR(SUMPRODUCT(LARGE($C46:$AV46,{1,2,3,4})), "") ->  | BC46: =IFERROR(SUMPRODUCT(LARGE($C46:$AV46,{1,2,3,4,5,6,7})), "") ->  | BD46: =IFERROR(SUMPRODUCT(LARGE($C46:$AV46,{1,2,3,4,5,6,7,8})), "") -> 
B47: MSU | C47: 68 | F47: 55 | H47: 11 | I47: 7 | J47: =20+13+16+13 -> 62 | L47: =3+2+5+5+14+9+9+2+10+3+7 -> 69 | N47: 83 | O47: 19 | AX47: =SUM($C47:$AW47) -> 374 | AY47: =COUNTA(C47:AV47) -> 8 | AZ47: =IF($AY47<=6,SUM($C47:$AV47),SUMPRODUCT(LARGE($C47:$AV47,{1,2,3,4,5,6}))) -> 356 | BA47: =IF(AND($AY47>=6,AZ47=AZ48),"Manual Calc Needed","") ->  | BB47: =IFERROR(SUMPRODUCT(LARGE($C47:$AV47,{1,2,3,4})), "") -> 282 | BC47: =IFERROR(SUMPRODUCT(LARGE($C47:$AV47,{1,2,3,4,5,6,7})), "") -> 367 | BD47: =IFERROR(SUMPRODUCT(LARGE($C47:$AV47,{1,2,3,4,5,6,7,8})), "") -> 374
B48: MTSU | C48: 28 | F48: 29 | J48: 17 | L48: 24 | O48: 5 | AX48: =SUM($C48:$AW48) -> 103 | AY48: =COUNTA(C48:AV48) -> 5 | AZ48: =IF($AY48<=6,SUM($C48:$AV48),SUMPRODUCT(LARGE($C48:$AV48,{1,2,3,4,5,6}))) -> 103 | BA48: =IF(AND($AY48>=6,AZ48=AZ49),"Manual Calc Needed","") ->  | BB48: =IFERROR(SUMPRODUCT(LARGE($C48:$AV48,{1,2,3,4})), "") -> 98 | BC48: =IFERROR(SUMPRODUCT(LARGE($C48:$AV48,{1,2,3,4,5,6,7})), "") ->  | BD48: =IFERROR(SUMPRODUCT(LARGE($C48:$AV48,{1,2,3,4,5,6,7,8})), "") -> 
B49: MuSU | I49: 12 | AX49: =SUM($C49:$AW49) -> 12 | AY49: =COUNTA(C49:AV49) -> 1 | AZ49: =IF($AY49<=6,SUM($C49:$AV49),SUMPRODUCT(LARGE($C49:$AV49,{1,2,3,4,5,6}))) -> 12 | BA49: =IF(AND($AY49>=6,AZ49=AZ50),"Manual Calc Needed","") ->  | BB49: =IFERROR(SUMPRODUCT(LARGE($C49:$AV49,{1,2,3,4})), "") ->  | BC49: =IFERROR(SUMPRODUCT(LARGE($C49:$AV49,{1,2,3,4,5,6,7})), "") ->  | BD49: =IFERROR(SUMPRODUCT(LARGE($C49:$AV49,{1,2,3,4,5,6,7,8})), "") -> 
B50: MuU | H50: 7 | AX50: =SUM($C50:$AW50) -> 7 | AY50: =COUNTA(C50:AV50) -> 1 | AZ50: =IF($AY50<=6,SUM($C50:$AV50),SUMPRODUCT(LARGE($C50:$AV50,{1,2,3,4,5,6}))) -> 7 | BA50: =IF(AND($AY50>=6,AZ50=AZ51),"Manual Calc Needed","") ->  | BB50: =IFERROR(SUMPRODUCT(LARGE($C50:$AV50,{1,2,3,4})), "") ->  | BC50: =IFERROR(SUMPRODUCT(LARGE($C50:$AV50,{1,2,3,4,5,6,7})), "") ->  | BD50: =IFERROR(SUMPRODUCT(LARGE($C50:$AV50,{1,2,3,4,5,6,7,8})), "") -> 
B51: MVC | O51: 8 | AX51: =SUM($C51:$AW51) -> 8 | AY51: =COUNTA(C51:AV51) -> 1 | AZ51: =IF($AY51<=6,SUM($C51:$AV51),SUMPRODUCT(LARGE($C51:$AV51,{1,2,3,4,5,6}))) -> 8 | BA51: =IF(AND($AY51>=6,AZ51=AZ52),"Manual Calc Needed","") ->  | BB51: =IFERROR(SUMPRODUCT(LARGE($C51:$AV51,{1,2,3,4})), "") ->  | BC51: =IFERROR(SUMPRODUCT(LARGE($C51:$AV51,{1,2,3,4,5,6,7})), "") ->  | BD51: =IFERROR(SUMPRODUCT(LARGE($C51:$AV51,{1,2,3,4,5,6,7,8})), "") -> 
B52: NNU | G52: =4+7+6 -> 17 | M52: 3 | AX52: =SUM($C52:$AW52) -> 20 | AY52: =COUNTA(C52:AV52) -> 2 | AZ52: =IF($AY52<=6,SUM($C52:$AV52),SUMPRODUCT(LARGE($C52:$AV52,{1,2,3,4,5,6}))) -> 20 | BA52: =IF(AND($AY52>=6,AZ52=AZ53),"Manual Calc Needed","") ->  | BB52: =IFERROR(SUMPRODUCT(LARGE($C52:$AV52,{1,2,3,4})), "") ->  | BC52: =IFERROR(SUMPRODUCT(LARGE($C52:$AV52,{1,2,3,4,5,6,7})), "") ->  | BD52: =IFERROR(SUMPRODUCT(LARGE($C52:$AV52,{1,2,3,4,5,6,7,8})), "") -> 
B53: NwC | D53: 12 | E53: 10 | K53: 10 | AX53: =SUM($C53:$AW53) -> 32 | AY53: =COUNTA(C53:AV53) -> 3 | AZ53: =IF($AY53<=6,SUM($C53:$AV53),SUMPRODUCT(LARGE($C53:$AV53,{1,2,3,4,5,6}))) -> 32 | BA53: =IF(AND($AY53>=6,AZ53=AZ54),"Manual Calc Needed","") ->  | BB53: =IFERROR(SUMPRODUCT(LARGE($C53:$AV53,{1,2,3,4})), "") ->  | BC53: =IFERROR(SUMPRODUCT(LARGE($C53:$AV53,{1,2,3,4,5,6,7})), "") ->  | BD53: =IFERROR(SUMPRODUCT(LARGE($C53:$AV53,{1,2,3,4,5,6,7,8})), "") -> 
B54: NwSU | F54: 13 | L54: 9 | AX54: =SUM($C54:$AW54) -> 22 | AY54: =COUNTA(C54:AV54) -> 2 | AZ54: =IF($AY54<=6,SUM($C54:$AV54),SUMPRODUCT(LARGE($C54:$AV54,{1,2,3,4,5,6}))) -> 22 | BA54: =IF(AND($AY54>=6,AZ54=AZ55),"Manual Calc Needed","") ->  | BB54: =IFERROR(SUMPRODUCT(LARGE($C54:$AV54,{1,2,3,4})), "") ->  | BC54: =IFERROR(SUMPRODUCT(LARGE($C54:$AV54,{1,2,3,4,5,6,7})), "") ->  | BD54: =IFERROR(SUMPRODUCT(LARGE($C54:$AV54,{1,2,3,4,5,6,7,8})), "") -> 
B55: OCC | K55: 15 | AX55: =SUM($C55:$AW55) -> 15 | AY55: =COUNTA(C55:AV55) -> 1 | AZ55: =IF($AY55<=6,SUM($C55:$AV55),SUMPRODUCT(LARGE($C55:$AV55,{1,2,3,4,5,6}))) -> 15 | BA55: =IF(AND($AY55>=6,AZ55=AZ56),"Manual Calc Needed","") ->  | BB55: =IFERROR(SUMPRODUCT(LARGE($C55:$AV55,{1,2,3,4})), "") ->  | BC55: =IFERROR(SUMPRODUCT(LARGE($C55:$AV55,{1,2,3,4,5,6,7})), "") ->  | BD55: =IFERROR(SUMPRODUCT(LARGE($C55:$AV55,{1,2,3,4,5,6,7,8})), "") -> 
B56: OCTC | G56: 15 | AX56: =SUM($C56:$AW56) -> 15 | AY56: =COUNTA(C56:AV56) -> 1 | AZ56: =IF($AY56<=6,SUM($C56:$AV56),SUMPRODUCT(LARGE($C56:$AV56,{1,2,3,4,5,6}))) -> 15 | BA56: =IF(AND($AY56>=6,AZ56=AZ57),"Manual Calc Needed","") ->  | BB56: =IFERROR(SUMPRODUCT(LARGE($C56:$AV56,{1,2,3,4})), "") ->  | BC56: =IFERROR(SUMPRODUCT(LARGE($C56:$AV56,{1,2,3,4,5,6,7})), "") ->  | BD56: =IFERROR(SUMPRODUCT(LARGE($C56:$AV56,{1,2,3,4,5,6,7,8})), "") -> 
B57: OhU | H57: 2 | AX57: =SUM($C57:$AW57) -> 2 | AY57: =COUNTA(C57:AV57) -> 1 | AZ57: =IF($AY57<=6,SUM($C57:$AV57),SUMPRODUCT(LARGE($C57:$AV57,{1,2,3,4,5,6}))) -> 2 | BA57: =IF(AND($AY57>=6,AZ57=AZ58),"Manual Calc Needed","") ->  | BB57: =IFERROR(SUMPRODUCT(LARGE($C57:$AV57,{1,2,3,4})), "") ->  | BC57: =IFERROR(SUMPRODUCT(LARGE($C57:$AV57,{1,2,3,4,5,6,7})), "") ->  | BD57: =IFERROR(SUMPRODUCT(LARGE($C57:$AV57,{1,2,3,4,5,6,7,8})), "") -> 
B58: OKBU | C58: 40 | F58: 39 | J58: =9+15+17+2 -> 43 | L58: =3+3+6+9+5+2+4 -> 32 | AX58: =SUM($C58:$AW58) -> 154 | AY58: =COUNTA(C58:AV58) -> 4 | AZ58: =IF($AY58<=6,SUM($C58:$AV58),SUMPRODUCT(LARGE($C58:$AV58,{1,2,3,4,5,6}))) -> 154 | BA58: =IF(AND($AY58>=6,AZ58=AZ59),"Manual Calc Needed","") ->  | BB58: =IFERROR(SUMPRODUCT(LARGE($C58:$AV58,{1,2,3,4})), "") -> 154 | BC58: =IFERROR(SUMPRODUCT(LARGE($C58:$AV58,{1,2,3,4,5,6,7})), "") ->  | BD58: =IFERROR(SUMPRODUCT(LARGE($C58:$AV58,{1,2,3,4,5,6,7,8})), "") -> 
B59: ORU | F59: 3 | AX59: =SUM($C59:$AW59) -> 3 | AY59: =COUNTA(C59:AV59) -> 1 | AZ59: =IF($AY59<=6,SUM($C59:$AV59),SUMPRODUCT(LARGE($C59:$AV59,{1,2,3,4,5,6}))) -> 3 | BA59: =IF(AND($AY59>=6,AZ59=AZ60),"Manual Calc Needed","") ->  | BB59: =IFERROR(SUMPRODUCT(LARGE($C59:$AV59,{1,2,3,4})), "") ->  | BC59: =IFERROR(SUMPRODUCT(LARGE($C59:$AV59,{1,2,3,4,5,6,7})), "") ->  | BD59: =IFERROR(SUMPRODUCT(LARGE($C59:$AV59,{1,2,3,4,5,6,7,8})), "") -> 
B60: OSU | G60: 12 | M60: 13 | P60: 6 | AX60: =SUM($C60:$AW60) -> 31 | AY60: =COUNTA(C60:AV60) -> 3 | AZ60: =IF($AY60<=6,SUM($C60:$AV60),SUMPRODUCT(LARGE($C60:$AV60,{1,2,3,4,5,6}))) -> 31 | BA60: =IF(AND($AY60>=6,AZ60=AZ61),"Manual Calc Needed","") ->  | BB60: =IFERROR(SUMPRODUCT(LARGE($C60:$AV60,{1,2,3,4})), "") ->  | BC60: =IFERROR(SUMPRODUCT(LARGE($C60:$AV60,{1,2,3,4,5,6,7})), "") ->  | BD60: =IFERROR(SUMPRODUCT(LARGE($C60:$AV60,{1,2,3,4,5,6,7,8})), "") -> 
B61: PaU | C61: 8 | H61: 3 | L61: =3+7+1+1 -> 12 | M61: 2 | O61: 0 | AX61: =SUM($C61:$AW61) -> 25 | AY61: =COUNTA(C61:AV61) -> 5 | AZ61: =IF($AY61<=6,SUM($C61:$AV61),SUMPRODUCT(LARGE($C61:$AV61,{1,2,3,4,5,6}))) -> 25 | BA61: =IF(AND($AY61>=6,AZ61=AZ62),"Manual Calc Needed","") ->  | BB61: =IFERROR(SUMPRODUCT(LARGE($C61:$AV61,{1,2,3,4})), "") -> 25 | BC61: =IFERROR(SUMPRODUCT(LARGE($C61:$AV61,{1,2,3,4,5,6,7})), "") ->  | BD61: =IFERROR(SUMPRODUCT(LARGE($C61:$AV61,{1,2,3,4,5,6,7,8})), "") -> 
B62: PC | K62: 2 | AX62: =SUM($C62:$AW62) -> 2 | AY62: =COUNTA(C62:AV62) -> 1 | AZ62: =IF($AY62<=6,SUM($C62:$AV62),SUMPRODUCT(LARGE($C62:$AV62,{1,2,3,4,5,6}))) -> 2 | BA62: =IF(AND($AY62>=6,AZ62=AZ63),"Manual Calc Needed","") ->  | BB62: =IFERROR(SUMPRODUCT(LARGE($C62:$AV62,{1,2,3,4})), "") ->  | BC62: =IFERROR(SUMPRODUCT(LARGE($C62:$AV62,{1,2,3,4,5,6,7})), "") ->  | BD62: =IFERROR(SUMPRODUCT(LARGE($C62:$AV62,{1,2,3,4,5,6,7,8})), "") -> 
B63: PHC | H63: 16 | AX63: =SUM($C63:$AW63) -> 16 | AY63: =COUNTA(C63:AV63) -> 1 | AZ63: =IF($AY63<=6,SUM($C63:$AV63),SUMPRODUCT(LARGE($C63:$AV63,{1,2,3,4,5,6}))) -> 16 | BA63: =IF(AND($AY63>=6,AZ63=AZ64),"Manual Calc Needed","") ->  | BB63: =IFERROR(SUMPRODUCT(LARGE($C63:$AV63,{1,2,3,4})), "") ->  | BC63: =IFERROR(SUMPRODUCT(LARGE($C63:$AV63,{1,2,3,4,5,6,7})), "") ->  | BD63: =IFERROR(SUMPRODUCT(LARGE($C63:$AV63,{1,2,3,4,5,6,7,8})), "") -> 
B64: PLNU | K64: 25 | AX64: =SUM($C64:$AW64) -> 25 | AY64: =COUNTA(C64:AV64) -> 1 | AZ64: =IF($AY64<=6,SUM($C64:$AV64),SUMPRODUCT(LARGE($C64:$AV64,{1,2,3,4,5,6}))) -> 25 | BA64: =IF(AND($AY64>=6,AZ64=AZ65),"Manual Calc Needed","") ->  | BB64: =IFERROR(SUMPRODUCT(LARGE($C64:$AV64,{1,2,3,4})), "") ->  | BC64: =IFERROR(SUMPRODUCT(LARGE($C64:$AV64,{1,2,3,4,5,6,7})), "") ->  | BD64: =IFERROR(SUMPRODUCT(LARGE($C64:$AV64,{1,2,3,4,5,6,7,8})), "") -> 
B65: RHCC | K65: 4 | AX65: =SUM($C65:$AW65) -> 4 | AY65: =COUNTA(C65:AV65) -> 1 | AZ65: =IF($AY65<=6,SUM($C65:$AV65),SUMPRODUCT(LARGE($C65:$AV65,{1,2,3,4,5,6}))) -> 4 | BA65: =IF(AND($AY65>=6,AZ65=AZ66),"Manual Calc Needed","") ->  | BB65: =IFERROR(SUMPRODUCT(LARGE($C65:$AV65,{1,2,3,4})), "") ->  | BC65: =IFERROR(SUMPRODUCT(LARGE($C65:$AV65,{1,2,3,4,5,6,7})), "") ->  | BD65: =IFERROR(SUMPRODUCT(LARGE($C65:$AV65,{1,2,3,4,5,6,7,8})), "") -> 
B66: SMU | C66: 36 | F66: 27 | J66: 36 | L66: 36 | N66: 38 | O66: 17 | AX66: =SUM($C66:$AW66) -> 190 | AY66: =COUNTA(C66:AV66) -> 6 | AZ66: =IF($AY66<=6,SUM($C66:$AV66),SUMPRODUCT(LARGE($C66:$AV66,{1,2,3,4,5,6}))) -> 190 | BA66: =IF(AND($AY66>=6,AZ66=AZ67),"Manual Calc Needed","") ->  | BB66: =IFERROR(SUMPRODUCT(LARGE($C66:$AV66,{1,2,3,4})), "") -> 146 | BC66: =IFERROR(SUMPRODUCT(LARGE($C66:$AV66,{1,2,3,4,5,6,7})), "") ->  | BD66: =IFERROR(SUMPRODUCT(LARGE($C66:$AV66,{1,2,3,4,5,6,7,8})), "") -> 
B67: StAC | H67: 3 | I67: 0 | AX67: =SUM($C67:$AW67) -> 3 | AY67: =COUNTA(C67:AV67) -> 2 | AZ67: =IF($AY67<=6,SUM($C67:$AV67),SUMPRODUCT(LARGE($C67:$AV67,{1,2,3,4,5,6}))) -> 3 | BA67: =IF(AND($AY67>=6,AZ67=AZ68),"Manual Calc Needed","") ->  | BB67: =IFERROR(SUMPRODUCT(LARGE($C67:$AV67,{1,2,3,4})), "") ->  | BC67: =IFERROR(SUMPRODUCT(LARGE($C67:$AV67,{1,2,3,4,5,6,7})), "") ->  | BD67: =IFERROR(SUMPRODUCT(LARGE($C67:$AV67,{1,2,3,4,5,6,7,8})), "") -> 
B68: TaCC | I68: 4 | AX68: =SUM($C68:$AW68) -> 4 | AY68: =COUNTA(C68:AV68) -> 1 | AZ68: =IF($AY68<=6,SUM($C68:$AV68),SUMPRODUCT(LARGE($C68:$AV68,{1,2,3,4,5,6}))) -> 4 | BA68: =IF(AND($AY68>=6,AZ68=AZ69),"Manual Calc Needed","") ->  | BB68: =IFERROR(SUMPRODUCT(LARGE($C68:$AV68,{1,2,3,4})), "") ->  | BC68: =IFERROR(SUMPRODUCT(LARGE($C68:$AV68,{1,2,3,4,5,6,7})), "") ->  | BD68: =IFERROR(SUMPRODUCT(LARGE($C68:$AV68,{1,2,3,4,5,6,7,8})), "") -> 
B69: TnSU | I69: 4 | AX69: =SUM($C69:$AW69) -> 4 | AY69: =COUNTA(C69:AV69) -> 1 | AZ69: =IF($AY69<=6,SUM($C69:$AV69),SUMPRODUCT(LARGE($C69:$AV69,{1,2,3,4,5,6}))) -> 4 | BA69: =IF(AND($AY69>=6,AZ69=AZ70),"Manual Calc Needed","") ->  | BB69: =IFERROR(SUMPRODUCT(LARGE($C69:$AV69,{1,2,3,4})), "") ->  | BC69: =IFERROR(SUMPRODUCT(LARGE($C69:$AV69,{1,2,3,4,5,6,7})), "") ->  | BD69: =IFERROR(SUMPRODUCT(LARGE($C69:$AV69,{1,2,3,4,5,6,7,8})), "") -> 
B70: TSU | G70: 11 | AX70: =SUM($C70:$AW70) -> 11 | AY70: =COUNTA(C70:AV70) -> 1 | AZ70: =IF($AY70<=6,SUM($C70:$AV70),SUMPRODUCT(LARGE($C70:$AV70,{1,2,3,4,5,6}))) -> 11 | BA70: =IF(AND($AY70>=6,AZ70=AZ71),"Manual Calc Needed","") ->  | BB70: =IFERROR(SUMPRODUCT(LARGE($C70:$AV70,{1,2,3,4})), "") ->  | BC70: =IFERROR(SUMPRODUCT(LARGE($C70:$AV70,{1,2,3,4,5,6,7})), "") ->  | BD70: =IFERROR(SUMPRODUCT(LARGE($C70:$AV70,{1,2,3,4,5,6,7,8})), "") -> 
B71: UA | C71: 30 | F71: 33 | L71: 33 | O71: 22 | AX71: =SUM($C71:$AW71) -> 118 | AY71: =COUNTA(C71:AV71) -> 4 | AZ71: =IF($AY71<=6,SUM($C71:$AV71),SUMPRODUCT(LARGE($C71:$AV71,{1,2,3,4,5,6}))) -> 118 | BA71: =IF(AND($AY71>=6,AZ71=AZ72),"Manual Calc Needed","") ->  | BB71: =IFERROR(SUMPRODUCT(LARGE($C71:$AV71,{1,2,3,4})), "") -> 118 | BC71: =IFERROR(SUMPRODUCT(LARGE($C71:$AV71,{1,2,3,4,5,6,7})), "") ->  | BD71: =IFERROR(SUMPRODUCT(LARGE($C71:$AV71,{1,2,3,4,5,6,7,8})), "") -> 
B72: UAM | L72: 5 | O72: 2 | AX72: =SUM($C72:$AW72) -> 7 | AY72: =COUNTA(C72:AV72) -> 2 | AZ72: =IF($AY72<=6,SUM($C72:$AV72),SUMPRODUCT(LARGE($C72:$AV72,{1,2,3,4,5,6}))) -> 7 | BA72: =IF(AND($AY72>=6,AZ72=AZ73),"Manual Calc Needed","") ->  | BB72: =IFERROR(SUMPRODUCT(LARGE($C72:$AV72,{1,2,3,4})), "") ->  | BC72: =IFERROR(SUMPRODUCT(LARGE($C72:$AV72,{1,2,3,4,5,6,7})), "") ->  | BD72: =IFERROR(SUMPRODUCT(LARGE($C72:$AV72,{1,2,3,4,5,6,7,8})), "") -> 
B73: Ubama | H73: 2 | AX73: =SUM($C73:$AW73) -> 2 | AY73: =COUNTA(C73:AV73) -> 1 | AZ73: =IF($AY73<=6,SUM($C73:$AV73),SUMPRODUCT(LARGE($C73:$AV73,{1,2,3,4,5,6}))) -> 2 | BA73: =IF(AND($AY73>=6,AZ73=AZ74),"Manual Calc Needed","") ->  | BB73: =IFERROR(SUMPRODUCT(LARGE($C73:$AV73,{1,2,3,4})), "") ->  | BC73: =IFERROR(SUMPRODUCT(LARGE($C73:$AV73,{1,2,3,4,5,6,7})), "") ->  | BD73: =IFERROR(SUMPRODUCT(LARGE($C73:$AV73,{1,2,3,4,5,6,7,8})), "") -> 
B74: UCA | C74: 14 | F74: 16 | L74: 11 | N74: 38 | AX74: =SUM($C74:$AW74) -> 79 | AY74: =COUNTA(C74:AV74) -> 4 | AZ74: =IF($AY74<=6,SUM($C74:$AV74),SUMPRODUCT(LARGE($C74:$AV74,{1,2,3,4,5,6}))) -> 79 | BA74: =IF(AND($AY74>=6,AZ74=AZ75),"Manual Calc Needed","") ->  | BB74: =IFERROR(SUMPRODUCT(LARGE($C74:$AV74,{1,2,3,4})), "") -> 79 | BC74: =IFERROR(SUMPRODUCT(LARGE($C74:$AV74,{1,2,3,4,5,6,7})), "") ->  | BD74: =IFERROR(SUMPRODUCT(LARGE($C74:$AV74,{1,2,3,4,5,6,7,8})), "") -> 
B75: UCF | G75: 21 | H75: 17 | AX75: =SUM($C75:$AW75) -> 38 | AY75: =COUNTA(C75:AV75) -> 2 | AZ75: =IF($AY75<=6,SUM($C75:$AV75),SUMPRODUCT(LARGE($C75:$AV75,{1,2,3,4,5,6}))) -> 38 | BA75: =IF(AND($AY75>=6,AZ75=AZ76),"Manual Calc Needed","") ->  | BB75: =IFERROR(SUMPRODUCT(LARGE($C75:$AV75,{1,2,3,4})), "") ->  | BC75: =IFERROR(SUMPRODUCT(LARGE($C75:$AV75,{1,2,3,4,5,6,7})), "") ->  | BD75: =IFERROR(SUMPRODUCT(LARGE($C75:$AV75,{1,2,3,4,5,6,7,8})), "") -> 
B76: UCSD | K76: 44 | AX76: =SUM($C76:$AW76) -> 44 | AY76: =COUNTA(C76:AV76) -> 1 | AZ76: =IF($AY76<=6,SUM($C76:$AV76),SUMPRODUCT(LARGE($C76:$AV76,{1,2,3,4,5,6}))) -> 44 | BA76: =IF(AND($AY76>=6,AZ76=AZ77),"Manual Calc Needed","") ->  | BB76: =IFERROR(SUMPRODUCT(LARGE($C76:$AV76,{1,2,3,4})), "") ->  | BC76: =IFERROR(SUMPRODUCT(LARGE($C76:$AV76,{1,2,3,4,5,6,7})), "") ->  | BD76: =IFERROR(SUMPRODUCT(LARGE($C76:$AV76,{1,2,3,4,5,6,7,8})), "") -> 
B77: UF | C77: 13 | H77: 15 | AX77: =SUM($C77:$AW77) -> 28 | AY77: =COUNTA(C77:AV77) -> 2 | AZ77: =IF($AY77<=6,SUM($C77:$AV77),SUMPRODUCT(LARGE($C77:$AV77,{1,2,3,4,5,6}))) -> 28 | BA77: =IF(AND($AY77>=6,AZ77=AZ78),"Manual Calc Needed","") ->  | BB77: =IFERROR(SUMPRODUCT(LARGE($C77:$AV77,{1,2,3,4})), "") ->  | BC77: =IFERROR(SUMPRODUCT(LARGE($C77:$AV77,{1,2,3,4,5,6,7})), "") ->  | BD77: =IFERROR(SUMPRODUCT(LARGE($C77:$AV77,{1,2,3,4,5,6,7,8})), "") -> 
B78: UMo | G78: 4 | M78: 1 | AX78: =SUM($C78:$AW78) -> 5 | AY78: =COUNTA(C78:AV78) -> 2 | AZ78: =IF($AY78<=6,SUM($C78:$AV78),SUMPRODUCT(LARGE($C78:$AV78,{1,2,3,4,5,6}))) -> 5 | BA78: =IF(AND($AY78>=6,AZ78=AZ79),"Manual Calc Needed","") ->  | BB78: =IFERROR(SUMPRODUCT(LARGE($C78:$AV78,{1,2,3,4})), "") ->  | BC78: =IFERROR(SUMPRODUCT(LARGE($C78:$AV78,{1,2,3,4,5,6,7})), "") ->  | BD78: =IFERROR(SUMPRODUCT(LARGE($C78:$AV78,{1,2,3,4,5,6,7,8})), "") -> 
B79: UNG | G79: 0 | M79: 1 | AX79: =SUM($C79:$AW79) -> 1 | AY79: =COUNTA(C79:AV79) -> 2 | AZ79: =IF($AY79<=6,SUM($C79:$AV79),SUMPRODUCT(LARGE($C79:$AV79,{1,2,3,4,5,6}))) -> 1 | BA79: =IF(AND($AY79>=6,AZ79=AZ80),"Manual Calc Needed","") ->  | BB79: =IFERROR(SUMPRODUCT(LARGE($C79:$AV79,{1,2,3,4})), "") ->  | BC79: =IFERROR(SUMPRODUCT(LARGE($C79:$AV79,{1,2,3,4,5,6,7})), "") ->  | BD79: =IFERROR(SUMPRODUCT(LARGE($C79:$AV79,{1,2,3,4,5,6,7,8})), "") -> 
B80: UNR | G80: 2 | AX80: =SUM($C80:$AW80) -> 2 | AY80: =COUNTA(C80:AV80) -> 1 | AZ80: =IF($AY80<=6,SUM($C80:$AV80),SUMPRODUCT(LARGE($C80:$AV80,{1,2,3,4,5,6}))) -> 2 | BA80: =IF(AND($AY80>=6,AZ80=AZ81),"Manual Calc Needed","") ->  | BB80: =IFERROR(SUMPRODUCT(LARGE($C80:$AV80,{1,2,3,4})), "") ->  | BC80: =IFERROR(SUMPRODUCT(LARGE($C80:$AV80,{1,2,3,4,5,6,7})), "") ->  | BD80: =IFERROR(SUMPRODUCT(LARGE($C80:$AV80,{1,2,3,4,5,6,7,8})), "") -> 
B81: UNT | C81: 7 | G81: 2 | AX81: =SUM($C81:$AW81) -> 9 | AY81: =COUNTA(C81:AV81) -> 2 | AZ81: =IF($AY81<=6,SUM($C81:$AV81),SUMPRODUCT(LARGE($C81:$AV81,{1,2,3,4,5,6}))) -> 9 | BA81: =IF(AND($AY81>=6,AZ81=AZ82),"Manual Calc Needed","") ->  | BB81: =IFERROR(SUMPRODUCT(LARGE($C81:$AV81,{1,2,3,4})), "") ->  | BC81: =IFERROR(SUMPRODUCT(LARGE($C81:$AV81,{1,2,3,4,5,6,7})), "") ->  | BD81: =IFERROR(SUMPRODUCT(LARGE($C81:$AV81,{1,2,3,4,5,6,7,8})), "") -> 
B82: UP | M82: 6 | AX82: =SUM($C82:$AW82) -> 6 | AY82: =COUNTA(C82:AV82) -> 1 | AZ82: =IF($AY82<=6,SUM($C82:$AV82),SUMPRODUCT(LARGE($C82:$AV82,{1,2,3,4,5,6}))) -> 6 | BA82: =IF(AND($AY82>=6,AZ82=AZ83),"Manual Calc Needed","") ->  | BB82: =IFERROR(SUMPRODUCT(LARGE($C82:$AV82,{1,2,3,4})), "") ->  | BC82: =IFERROR(SUMPRODUCT(LARGE($C82:$AV82,{1,2,3,4,5,6,7})), "") ->  | BD82: =IFERROR(SUMPRODUCT(LARGE($C82:$AV82,{1,2,3,4,5,6,7,8})), "") -> 
B83: USM | H83: 14 | J83: =1+6+11 -> 18 | L83: =3+5+5 -> 13 | AX83: =SUM($C83:$AW83) -> 45 | AY83: =COUNTA(C83:AV83) -> 3 | AZ83: =IF($AY83<=6,SUM($C83:$AV83),SUMPRODUCT(LARGE($C83:$AV83,{1,2,3,4,5,6}))) -> 45 | BA83: =IF(AND($AY83>=6,AZ83=AZ84),"Manual Calc Needed","") ->  | BB83: =IFERROR(SUMPRODUCT(LARGE($C83:$AV83,{1,2,3,4})), "") ->  | BC83: =IFERROR(SUMPRODUCT(LARGE($C83:$AV83,{1,2,3,4,5,6,7})), "") ->  | BD83: =IFERROR(SUMPRODUCT(LARGE($C83:$AV83,{1,2,3,4,5,6,7,8})), "") -> 
B84: USU | D84: 23 | G84: 30 | M84: 7 | AX84: =SUM($C84:$AW84) -> 60 | AY84: =COUNTA(C84:AV84) -> 3 | AZ84: =IF($AY84<=6,SUM($C84:$AV84),SUMPRODUCT(LARGE($C84:$AV84,{1,2,3,4,5,6}))) -> 60 | BA84: =IF(AND($AY84>=6,AZ84=AZ85),"Manual Calc Needed","") ->  | BB84: =IFERROR(SUMPRODUCT(LARGE($C84:$AV84,{1,2,3,4})), "") ->  | BC84: =IFERROR(SUMPRODUCT(LARGE($C84:$AV84,{1,2,3,4,5,6,7})), "") ->  | BD84: =IFERROR(SUMPRODUCT(LARGE($C84:$AV84,{1,2,3,4,5,6,7,8})), "") -> 
B85: UTK | C85: 32 | F85: 32 | J85: =22+3+12+11 -> 48 | L85: 46 | O85: 23 | AX85: =SUM($C85:$AW85) -> 181 | AY85: =COUNTA(C85:AV85) -> 5 | AZ85: =IF($AY85<=6,SUM($C85:$AV85),SUMPRODUCT(LARGE($C85:$AV85,{1,2,3,4,5,6}))) -> 181 | BA85: =IF(AND($AY85>=6,AZ85=AZ86),"Manual Calc Needed","") ->  | BB85: =IFERROR(SUMPRODUCT(LARGE($C85:$AV85,{1,2,3,4})), "") -> 158 | BC85: =IFERROR(SUMPRODUCT(LARGE($C85:$AV85,{1,2,3,4,5,6,7})), "") ->  | BD85: =IFERROR(SUMPRODUCT(LARGE($C85:$AV85,{1,2,3,4,5,6,7,8})), "") -> 
B86: UU | F86: 80 | J86: =25+16+17+7 -> 65 | L86: 95 | O86: 70 | AX86: =SUM($C86:$AW86) -> 310 | AY86: =COUNTA(C86:AV86) -> 4 | AZ86: =IF($AY86<=6,SUM($C86:$AV86),SUMPRODUCT(LARGE($C86:$AV86,{1,2,3,4,5,6}))) -> 310 | BA86: =IF(AND($AY86>=6,AZ86=AZ87),"Manual Calc Needed","") ->  | BB86: =IFERROR(SUMPRODUCT(LARGE($C86:$AV86,{1,2,3,4})), "") -> 310 | BC86: =IFERROR(SUMPRODUCT(LARGE($C86:$AV86,{1,2,3,4,5,6,7})), "") ->  | BD86: =IFERROR(SUMPRODUCT(LARGE($C86:$AV86,{1,2,3,4,5,6,7,8})), "") -> 
B87: UUt | K87: 4 | M87: 4 | AX87: =SUM($C87:$AW87) -> 8 | AY87: =COUNTA(C87:AV87) -> 2 | AZ87: =IF($AY87<=6,SUM($C87:$AV87),SUMPRODUCT(LARGE($C87:$AV87,{1,2,3,4,5,6}))) -> 8 | BA87: =IF(AND($AY87>=6,AZ87=AZ88),"Manual Calc Needed","") ->  | BB87: =IFERROR(SUMPRODUCT(LARGE($C87:$AV87,{1,2,3,4})), "") ->  | BC87: =IFERROR(SUMPRODUCT(LARGE($C87:$AV87,{1,2,3,4,5,6,7})), "") ->  | BD87: =IFERROR(SUMPRODUCT(LARGE($C87:$AV87,{1,2,3,4,5,6,7,8})), "") -> 
B88: UWB | G88: 1 | M88: 3 | AX88: =SUM($C88:$AW88) -> 4 | AY88: =COUNTA(C88:AV88) -> 2 | AZ88: =IF($AY88<=6,SUM($C88:$AV88),SUMPRODUCT(LARGE($C88:$AV88,{1,2,3,4,5,6}))) -> 4 | BA88: =IF(AND($AY88>=6,AZ88=AZ89),"Manual Calc Needed","") ->  | BB88: =IFERROR(SUMPRODUCT(LARGE($C88:$AV88,{1,2,3,4})), "") ->  | BC88: =IFERROR(SUMPRODUCT(LARGE($C88:$AV88,{1,2,3,4,5,6,7})), "") ->  | BD88: =IFERROR(SUMPRODUCT(LARGE($C88:$AV88,{1,2,3,4,5,6,7,8})), "") -> 
B89: VSU | O89: 4 | AX89: =SUM($C89:$AW89) -> 4 | AY89: =COUNTA(C89:AV89) -> 1 | AZ89: =IF($AY89<=6,SUM($C89:$AV89),SUMPRODUCT(LARGE($C89:$AV89,{1,2,3,4,5,6}))) -> 4 | BA89: =IF(AND($AY89>=6,AZ89=AZ90),"Manual Calc Needed","") ->  | BB89: =IFERROR(SUMPRODUCT(LARGE($C89:$AV89,{1,2,3,4})), "") ->  | BC89: =IFERROR(SUMPRODUCT(LARGE($C89:$AV89,{1,2,3,4,5,6,7})), "") ->  | BD89: =IFERROR(SUMPRODUCT(LARGE($C89:$AV89,{1,2,3,4,5,6,7,8})), "") -> 
B90: WCU | C90: 24 | J90: 7 | M90: 8 | O90: 28 | AX90: =SUM($C90:$AW90) -> 67 | AY90: =COUNTA(C90:AV90) -> 4 | AZ90: =IF($AY90<=6,SUM($C90:$AV90),SUMPRODUCT(LARGE($C90:$AV90,{1,2,3,4,5,6}))) -> 67 | BA90: =IF(AND($AY90>=6,AZ90=AZ91),"Manual Calc Needed","") ->  | BB90: =IFERROR(SUMPRODUCT(LARGE($C90:$AV90,{1,2,3,4})), "") -> 67 | BC90: =IFERROR(SUMPRODUCT(LARGE($C90:$AV90,{1,2,3,4,5,6,7})), "") ->  | BD90: =IFERROR(SUMPRODUCT(LARGE($C90:$AV90,{1,2,3,4,5,6,7,8})), "") -> 
B91: WeCU | H91: 18 | AX91: =SUM($C91:$AW91) -> 18 | AY91: =COUNTA(C91:AV91) -> 1 | AZ91: =IF($AY91<=6,SUM($C91:$AV91),SUMPRODUCT(LARGE($C91:$AV91,{1,2,3,4,5,6}))) -> 18 | BA91: =IF(AND($AY91>=6,AZ91=AZ92),"Manual Calc Needed","") ->  | BB91: =IFERROR(SUMPRODUCT(LARGE($C91:$AV91,{1,2,3,4})), "") ->  | BC91: =IFERROR(SUMPRODUCT(LARGE($C91:$AV91,{1,2,3,4,5,6,7})), "") ->  | BD91: =IFERROR(SUMPRODUCT(LARGE($C91:$AV91,{1,2,3,4,5,6,7,8})), "") -> 
B92: WhU | G92: =17+19 -> 36 | M92: 69 | P92: 52 | AX92: =SUM($C92:$AW92) -> 157 | AY92: =COUNTA(C92:AV92) -> 3 | AZ92: =IF($AY92<=6,SUM($C92:$AV92),SUMPRODUCT(LARGE($C92:$AV92,{1,2,3,4,5,6}))) -> 157 | BA92: =IF(AND($AY92>=6,AZ92=AZ93),"Manual Calc Needed","") ->  | BB92: =IFERROR(SUMPRODUCT(LARGE($C92:$AV92,{1,2,3,4})), "") ->  | BC92: =IFERROR(SUMPRODUCT(LARGE($C92:$AV92,{1,2,3,4,5,6,7})), "") ->  | BD92: =IFERROR(SUMPRODUCT(LARGE($C92:$AV92,{1,2,3,4,5,6,7,8})), "") -> 
B93: WSU | M93: 37 | P93: 26 | AX93: =SUM($C93:$AW93) -> 63 | AY93: =COUNTA(C93:AV93) -> 2 | AZ93: =IF($AY93<=6,SUM($C93:$AV93),SUMPRODUCT(LARGE($C93:$AV93,{1,2,3,4,5,6}))) -> 63 | BA93: =IF(AND($AY93>=6,AZ93=AZ94),"Manual Calc Needed","") ->  | BB93: =IFERROR(SUMPRODUCT(LARGE($C93:$AV93,{1,2,3,4})), "") ->  | BC93: =IFERROR(SUMPRODUCT(LARGE($C93:$AV93,{1,2,3,4,5,6,7})), "") ->  | BD93: =IFERROR(SUMPRODUCT(LARGE($C93:$AV93,{1,2,3,4,5,6,7,8})), "") -> 
AX94: =SUM($C94:$AW94) -> 0 | AY94: =COUNTA(C94:AV94) -> 0 | AZ94: =IF($AY94<=6,SUM($C94:$AV94),SUMPRODUCT(LARGE($C94:$AV94,{1,2,3,4,5,6}))) -> 0 | BA94: =IF(AND($AY94>=6,AZ94=AZ95),"Manual Calc Needed","") ->  | BB94: =IFERROR(SUMPRODUCT(LARGE($C94:$AV94,{1,2,3,4})), "") ->  | BC94: =IFERROR(SUMPRODUCT(LARGE($C94:$AV94,{1,2,3,4,5,6,7})), "") ->  | BD94: =IFERROR(SUMPRODUCT(LARGE($C94:$AV94,{1,2,3,4,5,6,7,8})), "") -> 
AX95: 0 | AY95: 0 | AZ95: =IF($AY95<=6,SUM($C95:$AV95),SUMPRODUCT(LARGE($C95:$AV95,{1,2,3,4,5,6}))) -> 0 | BB95: =IFERROR(SUMPRODUCT(LARGE($C95:$AV95,{1,2,3,4})), "") ->  | BC95: =IFERROR(SUMPRODUCT(LARGE($C95:$AV95,{1,2,3,4,5,6,7})), "") ->  | BD95: =IFERROR(SUMPRODUCT(LARGE($C95:$AV95,{1,2,3,4,5,6,7,8})), "") -> 
AX96: 0 | AY96: 0 | AZ96: =IF($AY96<=6,SUM($C96:$AV96),SUMPRODUCT(LARGE($C96:$AV96,{1,2,3,4,5,6}))) -> 0 | BB96: =IFERROR(SUMPRODUCT(LARGE($C96:$AV96,{1,2,3,4})), "") ->  | BC96: =IFERROR(SUMPRODUCT(LARGE($C96:$AV96,{1,2,3,4,5,6,7})), "") ->  | BD96: =IFERROR(SUMPRODUCT(LARGE($C96:$AV96,{1,2,3,4,5,6,7,8})), "") -> 
AX97: 0 | AY97: 0 | AZ97: =IF($AY97<=6,SUM($C97:$AV97),SUMPRODUCT(LARGE($C97:$AV97,{1,2,3,4,5,6}))) -> 0 | BB97: =IFERROR(SUMPRODUCT(LARGE($C97:$AV97,{1,2,3,4})), "") ->  | BC97: =IFERROR(SUMPRODUCT(LARGE($C97:$AV97,{1,2,3,4,5,6,7})), "") ->  | BD97: =IFERROR(SUMPRODUCT(LARGE($C97:$AV97,{1,2,3,4,5,6,7,8})), "") -> 
AX98: 0 | AY98: 0 | AZ98: =IF($AY98<=6,SUM($C98:$AV98),SUMPRODUCT(LARGE($C98:$AV98,{1,2,3,4,5,6}))) -> 0 | BB98: =IFERROR(SUMPRODUCT(LARGE($C98:$AV98,{1,2,3,4})), "") ->  | BC98: =IFERROR(SUMPRODUCT(LARGE($C98:$AV98,{1,2,3,4,5,6,7})), "") ->  | BD98: =IFERROR(SUMPRODUCT(LARGE($C98:$AV98,{1,2,3,4,5,6,7,8})), "") -> 
AX99: 0 | AY99: 0 | AZ99: =IF($AY99<=6,SUM($C99:$AV99),SUMPRODUCT(LARGE($C99:$AV99,{1,2,3,4,5,6}))) -> 0 | BB99: =IFERROR(SUMPRODUCT(LARGE($C99:$AV99,{1,2,3,4})), "") ->  | BC99: =IFERROR(SUMPRODUCT(LARGE($C99:$AV99,{1,2,3,4,5,6,7})), "") ->  | BD99: =IFERROR(SUMPRODUCT(LARGE($C99:$AV99,{1,2,3,4,5,6,7,8})), "") -> 
AX100: 0 | AY100: 0 | AZ100: =IF($AY100<=6,SUM($C100:$AV100),SUMPRODUCT(LARGE($C100:$AV100,{1,2,3,4,5,6}))) -> 0 | BB100: =IFERROR(SUMPRODUCT(LARGE($C100:$AV100,{1,2,3,4})), "") ->  | BC100: =IFERROR(SUMPRODUCT(LARGE($C100:$AV100,{1,2,3,4,5,6,7})), "") ->  | BD100: =IFERROR(SUMPRODUCT(LARGE($C100:$AV100,{1,2,3,4,5,6,7,8})), "") -> 
AX101: 0 | AY101: 0 | AZ101: =IF($AY101<=6,SUM($C101:$AV101),SUMPRODUCT(LARGE($C101:$AV101,{1,2,3,4,5,6}))) -> 0 | BB101: =IFERROR(SUMPRODUCT(LARGE($C101:$AV101,{1,2,3,4})), "") ->  | BC101: =IFERROR(SUMPRODUCT(LARGE($C101:$AV101,{1,2,3,4,5,6,7})), "") ->  | BD101: =IFERROR(SUMPRODUCT(LARGE($C101:$AV101,{1,2,3,4,5,6,7,8})), "") -> 
AX102: 0 | AY102: 0 | AZ102: =IF($AY102<=6,SUM($C102:$AV102),SUMPRODUCT(LARGE($C102:$AV102,{1,2,3,4,5,6}))) -> 0 | BB102: =IFERROR(SUMPRODUCT(LARGE($C102:$AV102,{1,2,3,4})), "") ->  | BC102: =IFERROR(SUMPRODUCT(LARGE($C102:$AV102,{1,2,3,4,5,6,7})), "") ->  | BD102: =IFERROR(SUMPRODUCT(LARGE($C102:$AV102,{1,2,3,4,5,6,7,8})), "") -> 
AX103: 0 | AY103: 0 | AZ103: =IF($AY103<=6,SUM($C103:$AV103),SUMPRODUCT(LARGE($C103:$AV103,{1,2,3,4,5,6}))) -> 0 | BB103: =IFERROR(SUMPRODUCT(LARGE($C103:$AV103,{1,2,3,4})), "") ->  | BC103: =IFERROR(SUMPRODUCT(LARGE($C103:$AV103,{1,2,3,4,5,6,7})), "") ->  | BD103: =IFERROR(SUMPRODUCT(LARGE($C103:$AV103,{1,2,3,4,5,6,7,8})), "") -> 
AX104: 0 | AY104: 0 | AZ104: =IF($AY104<=6,SUM($C104:$AV104),SUMPRODUCT(LARGE($C104:$AV104,{1,2,3,4,5,6}))) -> 0 | BB104: =IFERROR(SUMPRODUCT(LARGE($C104:$AV104,{1,2,3,4})), "") ->  | BC104: =IFERROR(SUMPRODUCT(LARGE($C104:$AV104,{1,2,3,4,5,6,7})), "") ->  | BD104: =IFERROR(SUMPRODUCT(LARGE($C104:$AV104,{1,2,3,4,5,6,7,8})), "") -> 
AX105: 0 | AY105: 0 | AZ105: =IF($AY105<=6,SUM($C105:$AV105),SUMPRODUCT(LARGE($C105:$AV105,{1,2,3,4,5,6}))) -> 0 | BB105: =IFERROR(SUMPRODUCT(LARGE($C105:$AV105,{1,2,3,4})), "") ->  | BC105: =IFERROR(SUMPRODUCT(LARGE($C105:$AV105,{1,2,3,4,5,6,7})), "") ->  | BD105: =IFERROR(SUMPRODUCT(LARGE($C105:$AV105,{1,2,3,4,5,6,7,8})), "") -> 
AX106: 0 | AY106: 0 | AZ106: =IF($AY106<=6,SUM($C106:$AV106),SUMPRODUCT(LARGE($C106:$AV106,{1,2,3,4,5,6}))) -> 0 | BB106: =IFERROR(SUMPRODUCT(LARGE($C106:$AV106,{1,2,3,4})), "") ->  | BC106: =IFERROR(SUMPRODUCT(LARGE($C106:$AV106,{1,2,3,4,5,6,7})), "") ->  | BD106: =IFERROR(SUMPRODUCT(LARGE($C106:$AV106,{1,2,3,4,5,6,7,8})), "") -> 
AX107: 0 | AY107: 0 | AZ107: =IF($AY107<=6,SUM($C107:$AV107),SUMPRODUCT(LARGE($C107:$AV107,{1,2,3,4,5,6}))) -> 0 | BB107: =IFERROR(SUMPRODUCT(LARGE($C107:$AV107,{1,2,3,4})), "") ->  | BC107: =IFERROR(SUMPRODUCT(LARGE($C107:$AV107,{1,2,3,4,5,6,7})), "") ->  | BD107: =IFERROR(SUMPRODUCT(LARGE($C107:$AV107,{1,2,3,4,5,6,7,8})), "") -> 
AX108: 0 | AY108: 0 | AZ108: =IF($AY108<=6,SUM($C108:$AV108),SUMPRODUCT(LARGE($C108:$AV108,{1,2,3,4,5,6}))) -> 0 | BB108: =IFERROR(SUMPRODUCT(LARGE($C108:$AV108,{1,2,3,4})), "") ->  | BC108: =IFERROR(SUMPRODUCT(LARGE($C108:$AV108,{1,2,3,4,5,6,7})), "") ->  | BD108: =IFERROR(SUMPRODUCT(LARGE($C108:$AV108,{1,2,3,4,5,6,7,8})), "") -> 
AX109: 0 | AY109: 0 | AZ109: =IF($AY109<=6,SUM($C109:$AV109),SUMPRODUCT(LARGE($C109:$AV109,{1,2,3,4,5,6}))) -> 0 | BB109: =IFERROR(SUMPRODUCT(LARGE($C109:$AV109,{1,2,3,4})), "") ->  | BC109: =IFERROR(SUMPRODUCT(LARGE($C109:$AV109,{1,2,3,4,5,6,7})), "") ->  | BD109: =IFERROR(SUMPRODUCT(LARGE($C109:$AV109,{1,2,3,4,5,6,7,8})), "") -> 
AX110: 0 | AY110: 0 | AZ110: =IF($AY110<=6,SUM($C110:$AV110),SUMPRODUCT(LARGE($C110:$AV110,{1,2,3,4,5,6}))) -> 0 | BB110: =IFERROR(SUMPRODUCT(LARGE($C110:$AV110,{1,2,3,4})), "") ->  | BC110: =IFERROR(SUMPRODUCT(LARGE($C110:$AV110,{1,2,3,4,5,6,7})), "") ->  | BD110: =IFERROR(SUMPRODUCT(LARGE($C110:$AV110,{1,2,3,4,5,6,7,8})), "") -> 
AX111: 0 | AY111: 0 | AZ111: =IF($AY111<=6,SUM($C111:$AV111),SUMPRODUCT(LARGE($C111:$AV111,{1,2,3,4,5,6}))) -> 0 | BB111: =IFERROR(SUMPRODUCT(LARGE($C111:$AV111,{1,2,3,4})), "") ->  | BC111: =IFERROR(SUMPRODUCT(LARGE($C111:$AV111,{1,2,3,4,5,6,7})), "") ->  | BD111: =IFERROR(SUMPRODUCT(LARGE($C111:$AV111,{1,2,3,4,5,6,7,8})), "") -> 
AX112: 0 | AY112: 0 | AZ112: =IF($AY112<=6,SUM($C112:$AV112),SUMPRODUCT(LARGE($C112:$AV112,{1,2,3,4,5,6}))) -> 0 | BB112: =IFERROR(SUMPRODUCT(LARGE($C112:$AV112,{1,2,3,4})), "") ->  | BC112: =IFERROR(SUMPRODUCT(LARGE($C112:$AV112,{1,2,3,4,5,6,7})), "") ->  | BD112: =IFERROR(SUMPRODUCT(LARGE($C112:$AV112,{1,2,3,4,5,6,7,8})), "") -> 
AX113: 0 | AY113: 0 | AZ113: =IF($AY113<=6,SUM($C113:$AV113),SUMPRODUCT(LARGE($C113:$AV113,{1,2,3,4,5,6}))) -> 0 | BB113: =IFERROR(SUMPRODUCT(LARGE($C113:$AV113,{1,2,3,4})), "") ->  | BC113: =IFERROR(SUMPRODUCT(LARGE($C113:$AV113,{1,2,3,4,5,6,7})), "") ->  | BD113: =IFERROR(SUMPRODUCT(LARGE($C113:$AV113,{1,2,3,4,5,6,7,8})), "") -> 
AX114: 0 | AY114: 0 | AZ114: =IF($AY114<=6,SUM($C114:$AV114),SUMPRODUCT(LARGE($C114:$AV114,{1,2,3,4,5,6}))) -> 0 | BB114: =IFERROR(SUMPRODUCT(LARGE($C114:$AV114,{1,2,3,4})), "") ->  | BC114: =IFERROR(SUMPRODUCT(LARGE($C114:$AV114,{1,2,3,4,5,6,7})), "") ->  | BD114: =IFERROR(SUMPRODUCT(LARGE($C114:$AV114,{1,2,3,4,5,6,7,8})), "") -> 
AX115: 0 | AY115: 0 | AZ115: =IF($AY115<=6,SUM($C115:$AV115),SUMPRODUCT(LARGE($C115:$AV115,{1,2,3,4,5,6}))) -> 0 | BB115: =IFERROR(SUMPRODUCT(LARGE($C115:$AV115,{1,2,3,4})), "") ->  | BC115: =IFERROR(SUMPRODUCT(LARGE($C115:$AV115,{1,2,3,4,5,6,7})), "") ->  | BD115: =IFERROR(SUMPRODUCT(LARGE($C115:$AV115,{1,2,3,4,5,6,7,8})), "") -> 
AX116: 0 | AY116: 0 | AZ116: =IF($AY116<=6,SUM($C116:$AV116),SUMPRODUCT(LARGE($C116:$AV116,{1,2,3,4,5,6}))) -> 0 | BB116: =IFERROR(SUMPRODUCT(LARGE($C116:$AV116,{1,2,3,4})), "") ->  | BC116: =IFERROR(SUMPRODUCT(LARGE($C116:$AV116,{1,2,3,4,5,6,7})), "") ->  | BD116: =IFERROR(SUMPRODUCT(LARGE($C116:$AV116,{1,2,3,4,5,6,7,8})), "") -> 
AX117: 0 | AY117: 0 | AZ117: =IF($AY117<=6,SUM($C117:$AV117),SUMPRODUCT(LARGE($C117:$AV117,{1,2,3,4,5,6}))) -> 0 | BB117: =IFERROR(SUMPRODUCT(LARGE($C117:$AV117,{1,2,3,4})), "") ->  | BC117: =IFERROR(SUMPRODUCT(LARGE($C117:$AV117,{1,2,3,4,5,6,7})), "") ->  | BD117: =IFERROR(SUMPRODUCT(LARGE($C117:$AV117,{1,2,3,4,5,6,7,8})), "") -> 
AX118: 0 | AY118: 0 | AZ118: =IF($AY118<=6,SUM($C118:$AV118),SUMPRODUCT(LARGE($C118:$AV118,{1,2,3,4,5,6}))) -> 0 | BB118: =IFERROR(SUMPRODUCT(LARGE($C118:$AV118,{1,2,3,4})), "") ->  | BC118: =IFERROR(SUMPRODUCT(LARGE($C118:$AV118,{1,2,3,4,5,6,7})), "") ->  | BD118: =IFERROR(SUMPRODUCT(LARGE($C118:$AV118,{1,2,3,4,5,6,7,8})), "") -> 
AX119: 0 | AY119: 0 | AZ119: =IF($AY119<=6,SUM($C119:$AV119),SUMPRODUCT(LARGE($C119:$AV119,{1,2,3,4,5,6}))) -> 0 | BB119: =IFERROR(SUMPRODUCT(LARGE($C119:$AV119,{1,2,3,4})), "") ->  | BC119: =IFERROR(SUMPRODUCT(LARGE($C119:$AV119,{1,2,3,4,5,6,7})), "") ->  | BD119: =IFERROR(SUMPRODUCT(LARGE($C119:$AV119,{1,2,3,4,5,6,7,8})), "") -> 
AX120: 0 | AY120: 0 | AZ120: =IF($AY120<=6,SUM($C120:$AV120),SUMPRODUCT(LARGE($C120:$AV120,{1,2,3,4,5,6}))) -> 0 | BB120: =IFERROR(SUMPRODUCT(LARGE($C120:$AV120,{1,2,3,4})), "") ->  | BC120: =IFERROR(SUMPRODUCT(LARGE($C120:$AV120,{1,2,3,4,5,6,7})), "") ->  | BD120: =IFERROR(SUMPRODUCT(LARGE($C120:$AV120,{1,2,3,4,5,6,7,8})), "") -> 
AX121: 0 | AY121: 0 | AZ121: =IF($AY121<=6,SUM($C121:$AV121),SUMPRODUCT(LARGE($C121:$AV121,{1,2,3,4,5,6}))) -> 0 | BB121: =IFERROR(SUMPRODUCT(LARGE($C121:$AV121,{1,2,3,4})), "") ->  | BC121: =IFERROR(SUMPRODUCT(LARGE($C121:$AV121,{1,2,3,4,5,6,7})), "") ->  | BD121: =IFERROR(SUMPRODUCT(LARGE($C121:$AV121,{1,2,3,4,5,6,7,8})), "") -> 
AX122: 0 | AY122: 0 | AZ122: =IF($AY122<=6,SUM($C122:$AV122),SUMPRODUCT(LARGE($C122:$AV122,{1,2,3,4,5,6}))) -> 0 | BB122: =IFERROR(SUMPRODUCT(LARGE($C122:$AV122,{1,2,3,4})), "") ->  | BC122: =IFERROR(SUMPRODUCT(LARGE($C122:$AV122,{1,2,3,4,5,6,7})), "") ->  | BD122: =IFERROR(SUMPRODUCT(LARGE($C122:$AV122,{1,2,3,4,5,6,7,8})), "") -> 
AX123: 0 | AY123: 0 | AZ123: =IF($AY123<=6,SUM($C123:$AV123),SUMPRODUCT(LARGE($C123:$AV123,{1,2,3,4,5,6}))) -> 0 | BB123: =IFERROR(SUMPRODUCT(LARGE($C123:$AV123,{1,2,3,4})), "") ->  | BC123: =IFERROR(SUMPRODUCT(LARGE($C123:$AV123,{1,2,3,4,5,6,7})), "") ->  | BD123: =IFERROR(SUMPRODUCT(LARGE($C123:$AV123,{1,2,3,4,5,6,7,8})), "") -> 
AX124: 0 | AY124: 0 | AZ124: =IF($AY124<=6,SUM($C124:$AV124),SUMPRODUCT(LARGE($C124:$AV124,{1,2,3,4,5,6}))) -> 0 | BB124: =IFERROR(SUMPRODUCT(LARGE($C124:$AV124,{1,2,3,4})), "") ->  | BC124: =IFERROR(SUMPRODUCT(LARGE($C124:$AV124,{1,2,3,4,5,6,7})), "") ->  | BD124: =IFERROR(SUMPRODUCT(LARGE($C124:$AV124,{1,2,3,4,5,6,7,8})), "") -> 
AX125: 0 | AY125: 0 | AZ125: =IF($AY125<=6,SUM($C125:$AV125),SUMPRODUCT(LARGE($C125:$AV125,{1,2,3,4,5,6}))) -> 0 | BB125: =IFERROR(SUMPRODUCT(LARGE($C125:$AV125,{1,2,3,4})), "") ->  | BC125: =IFERROR(SUMPRODUCT(LARGE($C125:$AV125,{1,2,3,4,5,6,7})), "") ->  | BD125: =IFERROR(SUMPRODUCT(LARGE($C125:$AV125,{1,2,3,4,5,6,7,8})), "") -> 
AX126: 0 | AY126: 0 | AZ126: =IF($AY126<=6,SUM($C126:$AV126),SUMPRODUCT(LARGE($C126:$AV126,{1,2,3,4,5,6}))) -> 0 | BB126: =IFERROR(SUMPRODUCT(LARGE($C126:$AV126,{1,2,3,4})), "") ->  | BC126: =IFERROR(SUMPRODUCT(LARGE($C126:$AV126,{1,2,3,4,5,6,7})), "") ->  | BD126: =IFERROR(SUMPRODUCT(LARGE($C126:$AV126,{1,2,3,4,5,6,7,8})), "") -> 
AX127: 0 | AY127: 0 | AZ127: =IF($AY127<=6,SUM($C127:$AV127),SUMPRODUCT(LARGE($C127:$AV127,{1,2,3,4,5,6}))) -> 0 | BB127: =IFERROR(SUMPRODUCT(LARGE($C127:$AV127,{1,2,3,4})), "") ->  | BC127: =IFERROR(SUMPRODUCT(LARGE($C127:$AV127,{1,2,3,4,5,6,7})), "") ->  | BD127: =IFERROR(SUMPRODUCT(LARGE($C127:$AV127,{1,2,3,4,5,6,7,8})), "") -> 
AX128: 0 | AY128: 0 | AZ128: =IF($AY128<=6,SUM($C128:$AV128),SUMPRODUCT(LARGE($C128:$AV128,{1,2,3,4,5,6}))) -> 0 | BB128: =IFERROR(SUMPRODUCT(LARGE($C128:$AV128,{1,2,3,4})), "") ->  | BC128: =IFERROR(SUMPRODUCT(LARGE($C128:$AV128,{1,2,3,4,5,6,7})), "") ->  | BD128: =IFERROR(SUMPRODUCT(LARGE($C128:$AV128,{1,2,3,4,5,6,7,8})), "") -> 
AX129: 0 | AY129: 0 | AZ129: =IF($AY129<=6,SUM($C129:$AV129),SUMPRODUCT(LARGE($C129:$AV129,{1,2,3,4,5,6}))) -> 0 | BB129: =IFERROR(SUMPRODUCT(LARGE($C129:$AV129,{1,2,3,4})), "") ->  | BC129: =IFERROR(SUMPRODUCT(LARGE($C129:$AV129,{1,2,3,4,5,6,7})), "") ->  | BD129: =IFERROR(SUMPRODUCT(LARGE($C129:$AV129,{1,2,3,4,5,6,7,8})), "") -> 
AX130: 0 | AY130: 0 | AZ130: =IF($AY130<=6,SUM($C130:$AV130),SUMPRODUCT(LARGE($C130:$AV130,{1,2,3,4,5,6}))) -> 0 | BB130: =IFERROR(SUMPRODUCT(LARGE($C130:$AV130,{1,2,3,4})), "") ->  | BC130: =IFERROR(SUMPRODUCT(LARGE($C130:$AV130,{1,2,3,4,5,6,7})), "") ->  | BD130: =IFERROR(SUMPRODUCT(LARGE($C130:$AV130,{1,2,3,4,5,6,7,8})), "") -> 
AX131: =SUM($C131:$AW131) -> 0 | AY131: =COUNTA(C131:AV131) -> 0 | AZ131: =IF($AY131<=6,SUM($C131:$AV131),SUMPRODUCT(LARGE($C131:$AV131,{1,2,3,4,5,6}))) -> 0 | BA131: =IF(AND($AY131>=6,AZ131=AZ132),"Manual Calc Needed","") ->  | BB131: =IFERROR(SUMPRODUCT(LARGE($C131:$AV131,{1,2,3,4})), "") ->  | BC131: =IFERROR(SUMPRODUCT(LARGE($C131:$AV131,{1,2,3,4,5,6,7})), "") ->  | BD131: =IFERROR(SUMPRODUCT(LARGE($C131:$AV131,{1,2,3,4,5,6,7,8})), "") -> 
AX132: 0 | AY132: 0 | AZ132: =IF($AY132<=6,SUM($C132:$AV132),SUMPRODUCT(LARGE($C132:$AV132,{1,2,3,4,5,6}))) -> 0 | BB132: =IFERROR(SUMPRODUCT(LARGE($C132:$AV132,{1,2,3,4})), "") ->  | BC132: =IFERROR(SUMPRODUCT(LARGE($C132:$AV132,{1,2,3,4,5,6,7})), "") ->  | BD132: =IFERROR(SUMPRODUCT(LARGE($C132:$AV132,{1,2,3,4,5,6,7,8})), "") -> 
AX133: 0 | AY133: 0 | AZ133: =IF($AY133<=6,SUM($C133:$AV133),SUMPRODUCT(LARGE($C133:$AV133,{1,2,3,4,5,6}))) -> 0 | BB133: =IFERROR(SUMPRODUCT(LARGE($C133:$AV133,{1,2,3,4})), "") ->  | BC133: =IFERROR(SUMPRODUCT(LARGE($C133:$AV133,{1,2,3,4,5,6,7})), "") ->  | BD133: =IFERROR(SUMPRODUCT(LARGE($C133:$AV133,{1,2,3,4,5,6,7,8})), "") -> 
AX134: 0 | AY134: 0 | AZ134: =IF($AY134<=6,SUM($C134:$AV134),SUMPRODUCT(LARGE($C134:$AV134,{1,2,3,4,5,6}))) -> 0 | BB134: =IFERROR(SUMPRODUCT(LARGE($C134:$AV134,{1,2,3,4})), "") ->  | BC134: =IFERROR(SUMPRODUCT(LARGE($C134:$AV134,{1,2,3,4,5,6,7})), "") ->  | BD134: =IFERROR(SUMPRODUCT(LARGE($C134:$AV134,{1,2,3,4,5,6,7,8})), "") -> 
AX135: 0 | AY135: 0 | AZ135: =IF($AY135<=6,SUM($C135:$AV135),SUMPRODUCT(LARGE($C135:$AV135,{1,2,3,4,5,6}))) -> 0 | BB135: =IFERROR(SUMPRODUCT(LARGE($C135:$AV135,{1,2,3,4})), "") ->  | BC135: =IFERROR(SUMPRODUCT(LARGE($C135:$AV135,{1,2,3,4,5,6,7})), "") ->  | BD135: =IFERROR(SUMPRODUCT(LARGE($C135:$AV135,{1,2,3,4,5,6,7,8})), "") -> 
AX136: 0 | AY136: 0 | AZ136: =IF($AY136<=6,SUM($C136:$AV136),SUMPRODUCT(LARGE($C136:$AV136,{1,2,3,4,5,6}))) -> 0 | BB136: =IFERROR(SUMPRODUCT(LARGE($C136:$AV136,{1,2,3,4})), "") ->  | BC136: =IFERROR(SUMPRODUCT(LARGE($C136:$AV136,{1,2,3,4,5,6,7})), "") ->  | BD136: =IFERROR(SUMPRODUCT(LARGE($C136:$AV136,{1,2,3,4,5,6,7,8})), "") -> 
AX137: 0 | AY137: 0 | AZ137: =IF($AY137<=6,SUM($C137:$AV137),SUMPRODUCT(LARGE($C137:$AV137,{1,2,3,4,5,6}))) -> 0 | BB137: =IFERROR(SUMPRODUCT(LARGE($C137:$AV137,{1,2,3,4})), "") ->  | BC137: =IFERROR(SUMPRODUCT(LARGE($C137:$AV137,{1,2,3,4,5,6,7})), "") ->  | BD137: =IFERROR(SUMPRODUCT(LARGE($C137:$AV137,{1,2,3,4,5,6,7,8})), "") -> 
AX138: 0 | AY138: 0 | AZ138: =IF($AY138<=6,SUM($C138:$AV138),SUMPRODUCT(LARGE($C138:$AV138,{1,2,3,4,5,6}))) -> 0 | BB138: =IFERROR(SUMPRODUCT(LARGE($C138:$AV138,{1,2,3,4})), "") ->  | BC138: =IFERROR(SUMPRODUCT(LARGE($C138:$AV138,{1,2,3,4,5,6,7})), "") ->  | BD138: =IFERROR(SUMPRODUCT(LARGE($C138:$AV138,{1,2,3,4,5,6,7,8})), "") -> 
AX139: 0 | AY139: 0 | AZ139: =IF($AY139<=6,SUM($C139:$AV139),SUMPRODUCT(LARGE($C139:$AV139,{1,2,3,4,5,6}))) -> 0 | BB139: =IFERROR(SUMPRODUCT(LARGE($C139:$AV139,{1,2,3,4})), "") ->  | BC139: =IFERROR(SUMPRODUCT(LARGE($C139:$AV139,{1,2,3,4,5,6,7})), "") ->  | BD139: =IFERROR(SUMPRODUCT(LARGE($C139:$AV139,{1,2,3,4,5,6,7,8})), "") -> 
AX140: 0 | AY140: 0 | AZ140: =IF($AY140<=6,SUM($C140:$AV140),SUMPRODUCT(LARGE($C140:$AV140,{1,2,3,4,5,6}))) -> 0 | BB140: =IFERROR(SUMPRODUCT(LARGE($C140:$AV140,{1,2,3,4})), "") ->  | BC140: =IFERROR(SUMPRODUCT(LARGE($C140:$AV140,{1,2,3,4,5,6,7})), "") ->  | BD140: =IFERROR(SUMPRODUCT(LARGE($C140:$AV140,{1,2,3,4,5,6,7,8})), "") -> 
AX141: 0 | AY141: 0 | AZ141: =IF($AY141<=6,SUM($C141:$AV141),SUMPRODUCT(LARGE($C141:$AV141,{1,2,3,4,5,6}))) -> 0 | BB141: =IFERROR(SUMPRODUCT(LARGE($C141:$AV141,{1,2,3,4})), "") ->  | BC141: =IFERROR(SUMPRODUCT(LARGE($C141:$AV141,{1,2,3,4,5,6,7})), "") ->  | BD141: =IFERROR(SUMPRODUCT(LARGE($C141:$AV141,{1,2,3,4,5,6,7,8})), "") -> 
AX142: 0 | AY142: 0 | AZ142: =IF($AY142<=6,SUM($C142:$AV142),SUMPRODUCT(LARGE($C142:$AV142,{1,2,3,4,5,6}))) -> 0 | BB142: =IFERROR(SUMPRODUCT(LARGE($C142:$AV142,{1,2,3,4})), "") ->  | BC142: =IFERROR(SUMPRODUCT(LARGE($C142:$AV142,{1,2,3,4,5,6,7})), "") ->  | BD142: =IFERROR(SUMPRODUCT(LARGE($C142:$AV142,{1,2,3,4,5,6,7,8})), "") -> 
AX143: 0 | AY143: 0 | AZ143: =IF($AY143<=6,SUM($C143:$AV143),SUMPRODUCT(LARGE($C143:$AV143,{1,2,3,4,5,6}))) -> 0 | BB143: =IFERROR(SUMPRODUCT(LARGE($C143:$AV143,{1,2,3,4})), "") ->  | BC143: =IFERROR(SUMPRODUCT(LARGE($C143:$AV143,{1,2,3,4,5,6,7})), "") ->  | BD143: =IFERROR(SUMPRODUCT(LARGE($C143:$AV143,{1,2,3,4,5,6,7,8})), "") -> 
AX144: 0 | AY144: 0 | AZ144: =IF($AY144<=6,SUM($C144:$AV144),SUMPRODUCT(LARGE($C144:$AV144,{1,2,3,4,5,6}))) -> 0 | BB144: =IFERROR(SUMPRODUCT(LARGE($C144:$AV144,{1,2,3,4})), "") ->  | BC144: =IFERROR(SUMPRODUCT(LARGE($C144:$AV144,{1,2,3,4,5,6,7})), "") ->  | BD144: =IFERROR(SUMPRODUCT(LARGE($C144:$AV144,{1,2,3,4,5,6,7,8})), "") -> 
AX145: 0 | AY145: 0 | AZ145: =IF($AY145<=6,SUM($C145:$AV145),SUMPRODUCT(LARGE($C145:$AV145,{1,2,3,4,5,6}))) -> 0 | BB145: =IFERROR(SUMPRODUCT(LARGE($C145:$AV145,{1,2,3,4})), "") ->  | BC145: =IFERROR(SUMPRODUCT(LARGE($C145:$AV145,{1,2,3,4,5,6,7})), "") ->  | BD145: =IFERROR(SUMPRODUCT(LARGE($C145:$AV145,{1,2,3,4,5,6,7,8})), "") -> 
AX146: 0 | AY146: 0 | AZ146: =IF($AY146<=6,SUM($C146:$AV146),SUMPRODUCT(LARGE($C146:$AV146,{1,2,3,4,5,6}))) -> 0 | BB146: =IFERROR(SUMPRODUCT(LARGE($C146:$AV146,{1,2,3,4})), "") ->  | BC146: =IFERROR(SUMPRODUCT(LARGE($C146:$AV146,{1,2,3,4,5,6,7})), "") ->  | BD146: =IFERROR(SUMPRODUCT(LARGE($C146:$AV146,{1,2,3,4,5,6,7,8})), "") -> 
AX147: 0 | AY147: 0 | AZ147: =IF($AY147<=6,SUM($C147:$AV147),SUMPRODUCT(LARGE($C147:$AV147,{1,2,3,4,5,6}))) -> 0 | BB147: =IFERROR(SUMPRODUCT(LARGE($C147:$AV147,{1,2,3,4})), "") ->  | BC147: =IFERROR(SUMPRODUCT(LARGE($C147:$AV147,{1,2,3,4,5,6,7})), "") ->  | BD147: =IFERROR(SUMPRODUCT(LARGE($C147:$AV147,{1,2,3,4,5,6,7,8})), "") -> 
AX148: 0 | AY148: 0 | AZ148: =IF($AY148<=6,SUM($C148:$AV148),SUMPRODUCT(LARGE($C148:$AV148,{1,2,3,4,5,6}))) -> 0 | BB148: =IFERROR(SUMPRODUCT(LARGE($C148:$AV148,{1,2,3,4})), "") ->  | BC148: =IFERROR(SUMPRODUCT(LARGE($C148:$AV148,{1,2,3,4,5,6,7})), "") ->  | BD148: =IFERROR(SUMPRODUCT(LARGE($C148:$AV148,{1,2,3,4,5,6,7,8})), "") -> 
AX149: 0 | AY149: 0 | AZ149: =IF($AY149<=6,SUM($C149:$AV149),SUMPRODUCT(LARGE($C149:$AV149,{1,2,3,4,5,6}))) -> 0 | BB149: =IFERROR(SUMPRODUCT(LARGE($C149:$AV149,{1,2,3,4})), "") ->  | BC149: =IFERROR(SUMPRODUCT(LARGE($C149:$AV149,{1,2,3,4,5,6,7})), "") ->  | BD149: =IFERROR(SUMPRODUCT(LARGE($C149:$AV149,{1,2,3,4,5,6,7,8})), "") -> 
AX150: 0 | AY150: 0 | AZ150: =IF($AY150<=6,SUM($C150:$AV150),SUMPRODUCT(LARGE($C150:$AV150,{1,2,3,4,5,6}))) -> 0 | BB150: =IFERROR(SUMPRODUCT(LARGE($C150:$AV150,{1,2,3,4})), "") ->  | BC150: =IFERROR(SUMPRODUCT(LARGE($C150:$AV150,{1,2,3,4,5,6,7})), "") ->  | BD150: =IFERROR(SUMPRODUCT(LARGE($C150:$AV150,{1,2,3,4,5,6,7,8})), "") -> 
AX151: 0 | AY151: 0 | AZ151: =IF($AY151<=6,SUM($C151:$AV151),SUMPRODUCT(LARGE($C151:$AV151,{1,2,3,4,5,6}))) -> 0 | BB151: =IFERROR(SUMPRODUCT(LARGE($C151:$AV151,{1,2,3,4})), "") ->  | BC151: =IFERROR(SUMPRODUCT(LARGE($C151:$AV151,{1,2,3,4,5,6,7})), "") ->  | BD151: =IFERROR(SUMPRODUCT(LARGE($C151:$AV151,{1,2,3,4,5,6,7,8})), "") -> 
AX152: 0 | AY152: 0 | AZ152: =IF($AY152<=6,SUM($C152:$AV152),SUMPRODUCT(LARGE($C152:$AV152,{1,2,3,4,5,6}))) -> 0 | BB152: =IFERROR(SUMPRODUCT(LARGE($C152:$AV152,{1,2,3,4})), "") ->  | BC152: =IFERROR(SUMPRODUCT(LARGE($C152:$AV152,{1,2,3,4,5,6,7})), "") ->  | BD152: =IFERROR(SUMPRODUCT(LARGE($C152:$AV152,{1,2,3,4,5,6,7,8})), "") -> 
AX153: 0 | AY153: 0 | AZ153: =IF($AY153<=6,SUM($C153:$AV153),SUMPRODUCT(LARGE($C153:$AV153,{1,2,3,4,5,6}))) -> 0 | BB153: =IFERROR(SUMPRODUCT(LARGE($C153:$AV153,{1,2,3,4})), "") ->  | BC153: =IFERROR(SUMPRODUCT(LARGE($C153:$AV153,{1,2,3,4,5,6,7})), "") ->  | BD153: =IFERROR(SUMPRODUCT(LARGE($C153:$AV153,{1,2,3,4,5,6,7,8})), "") -> 
AX154: 0 | AY154: 0 | AZ154: =IF($AY154<=6,SUM($C154:$AV154),SUMPRODUCT(LARGE($C154:$AV154,{1,2,3,4,5,6}))) -> 0 | BB154: =IFERROR(SUMPRODUCT(LARGE($C154:$AV154,{1,2,3,4})), "") ->  | BC154: =IFERROR(SUMPRODUCT(LARGE($C154:$AV154,{1,2,3,4,5,6,7})), "") ->  | BD154: =IFERROR(SUMPRODUCT(LARGE($C154:$AV154,{1,2,3,4,5,6,7,8})), "") -> 
AX155: 0 | AY155: 0 | AZ155: =IF($AY155<=6,SUM($C155:$AV155),SUMPRODUCT(LARGE($C155:$AV155,{1,2,3,4,5,6}))) -> 0 | BB155: =IFERROR(SUMPRODUCT(LARGE($C155:$AV155,{1,2,3,4})), "") ->  | BC155: =IFERROR(SUMPRODUCT(LARGE($C155:$AV155,{1,2,3,4,5,6,7})), "") ->  | BD155: =IFERROR(SUMPRODUCT(LARGE($C155:$AV155,{1,2,3,4,5,6,7,8})), "") -> 
AX156: 0 | AY156: 0 | AZ156: =IF($AY156<=6,SUM($C156:$AV156),SUMPRODUCT(LARGE($C156:$AV156,{1,2,3,4,5,6}))) -> 0 | BB156: =IFERROR(SUMPRODUCT(LARGE($C156:$AV156,{1,2,3,4})), "") ->  | BC156: =IFERROR(SUMPRODUCT(LARGE($C156:$AV156,{1,2,3,4,5,6,7})), "") ->  | BD156: =IFERROR(SUMPRODUCT(LARGE($C156:$AV156,{1,2,3,4,5,6,7,8})), "") -> 
AX157: 0 | AY157: 0 | AZ157: =IF($AY157<=6,SUM($C157:$AV157),SUMPRODUCT(LARGE($C157:$AV157,{1,2,3,4,5,6}))) -> 0 | BB157: =IFERROR(SUMPRODUCT(LARGE($C157:$AV157,{1,2,3,4})), "") ->  | BC157: =IFERROR(SUMPRODUCT(LARGE($C157:$AV157,{1,2,3,4,5,6,7})), "") ->  | BD157: =IFERROR(SUMPRODUCT(LARGE($C157:$AV157,{1,2,3,4,5,6,7,8})), "") -> 
AX158: 0 | AY158: 0 | AZ158: =IF($AY158<=6,SUM($C158:$AV158),SUMPRODUCT(LARGE($C158:$AV158,{1,2,3,4,5,6}))) -> 0 | BB158: =IFERROR(SUMPRODUCT(LARGE($C158:$AV158,{1,2,3,4})), "") ->  | BC158: =IFERROR(SUMPRODUCT(LARGE($C158:$AV158,{1,2,3,4,5,6,7})), "") ->  | BD158: =IFERROR(SUMPRODUCT(LARGE($C158:$AV158,{1,2,3,4,5,6,7,8})), "") -> 
AX159: 0 | AY159: 0 | AZ159: =IF($AY159<=6,SUM($C159:$AV159),SUMPRODUCT(LARGE($C159:$AV159,{1,2,3,4,5,6}))) -> 0 | BB159: =IFERROR(SUMPRODUCT(LARGE($C159:$AV159,{1,2,3,4})), "") ->  | BC159: =IFERROR(SUMPRODUCT(LARGE($C159:$AV159,{1,2,3,4,5,6,7})), "") ->  | BD159: =IFERROR(SUMPRODUCT(LARGE($C159:$AV159,{1,2,3,4,5,6,7,8})), "") -> 
AX160: 0 | AY160: 0 | AZ160: =IF($AY160<=6,SUM($C160:$AV160),SUMPRODUCT(LARGE($C160:$AV160,{1,2,3,4,5,6}))) -> 0 | BB160: =IFERROR(SUMPRODUCT(LARGE($C160:$AV160,{1,2,3,4})), "") ->  | BC160: =IFERROR(SUMPRODUCT(LARGE($C160:$AV160,{1,2,3,4,5,6,7})), "") ->  | BD160: =IFERROR(SUMPRODUCT(LARGE($C160:$AV160,{1,2,3,4,5,6,7,8})), "") -> 
AX161: 0 | AY161: 0 | AZ161: =IF($AY161<=6,SUM($C161:$AV161),SUMPRODUCT(LARGE($C161:$AV161,{1,2,3,4,5,6}))) -> 0 | BB161: =IFERROR(SUMPRODUCT(LARGE($C161:$AV161,{1,2,3,4})), "") ->  | BC161: =IFERROR(SUMPRODUCT(LARGE($C161:$AV161,{1,2,3,4,5,6,7})), "") ->  | BD161: =IFERROR(SUMPRODUCT(LARGE($C161:$AV161,{1,2,3,4,5,6,7,8})), "") -> 
AX162: 0 | AY162: 0 | AZ162: =IF($AY162<=6,SUM($C162:$AV162),SUMPRODUCT(LARGE($C162:$AV162,{1,2,3,4,5,6}))) -> 0 | BB162: =IFERROR(SUMPRODUCT(LARGE($C162:$AV162,{1,2,3,4})), "") ->  | BC162: =IFERROR(SUMPRODUCT(LARGE($C162:$AV162,{1,2,3,4,5,6,7})), "") ->  | BD162: =IFERROR(SUMPRODUCT(LARGE($C162:$AV162,{1,2,3,4,5,6,7,8})), "") -> 
AX163: 0 | AY163: 0 | AZ163: =IF($AY163<=6,SUM($C163:$AV163),SUMPRODUCT(LARGE($C163:$AV163,{1,2,3,4,5,6}))) -> 0 | BB163: =IFERROR(SUMPRODUCT(LARGE($C163:$AV163,{1,2,3,4})), "") ->  | BC163: =IFERROR(SUMPRODUCT(LARGE($C163:$AV163,{1,2,3,4,5,6,7})), "") ->  | BD163: =IFERROR(SUMPRODUCT(LARGE($C163:$AV163,{1,2,3,4,5,6,7,8})), "") -> 
AX164: 0 | AY164: 0 | AZ164: =IF($AY164<=6,SUM($C164:$AV164),SUMPRODUCT(LARGE($C164:$AV164,{1,2,3,4,5,6}))) -> 0 | BB164: =IFERROR(SUMPRODUCT(LARGE($C164:$AV164,{1,2,3,4})), "") ->  | BC164: =IFERROR(SUMPRODUCT(LARGE($C164:$AV164,{1,2,3,4,5,6,7})), "") ->  | BD164: =IFERROR(SUMPRODUCT(LARGE($C164:$AV164,{1,2,3,4,5,6,7,8})), "") -> 
AX165: 0 | AY165: 0 | AZ165: =IF($AY165<=6,SUM($C165:$AV165),SUMPRODUCT(LARGE($C165:$AV165,{1,2,3,4,5,6}))) -> 0 | BB165: =IFERROR(SUMPRODUCT(LARGE($C165:$AV165,{1,2,3,4})), "") ->  | BC165: =IFERROR(SUMPRODUCT(LARGE($C165:$AV165,{1,2,3,4,5,6,7})), "") ->  | BD165: =IFERROR(SUMPRODUCT(LARGE($C165:$AV165,{1,2,3,4,5,6,7,8})), "") -> 
AX166: 0 | AY166: 0 | AZ166: =IF($AY166<=6,SUM($C166:$AV166),SUMPRODUCT(LARGE($C166:$AV166,{1,2,3,4,5,6}))) -> 0 | BB166: =IFERROR(SUMPRODUCT(LARGE($C166:$AV166,{1,2,3,4})), "") ->  | BC166: =IFERROR(SUMPRODUCT(LARGE($C166:$AV166,{1,2,3,4,5,6,7})), "") ->  | BD166: =IFERROR(SUMPRODUCT(LARGE($C166:$AV166,{1,2,3,4,5,6,7,8})), "") -> 
AX167: 0 | AY167: 0 | AZ167: =IF($AY167<=6,SUM($C167:$AV167),SUMPRODUCT(LARGE($C167:$AV167,{1,2,3,4,5,6}))) -> 0 | BB167: =IFERROR(SUMPRODUCT(LARGE($C167:$AV167,{1,2,3,4})), "") ->  | BC167: =IFERROR(SUMPRODUCT(LARGE($C167:$AV167,{1,2,3,4,5,6,7})), "") ->  | BD167: =IFERROR(SUMPRODUCT(LARGE($C167:$AV167,{1,2,3,4,5,6,7,8})), "") -> 
AX168: 0 | AY168: 0 | AZ168: =IF($AY168<=6,SUM($C168:$AV168),SUMPRODUCT(LARGE($C168:$AV168,{1,2,3,4,5,6}))) -> 0 | BB168: =IFERROR(SUMPRODUCT(LARGE($C168:$AV168,{1,2,3,4})), "") ->  | BC168: =IFERROR(SUMPRODUCT(LARGE($C168:$AV168,{1,2,3,4,5,6,7})), "") ->  | BD168: =IFERROR(SUMPRODUCT(LARGE($C168:$AV168,{1,2,3,4,5,6,7,8})), "") -> 
AX169: 0 | AY169: 0 | AZ169: =IF($AY169<=6,SUM($C169:$AV169),SUMPRODUCT(LARGE($C169:$AV169,{1,2,3,4,5,6}))) -> 0 | BB169: =IFERROR(SUMPRODUCT(LARGE($C169:$AV169,{1,2,3,4})), "") ->  | BC169: =IFERROR(SUMPRODUCT(LARGE($C169:$AV169,{1,2,3,4,5,6,7})), "") ->  | BD169: =IFERROR(SUMPRODUCT(LARGE($C169:$AV169,{1,2,3,4,5,6,7,8})), "") -> 
AX170: 0 | AY170: 0 | AZ170: =IF($AY170<=6,SUM($C170:$AV170),SUMPRODUCT(LARGE($C170:$AV170,{1,2,3,4,5,6}))) -> 0 | BB170: =IFERROR(SUMPRODUCT(LARGE($C170:$AV170,{1,2,3,4})), "") ->  | BC170: =IFERROR(SUMPRODUCT(LARGE($C170:$AV170,{1,2,3,4,5,6,7})), "") ->  | BD170: =IFERROR(SUMPRODUCT(LARGE($C170:$AV170,{1,2,3,4,5,6,7,8})), "") -> 
AX171: 0 | AY171: 0 | AZ171: =IF($AY171<=6,SUM($C171:$AV171),SUMPRODUCT(LARGE($C171:$AV171,{1,2,3,4,5,6}))) -> 0 | BB171: =IFERROR(SUMPRODUCT(LARGE($C171:$AV171,{1,2,3,4})), "") ->  | BC171: =IFERROR(SUMPRODUCT(LARGE($C171:$AV171,{1,2,3,4,5,6,7})), "") ->  | BD171: =IFERROR(SUMPRODUCT(LARGE($C171:$AV171,{1,2,3,4,5,6,7,8})), "") -> 
AX172: 0 | AY172: 0 | AZ172: =IF($AY172<=6,SUM($C172:$AV172),SUMPRODUCT(LARGE($C172:$AV172,{1,2,3,4,5,6}))) -> 0 | BB172: =IFERROR(SUMPRODUCT(LARGE($C172:$AV172,{1,2,3,4})), "") ->  | BC172: =IFERROR(SUMPRODUCT(LARGE($C172:$AV172,{1,2,3,4,5,6,7})), "") ->  | BD172: =IFERROR(SUMPRODUCT(LARGE($C172:$AV172,{1,2,3,4,5,6,7,8})), "") -> 
AX173: 0 | AY173: 0 | AZ173: =IF($AY173<=6,SUM($C173:$AV173),SUMPRODUCT(LARGE($C173:$AV173,{1,2,3,4,5,6}))) -> 0 | BB173: =IFERROR(SUMPRODUCT(LARGE($C173:$AV173,{1,2,3,4})), "") ->  | BC173: =IFERROR(SUMPRODUCT(LARGE($C173:$AV173,{1,2,3,4,5,6,7})), "") ->  | BD173: =IFERROR(SUMPRODUCT(LARGE($C173:$AV173,{1,2,3,4,5,6,7,8})), "") -> 
AX174: 0 | AY174: 0 | AZ174: =IF($AY174<=6,SUM($C174:$AV174),SUMPRODUCT(LARGE($C174:$AV174,{1,2,3,4,5,6}))) -> 0 | BB174: =IFERROR(SUMPRODUCT(LARGE($C174:$AV174,{1,2,3,4})), "") ->  | BC174: =IFERROR(SUMPRODUCT(LARGE($C174:$AV174,{1,2,3,4,5,6,7})), "") ->  | BD174: =IFERROR(SUMPRODUCT(LARGE($C174:$AV174,{1,2,3,4,5,6,7,8})), "") -> 
AX175: 0 | AY175: 0 | AZ175: =IF($AY175<=6,SUM($C175:$AV175),SUMPRODUCT(LARGE($C175:$AV175,{1,2,3,4,5,6}))) -> 0 | BB175: =IFERROR(SUMPRODUCT(LARGE($C175:$AV175,{1,2,3,4})), "") ->  | BC175: =IFERROR(SUMPRODUCT(LARGE($C175:$AV175,{1,2,3,4,5,6,7})), "") ->  | BD175: =IFERROR(SUMPRODUCT(LARGE($C175:$AV175,{1,2,3,4,5,6,7,8})), "") -> 
AX176: 0 | AY176: 0 | AZ176: =IF($AY176<=6,SUM($C176:$AV176),SUMPRODUCT(LARGE($C176:$AV176,{1,2,3,4,5,6}))) -> 0 | BB176: =IFERROR(SUMPRODUCT(LARGE($C176:$AV176,{1,2,3,4})), "") ->  | BC176: =IFERROR(SUMPRODUCT(LARGE($C176:$AV176,{1,2,3,4,5,6,7})), "") ->  | BD176: =IFERROR(SUMPRODUCT(LARGE($C176:$AV176,{1,2,3,4,5,6,7,8})), "") -> 
AX177: 0 | AY177: 0 | AZ177: =IF($AY177<=6,SUM($C177:$AV177),SUMPRODUCT(LARGE($C177:$AV177,{1,2,3,4,5,6}))) -> 0 | BB177: =IFERROR(SUMPRODUCT(LARGE($C177:$AV177,{1,2,3,4})), "") ->  | BC177: =IFERROR(SUMPRODUCT(LARGE($C177:$AV177,{1,2,3,4,5,6,7})), "") ->  | BD177: =IFERROR(SUMPRODUCT(LARGE($C177:$AV177,{1,2,3,4,5,6,7,8})), "") -> 
AX178: 0 | AY178: 0 | AZ178: =IF($AY178<=6,SUM($C178:$AV178),SUMPRODUCT(LARGE($C178:$AV178,{1,2,3,4,5,6}))) -> 0 | BB178: =IFERROR(SUMPRODUCT(LARGE($C178:$AV178,{1,2,3,4})), "") ->  | BC178: =IFERROR(SUMPRODUCT(LARGE($C178:$AV178,{1,2,3,4,5,6,7})), "") ->  | BD178: =IFERROR(SUMPRODUCT(LARGE($C178:$AV178,{1,2,3,4,5,6,7,8})), "") -> 
AX179: 0 | AY179: 0 | AZ179: =IF($AY179<=6,SUM($C179:$AV179),SUMPRODUCT(LARGE($C179:$AV179,{1,2,3,4,5,6}))) -> 0 | BB179: =IFERROR(SUMPRODUCT(LARGE($C179:$AV179,{1,2,3,4})), "") ->  | BC179: =IFERROR(SUMPRODUCT(LARGE($C179:$AV179,{1,2,3,4,5,6,7})), "") ->  | BD179: =IFERROR(SUMPRODUCT(LARGE($C179:$AV179,{1,2,3,4,5,6,7,8})), "") -> 
AX180: 0 | AY180: 0 | AZ180: =IF($AY180<=6,SUM($C180:$AV180),SUMPRODUCT(LARGE($C180:$AV180,{1,2,3,4,5,6}))) -> 0 | BB180: =IFERROR(SUMPRODUCT(LARGE($C180:$AV180,{1,2,3,4})), "") ->  | BC180: =IFERROR(SUMPRODUCT(LARGE($C180:$AV180,{1,2,3,4,5,6,7})), "") ->  | BD180: =IFERROR(SUMPRODUCT(LARGE($C180:$AV180,{1,2,3,4,5,6,7,8})), "") -> 
AX181: 0 | AY181: 0 | AZ181: =IF($AY181<=6,SUM($C181:$AV181),SUMPRODUCT(LARGE($C181:$AV181,{1,2,3,4,5,6}))) -> 0 | BB181: =IFERROR(SUMPRODUCT(LARGE($C181:$AV181,{1,2,3,4})), "") ->  | BC181: =IFERROR(SUMPRODUCT(LARGE($C181:$AV181,{1,2,3,4,5,6,7})), "") ->  | BD181: =IFERROR(SUMPRODUCT(LARGE($C181:$AV181,{1,2,3,4,5,6,7,8})), "") -> 
AX182: 0 | AY182: 0 | AZ182: =IF($AY182<=6,SUM($C182:$AV182),SUMPRODUCT(LARGE($C182:$AV182,{1,2,3,4,5,6}))) -> 0 | BB182: =IFERROR(SUMPRODUCT(LARGE($C182:$AV182,{1,2,3,4})), "") ->  | BC182: =IFERROR(SUMPRODUCT(LARGE($C182:$AV182,{1,2,3,4,5,6,7})), "") ->  | BD182: =IFERROR(SUMPRODUCT(LARGE($C182:$AV182,{1,2,3,4,5,6,7,8})), "") -> 
AX183: 0 | AY183: 0 | AZ183: =IF($AY183<=6,SUM($C183:$AV183),SUMPRODUCT(LARGE($C183:$AV183,{1,2,3,4,5,6}))) -> 0 | BB183: =IFERROR(SUMPRODUCT(LARGE($C183:$AV183,{1,2,3,4})), "") ->  | BC183: =IFERROR(SUMPRODUCT(LARGE($C183:$AV183,{1,2,3,4,5,6,7})), "") ->  | BD183: =IFERROR(SUMPRODUCT(LARGE($C183:$AV183,{1,2,3,4,5,6,7,8})), "") -> 
AX184: 0 | AY184: 0 | AZ184: =IF($AY184<=6,SUM($C184:$AV184),SUMPRODUCT(LARGE($C184:$AV184,{1,2,3,4,5,6}))) -> 0 | BB184: =IFERROR(SUMPRODUCT(LARGE($C184:$AV184,{1,2,3,4})), "") ->  | BC184: =IFERROR(SUMPRODUCT(LARGE($C184:$AV184,{1,2,3,4,5,6,7})), "") ->  | BD184: =IFERROR(SUMPRODUCT(LARGE($C184:$AV184,{1,2,3,4,5,6,7,8})), "") -> 
AX185: 0 | AY185: 0 | AZ185: =IF($AY185<=6,SUM($C185:$AV185),SUMPRODUCT(LARGE($C185:$AV185,{1,2,3,4,5,6}))) -> 0 | BB185: =IFERROR(SUMPRODUCT(LARGE($C185:$AV185,{1,2,3,4})), "") ->  | BC185: =IFERROR(SUMPRODUCT(LARGE($C185:$AV185,{1,2,3,4,5,6,7})), "") ->  | BD185: =IFERROR(SUMPRODUCT(LARGE($C185:$AV185,{1,2,3,4,5,6,7,8})), "") -> 
AX186: 0 | AY186: 0 | AZ186: =IF($AY186<=6,SUM($C186:$AV186),SUMPRODUCT(LARGE($C186:$AV186,{1,2,3,4,5,6}))) -> 0 | BB186: =IFERROR(SUMPRODUCT(LARGE($C186:$AV186,{1,2,3,4})), "") ->  | BC186: =IFERROR(SUMPRODUCT(LARGE($C186:$AV186,{1,2,3,4,5,6,7})), "") ->  | BD186: =IFERROR(SUMPRODUCT(LARGE($C186:$AV186,{1,2,3,4,5,6,7,8})), "") -> 
AX187: 0 | AY187: 0 | AZ187: =IF($AY187<=6,SUM($C187:$AV187),SUMPRODUCT(LARGE($C187:$AV187,{1,2,3,4,5,6}))) -> 0 | BB187: =IFERROR(SUMPRODUCT(LARGE($C187:$AV187,{1,2,3,4})), "") ->  | BC187: =IFERROR(SUMPRODUCT(LARGE($C187:$AV187,{1,2,3,4,5,6,7})), "") ->  | BD187: =IFERROR(SUMPRODUCT(LARGE($C187:$AV187,{1,2,3,4,5,6,7,8})), "") -> 
AX188: 0 | AY188: 0 | AZ188: =IF($AY188<=6,SUM($C188:$AV188),SUMPRODUCT(LARGE($C188:$AV188,{1,2,3,4,5,6}))) -> 0 | BB188: =IFERROR(SUMPRODUCT(LARGE($C188:$AV188,{1,2,3,4})), "") ->  | BC188: =IFERROR(SUMPRODUCT(LARGE($C188:$AV188,{1,2,3,4,5,6,7})), "") ->  | BD188: =IFERROR(SUMPRODUCT(LARGE($C188:$AV188,{1,2,3,4,5,6,7,8})), "") -> 
AX189: 0 | AY189: 0 | AZ189: =IF($AY189<=6,SUM($C189:$AV189),SUMPRODUCT(LARGE($C189:$AV189,{1,2,3,4,5,6}))) -> 0 | BB189: =IFERROR(SUMPRODUCT(LARGE($C189:$AV189,{1,2,3,4})), "") ->  | BC189: =IFERROR(SUMPRODUCT(LARGE($C189:$AV189,{1,2,3,4,5,6,7})), "") ->  | BD189: =IFERROR(SUMPRODUCT(LARGE($C189:$AV189,{1,2,3,4,5,6,7,8})), "") -> 
AX190: 0 | AY190: 0 | AZ190: =IF($AY190<=6,SUM($C190:$AV190),SUMPRODUCT(LARGE($C190:$AV190,{1,2,3,4,5,6}))) -> 0 | BB190: =IFERROR(SUMPRODUCT(LARGE($C190:$AV190,{1,2,3,4})), "") ->  | BC190: =IFERROR(SUMPRODUCT(LARGE($C190:$AV190,{1,2,3,4,5,6,7})), "") ->  | BD190: =IFERROR(SUMPRODUCT(LARGE($C190:$AV190,{1,2,3,4,5,6,7,8})), "") -> 
AX191: 0 | AY191: 0 | AZ191: =IF($AY191<=6,SUM($C191:$AV191),SUMPRODUCT(LARGE($C191:$AV191,{1,2,3,4,5,6}))) -> 0 | BB191: =IFERROR(SUMPRODUCT(LARGE($C191:$AV191,{1,2,3,4})), "") ->  | BC191: =IFERROR(SUMPRODUCT(LARGE($C191:$AV191,{1,2,3,4,5,6,7})), "") ->  | BD191: =IFERROR(SUMPRODUCT(LARGE($C191:$AV191,{1,2,3,4,5,6,7,8})), "") -> 
AX192: 0 | AY192: 0 | AZ192: =IF($AY192<=6,SUM($C192:$AV192),SUMPRODUCT(LARGE($C192:$AV192,{1,2,3,4,5,6}))) -> 0 | BB192: =IFERROR(SUMPRODUCT(LARGE($C192:$AV192,{1,2,3,4})), "") ->  | BC192: =IFERROR(SUMPRODUCT(LARGE($C192:$AV192,{1,2,3,4,5,6,7})), "") ->  | BD192: =IFERROR(SUMPRODUCT(LARGE($C192:$AV192,{1,2,3,4,5,6,7,8})), "") -> 
AX193: 0 | AY193: 0 | AZ193: =IF($AY193<=6,SUM($C193:$AV193),SUMPRODUCT(LARGE($C193:$AV193,{1,2,3,4,5,6}))) -> 0 | BB193: =IFERROR(SUMPRODUCT(LARGE($C193:$AV193,{1,2,3,4})), "") ->  | BC193: =IFERROR(SUMPRODUCT(LARGE($C193:$AV193,{1,2,3,4,5,6,7})), "") ->  | BD193: =IFERROR(SUMPRODUCT(LARGE($C193:$AV193,{1,2,3,4,5,6,7,8})), "") -> 
AX194: 0 | AY194: 0 | AZ194: =IF($AY194<=6,SUM($C194:$AV194),SUMPRODUCT(LARGE($C194:$AV194,{1,2,3,4,5,6}))) -> 0 | BB194: =IFERROR(SUMPRODUCT(LARGE($C194:$AV194,{1,2,3,4})), "") ->  | BC194: =IFERROR(SUMPRODUCT(LARGE($C194:$AV194,{1,2,3,4,5,6,7})), "") ->  | BD194: =IFERROR(SUMPRODUCT(LARGE($C194:$AV194,{1,2,3,4,5,6,7,8})), "") -> 
AX195: =SUM($C195:$AW195) -> 0 | AY195: =COUNTA(C195:AV195) -> 0 | AZ195: =IF($AY195<=6,SUM($C195:$AV195),SUMPRODUCT(LARGE($C195:$AV195,{1,2,3,4,5,6}))) -> 0 | BA195: =IF(AND($AY195>=6,AZ195=AZ196),"Manual Calc Needed","") ->  | BB195: =IFERROR(SUMPRODUCT(LARGE($C195:$AV195,{1,2,3,4})), "") ->  | BC195: =IFERROR(SUMPRODUCT(LARGE($C195:$AV195,{1,2,3,4,5,6,7})), "") ->  | BD195: =IFERROR(SUMPRODUCT(LARGE($C195:$AV195,{1,2,3,4,5,6,7,8})), "") -> 
AX196: 0 | AY196: 0 | AZ196: =IF($AY196<=6,SUM($C196:$AV196),SUMPRODUCT(LARGE($C196:$AV196,{1,2,3,4,5,6}))) -> 0 | BB196: =IFERROR(SUMPRODUCT(LARGE($C196:$AV196,{1,2,3,4})), "") ->  | BC196: =IFERROR(SUMPRODUCT(LARGE($C196:$AV196,{1,2,3,4,5,6,7})), "") ->  | BD196: =IFERROR(SUMPRODUCT(LARGE($C196:$AV196,{1,2,3,4,5,6,7,8})), "") -> 
AX197: 0 | AY197: 0 | AZ197: =IF($AY197<=6,SUM($C197:$AV197),SUMPRODUCT(LARGE($C197:$AV197,{1,2,3,4,5,6}))) -> 0 | BB197: =IFERROR(SUMPRODUCT(LARGE($C197:$AV197,{1,2,3,4})), "") ->  | BC197: =IFERROR(SUMPRODUCT(LARGE($C197:$AV197,{1,2,3,4,5,6,7})), "") ->  | BD197: =IFERROR(SUMPRODUCT(LARGE($C197:$AV197,{1,2,3,4,5,6,7,8})), "") -> 
AX198: 0 | AY198: 0 | AZ198: =IF($AY198<=6,SUM($C198:$AV198),SUMPRODUCT(LARGE($C198:$AV198,{1,2,3,4,5,6}))) -> 0 | BB198: =IFERROR(SUMPRODUCT(LARGE($C198:$AV198,{1,2,3,4})), "") ->  | BC198: =IFERROR(SUMPRODUCT(LARGE($C198:$AV198,{1,2,3,4,5,6,7})), "") ->  | BD198: =IFERROR(SUMPRODUCT(LARGE($C198:$AV198,{1,2,3,4,5,6,7,8})), "") -> 
AX199: 0 | AY199: 0 | AZ199: =IF($AY199<=6,SUM($C199:$AV199),SUMPRODUCT(LARGE($C199:$AV199,{1,2,3,4,5,6}))) -> 0 | BB199: =IFERROR(SUMPRODUCT(LARGE($C199:$AV199,{1,2,3,4})), "") ->  | BC199: =IFERROR(SUMPRODUCT(LARGE($C199:$AV199,{1,2,3,4,5,6,7})), "") ->  | BD199: =IFERROR(SUMPRODUCT(LARGE($C199:$AV199,{1,2,3,4,5,6,7,8})), "") -> 
AX200: 0 | AY200: 0 | AZ200: =IF($AY200<=6,SUM($C200:$AV200),SUMPRODUCT(LARGE($C200:$AV200,{1,2,3,4,5,6}))) -> 0 | BB200: =IFERROR(SUMPRODUCT(LARGE($C200:$AV200,{1,2,3,4})), "") ->  | BC200: =IFERROR(SUMPRODUCT(LARGE($C200:$AV200,{1,2,3,4,5,6,7})), "") ->  | BD200: =IFERROR(SUMPRODUCT(LARGE($C200:$AV200,{1,2,3,4,5,6,7,8})), "") -> 
... 101 more rows

Sheet Scholastic
C1: USM | D1: CSI | E1: NWC | F1: UAM | G1: L&C | H1: BGS1 | I1: BGS2 | J1: MTSU | K1: PLNU | L1: LSUS | M1: LiC | N1: ETBU | O1: ACU | P1: LCC | BA1: Head to Head | BB1: H/L | BC1: 7th Tourn. | BD1: 8th Tourn.
B2: Squad | C2: USM (9/25-26) | D2: CSI (9/24-25) | E2: NW College (9/24-25) | F2: UAM (10/8-10) | G2: L & C / Whitman (10/8-10) | H2: BGSU 1 (10/16-17) | I2: BGSU 2 (10/16-17) | J2: MTSU (10/22-23) | K2: PLNU (10/22-23) | L2: LSUS (11/5-7) | M2: LiC (11/12-14) | N2: ETBU (11/19-20) | O2: ACU (12/3-5) | P2: LCC (12/4-6) | AW2: over 6/2nd host | AX2: Total Points | AY2: Tournament Count | AZ2: Best Top 6 | BA2: 1st Tie Breaker | BB2: 2nd Tie Breaker | BC2: 3rd Tie Breaker | BD2: 4th Tie Breaker
B3: ACU | C3: 65 | F3: 68 | L3: 37 | N3: 42 | O3: 5 | AX3: =SUM($C3:$AW3) -> 217 | AY3: =COUNTA(C3:AV3) -> 5 | AZ3: =IF($AY3<=6,SUM($C3:$AV3),SUMPRODUCT(LARGE($C3:$AV3,{1,2,3,4,5,6}))) -> 217 | BA3: =IF(AND($AY3>=6,AZ3=AZ4),"Manual Calc Needed","") ->  | BB3: =IFERROR(SUMPRODUCT(LARGE($C3:$AV3,{1,2,3,4})), "") -> 212 | BC3: =IFERROR(SUMPRODUCT(LARGE($C3:$AV3,{1,2,3,4,5,6,7})), "") ->  | BD3: =IFERROR(SUMPRODUCT(LARGE($C3:$AV3,{1,2,3,4,5,6,7,8})), "") -> 
B4: ASU | C4: 3 | F4: 21 | J4: 18 | O4: 17 | AX4: 59 | AY4: 4 | AZ4: =IF($AY4<=6,SUM($C4:$AV4),SUMPRODUCT(LARGE($C4:$AV4,{1,2,3,4,5,6}))) -> 59 | BB4: =IFERROR(SUMPRODUCT(LARGE($C4:$AV4,{1,2,3,4})), "") -> 59 | BC4: =IFERROR(SUMPRODUCT(LARGE($C4:$AV4,{1,2,3,4,5,6,7})), "") ->  | BD4: =IFERROR(SUMPRODUCT(LARGE($C4:$AV4,{1,2,3,4,5,6,7,8})), "") -> 
B5: BGSU | G5: 6 | H5: 1 | AX5: 7 | AY5: 2 | AZ5: =IF($AY5<=6,SUM($C5:$AV5),SUMPRODUCT(LARGE($C5:$AV5,{1,2,3,4,5,6}))) -> 7 | BB5: =IFERROR(SUMPRODUCT(LARGE($C5:$AV5,{1,2,3,4})), "") ->  | BC5: =IFERROR(SUMPRODUCT(LARGE($C5:$AV5,{1,2,3,4,5,6,7})), "") ->  | BD5: =IFERROR(SUMPRODUCT(LARGE($C5:$AV5,{1,2,3,4,5,6,7,8})), "") -> 
B6: BHSU | E6: 6 | AX6: 6 | AY6: 1 | AZ6: =IF($AY6<=6,SUM($C6:$AV6),SUMPRODUCT(LARGE($C6:$AV6,{1,2,3,4,5,6}))) -> 6 | BB6: =IFERROR(SUMPRODUCT(LARGE($C6:$AV6,{1,2,3,4})), "") ->  | BC6: =IFERROR(SUMPRODUCT(LARGE($C6:$AV6,{1,2,3,4,5,6,7})), "") ->  | BD6: =IFERROR(SUMPRODUCT(LARGE($C6:$AV6,{1,2,3,4,5,6,7,8})), "") -> 
B7: BPCC | C7: 0 | F7: 2 | J7: 1 | L7: 8 | N7: 15 | O7: 8 | AX7: 34 | AY7: 6 | AZ7: =IF($AY7<=6,SUM($C7:$AV7),SUMPRODUCT(LARGE($C7:$AV7,{1,2,3,4,5,6}))) -> 34 | BB7: =IFERROR(SUMPRODUCT(LARGE($C7:$AV7,{1,2,3,4})), "") -> 33 | BC7: =IFERROR(SUMPRODUCT(LARGE($C7:$AV7,{1,2,3,4,5,6,7})), "") ->  | BD7: =IFERROR(SUMPRODUCT(LARGE($C7:$AV7,{1,2,3,4,5,6,7,8})), "") -> 
B8: BSU | D8: 13 | G8: =13+35 -> 48 | M8: 27 | AX8: 88 | AY8: 3 | AZ8: =IF($AY8<=6,SUM($C8:$AV8),SUMPRODUCT(LARGE($C8:$AV8,{1,2,3,4,5,6}))) -> 88 | BB8: =IFERROR(SUMPRODUCT(LARGE($C8:$AV8,{1,2,3,4})), "") ->  | BC8: =IFERROR(SUMPRODUCT(LARGE($C8:$AV8,{1,2,3,4,5,6,7})), "") ->  | BD8: =IFERROR(SUMPRODUCT(LARGE($C8:$AV8,{1,2,3,4,5,6,7,8})), "") -> 
B9: BU | C9: 10 | F9: 3 | J9: =6+2+19 -> 27 | AX9: 40 | AY9: 3 | AZ9: =IF($AY9<=6,SUM($C9:$AV9),SUMPRODUCT(LARGE($C9:$AV9,{1,2,3,4,5,6}))) -> 40 | BB9: =IFERROR(SUMPRODUCT(LARGE($C9:$AV9,{1,2,3,4})), "") ->  | BC9: =IFERROR(SUMPRODUCT(LARGE($C9:$AV9,{1,2,3,4,5,6,7})), "") ->  | BD9: =IFERROR(SUMPRODUCT(LARGE($C9:$AV9,{1,2,3,4,5,6,7,8})), "") -> 
B10: ButU | G10: 8 | AX10: 8 | AY10: 1 | AZ10: =IF($AY10<=6,SUM($C10:$AV10),SUMPRODUCT(LARGE($C10:$AV10,{1,2,3,4,5,6}))) -> 8 | BB10: =IFERROR(SUMPRODUCT(LARGE($C10:$AV10,{1,2,3,4})), "") ->  | BC10: =IFERROR(SUMPRODUCT(LARGE($C10:$AV10,{1,2,3,4,5,6,7})), "") ->  | BD10: =IFERROR(SUMPRODUCT(LARGE($C10:$AV10,{1,2,3,4,5,6,7,8})), "") -> 
B11: CasC | E11: 28 | I11: 17 | AX11: 45 | AY11: 2 | AZ11: =IF($AY11<=6,SUM($C11:$AV11),SUMPRODUCT(LARGE($C11:$AV11,{1,2,3,4,5,6}))) -> 45 | BB11: =IFERROR(SUMPRODUCT(LARGE($C11:$AV11,{1,2,3,4})), "") ->  | BC11: =IFERROR(SUMPRODUCT(LARGE($C11:$AV11,{1,2,3,4,5,6,7})), "") ->  | BD11: =IFERROR(SUMPRODUCT(LARGE($C11:$AV11,{1,2,3,4,5,6,7,8})), "") -> 
B12: CC | K12: 11 | AX12: 11 | AY12: 1 | AZ12: =IF($AY12<=6,SUM($C12:$AV12),SUMPRODUCT(LARGE($C12:$AV12,{1,2,3,4,5,6}))) -> 11 | BB12: =IFERROR(SUMPRODUCT(LARGE($C12:$AV12,{1,2,3,4})), "") ->  | BC12: =IFERROR(SUMPRODUCT(LARGE($C12:$AV12,{1,2,3,4,5,6,7})), "") ->  | BD12: =IFERROR(SUMPRODUCT(LARGE($C12:$AV12,{1,2,3,4,5,6,7,8})), "") -> 
B13: CCU | E13: 11 | AX13: 11 | AY13: 1 | AZ13: =IF($AY13<=6,SUM($C13:$AV13),SUMPRODUCT(LARGE($C13:$AV13,{1,2,3,4,5,6}))) -> 11 | BB13: =IFERROR(SUMPRODUCT(LARGE($C13:$AV13,{1,2,3,4})), "") ->  | BC13: =IFERROR(SUMPRODUCT(LARGE($C13:$AV13,{1,2,3,4,5,6,7})), "") ->  | BD13: =IFERROR(SUMPRODUCT(LARGE($C13:$AV13,{1,2,3,4,5,6,7,8})), "") -> 
B14: CSI | D14: 28 | G14: 18 | M14: 18 | O14: 36 | AX14: 100 | AY14: 4 | AZ14: =IF($AY14<=6,SUM($C14:$AV14),SUMPRODUCT(LARGE($C14:$AV14,{1,2,3,4,5,6}))) -> 100 | BB14: =IFERROR(SUMPRODUCT(LARGE($C14:$AV14,{1,2,3,4})), "") -> 100 | BC14: =IFERROR(SUMPRODUCT(LARGE($C14:$AV14,{1,2,3,4,5,6,7})), "") ->  | BD14: =IFERROR(SUMPRODUCT(LARGE($C14:$AV14,{1,2,3,4,5,6,7,8})), "") -> 
B15: CSLB | K15: 10 | AX15: 10 | AY15: 1 | AZ15: =IF($AY15<=6,SUM($C15:$AV15),SUMPRODUCT(LARGE($C15:$AV15,{1,2,3,4,5,6}))) -> 10 | BB15: =IFERROR(SUMPRODUCT(LARGE($C15:$AV15,{1,2,3,4})), "") ->  | BC15: =IFERROR(SUMPRODUCT(LARGE($C15:$AV15,{1,2,3,4,5,6,7})), "") ->  | BD15: =IFERROR(SUMPRODUCT(LARGE($C15:$AV15,{1,2,3,4,5,6,7,8})), "") -> 
B16: CUI | K16: 9 | AX16: 9 | AY16: 1 | AZ16: =IF($AY16<=6,SUM($C16:$AV16),SUMPRODUCT(LARGE($C16:$AV16,{1,2,3,4,5,6}))) -> 9 | BB16: =IFERROR(SUMPRODUCT(LARGE($C16:$AV16,{1,2,3,4})), "") ->  | BC16: =IFERROR(SUMPRODUCT(LARGE($C16:$AV16,{1,2,3,4,5,6,7})), "") ->  | BD16: =IFERROR(SUMPRODUCT(LARGE($C16:$AV16,{1,2,3,4,5,6,7,8})), "") -> 
B17: CWI | G17: 30 | M17: 29 | P17: 33 | AX17: 92 | AY17: 3 | AZ17: =IF($AY17<=6,SUM($C17:$AV17),SUMPRODUCT(LARGE($C17:$AV17,{1,2,3,4,5,6}))) -> 92 | BB17: =IFERROR(SUMPRODUCT(LARGE($C17:$AV17,{1,2,3,4})), "") ->  | BC17: =IFERROR(SUMPRODUCT(LARGE($C17:$AV17,{1,2,3,4,5,6,7})), "") ->  | BD17: =IFERROR(SUMPRODUCT(LARGE($C17:$AV17,{1,2,3,4,5,6,7,8})), "") -> 
B18: DBU | C18: 30 | J18: =6+5+5+24 -> 40 | L18: =3+6+9+6+5+13 -> 42 | N18: 45 | AX18: 157 | AY18: 4 | AZ18: =IF($AY18<=6,SUM($C18:$AV18),SUMPRODUCT(LARGE($C18:$AV18,{1,2,3,4,5,6}))) -> 157 | BB18: =IFERROR(SUMPRODUCT(LARGE($C18:$AV18,{1,2,3,4})), "") -> 157 | BC18: =IFERROR(SUMPRODUCT(LARGE($C18:$AV18,{1,2,3,4,5,6,7})), "") ->  | BD18: =IFERROR(SUMPRODUCT(LARGE($C18:$AV18,{1,2,3,4,5,6,7,8})), "") -> 
B19: DU | AX19: 0 | AY19: 0 | AZ19: =IF($AY19<=6,SUM($C19:$AV19),SUMPRODUCT(LARGE($C19:$AV19,{1,2,3,4,5,6}))) -> 0 | BB19: =IFERROR(SUMPRODUCT(LARGE($C19:$AV19,{1,2,3,4})), "") ->  | BC19: =IFERROR(SUMPRODUCT(LARGE($C19:$AV19,{1,2,3,4,5,6,7})), "") ->  | BD19: =IFERROR(SUMPRODUCT(LARGE($C19:$AV19,{1,2,3,4,5,6,7,8})), "") -> 
B20: ECC | K20: 45 | AX20: 45 | AY20: 1 | AZ20: =IF($AY20<=6,SUM($C20:$AV20),SUMPRODUCT(LARGE($C20:$AV20,{1,2,3,4,5,6}))) -> 45 | BB20: =IFERROR(SUMPRODUCT(LARGE($C20:$AV20,{1,2,3,4})), "") ->  | BC20: =IFERROR(SUMPRODUCT(LARGE($C20:$AV20,{1,2,3,4,5,6,7})), "") ->  | BD20: =IFERROR(SUMPRODUCT(LARGE($C20:$AV20,{1,2,3,4,5,6,7,8})), "") -> 
B21: ETBU | C21: 9 | H21: 13 | N21: 8 | AX21: 30 | AY21: 3 | AZ21: =IF($AY21<=6,SUM($C21:$AV21),SUMPRODUCT(LARGE($C21:$AV21,{1,2,3,4,5,6}))) -> 30 | BB21: =IFERROR(SUMPRODUCT(LARGE($C21:$AV21,{1,2,3,4})), "") ->  | BC21: =IFERROR(SUMPRODUCT(LARGE($C21:$AV21,{1,2,3,4,5,6,7})), "") ->  | BD21: =IFERROR(SUMPRODUCT(LARGE($C21:$AV21,{1,2,3,4,5,6,7,8})), "") -> 
B22: FSCJ | H22: 9 | AX22: 9 | AY22: 1 | AZ22: =IF($AY22<=6,SUM($C22:$AV22),SUMPRODUCT(LARGE($C22:$AV22,{1,2,3,4,5,6}))) -> 9 | BB22: =IFERROR(SUMPRODUCT(LARGE($C22:$AV22,{1,2,3,4})), "") ->  | BC22: =IFERROR(SUMPRODUCT(LARGE($C22:$AV22,{1,2,3,4,5,6,7})), "") ->  | BD22: =IFERROR(SUMPRODUCT(LARGE($C22:$AV22,{1,2,3,4,5,6,7,8})), "") -> 
B23: FSU | G23: 6 | AX23: 6 | AY23: 1 | AZ23: =IF($AY23<=6,SUM($C23:$AV23),SUMPRODUCT(LARGE($C23:$AV23,{1,2,3,4,5,6}))) -> 6 | BB23: =IFERROR(SUMPRODUCT(LARGE($C23:$AV23,{1,2,3,4})), "") ->  | BC23: =IFERROR(SUMPRODUCT(LARGE($C23:$AV23,{1,2,3,4,5,6,7})), "") ->  | BD23: =IFERROR(SUMPRODUCT(LARGE($C23:$AV23,{1,2,3,4,5,6,7,8})), "") -> 
B24: GC | K24: 2 | AX24: 2 | AY24: 1 | AZ24: =IF($AY24<=6,SUM($C24:$AV24),SUMPRODUCT(LARGE($C24:$AV24,{1,2,3,4,5,6}))) -> 2 | BB24: =IFERROR(SUMPRODUCT(LARGE($C24:$AV24,{1,2,3,4})), "") ->  | BC24: =IFERROR(SUMPRODUCT(LARGE($C24:$AV24,{1,2,3,4,5,6,7})), "") ->  | BD24: =IFERROR(SUMPRODUCT(LARGE($C24:$AV24,{1,2,3,4,5,6,7,8})), "") -> 
B25: GCC | H25: 11 | AX25: 11 | AY25: 1 | AZ25: =IF($AY25<=6,SUM($C25:$AV25),SUMPRODUCT(LARGE($C25:$AV25,{1,2,3,4,5,6}))) -> 11 | BB25: =IFERROR(SUMPRODUCT(LARGE($C25:$AV25,{1,2,3,4})), "") ->  | BC25: =IFERROR(SUMPRODUCT(LARGE($C25:$AV25,{1,2,3,4,5,6,7})), "") ->  | BD25: =IFERROR(SUMPRODUCT(LARGE($C25:$AV25,{1,2,3,4,5,6,7,8})), "") -> 
B26: GCU | K26: 19 | AX26: 19 | AY26: 1 | AZ26: =IF($AY26<=6,SUM($C26:$AV26),SUMPRODUCT(LARGE($C26:$AV26,{1,2,3,4,5,6}))) -> 19 | BB26: =IFERROR(SUMPRODUCT(LARGE($C26:$AV26,{1,2,3,4})), "") ->  | BC26: =IFERROR(SUMPRODUCT(LARGE($C26:$AV26,{1,2,3,4,5,6,7})), "") ->  | BD26: =IFERROR(SUMPRODUCT(LARGE($C26:$AV26,{1,2,3,4,5,6,7,8})), "") -> 
B27: GTU | G27: 18 | AX27: 18 | AY27: 1 | AZ27: =IF($AY27<=6,SUM($C27:$AV27),SUMPRODUCT(LARGE($C27:$AV27,{1,2,3,4,5,6}))) -> 18 | BB27: =IFERROR(SUMPRODUCT(LARGE($C27:$AV27,{1,2,3,4})), "") ->  | BC27: =IFERROR(SUMPRODUCT(LARGE($C27:$AV27,{1,2,3,4,5,6,7})), "") ->  | BD27: =IFERROR(SUMPRODUCT(LARGE($C27:$AV27,{1,2,3,4,5,6,7,8})), "") -> 
B28: HiC | H28: 1 | I28: 14 | AX28: 15 | AY28: 2 | AZ28: =IF($AY28<=6,SUM($C28:$AV28),SUMPRODUCT(LARGE($C28:$AV28,{1,2,3,4,5,6}))) -> 15 | BB28: =IFERROR(SUMPRODUCT(LARGE($C28:$AV28,{1,2,3,4})), "") ->  | BC28: =IFERROR(SUMPRODUCT(LARGE($C28:$AV28,{1,2,3,4,5,6,7})), "") ->  | BD28: =IFERROR(SUMPRODUCT(LARGE($C28:$AV28,{1,2,3,4,5,6,7,8})), "") -> 
B29: HPU | C29: 33 | N29: 24 | AX29: 57 | AY29: 2 | AZ29: =IF($AY29<=6,SUM($C29:$AV29),SUMPRODUCT(LARGE($C29:$AV29,{1,2,3,4,5,6}))) -> 57 | BB29: =IFERROR(SUMPRODUCT(LARGE($C29:$AV29,{1,2,3,4})), "") ->  | BC29: =IFERROR(SUMPRODUCT(LARGE($C29:$AV29,{1,2,3,4,5,6,7})), "") ->  | BD29: =IFERROR(SUMPRODUCT(LARGE($C29:$AV29,{1,2,3,4,5,6,7,8})), "") -> 
B30: HU | L30: 12 | AX30: 12 | AY30: 1 | AZ30: =IF($AY30<=6,SUM($C30:$AV30),SUMPRODUCT(LARGE($C30:$AV30,{1,2,3,4,5,6}))) -> 12 | BB30: =IFERROR(SUMPRODUCT(LARGE($C30:$AV30,{1,2,3,4})), "") ->  | BC30: =IFERROR(SUMPRODUCT(LARGE($C30:$AV30,{1,2,3,4,5,6,7})), "") ->  | BD30: =IFERROR(SUMPRODUCT(LARGE($C30:$AV30,{1,2,3,4,5,6,7,8})), "") -> 
B31: IC | H31: 4 | I31: 3 | AX31: 7 | AY31: 2 | AZ31: =IF($AY31<=6,SUM($C31:$AV31),SUMPRODUCT(LARGE($C31:$AV31,{1,2,3,4,5,6}))) -> 7 | BB31: =IFERROR(SUMPRODUCT(LARGE($C31:$AV31,{1,2,3,4})), "") ->  | BC31: =IFERROR(SUMPRODUCT(LARGE($C31:$AV31,{1,2,3,4,5,6,7})), "") ->  | BD31: =IFERROR(SUMPRODUCT(LARGE($C31:$AV31,{1,2,3,4,5,6,7,8})), "") -> 
B32: ISU | D32: 24 | G32: 6 | M32: 15 | AX32: 45 | AY32: 3 | AZ32: =IF($AY32<=6,SUM($C32:$AV32),SUMPRODUCT(LARGE($C32:$AV32,{1,2,3,4,5,6}))) -> 45 | BB32: =IFERROR(SUMPRODUCT(LARGE($C32:$AV32,{1,2,3,4})), "") ->  | BC32: =IFERROR(SUMPRODUCT(LARGE($C32:$AV32,{1,2,3,4,5,6,7})), "") ->  | BD32: =IFERROR(SUMPRODUCT(LARGE($C32:$AV32,{1,2,3,4,5,6,7,8})), "") -> 
B33: JSCC | C33: 19 | F33: 16 | O33: 22 | AX33: 57 | AY33: 3 | AZ33: =IF($AY33<=6,SUM($C33:$AV33),SUMPRODUCT(LARGE($C33:$AV33,{1,2,3,4,5,6}))) -> 57 | BB33: =IFERROR(SUMPRODUCT(LARGE($C33:$AV33,{1,2,3,4})), "") ->  | BC33: =IFERROR(SUMPRODUCT(LARGE($C33:$AV33,{1,2,3,4,5,6,7})), "") ->  | BD33: =IFERROR(SUMPRODUCT(LARGE($C33:$AV33,{1,2,3,4,5,6,7,8})), "") -> 
B34: KWU | E34: 23 | AX34: 23 | AY34: 1 | AZ34: =IF($AY34<=6,SUM($C34:$AV34),SUMPRODUCT(LARGE($C34:$AV34,{1,2,3,4,5,6}))) -> 23 | BB34: =IFERROR(SUMPRODUCT(LARGE($C34:$AV34,{1,2,3,4})), "") ->  | BC34: =IFERROR(SUMPRODUCT(LARGE($C34:$AV34,{1,2,3,4,5,6,7})), "") ->  | BD34: =IFERROR(SUMPRODUCT(LARGE($C34:$AV34,{1,2,3,4,5,6,7,8})), "") -> 
B35: L&CC | G35: 23 | M35: 4 | P35: 1 | AX35: =SUM($C35:$AW35) -> 28 | AY35: =COUNTA(C35:AV35) -> 3 | AZ35: =IF($AY35<=6,SUM($C35:$AV35),SUMPRODUCT(LARGE($C35:$AV35,{1,2,3,4,5,6}))) -> 28 | BA35: =IF(AND($AY35>=6,AZ35=AZ36),"Manual Calc Needed","") ->  | BB35: =IFERROR(SUMPRODUCT(LARGE($C35:$AV35,{1,2,3,4})), "") ->  | BC35: =IFERROR(SUMPRODUCT(LARGE($C35:$AV35,{1,2,3,4,5,6,7})), "") ->  | BD35: =IFERROR(SUMPRODUCT(LARGE($C35:$AV35,{1,2,3,4,5,6,7,8})), "") -> 
B36: LC | F36: 15 | N36: 15 | AX36: 30 | AY36: 2 | AZ36: =IF($AY36<=6,SUM($C36:$AV36),SUMPRODUCT(LARGE($C36:$AV36,{1,2,3,4,5,6}))) -> 30 | BB36: =IFERROR(SUMPRODUCT(LARGE($C36:$AV36,{1,2,3,4})), "") ->  | BC36: =IFERROR(SUMPRODUCT(LARGE($C36:$AV36,{1,2,3,4,5,6,7})), "") ->  | BD36: =IFERROR(SUMPRODUCT(LARGE($C36:$AV36,{1,2,3,4,5,6,7,8})), "") -> 
B37: LCC | M37: 6 | P37: 18 | AX37: 24 | AY37: 2 | AZ37: =IF($AY37<=6,SUM($C37:$AV37),SUMPRODUCT(LARGE($C37:$AV37,{1,2,3,4,5,6}))) -> 24 | BB37: =IFERROR(SUMPRODUCT(LARGE($C37:$AV37,{1,2,3,4})), "") ->  | BC37: =IFERROR(SUMPRODUCT(LARGE($C37:$AV37,{1,2,3,4,5,6,7})), "") ->  | BD37: =IFERROR(SUMPRODUCT(LARGE($C37:$AV37,{1,2,3,4,5,6,7,8})), "") -> 
B38: Lee | F38: 10 | L38: 15 | O38: 22 | AX38: 47 | AY38: 3 | AZ38: =IF($AY38<=6,SUM($C38:$AV38),SUMPRODUCT(LARGE($C38:$AV38,{1,2,3,4,5,6}))) -> 47 | BB38: =IFERROR(SUMPRODUCT(LARGE($C38:$AV38,{1,2,3,4})), "") ->  | BC38: =IFERROR(SUMPRODUCT(LARGE($C38:$AV38,{1,2,3,4,5,6,7})), "") ->  | BD38: =IFERROR(SUMPRODUCT(LARGE($C38:$AV38,{1,2,3,4,5,6,7,8})), "") -> 
B39: LSCO | F39: 3 | AX39: 3 | AY39: 1 | AZ39: =IF($AY39<=6,SUM($C39:$AV39),SUMPRODUCT(LARGE($C39:$AV39,{1,2,3,4,5,6}))) -> 3 | BB39: =IFERROR(SUMPRODUCT(LARGE($C39:$AV39,{1,2,3,4})), "") ->  | BC39: =IFERROR(SUMPRODUCT(LARGE($C39:$AV39,{1,2,3,4,5,6,7})), "") ->  | BD39: =IFERROR(SUMPRODUCT(LARGE($C39:$AV39,{1,2,3,4,5,6,7,8})), "") -> 
B40: LSUS | C40: 11 | F40: 10 | J40: =3+14+3 -> 20 | N40: 17 | O40: 3 | AX40: 61 | AY40: 5 | AZ40: =IF($AY40<=6,SUM($C40:$AV40),SUMPRODUCT(LARGE($C40:$AV40,{1,2,3,4,5,6}))) -> 61 | BB40: =IFERROR(SUMPRODUCT(LARGE($C40:$AV40,{1,2,3,4})), "") -> 58 | BC40: =IFERROR(SUMPRODUCT(LARGE($C40:$AV40,{1,2,3,4,5,6,7})), "") ->  | BD40: =IFERROR(SUMPRODUCT(LARGE($C40:$AV40,{1,2,3,4,5,6,7,8})), "") -> 
B41: LTU | C41: 10 | F41: 7 | L41: =3+6+5+3 -> 17 | O41: 11 | AX41: 45 | AY41: 4 | AZ41: =IF($AY41<=6,SUM($C41:$AV41),SUMPRODUCT(LARGE($C41:$AV41,{1,2,3,4,5,6}))) -> 45 | BB41: =IFERROR(SUMPRODUCT(LARGE($C41:$AV41,{1,2,3,4})), "") -> 45 | BC41: =IFERROR(SUMPRODUCT(LARGE($C41:$AV41,{1,2,3,4,5,6,7})), "") ->  | BD41: =IFERROR(SUMPRODUCT(LARGE($C41:$AV41,{1,2,3,4,5,6,7,8})), "") -> 
B42: LU | H42: 1 | I42: 1 | AX42: 2 | AY42: 2 | AZ42: =IF($AY42<=6,SUM($C42:$AV42),SUMPRODUCT(LARGE($C42:$AV42,{1,2,3,4,5,6}))) -> 2 | BB42: =IFERROR(SUMPRODUCT(LARGE($C42:$AV42,{1,2,3,4})), "") ->  | BC42: =IFERROR(SUMPRODUCT(LARGE($C42:$AV42,{1,2,3,4,5,6,7})), "") ->  | BD42: =IFERROR(SUMPRODUCT(LARGE($C42:$AV42,{1,2,3,4,5,6,7,8})), "") -> 
B43: MHCC | G43: 2 | AX43: 2 | AY43: 1 | AZ43: =IF($AY43<=6,SUM($C43:$AV43),SUMPRODUCT(LARGE($C43:$AV43,{1,2,3,4,5,6}))) -> 2 | BB43: =IFERROR(SUMPRODUCT(LARGE($C43:$AV43,{1,2,3,4})), "") ->  | BC43: =IFERROR(SUMPRODUCT(LARGE($C43:$AV43,{1,2,3,4,5,6,7})), "") ->  | BD43: =IFERROR(SUMPRODUCT(LARGE($C43:$AV43,{1,2,3,4,5,6,7,8})), "") -> 
B44: MoC | AX44: 0 | AY44: 0 | AZ44: =IF($AY44<=6,SUM($C44:$AV44),SUMPRODUCT(LARGE($C44:$AV44,{1,2,3,4,5,6}))) -> 0 | BB44: =IFERROR(SUMPRODUCT(LARGE($C44:$AV44,{1,2,3,4})), "") ->  | BC44: =IFERROR(SUMPRODUCT(LARGE($C44:$AV44,{1,2,3,4,5,6,7})), "") ->  | BD44: =IFERROR(SUMPRODUCT(LARGE($C44:$AV44,{1,2,3,4,5,6,7,8})), "") -> 
B45: MSCC | L45: 5 | AX45: 5 | AY45: 1 | AZ45: =IF($AY45<=6,SUM($C45:$AV45),SUMPRODUCT(LARGE($C45:$AV45,{1,2,3,4,5,6}))) -> 5 | BB45: =IFERROR(SUMPRODUCT(LARGE($C45:$AV45,{1,2,3,4})), "") ->  | BC45: =IFERROR(SUMPRODUCT(LARGE($C45:$AV45,{1,2,3,4,5,6,7})), "") ->  | BD45: =IFERROR(SUMPRODUCT(LARGE($C45:$AV45,{1,2,3,4,5,6,7,8})), "") -> 
B46: MslU | H46: 5 | I46: 5 | AX46: 10 | AY46: 2 | AZ46: =IF($AY46<=6,SUM($C46:$AV46),SUMPRODUCT(LARGE($C46:$AV46,{1,2,3,4,5,6}))) -> 10 | BB46: =IFERROR(SUMPRODUCT(LARGE($C46:$AV46,{1,2,3,4})), "") ->  | BC46: =IFERROR(SUMPRODUCT(LARGE($C46:$AV46,{1,2,3,4,5,6,7})), "") ->  | BD46: =IFERROR(SUMPRODUCT(LARGE($C46:$AV46,{1,2,3,4,5,6,7,8})), "") -> 
B47: MSU | C47: 64 | F47: 44 | H47: 11 | I47: 7 | J47: =20+13+16 -> 49 | L47: =3+2+5+5+14+9+9+2+10 -> 59 | N47: 64 | O47: 19 | AX47: 317 | AY47: 8 | AZ47: =IF($AY47<=6,SUM($C47:$AV47),SUMPRODUCT(LARGE($C47:$AV47,{1,2,3,4,5,6}))) -> 299 | BB47: =IFERROR(SUMPRODUCT(LARGE($C47:$AV47,{1,2,3,4})), "") -> 236 | BC47: =IFERROR(SUMPRODUCT(LARGE($C47:$AV47,{1,2,3,4,5,6,7})), "") -> 310 | BD47: =IFERROR(SUMPRODUCT(LARGE($C47:$AV47,{1,2,3,4,5,6,7,8})), "") -> 317
B48: MTSU | C48: 28 | F48: 20 | J48: 17 | L48: 24 | O48: 5 | AX48: 94 | AY48: 5 | AZ48: =IF($AY48<=6,SUM($C48:$AV48),SUMPRODUCT(LARGE($C48:$AV48,{1,2,3,4,5,6}))) -> 94 | BB48: =IFERROR(SUMPRODUCT(LARGE($C48:$AV48,{1,2,3,4})), "") -> 89 | BC48: =IFERROR(SUMPRODUCT(LARGE($C48:$AV48,{1,2,3,4,5,6,7})), "") ->  | BD48: =IFERROR(SUMPRODUCT(LARGE($C48:$AV48,{1,2,3,4,5,6,7,8})), "") -> 
B49: MuSU | I49: 12 | AX49: 12 | AY49: 1 | AZ49: =IF($AY49<=6,SUM($C49:$AV49),SUMPRODUCT(LARGE($C49:$AV49,{1,2,3,4,5,6}))) -> 12 | BB49: =IFERROR(SUMPRODUCT(LARGE($C49:$AV49,{1,2,3,4})), "") ->  | BC49: =IFERROR(SUMPRODUCT(LARGE($C49:$AV49,{1,2,3,4,5,6,7})), "") ->  | BD49: =IFERROR(SUMPRODUCT(LARGE($C49:$AV49,{1,2,3,4,5,6,7,8})), "") -> 
B50: MuU | H50: 11 | AX50: 11 | AY50: 1 | AZ50: =IF($AY50<=6,SUM($C50:$AV50),SUMPRODUCT(LARGE($C50:$AV50,{1,2,3,4,5,6}))) -> 11 | BB50: =IFERROR(SUMPRODUCT(LARGE($C50:$AV50,{1,2,3,4})), "") ->  | BC50: =IFERROR(SUMPRODUCT(LARGE($C50:$AV50,{1,2,3,4,5,6,7})), "") ->  | BD50: =IFERROR(SUMPRODUCT(LARGE($C50:$AV50,{1,2,3,4,5,6,7,8})), "") -> 
B51: MVC | O51: 8 | AX51: 8 | AY51: 1 | AZ51: =IF($AY51<=6,SUM($C51:$AV51),SUMPRODUCT(LARGE($C51:$AV51,{1,2,3,4,5,6}))) -> 8 | BB51: =IFERROR(SUMPRODUCT(LARGE($C51:$AV51,{1,2,3,4})), "") ->  | BC51: =IFERROR(SUMPRODUCT(LARGE($C51:$AV51,{1,2,3,4,5,6,7})), "") ->  | BD51: =IFERROR(SUMPRODUCT(LARGE($C51:$AV51,{1,2,3,4,5,6,7,8})), "") -> 
B52: NNU | D52: 12 | G52: =4+7+6 -> 17 | M52: 3 | AX52: 32 | AY52: 3 | AZ52: =IF($AY52<=6,SUM($C52:$AV52),SUMPRODUCT(LARGE($C52:$AV52,{1,2,3,4,5,6}))) -> 32 | BB52: =IFERROR(SUMPRODUCT(LARGE($C52:$AV52,{1,2,3,4})), "") ->  | BC52: =IFERROR(SUMPRODUCT(LARGE($C52:$AV52,{1,2,3,4,5,6,7})), "") ->  | BD52: =IFERROR(SUMPRODUCT(LARGE($C52:$AV52,{1,2,3,4,5,6,7,8})), "") -> 
B53: NwC | E53: 10 | K53: 10 | AX53: 20 | AY53: 2 | AZ53: =IF($AY53<=6,SUM($C53:$AV53),SUMPRODUCT(LARGE($C53:$AV53,{1,2,3,4,5,6}))) -> 20 | BB53: =IFERROR(SUMPRODUCT(LARGE($C53:$AV53,{1,2,3,4})), "") ->  | BC53: =IFERROR(SUMPRODUCT(LARGE($C53:$AV53,{1,2,3,4,5,6,7})), "") ->  | BD53: =IFERROR(SUMPRODUCT(LARGE($C53:$AV53,{1,2,3,4,5,6,7,8})), "") -> 
B54: NwSU | F54: 13 | L54: 9 | AX54: 22 | AY54: 2 | AZ54: =IF($AY54<=6,SUM($C54:$AV54),SUMPRODUCT(LARGE($C54:$AV54,{1,2,3,4,5,6}))) -> 22 | BB54: =IFERROR(SUMPRODUCT(LARGE($C54:$AV54,{1,2,3,4})), "") ->  | BC54: =IFERROR(SUMPRODUCT(LARGE($C54:$AV54,{1,2,3,4,5,6,7})), "") ->  | BD54: =IFERROR(SUMPRODUCT(LARGE($C54:$AV54,{1,2,3,4,5,6,7,8})), "") -> 
B55: OCC | K55: 15 | AX55: 15 | AY55: 1 | AZ55: =IF($AY55<=6,SUM($C55:$AV55),SUMPRODUCT(LARGE($C55:$AV55,{1,2,3,4,5,6}))) -> 15 | BB55: =IFERROR(SUMPRODUCT(LARGE($C55:$AV55,{1,2,3,4})), "") ->  | BC55: =IFERROR(SUMPRODUCT(LARGE($C55:$AV55,{1,2,3,4,5,6,7})), "") ->  | BD55: =IFERROR(SUMPRODUCT(LARGE($C55:$AV55,{1,2,3,4,5,6,7,8})), "") -> 
B56: OCTC | G56: 15 | AX56: 15 | AY56: 1 | AZ56: =IF($AY56<=6,SUM($C56:$AV56),SUMPRODUCT(LARGE($C56:$AV56,{1,2,3,4,5,6}))) -> 15 | BB56: =IFERROR(SUMPRODUCT(LARGE($C56:$AV56,{1,2,3,4})), "") ->  | BC56: =IFERROR(SUMPRODUCT(LARGE($C56:$AV56,{1,2,3,4,5,6,7})), "") ->  | BD56: =IFERROR(SUMPRODUCT(LARGE($C56:$AV56,{1,2,3,4,5,6,7,8})), "") -> 
B57: OhU | H57: 2 | AX57: 2 | AY57: 1 | AZ57: =IF($AY57<=6,SUM($C57:$AV57),SUMPRODUCT(LARGE($C57:$AV57,{1,2,3,4,5,6}))) -> 2 | BB57: =IFERROR(SUMPRODUCT(LARGE($C57:$AV57,{1,2,3,4})), "") ->  | BC57: =IFERROR(SUMPRODUCT(LARGE($C57:$AV57,{1,2,3,4,5,6,7})), "") ->  | BD57: =IFERROR(SUMPRODUCT(LARGE($C57:$AV57,{1,2,3,4,5,6,7,8})), "") -> 
B58: OKBU | C58: 34 | F58: 34 | J58: =9+15+17 -> 41 | L58: =3+3+6+9+5+2 -> 28 | AX58: 137 | AY58: 4 | AZ58: =IF($AY58<=6,SUM($C58:$AV58),SUMPRODUCT(LARGE($C58:$AV58,{1,2,3,4,5,6}))) -> 137 | BB58: =IFERROR(SUMPRODUCT(LARGE($C58:$AV58,{1,2,3,4})), "") -> 137 | BC58: =IFERROR(SUMPRODUCT(LARGE($C58:$AV58,{1,2,3,4,5,6,7})), "") ->  | BD58: =IFERROR(SUMPRODUCT(LARGE($C58:$AV58,{1,2,3,4,5,6,7,8})), "") -> 
B59: ORU | F59: 3 | AX59: 3 | AY59: 1 | AZ59: =IF($AY59<=6,SUM($C59:$AV59),SUMPRODUCT(LARGE($C59:$AV59,{1,2,3,4,5,6}))) -> 3 | BB59: =IFERROR(SUMPRODUCT(LARGE($C59:$AV59,{1,2,3,4})), "") ->  | BC59: =IFERROR(SUMPRODUCT(LARGE($C59:$AV59,{1,2,3,4,5,6,7})), "") ->  | BD59: =IFERROR(SUMPRODUCT(LARGE($C59:$AV59,{1,2,3,4,5,6,7,8})), "") -> 
B60: OSU | G60: 12 | M60: 13 | P60: 6 | AX60: 31 | AY60: 3 | AZ60: =IF($AY60<=6,SUM($C60:$AV60),SUMPRODUCT(LARGE($C60:$AV60,{1,2,3,4,5,6}))) -> 31 | BB60: =IFERROR(SUMPRODUCT(LARGE($C60:$AV60,{1,2,3,4})), "") ->  | BC60: =IFERROR(SUMPRODUCT(LARGE($C60:$AV60,{1,2,3,4,5,6,7})), "") ->  | BD60: =IFERROR(SUMPRODUCT(LARGE($C60:$AV60,{1,2,3,4,5,6,7,8})), "") -> 
B61: PaU | C61: 6 | H61: 3 | L61: =3+7+1 -> 11 | M61: 2 | AX61: 22 | AY61: 4 | AZ61: =IF($AY61<=6,SUM($C61:$AV61),SUMPRODUCT(LARGE($C61:$AV61,{1,2,3,4,5,6}))) -> 22 | BB61: =IFERROR(SUMPRODUCT(LARGE($C61:$AV61,{1,2,3,4})), "") -> 22 | BC61: =IFERROR(SUMPRODUCT(LARGE($C61:$AV61,{1,2,3,4,5,6,7})), "") ->  | BD61: =IFERROR(SUMPRODUCT(LARGE($C61:$AV61,{1,2,3,4,5,6,7,8})), "") -> 
B62: PC | K62: 2 | AX62: 2 | AY62: 1 | AZ62: =IF($AY62<=6,SUM($C62:$AV62),SUMPRODUCT(LARGE($C62:$AV62,{1,2,3,4,5,6}))) -> 2 | BB62: =IFERROR(SUMPRODUCT(LARGE($C62:$AV62,{1,2,3,4})), "") ->  | BC62: =IFERROR(SUMPRODUCT(LARGE($C62:$AV62,{1,2,3,4,5,6,7})), "") ->  | BD62: =IFERROR(SUMPRODUCT(LARGE($C62:$AV62,{1,2,3,4,5,6,7,8})), "") -> 
B63: PHC | H63: 16 | AX63: 16 | AY63: 1 | AZ63: =IF($AY63<=6,SUM($C63:$AV63),SUMPRODUCT(LARGE($C63:$AV63,{1,2,3,4,5,6}))) -> 16 | BB63: =IFERROR(SUMPRODUCT(LARGE($C63:$AV63,{1,2,3,4})), "") ->  | BC63: =IFERROR(SUMPRODUCT(LARGE($C63:$AV63,{1,2,3,4,5,6,7})), "") ->  | BD63: =IFERROR(SUMPRODUCT(LARGE($C63:$AV63,{1,2,3,4,5,6,7,8})), "") -> 
B64: PLNU | K64: 25 | AX64: 25 | AY64: 1 | AZ64: =IF($AY64<=6,SUM($C64:$AV64),SUMPRODUCT(LARGE($C64:$AV64,{1,2,3,4,5,6}))) -> 25 | BB64: =IFERROR(SUMPRODUCT(LARGE($C64:$AV64,{1,2,3,4})), "") ->  | BC64: =IFERROR(SUMPRODUCT(LARGE($C64:$AV64,{1,2,3,4,5,6,7})), "") ->  | BD64: =IFERROR(SUMPRODUCT(LARGE($C64:$AV64,{1,2,3,4,5,6,7,8})), "") -> 
B65: RHCC | K65: 4 | AX65: 4 | AY65: 1 | AZ65: =IF($AY65<=6,SUM($C65:$AV65),SUMPRODUCT(LARGE($C65:$AV65,{1,2,3,4,5,6}))) -> 4 | BB65: =IFERROR(SUMPRODUCT(LARGE($C65:$AV65,{1,2,3,4})), "") ->  | BC65: =IFERROR(SUMPRODUCT(LARGE($C65:$AV65,{1,2,3,4,5,6,7})), "") ->  | BD65: =IFERROR(SUMPRODUCT(LARGE($C65:$AV65,{1,2,3,4,5,6,7,8})), "") -> 
B66: SMU | C66: 30 | F66: 24 | J66: =18+5+10 -> 33 | L66: 36 | N66: 34 | O66: 17 | AX66: 174 | AY66: 6 | AZ66: =IF($AY66<=6,SUM($C66:$AV66),SUMPRODUCT(LARGE($C66:$AV66,{1,2,3,4,5,6}))) -> 174 | BB66: =IFERROR(SUMPRODUCT(LARGE($C66:$AV66,{1,2,3,4})), "") -> 133 | BC66: =IFERROR(SUMPRODUCT(LARGE($C66:$AV66,{1,2,3,4,5,6,7})), "") ->  | BD66: =IFERROR(SUMPRODUCT(LARGE($C66:$AV66,{1,2,3,4,5,6,7,8})), "") -> 
B67: StAC | H67: 3 | I67: 0 | AX67: =SUM($C67:$AW67) -> 3 | AY67: =COUNTA(C67:AV67) -> 2 | AZ67: =IF($AY67<=6,SUM($C67:$AV67),SUMPRODUCT(LARGE($C67:$AV67,{1,2,3,4,5,6}))) -> 3 | BA67: =IF(AND($AY67>=6,AZ67=AZ68),"Manual Calc Needed","") ->  | BB67: =IFERROR(SUMPRODUCT(LARGE($C67:$AV67,{1,2,3,4})), "") ->  | BC67: =IFERROR(SUMPRODUCT(LARGE($C67:$AV67,{1,2,3,4,5,6,7})), "") ->  | BD67: =IFERROR(SUMPRODUCT(LARGE($C67:$AV67,{1,2,3,4,5,6,7,8})), "") -> 
B68: TaCC | I68: 4 | AX68: 4 | AY68: 1 | AZ68: =IF($AY68<=6,SUM($C68:$AV68),SUMPRODUCT(LARGE($C68:$AV68,{1,2,3,4,5,6}))) -> 4 | BB68: =IFERROR(SUMPRODUCT(LARGE($C68:$AV68,{1,2,3,4})), "") ->  | BC68: =IFERROR(SUMPRODUCT(LARGE($C68:$AV68,{1,2,3,4,5,6,7})), "") ->  | BD68: =IFERROR(SUMPRODUCT(LARGE($C68:$AV68,{1,2,3,4,5,6,7,8})), "") -> 
B69: TnSU | I69: 4 | AX69: 4 | AY69: 1 | AZ69: =IF($AY69<=6,SUM($C69:$AV69),SUMPRODUCT(LARGE($C69:$AV69,{1,2,3,4,5,6}))) -> 4 | BB69: =IFERROR(SUMPRODUCT(LARGE($C69:$AV69,{1,2,3,4})), "") ->  | BC69: =IFERROR(SUMPRODUCT(LARGE($C69:$AV69,{1,2,3,4,5,6,7})), "") ->  | BD69: =IFERROR(SUMPRODUCT(LARGE($C69:$AV69,{1,2,3,4,5,6,7,8})), "") -> 
B70: TSU | G70: 11 | AX70: 11 | AY70: 1 | AZ70: =IF($AY70<=6,SUM($C70:$AV70),SUMPRODUCT(LARGE($C70:$AV70,{1,2,3,4,5,6}))) -> 11 | BB70: =IFERROR(SUMPRODUCT(LARGE($C70:$AV70,{1,2,3,4})), "") ->  | BC70: =IFERROR(SUMPRODUCT(LARGE($C70:$AV70,{1,2,3,4,5,6,7})), "") ->  | BD70: =IFERROR(SUMPRODUCT(LARGE($C70:$AV70,{1,2,3,4,5,6,7,8})), "") -> 
B71: UA | C71: 25 | F71: 27 | L71: 33 | O71: 22 | AX71: 107 | AY71: 4 | AZ71: =IF($AY71<=6,SUM($C71:$AV71),SUMPRODUCT(LARGE($C71:$AV71,{1,2,3,4,5,6}))) -> 107 | BB71: =IFERROR(SUMPRODUCT(LARGE($C71:$AV71,{1,2,3,4})), "") -> 107 | BC71: =IFERROR(SUMPRODUCT(LARGE($C71:$AV71,{1,2,3,4,5,6,7})), "") ->  | BD71: =IFERROR(SUMPRODUCT(LARGE($C71:$AV71,{1,2,3,4,5,6,7,8})), "") -> 
B72: UAM | L72: 4 | AX72: 4 | AY72: 1 | AZ72: =IF($AY72<=6,SUM($C72:$AV72),SUMPRODUCT(LARGE($C72:$AV72,{1,2,3,4,5,6}))) -> 4 | BB72: =IFERROR(SUMPRODUCT(LARGE($C72:$AV72,{1,2,3,4})), "") ->  | BC72: =IFERROR(SUMPRODUCT(LARGE($C72:$AV72,{1,2,3,4,5,6,7})), "") ->  | BD72: =IFERROR(SUMPRODUCT(LARGE($C72:$AV72,{1,2,3,4,5,6,7,8})), "") -> 
B73: Ubama | H73: 2 | AX73: 2 | AY73: 1 | AZ73: =IF($AY73<=6,SUM($C73:$AV73),SUMPRODUCT(LARGE($C73:$AV73,{1,2,3,4,5,6}))) -> 2 | BB73: =IFERROR(SUMPRODUCT(LARGE($C73:$AV73,{1,2,3,4})), "") ->  | BC73: =IFERROR(SUMPRODUCT(LARGE($C73:$AV73,{1,2,3,4,5,6,7})), "") ->  | BD73: =IFERROR(SUMPRODUCT(LARGE($C73:$AV73,{1,2,3,4,5,6,7,8})), "") -> 
B74: UCA | C74: 14 | F74: 16 | L74: 11 | N74: 13 | AX74: 54 | AY74: 4 | AZ74: =IF($AY74<=6,SUM($C74:$AV74),SUMPRODUCT(LARGE($C74:$AV74,{1,2,3,4,5,6}))) -> 54 | BB74: =IFERROR(SUMPRODUCT(LARGE($C74:$AV74,{1,2,3,4})), "") -> 54 | BC74: =IFERROR(SUMPRODUCT(LARGE($C74:$AV74,{1,2,3,4,5,6,7})), "") ->  | BD74: =IFERROR(SUMPRODUCT(LARGE($C74:$AV74,{1,2,3,4,5,6,7,8})), "") -> 
B75: UCF | G75: 21 | H75: 17 | AX75: 38 | AY75: 2 | AZ75: =IF($AY75<=6,SUM($C75:$AV75),SUMPRODUCT(LARGE($C75:$AV75,{1,2,3,4,5,6}))) -> 38 | BB75: =IFERROR(SUMPRODUCT(LARGE($C75:$AV75,{1,2,3,4})), "") ->  | BC75: =IFERROR(SUMPRODUCT(LARGE($C75:$AV75,{1,2,3,4,5,6,7})), "") ->  | BD75: =IFERROR(SUMPRODUCT(LARGE($C75:$AV75,{1,2,3,4,5,6,7,8})), "") -> 
B76: UCSD | K76: 44 | AX76: 44 | AY76: 1 | AZ76: =IF($AY76<=6,SUM($C76:$AV76),SUMPRODUCT(LARGE($C76:$AV76,{1,2,3,4,5,6}))) -> 44 | BB76: =IFERROR(SUMPRODUCT(LARGE($C76:$AV76,{1,2,3,4})), "") ->  | BC76: =IFERROR(SUMPRODUCT(LARGE($C76:$AV76,{1,2,3,4,5,6,7})), "") ->  | BD76: =IFERROR(SUMPRODUCT(LARGE($C76:$AV76,{1,2,3,4,5,6,7,8})), "") -> 
B77: UF | C77: 13 | H77: 15 | AX77: 28 | AY77: 2 | AZ77: =IF($AY77<=6,SUM($C77:$AV77),SUMPRODUCT(LARGE($C77:$AV77,{1,2,3,4,5,6}))) -> 28 | BB77: =IFERROR(SUMPRODUCT(LARGE($C77:$AV77,{1,2,3,4})), "") ->  | BC77: =IFERROR(SUMPRODUCT(LARGE($C77:$AV77,{1,2,3,4,5,6,7})), "") ->  | BD77: =IFERROR(SUMPRODUCT(LARGE($C77:$AV77,{1,2,3,4,5,6,7,8})), "") -> 
B78: UMo | G78: 4 | M78: 1 | AX78: 5 | AY78: 2 | AZ78: =IF($AY78<=6,SUM($C78:$AV78),SUMPRODUCT(LARGE($C78:$AV78,{1,2,3,4,5,6}))) -> 5 | BB78: =IFERROR(SUMPRODUCT(LARGE($C78:$AV78,{1,2,3,4})), "") ->  | BC78: =IFERROR(SUMPRODUCT(LARGE($C78:$AV78,{1,2,3,4,5,6,7})), "") ->  | BD78: =IFERROR(SUMPRODUCT(LARGE($C78:$AV78,{1,2,3,4,5,6,7,8})), "") -> 
B79: UNG | G79: 0 | M79: 1 | AX79: 1 | AY79: 2 | AZ79: =IF($AY79<=6,SUM($C79:$AV79),SUMPRODUCT(LARGE($C79:$AV79,{1,2,3,4,5,6}))) -> 1 | BB79: =IFERROR(SUMPRODUCT(LARGE($C79:$AV79,{1,2,3,4})), "") ->  | BC79: =IFERROR(SUMPRODUCT(LARGE($C79:$AV79,{1,2,3,4,5,6,7})), "") ->  | BD79: =IFERROR(SUMPRODUCT(LARGE($C79:$AV79,{1,2,3,4,5,6,7,8})), "") -> 
B80: UNR | G80: 2 | AX80: 2 | AY80: 1 | AZ80: =IF($AY80<=6,SUM($C80:$AV80),SUMPRODUCT(LARGE($C80:$AV80,{1,2,3,4,5,6}))) -> 2 | BB80: =IFERROR(SUMPRODUCT(LARGE($C80:$AV80,{1,2,3,4})), "") ->  | BC80: =IFERROR(SUMPRODUCT(LARGE($C80:$AV80,{1,2,3,4,5,6,7})), "") ->  | BD80: =IFERROR(SUMPRODUCT(LARGE($C80:$AV80,{1,2,3,4,5,6,7,8})), "") -> 
B81: UNT | C81: 7 | AX81: 7 | AY81: 1 | AZ81: =IF($AY81<=6,SUM($C81:$AV81),SUMPRODUCT(LARGE($C81:$AV81,{1,2,3,4,5,6}))) -> 7 | BB81: =IFERROR(SUMPRODUCT(LARGE($C81:$AV81,{1,2,3,4})), "") ->  | BC81: =IFERROR(SUMPRODUCT(LARGE($C81:$AV81,{1,2,3,4,5,6,7})), "") ->  | BD81: =IFERROR(SUMPRODUCT(LARGE($C81:$AV81,{1,2,3,4,5,6,7,8})), "") -> 
B82: UP | M82: 6 | AX82: 6 | AY82: 1 | AZ82: =IF($AY82<=6,SUM($C82:$AV82),SUMPRODUCT(LARGE($C82:$AV82,{1,2,3,4,5,6}))) -> 6 | BB82: =IFERROR(SUMPRODUCT(LARGE($C82:$AV82,{1,2,3,4})), "") ->  | BC82: =IFERROR(SUMPRODUCT(LARGE($C82:$AV82,{1,2,3,4,5,6,7})), "") ->  | BD82: =IFERROR(SUMPRODUCT(LARGE($C82:$AV82,{1,2,3,4,5,6,7,8})), "") -> 
B83: USM | H83: 14 | I83: 6 | J83: 18 | L83: =3+5+5 -> 13 | AX83: 51 | AY83: 4 | AZ83: =IF($AY83<=6,SUM($C83:$AV83),SUMPRODUCT(LARGE($C83:$AV83,{1,2,3,4,5,6}))) -> 51 | BB83: =IFERROR(SUMPRODUCT(LARGE($C83:$AV83,{1,2,3,4})), "") -> 51 | BC83: =IFERROR(SUMPRODUCT(LARGE($C83:$AV83,{1,2,3,4,5,6,7})), "") ->  | BD83: =IFERROR(SUMPRODUCT(LARGE($C83:$AV83,{1,2,3,4,5,6,7,8})), "") -> 
B84: USU | D84: 23 | G84: 30 | M84: 7 | AX84: 60 | AY84: 3 | AZ84: =IF($AY84<=6,SUM($C84:$AV84),SUMPRODUCT(LARGE($C84:$AV84,{1,2,3,4,5,6}))) -> 60 | BB84: =IFERROR(SUMPRODUCT(LARGE($C84:$AV84,{1,2,3,4})), "") ->  | BC84: =IFERROR(SUMPRODUCT(LARGE($C84:$AV84,{1,2,3,4,5,6,7})), "") ->  | BD84: =IFERROR(SUMPRODUCT(LARGE($C84:$AV84,{1,2,3,4,5,6,7,8})), "") -> 
B85: UTK | C85: 32 | F85: 29 | J85: =22+3+12 -> 37 | L85: 35 | O85: 19 | AX85: 152 | AY85: 5 | AZ85: =IF($AY85<=6,SUM($C85:$AV85),SUMPRODUCT(LARGE($C85:$AV85,{1,2,3,4,5,6}))) -> 152 | BB85: =IFERROR(SUMPRODUCT(LARGE($C85:$AV85,{1,2,3,4})), "") -> 133 | BC85: =IFERROR(SUMPRODUCT(LARGE($C85:$AV85,{1,2,3,4,5,6,7})), "") ->  | BD85: =IFERROR(SUMPRODUCT(LARGE($C85:$AV85,{1,2,3,4,5,6,7,8})), "") -> 
B86: UU | F86: 66 | J86: =25+16+17 -> 58 | L86: 70 | O86: 55 | AX86: 249 | AY86: 4 | AZ86: =IF($AY86<=6,SUM($C86:$AV86),SUMPRODUCT(LARGE($C86:$AV86,{1,2,3,4,5,6}))) -> 249 | BB86: =IFERROR(SUMPRODUCT(LARGE($C86:$AV86,{1,2,3,4})), "") -> 249 | BC86: =IFERROR(SUMPRODUCT(LARGE($C86:$AV86,{1,2,3,4,5,6,7})), "") ->  | BD86: =IFERROR(SUMPRODUCT(LARGE($C86:$AV86,{1,2,3,4,5,6,7,8})), "") -> 
B87: UUt | K87: 4 | M87: 4 | AX87: 8 | AY87: 2 | AZ87: =IF($AY87<=6,SUM($C87:$AV87),SUMPRODUCT(LARGE($C87:$AV87,{1,2,3,4,5,6}))) -> 8 | BB87: =IFERROR(SUMPRODUCT(LARGE($C87:$AV87,{1,2,3,4})), "") ->  | BC87: =IFERROR(SUMPRODUCT(LARGE($C87:$AV87,{1,2,3,4,5,6,7})), "") ->  | BD87: =IFERROR(SUMPRODUCT(LARGE($C87:$AV87,{1,2,3,4,5,6,7,8})), "") -> 
B88: UWB | G88: 1 | M88: 3 | AX88: 4 | AY88: 2 | AZ88: =IF($AY88<=6,SUM($C88:$AV88),SUMPRODUCT(LARGE($C88:$AV88,{1,2,3,4,5,6}))) -> 4 | BB88: =IFERROR(SUMPRODUCT(LARGE($C88:$AV88,{1,2,3,4})), "") ->  | BC88: =IFERROR(SUMPRODUCT(LARGE($C88:$AV88,{1,2,3,4,5,6,7})), "") ->  | BD88: =IFERROR(SUMPRODUCT(LARGE($C88:$AV88,{1,2,3,4,5,6,7,8})), "") -> 
B89: VSU | O89: 4 | AX89: 4 | AY89: 1 | AZ89: =IF($AY89<=6,SUM($C89:$AV89),SUMPRODUCT(LARGE($C89:$AV89,{1,2,3,4,5,6}))) -> 4 | BB89: =IFERROR(SUMPRODUCT(LARGE($C89:$AV89,{1,2,3,4})), "") ->  | BC89: =IFERROR(SUMPRODUCT(LARGE($C89:$AV89,{1,2,3,4,5,6,7})), "") ->  | BD89: =IFERROR(SUMPRODUCT(LARGE($C89:$AV89,{1,2,3,4,5,6,7,8})), "") -> 
B90: WCU | C90: 24 | J90: 7 | O90: 28 | AX90: 59 | AY90: 3 | AZ90: =IF($AY90<=6,SUM($C90:$AV90),SUMPRODUCT(LARGE($C90:$AV90,{1,2,3,4,5,6}))) -> 59 | BB90: =IFERROR(SUMPRODUCT(LARGE($C90:$AV90,{1,2,3,4})), "") ->  | BC90: =IFERROR(SUMPRODUCT(LARGE($C90:$AV90,{1,2,3,4,5,6,7})), "") ->  | BD90: =IFERROR(SUMPRODUCT(LARGE($C90:$AV90,{1,2,3,4,5,6,7,8})), "") -> 
B91: WeCU | H91: 18 | AX91: 18 | AY91: 1 | AZ91: =IF($AY91<=6,SUM($C91:$AV91),SUMPRODUCT(LARGE($C91:$AV91,{1,2,3,4,5,6}))) -> 18 | BB91: =IFERROR(SUMPRODUCT(LARGE($C91:$AV91,{1,2,3,4})), "") ->  | BC91: =IFERROR(SUMPRODUCT(LARGE($C91:$AV91,{1,2,3,4,5,6,7})), "") ->  | BD91: =IFERROR(SUMPRODUCT(LARGE($C91:$AV91,{1,2,3,4,5,6,7,8})), "") -> 
B92: WhU | G92: =17+19 -> 36 | M92: 69 | P92: 52 | AX92: 157 | AY92: 3 | AZ92: =IF($AY92<=6,SUM($C92:$AV92),SUMPRODUCT(LARGE($C92:$AV92,{1,2,3,4,5,6}))) -> 157 | BB92: =IFERROR(SUMPRODUCT(LARGE($C92:$AV92,{1,2,3,4})), "") ->  | BC92: =IFERROR(SUMPRODUCT(LARGE($C92:$AV92,{1,2,3,4,5,6,7})), "") ->  | BD92: =IFERROR(SUMPRODUCT(LARGE($C92:$AV92,{1,2,3,4,5,6,7,8})), "") -> 
B93: WSU | M93: 37 | P93: 26 | AX93: 63 | AY93: 2 | AZ93: =IF($AY93<=6,SUM($C93:$AV93),SUMPRODUCT(LARGE($C93:$AV93,{1,2,3,4,5,6}))) -> 63 | BB93: =IFERROR(SUMPRODUCT(LARGE($C93:$AV93,{1,2,3,4})), "") ->  | BC93: =IFERROR(SUMPRODUCT(LARGE($C93:$AV93,{1,2,3,4,5,6,7})), "") ->  | BD93: =IFERROR(SUMPRODUCT(LARGE($C93:$AV93,{1,2,3,4,5,6,7,8})), "") -> 
AX94: =SUM($C94:$AW94) -> 0 | AY94: =COUNTA(C94:AV94) -> 0 | AZ94: =IF($AY94<=6,SUM($C94:$AV94),SUMPRODUCT(LARGE($C94:$AV94,{1,2,3,4,5,6}))) -> 0 | BA94: =IF(AND($AY94>=6,AZ94=AZ95),"Manual Calc Needed","") ->  | BB94: =IFERROR(SUMPRODUCT(LARGE($C94:$AV94,{1,2,3,4})), "") ->  | BC94: =IFERROR(SUMPRODUCT(LARGE($C94:$AV94,{1,2,3,4,5,6,7})), "") ->  | BD94: =IFERROR(SUMPRODUCT(LARGE($C94:$AV94,{1,2,3,4,5,6,7,8})), "") -> 
AX95: 0 | AY95: 0 | AZ95: =IF($AY95<=6,SUM($C95:$AV95),SUMPRODUCT(LARGE($C95:$AV95,{1,2,3,4,5,6}))) -> 0 | BB95: =IFERROR(SUMPRODUCT(LARGE($C95:$AV95,{1,2,3,4})), "") ->  | BC95: =IFERROR(SUMPRODUCT(LARGE($C95:$AV95,{1,2,3,4,5,6,7})), "") ->  | BD95: =IFERROR(SUMPRODUCT(LARGE($C95:$AV95,{1,2,3,4,5,6,7,8})), "") -> 
AX96: 0 | AY96: 0 | AZ96: =IF($AY96<=6,SUM($C96:$AV96),SUMPRODUCT(LARGE($C96:$AV96,{1,2,3,4,5,6}))) -> 0 | BB96: =IFERROR(SUMPRODUCT(LARGE($C96:$AV96,{1,2,3,4})), "") ->  | BC96: =IFERROR(SUMPRODUCT(LARGE($C96:$AV96,{1,2,3,4,5,6,7})), "") ->  | BD96: =IFERROR(SUMPRODUCT(LARGE($C96:$AV96,{1,2,3,4,5,6,7,8})), "") -> 
AX97: 0 | AY97: 0 | AZ97: =IF($AY97<=6,SUM($C97:$AV97),SUMPRODUCT(LARGE($C97:$AV97,{1,2,3,4,5,6}))) -> 0 | BB97: =IFERROR(SUMPRODUCT(LARGE($C97:$AV97,{1,2,3,4})), "") ->  | BC97: =IFERROR(SUMPRODUCT(LARGE($C97:$AV97,{1,2,3,4,5,6,7})), "") ->  | BD97: =IFERROR(SUMPRODUCT(LARGE($C97:$AV97,{1,2,3,4,5,6,7,8})), "") -> 
AX98: 0 | AY98: 0 | AZ98: =IF($AY98<=6,SUM($C98:$AV98),SUMPRODUCT(LARGE($C98:$AV98,{1,2,3,4,5,6}))) -> 0 | BB98: =IFERROR(SUMPRODUCT(LARGE($C98:$AV98,{1,2,3,4})), "") ->  | BC98: =IFERROR(SUMPRODUCT(LARGE($C98:$AV98,{1,2,3,4,5,6,7})), "") ->  | BD98: =IFERROR(SUMPRODUCT(LARGE($C98:$AV98,{1,2,3,4,5,6,7,8})), "") -> 
AX99: 0 | AY99: 0 | AZ99: =IF($AY99<=6,SUM($C99:$AV99),SUMPRODUCT(LARGE($C99:$AV99,{1,2,3,4,5,6}))) -> 0 | BB99: =IFERROR(SUMPRODUCT(LARGE($C99:$AV99,{1,2,3,4})), "") ->  | BC99: =IFERROR(SUMPRODUCT(LARGE($C99:$AV99,{1,2,3,4,5,6,7})), "") ->  | BD99: =IFERROR(SUMPRODUCT(LARGE($C99:$AV99,{1,2,3,4,5,6,7,8})), "") -> 
AX100: 0 | AY100: 0 | AZ100: =IF($AY100<=6,SUM($C100:$AV100),SUMPRODUCT(LARGE($C100:$AV100,{1,2,3,4,5,6}))) -> 0 | BB100: =IFERROR(SUMPRODUCT(LARGE($C100:$AV100,{1,2,3,4})), "") ->  | BC100: =IFERROR(SUMPRODUCT(LARGE($C100:$AV100,{1,2,3,4,5,6,7})), "") ->  | BD100: =IFERROR(SUMPRODUCT(LARGE($C100:$AV100,{1,2,3,4,5,6,7,8})), "") -> 
AX101: 0 | AY101: 0 | AZ101: =IF($AY101<=6,SUM($C101:$AV101),SUMPRODUCT(LARGE($C101:$AV101,{1,2,3,4,5,6}))) -> 0 | BB101: =IFERROR(SUMPRODUCT(LARGE($C101:$AV101,{1,2,3,4})), "") ->  | BC101: =IFERROR(SUMPRODUCT(LARGE($C101:$AV101,{1,2,3,4,5,6,7})), "") ->  | BD101: =IFERROR(SUMPRODUCT(LARGE($C101:$AV101,{1,2,3,4,5,6,7,8})), "") -> 
AX102: 0 | AY102: 0 | AZ102: =IF($AY102<=6,SUM($C102:$AV102),SUMPRODUCT(LARGE($C102:$AV102,{1,2,3,4,5,6}))) -> 0 | BB102: =IFERROR(SUMPRODUCT(LARGE($C102:$AV102,{1,2,3,4})), "") ->  | BC102: =IFERROR(SUMPRODUCT(LARGE($C102:$AV102,{1,2,3,4,5,6,7})), "") ->  | BD102: =IFERROR(SUMPRODUCT(LARGE($C102:$AV102,{1,2,3,4,5,6,7,8})), "") -> 
AX103: 0 | AY103: 0 | AZ103: =IF($AY103<=6,SUM($C103:$AV103),SUMPRODUCT(LARGE($C103:$AV103,{1,2,3,4,5,6}))) -> 0 | BB103: =IFERROR(SUMPRODUCT(LARGE($C103:$AV103,{1,2,3,4})), "") ->  | BC103: =IFERROR(SUMPRODUCT(LARGE($C103:$AV103,{1,2,3,4,5,6,7})), "") ->  | BD103: =IFERROR(SUMPRODUCT(LARGE($C103:$AV103,{1,2,3,4,5,6,7,8})), "") -> 
AX104: 0 | AY104: 0 | AZ104: =IF($AY104<=6,SUM($C104:$AV104),SUMPRODUCT(LARGE($C104:$AV104,{1,2,3,4,5,6}))) -> 0 | BB104: =IFERROR(SUMPRODUCT(LARGE($C104:$AV104,{1,2,3,4})), "") ->  | BC104: =IFERROR(SUMPRODUCT(LARGE($C104:$AV104,{1,2,3,4,5,6,7})), "") ->  | BD104: =IFERROR(SUMPRODUCT(LARGE($C104:$AV104,{1,2,3,4,5,6,7,8})), "") -> 
AX105: 0 | AY105: 0 | AZ105: =IF($AY105<=6,SUM($C105:$AV105),SUMPRODUCT(LARGE($C105:$AV105,{1,2,3,4,5,6}))) -> 0 | BB105: =IFERROR(SUMPRODUCT(LARGE($C105:$AV105,{1,2,3,4})), "") ->  | BC105: =IFERROR(SUMPRODUCT(LARGE($C105:$AV105,{1,2,3,4,5,6,7})), "") ->  | BD105: =IFERROR(SUMPRODUCT(LARGE($C105:$AV105,{1,2,3,4,5,6,7,8})), "") -> 
AX106: 0 | AY106: 0 | AZ106: =IF($AY106<=6,SUM($C106:$AV106),SUMPRODUCT(LARGE($C106:$AV106,{1,2,3,4,5,6}))) -> 0 | BB106: =IFERROR(SUMPRODUCT(LARGE($C106:$AV106,{1,2,3,4})), "") ->  | BC106: =IFERROR(SUMPRODUCT(LARGE($C106:$AV106,{1,2,3,4,5,6,7})), "") ->  | BD106: =IFERROR(SUMPRODUCT(LARGE($C106:$AV106,{1,2,3,4,5,6,7,8})), "") -> 
AX107: 0 | AY107: 0 | AZ107: =IF($AY107<=6,SUM($C107:$AV107),SUMPRODUCT(LARGE($C107:$AV107,{1,2,3,4,5,6}))) -> 0 | BB107: =IFERROR(SUMPRODUCT(LARGE($C107:$AV107,{1,2,3,4})), "") ->  | BC107: =IFERROR(SUMPRODUCT(LARGE($C107:$AV107,{1,2,3,4,5,6,7})), "") ->  | BD107: =IFERROR(SUMPRODUCT(LARGE($C107:$AV107,{1,2,3,4,5,6,7,8})), "") -> 
AX108: 0 | AY108: 0 | AZ108: =IF($AY108<=6,SUM($C108:$AV108),SUMPRODUCT(LARGE($C108:$AV108,{1,2,3,4,5,6}))) -> 0 | BB108: =IFERROR(SUMPRODUCT(LARGE($C108:$AV108,{1,2,3,4})), "") ->  | BC108: =IFERROR(SUMPRODUCT(LARGE($C108:$AV108,{1,2,3,4,5,6,7})), "") ->  | BD108: =IFERROR(SUMPRODUCT(LARGE($C108:$AV108,{1,2,3,4,5,6,7,8})), "") -> 
AX109: 0 | AY109: 0 | AZ109: =IF($AY109<=6,SUM($C109:$AV109),SUMPRODUCT(LARGE($C109:$AV109,{1,2,3,4,5,6}))) -> 0 | BB109: =IFERROR(SUMPRODUCT(LARGE($C109:$AV109,{1,2,3,4})), "") ->  | BC109: =IFERROR(SUMPRODUCT(LARGE($C109:$AV109,{1,2,3,4,5,6,7})), "") ->  | BD109: =IFERROR(SUMPRODUCT(LARGE($C109:$AV109,{1,2,3,4,5,6,7,8})), "") -> 
AX110: 0 | AY110: 0 | AZ110: =IF($AY110<=6,SUM($C110:$AV110),SUMPRODUCT(LARGE($C110:$AV110,{1,2,3,4,5,6}))) -> 0 | BB110: =IFERROR(SUMPRODUCT(LARGE($C110:$AV110,{1,2,3,4})), "") ->  | BC110: =IFERROR(SUMPRODUCT(LARGE($C110:$AV110,{1,2,3,4,5,6,7})), "") ->  | BD110: =IFERROR(SUMPRODUCT(LARGE($C110:$AV110,{1,2,3,4,5,6,7,8})), "") -> 
AX111: 0 | AY111: 0 | AZ111: =IF($AY111<=6,SUM($C111:$AV111),SUMPRODUCT(LARGE($C111:$AV111,{1,2,3,4,5,6}))) -> 0 | BB111: =IFERROR(SUMPRODUCT(LARGE($C111:$AV111,{1,2,3,4})), "") ->  | BC111: =IFERROR(SUMPRODUCT(LARGE($C111:$AV111,{1,2,3,4,5,6,7})), "") ->  | BD111: =IFERROR(SUMPRODUCT(LARGE($C111:$AV111,{1,2,3,4,5,6,7,8})), "") -> 
AX112: 0 | AY112: 0 | AZ112: =IF($AY112<=6,SUM($C112:$AV112),SUMPRODUCT(LARGE($C112:$AV112,{1,2,3,4,5,6}))) -> 0 | BB112: =IFERROR(SUMPRODUCT(LARGE($C112:$AV112,{1,2,3,4})), "") ->  | BC112: =IFERROR(SUMPRODUCT(LARGE($C112:$AV112,{1,2,3,4,5,6,7})), "") ->  | BD112: =IFERROR(SUMPRODUCT(LARGE($C112:$AV112,{1,2,3,4,5,6,7,8})), "") -> 
AX113: 0 | AY113: 0 | AZ113: =IF($AY113<=6,SUM($C113:$AV113),SUMPRODUCT(LARGE($C113:$AV113,{1,2,3,4,5,6}))) -> 0 | BB113: =IFERROR(SUMPRODUCT(LARGE($C113:$AV113,{1,2,3,4})), "") ->  | BC113: =IFERROR(SUMPRODUCT(LARGE($C113:$AV113,{1,2,3,4,5,6,7})), "") ->  | BD113: =IFERROR(SUMPRODUCT(LARGE($C113:$AV113,{1,2,3,4,5,6,7,8})), "") -> 
AX114: 0 | AY114: 0 | AZ114: =IF($AY114<=6,SUM($C114:$AV114),SUMPRODUCT(LARGE($C114:$AV114,{1,2,3,4,5,6}))) -> 0 | BB114: =IFERROR(SUMPRODUCT(LARGE($C114:$AV114,{1,2,3,4})), "") ->  | BC114: =IFERROR(SUMPRODUCT(LARGE($C114:$AV114,{1,2,3,4,5,6,7})), "") ->  | BD114: =IFERROR(SUMPRODUCT(LARGE($C114:$AV114,{1,2,3,4,5,6,7,8})), "") -> 
AX115: 0 | AY115: 0 | AZ115: =IF($AY115<=6,SUM($C115:$AV115),SUMPRODUCT(LARGE($C115:$AV115,{1,2,3,4,5,6}))) -> 0 | BB115: =IFERROR(SUMPRODUCT(LARGE($C115:$AV115,{1,2,3,4})), "") ->  | BC115: =IFERROR(SUMPRODUCT(LARGE($C115:$AV115,{1,2,3,4,5,6,7})), "") ->  | BD115: =IFERROR(SUMPRODUCT(LARGE($C115:$AV115,{1,2,3,4,5,6,7,8})), "") -> 
AX116: 0 | AY116: 0 | AZ116: =IF($AY116<=6,SUM($C116:$AV116),SUMPRODUCT(LARGE($C116:$AV116,{1,2,3,4,5,6}))) -> 0 | BB116: =IFERROR(SUMPRODUCT(LARGE($C116:$AV116,{1,2,3,4})), "") ->  | BC116: =IFERROR(SUMPRODUCT(LARGE($C116:$AV116,{1,2,3,4,5,6,7})), "") ->  | BD116: =IFERROR(SUMPRODUCT(LARGE($C116:$AV116,{1,2,3,4,5,6,7,8})), "") -> 
AX117: 0 | AY117: 0 | AZ117: =IF($AY117<=6,SUM($C117:$AV117),SUMPRODUCT(LARGE($C117:$AV117,{1,2,3,4,5,6}))) -> 0 | BB117: =IFERROR(SUMPRODUCT(LARGE($C117:$AV117,{1,2,3,4})), "") ->  | BC117: =IFERROR(SUMPRODUCT(LARGE($C117:$AV117,{1,2,3,4,5,6,7})), "") ->  | BD117: =IFERROR(SUMPRODUCT(LARGE($C117:$AV117,{1,2,3,4,5,6,7,8})), "") -> 
AX118: 0 | AY118: 0 | AZ118: =IF($AY118<=6,SUM($C118:$AV118),SUMPRODUCT(LARGE($C118:$AV118,{1,2,3,4,5,6}))) -> 0 | BB118: =IFERROR(SUMPRODUCT(LARGE($C118:$AV118,{1,2,3,4})), "") ->  | BC118: =IFERROR(SUMPRODUCT(LARGE($C118:$AV118,{1,2,3,4,5,6,7})), "") ->  | BD118: =IFERROR(SUMPRODUCT(LARGE($C118:$AV118,{1,2,3,4,5,6,7,8})), "") -> 
AX119: 0 | AY119: 0 | AZ119: =IF($AY119<=6,SUM($C119:$AV119),SUMPRODUCT(LARGE($C119:$AV119,{1,2,3,4,5,6}))) -> 0 | BB119: =IFERROR(SUMPRODUCT(LARGE($C119:$AV119,{1,2,3,4})), "") ->  | BC119: =IFERROR(SUMPRODUCT(LARGE($C119:$AV119,{1,2,3,4,5,6,7})), "") ->  | BD119: =IFERROR(SUMPRODUCT(LARGE($C119:$AV119,{1,2,3,4,5,6,7,8})), "") -> 
AX120: 0 | AY120: 0 | AZ120: =IF($AY120<=6,SUM($C120:$AV120),SUMPRODUCT(LARGE($C120:$AV120,{1,2,3,4,5,6}))) -> 0 | BB120: =IFERROR(SUMPRODUCT(LARGE($C120:$AV120,{1,2,3,4})), "") ->  | BC120: =IFERROR(SUMPRODUCT(LARGE($C120:$AV120,{1,2,3,4,5,6,7})), "") ->  | BD120: =IFERROR(SUMPRODUCT(LARGE($C120:$AV120,{1,2,3,4,5,6,7,8})), "") -> 
AX121: 0 | AY121: 0 | AZ121: =IF($AY121<=6,SUM($C121:$AV121),SUMPRODUCT(LARGE($C121:$AV121,{1,2,3,4,5,6}))) -> 0 | BB121: =IFERROR(SUMPRODUCT(LARGE($C121:$AV121,{1,2,3,4})), "") ->  | BC121: =IFERROR(SUMPRODUCT(LARGE($C121:$AV121,{1,2,3,4,5,6,7})), "") ->  | BD121: =IFERROR(SUMPRODUCT(LARGE($C121:$AV121,{1,2,3,4,5,6,7,8})), "") -> 
AX122: 0 | AY122: 0 | AZ122: =IF($AY122<=6,SUM($C122:$AV122),SUMPRODUCT(LARGE($C122:$AV122,{1,2,3,4,5,6}))) -> 0 | BB122: =IFERROR(SUMPRODUCT(LARGE($C122:$AV122,{1,2,3,4})), "") ->  | BC122: =IFERROR(SUMPRODUCT(LARGE($C122:$AV122,{1,2,3,4,5,6,7})), "") ->  | BD122: =IFERROR(SUMPRODUCT(LARGE($C122:$AV122,{1,2,3,4,5,6,7,8})), "") -> 
AX123: 0 | AY123: 0 | AZ123: =IF($AY123<=6,SUM($C123:$AV123),SUMPRODUCT(LARGE($C123:$AV123,{1,2,3,4,5,6}))) -> 0 | BB123: =IFERROR(SUMPRODUCT(LARGE($C123:$AV123,{1,2,3,4})), "") ->  | BC123: =IFERROR(SUMPRODUCT(LARGE($C123:$AV123,{1,2,3,4,5,6,7})), "") ->  | BD123: =IFERROR(SUMPRODUCT(LARGE($C123:$AV123,{1,2,3,4,5,6,7,8})), "") -> 
AX124: 0 | AY124: 0 | AZ124: =IF($AY124<=6,SUM($C124:$AV124),SUMPRODUCT(LARGE($C124:$AV124,{1,2,3,4,5,6}))) -> 0 | BB124: =IFERROR(SUMPRODUCT(LARGE($C124:$AV124,{1,2,3,4})), "") ->  | BC124: =IFERROR(SUMPRODUCT(LARGE($C124:$AV124,{1,2,3,4,5,6,7})), "") ->  | BD124: =IFERROR(SUMPRODUCT(LARGE($C124:$AV124,{1,2,3,4,5,6,7,8})), "") -> 
AX125: 0 | AY125: 0 | AZ125: =IF($AY125<=6,SUM($C125:$AV125),SUMPRODUCT(LARGE($C125:$AV125,{1,2,3,4,5,6}))) -> 0 | BB125: =IFERROR(SUMPRODUCT(LARGE($C125:$AV125,{1,2,3,4})), "") ->  | BC125: =IFERROR(SUMPRODUCT(LARGE($C125:$AV125,{1,2,3,4,5,6,7})), "") ->  | BD125: =IFERROR(SUMPRODUCT(LARGE($C125:$AV125,{1,2,3,4,5,6,7,8})), "") -> 
AX126: 0 | AY126: 0 | AZ126: =IF($AY126<=6,SUM($C126:$AV126),SUMPRODUCT(LARGE($C126:$AV126,{1,2,3,4,5,6}))) -> 0 | BB126: =IFERROR(SUMPRODUCT(LARGE($C126:$AV126,{1,2,3,4})), "") ->  | BC126: =IFERROR(SUMPRODUCT(LARGE($C126:$AV126,{1,2,3,4,5,6,7})), "") ->  | BD126: =IFERROR(SUMPRODUCT(LARGE($C126:$AV126,{1,2,3,4,5,6,7,8})), "") -> 
AX127: 0 | AY127: 0 | AZ127: =IF($AY127<=6,SUM($C127:$AV127),SUMPRODUCT(LARGE($C127:$AV127,{1,2,3,4,5,6}))) -> 0 | BB127: =IFERROR(SUMPRODUCT(LARGE($C127:$AV127,{1,2,3,4})), "") ->  | BC127: =IFERROR(SUMPRODUCT(LARGE($C127:$AV127,{1,2,3,4,5,6,7})), "") ->  | BD127: =IFERROR(SUMPRODUCT(LARGE($C127:$AV127,{1,2,3,4,5,6,7,8})), "") -> 
AX128: 0 | AY128: 0 | AZ128: =IF($AY128<=6,SUM($C128:$AV128),SUMPRODUCT(LARGE($C128:$AV128,{1,2,3,4,5,6}))) -> 0 | BB128: =IFERROR(SUMPRODUCT(LARGE($C128:$AV128,{1,2,3,4})), "") ->  | BC128: =IFERROR(SUMPRODUCT(LARGE($C128:$AV128,{1,2,3,4,5,6,7})), "") ->  | BD128: =IFERROR(SUMPRODUCT(LARGE($C128:$AV128,{1,2,3,4,5,6,7,8})), "") -> 
AX129: 0 | AY129: 0 | AZ129: =IF($AY129<=6,SUM($C129:$AV129),SUMPRODUCT(LARGE($C129:$AV129,{1,2,3,4,5,6}))) -> 0 | BB129: =IFERROR(SUMPRODUCT(LARGE($C129:$AV129,{1,2,3,4})), "") ->  | BC129: =IFERROR(SUMPRODUCT(LARGE($C129:$AV129,{1,2,3,4,5,6,7})), "") ->  | BD129: =IFERROR(SUMPRODUCT(LARGE($C129:$AV129,{1,2,3,4,5,6,7,8})), "") -> 
AX130: 0 | AY130: 0 | AZ130: =IF($AY130<=6,SUM($C130:$AV130),SUMPRODUCT(LARGE($C130:$AV130,{1,2,3,4,5,6}))) -> 0 | BB130: =IFERROR(SUMPRODUCT(LARGE($C130:$AV130,{1,2,3,4})), "") ->  | BC130: =IFERROR(SUMPRODUCT(LARGE($C130:$AV130,{1,2,3,4,5,6,7})), "") ->  | BD130: =IFERROR(SUMPRODUCT(LARGE($C130:$AV130,{1,2,3,4,5,6,7,8})), "") -> 
AX131: =SUM($C131:$AW131) -> 0 | AY131: =COUNTA(C131:AV131) -> 0 | AZ131: =IF($AY131<=6,SUM($C131:$AV131),SUMPRODUCT(LARGE($C131:$AV131,{1,2,3,4,5,6}))) -> 0 | BB131: =IFERROR(SUMPRODUCT(LARGE($C131:$AV131,{1,2,3,4})), "") ->  | BC131: =IFERROR(SUMPRODUCT(LARGE($C131:$AV131,{1,2,3,4,5,6,7})), "") ->  | BD131: =IFERROR(SUMPRODUCT(LARGE($C131:$AV131,{1,2,3,4,5,6,7,8})), "") -> 
AX132: 0 | AY132: 0 | AZ132: =IF($AY132<=6,SUM($C132:$AV132),SUMPRODUCT(LARGE($C132:$AV132,{1,2,3,4,5,6}))) -> 0 | BA132: =IF(AND($AY132>=6,AZ132=AZ133),"Manual Calc Needed","") ->  | BB132: =IFERROR(SUMPRODUCT(LARGE($C132:$AV132,{1,2,3,4})), "") ->  | BC132: =IFERROR(SUMPRODUCT(LARGE($C132:$AV132,{1,2,3,4,5,6,7})), "") ->  | BD132: =IFERROR(SUMPRODUCT(LARGE($C132:$AV132,{1,2,3,4,5,6,7,8})), "") -> 
AX133: 0 | AY133: 0 | AZ133: =IF($AY133<=6,SUM($C133:$AV133),SUMPRODUCT(LARGE($C133:$AV133,{1,2,3,4,5,6}))) -> 0 | BB133: =IFERROR(SUMPRODUCT(LARGE($C133:$AV133,{1,2,3,4})), "") ->  | BC133: =IFERROR(SUMPRODUCT(LARGE($C133:$AV133,{1,2,3,4,5,6,7})), "") ->  | BD133: =IFERROR(SUMPRODUCT(LARGE($C133:$AV133,{1,2,3,4,5,6,7,8})), "") -> 
AX134: 0 | AY134: 0 | AZ134: =IF($AY134<=6,SUM($C134:$AV134),SUMPRODUCT(LARGE($C134:$AV134,{1,2,3,4,5,6}))) -> 0 | BB134: =IFERROR(SUMPRODUCT(LARGE($C134:$AV134,{1,2,3,4})), "") ->  | BC134: =IFERROR(SUMPRODUCT(LARGE($C134:$AV134,{1,2,3,4,5,6,7})), "") ->  | BD134: =IFERROR(SUMPRODUCT(LARGE($C134:$AV134,{1,2,3,4,5,6,7,8})), "") -> 
AX135: 0 | AY135: 0 | AZ135: =IF($AY135<=6,SUM($C135:$AV135),SUMPRODUCT(LARGE($C135:$AV135,{1,2,3,4,5,6}))) -> 0 | BB135: =IFERROR(SUMPRODUCT(LARGE($C135:$AV135,{1,2,3,4})), "") ->  | BC135: =IFERROR(SUMPRODUCT(LARGE($C135:$AV135,{1,2,3,4,5,6,7})), "") ->  | BD135: =IFERROR(SUMPRODUCT(LARGE($C135:$AV135,{1,2,3,4,5,6,7,8})), "") -> 
AX136: 0 | AY136: 0 | AZ136: =IF($AY136<=6,SUM($C136:$AV136),SUMPRODUCT(LARGE($C136:$AV136,{1,2,3,4,5,6}))) -> 0 | BB136: =IFERROR(SUMPRODUCT(LARGE($C136:$AV136,{1,2,3,4})), "") ->  | BC136: =IFERROR(SUMPRODUCT(LARGE($C136:$AV136,{1,2,3,4,5,6,7})), "") ->  | BD136: =IFERROR(SUMPRODUCT(LARGE($C136:$AV136,{1,2,3,4,5,6,7,8})), "") -> 
AX137: 0 | AY137: 0 | AZ137: =IF($AY137<=6,SUM($C137:$AV137),SUMPRODUCT(LARGE($C137:$AV137,{1,2,3,4,5,6}))) -> 0 | BB137: =IFERROR(SUMPRODUCT(LARGE($C137:$AV137,{1,2,3,4})), "") ->  | BC137: =IFERROR(SUMPRODUCT(LARGE($C137:$AV137,{1,2,3,4,5,6,7})), "") ->  | BD137: =IFERROR(SUMPRODUCT(LARGE($C137:$AV137,{1,2,3,4,5,6,7,8})), "") -> 
AX138: 0 | AY138: 0 | AZ138: =IF($AY138<=6,SUM($C138:$AV138),SUMPRODUCT(LARGE($C138:$AV138,{1,2,3,4,5,6}))) -> 0 | BB138: =IFERROR(SUMPRODUCT(LARGE($C138:$AV138,{1,2,3,4})), "") ->  | BC138: =IFERROR(SUMPRODUCT(LARGE($C138:$AV138,{1,2,3,4,5,6,7})), "") ->  | BD138: =IFERROR(SUMPRODUCT(LARGE($C138:$AV138,{1,2,3,4,5,6,7,8})), "") -> 
AX139: 0 | AY139: 0 | AZ139: =IF($AY139<=6,SUM($C139:$AV139),SUMPRODUCT(LARGE($C139:$AV139,{1,2,3,4,5,6}))) -> 0 | BB139: =IFERROR(SUMPRODUCT(LARGE($C139:$AV139,{1,2,3,4})), "") ->  | BC139: =IFERROR(SUMPRODUCT(LARGE($C139:$AV139,{1,2,3,4,5,6,7})), "") ->  | BD139: =IFERROR(SUMPRODUCT(LARGE($C139:$AV139,{1,2,3,4,5,6,7,8})), "") -> 
AX140: 0 | AY140: 0 | AZ140: =IF($AY140<=6,SUM($C140:$AV140),SUMPRODUCT(LARGE($C140:$AV140,{1,2,3,4,5,6}))) -> 0 | BB140: =IFERROR(SUMPRODUCT(LARGE($C140:$AV140,{1,2,3,4})), "") ->  | BC140: =IFERROR(SUMPRODUCT(LARGE($C140:$AV140,{1,2,3,4,5,6,7})), "") ->  | BD140: =IFERROR(SUMPRODUCT(LARGE($C140:$AV140,{1,2,3,4,5,6,7,8})), "") -> 
AX141: 0 | AY141: 0 | AZ141: =IF($AY141<=6,SUM($C141:$AV141),SUMPRODUCT(LARGE($C141:$AV141,{1,2,3,4,5,6}))) -> 0 | BB141: =IFERROR(SUMPRODUCT(LARGE($C141:$AV141,{1,2,3,4})), "") ->  | BC141: =IFERROR(SUMPRODUCT(LARGE($C141:$AV141,{1,2,3,4,5,6,7})), "") ->  | BD141: =IFERROR(SUMPRODUCT(LARGE($C141:$AV141,{1,2,3,4,5,6,7,8})), "") -> 
AX142: 0 | AY142: 0 | AZ142: =IF($AY142<=6,SUM($C142:$AV142),SUMPRODUCT(LARGE($C142:$AV142,{1,2,3,4,5,6}))) -> 0 | BB142: =IFERROR(SUMPRODUCT(LARGE($C142:$AV142,{1,2,3,4})), "") ->  | BC142: =IFERROR(SUMPRODUCT(LARGE($C142:$AV142,{1,2,3,4,5,6,7})), "") ->  | BD142: =IFERROR(SUMPRODUCT(LARGE($C142:$AV142,{1,2,3,4,5,6,7,8})), "") -> 
AX143: 0 | AY143: 0 | AZ143: =IF($AY143<=6,SUM($C143:$AV143),SUMPRODUCT(LARGE($C143:$AV143,{1,2,3,4,5,6}))) -> 0 | BB143: =IFERROR(SUMPRODUCT(LARGE($C143:$AV143,{1,2,3,4})), "") ->  | BC143: =IFERROR(SUMPRODUCT(LARGE($C143:$AV143,{1,2,3,4,5,6,7})), "") ->  | BD143: =IFERROR(SUMPRODUCT(LARGE($C143:$AV143,{1,2,3,4,5,6,7,8})), "") -> 
AX144: 0 | AY144: 0 | AZ144: =IF($AY144<=6,SUM($C144:$AV144),SUMPRODUCT(LARGE($C144:$AV144,{1,2,3,4,5,6}))) -> 0 | BB144: =IFERROR(SUMPRODUCT(LARGE($C144:$AV144,{1,2,3,4})), "") ->  | BC144: =IFERROR(SUMPRODUCT(LARGE($C144:$AV144,{1,2,3,4,5,6,7})), "") ->  | BD144: =IFERROR(SUMPRODUCT(LARGE($C144:$AV144,{1,2,3,4,5,6,7,8})), "") -> 
AX145: 0 | AY145: 0 | AZ145: =IF($AY145<=6,SUM($C145:$AV145),SUMPRODUCT(LARGE($C145:$AV145,{1,2,3,4,5,6}))) -> 0 | BB145: =IFERROR(SUMPRODUCT(LARGE($C145:$AV145,{1,2,3,4})), "") ->  | BC145: =IFERROR(SUMPRODUCT(LARGE($C145:$AV145,{1,2,3,4,5,6,7})), "") ->  | BD145: =IFERROR(SUMPRODUCT(LARGE($C145:$AV145,{1,2,3,4,5,6,7,8})), "") -> 
AX146: 0 | AY146: 0 | AZ146: =IF($AY146<=6,SUM($C146:$AV146),SUMPRODUCT(LARGE($C146:$AV146,{1,2,3,4,5,6}))) -> 0 | BB146: =IFERROR(SUMPRODUCT(LARGE($C146:$AV146,{1,2,3,4})), "") ->  | BC146: =IFERROR(SUMPRODUCT(LARGE($C146:$AV146,{1,2,3,4,5,6,7})), "") ->  | BD146: =IFERROR(SUMPRODUCT(LARGE($C146:$AV146,{1,2,3,4,5,6,7,8})), "") -> 
AX147: 0 | AY147: 0 | AZ147: =IF($AY147<=6,SUM($C147:$AV147),SUMPRODUCT(LARGE($C147:$AV147,{1,2,3,4,5,6}))) -> 0 | BB147: =IFERROR(SUMPRODUCT(LARGE($C147:$AV147,{1,2,3,4})), "") ->  | BC147: =IFERROR(SUMPRODUCT(LARGE($C147:$AV147,{1,2,3,4,5,6,7})), "") ->  | BD147: =IFERROR(SUMPRODUCT(LARGE($C147:$AV147,{1,2,3,4,5,6,7,8})), "") -> 
AX148: 0 | AY148: 0 | AZ148: =IF($AY148<=6,SUM($C148:$AV148),SUMPRODUCT(LARGE($C148:$AV148,{1,2,3,4,5,6}))) -> 0 | BB148: =IFERROR(SUMPRODUCT(LARGE($C148:$AV148,{1,2,3,4})), "") ->  | BC148: =IFERROR(SUMPRODUCT(LARGE($C148:$AV148,{1,2,3,4,5,6,7})), "") ->  | BD148: =IFERROR(SUMPRODUCT(LARGE($C148:$AV148,{1,2,3,4,5,6,7,8})), "") -> 
AX149: 0 | AY149: 0 | AZ149: =IF($AY149<=6,SUM($C149:$AV149),SUMPRODUCT(LARGE($C149:$AV149,{1,2,3,4,5,6}))) -> 0 | BB149: =IFERROR(SUMPRODUCT(LARGE($C149:$AV149,{1,2,3,4})), "") ->  | BC149: =IFERROR(SUMPRODUCT(LARGE($C149:$AV149,{1,2,3,4,5,6,7})), "") ->  | BD149: =IFERROR(SUMPRODUCT(LARGE($C149:$AV149,{1,2,3,4,5,6,7,8})), "") -> 
AX150: 0 | AY150: 0 | AZ150: =IF($AY150<=6,SUM($C150:$AV150),SUMPRODUCT(LARGE($C150:$AV150,{1,2,3,4,5,6}))) -> 0 | BB150: =IFERROR(SUMPRODUCT(LARGE($C150:$AV150,{1,2,3,4})), "") ->  | BC150: =IFERROR(SUMPRODUCT(LARGE($C150:$AV150,{1,2,3,4,5,6,7})), "") ->  | BD150: =IFERROR(SUMPRODUCT(LARGE($C150:$AV150,{1,2,3,4,5,6,7,8})), "") -> 
AX151: 0 | AY151: 0 | AZ151: =IF($AY151<=6,SUM($C151:$AV151),SUMPRODUCT(LARGE($C151:$AV151,{1,2,3,4,5,6}))) -> 0 | BB151: =IFERROR(SUMPRODUCT(LARGE($C151:$AV151,{1,2,3,4})), "") ->  | BC151: =IFERROR(SUMPRODUCT(LARGE($C151:$AV151,{1,2,3,4,5,6,7})), "") ->  | BD151: =IFERROR(SUMPRODUCT(LARGE($C151:$AV151,{1,2,3,4,5,6,7,8})), "") -> 
AX152: 0 | AY152: 0 | AZ152: =IF($AY152<=6,SUM($C152:$AV152),SUMPRODUCT(LARGE($C152:$AV152,{1,2,3,4,5,6}))) -> 0 | BB152: =IFERROR(SUMPRODUCT(LARGE($C152:$AV152,{1,2,3,4})), "") ->  | BC152: =IFERROR(SUMPRODUCT(LARGE($C152:$AV152,{1,2,3,4,5,6,7})), "") ->  | BD152: =IFERROR(SUMPRODUCT(LARGE($C152:$AV152,{1,2,3,4,5,6,7,8})), "") -> 
AX153: 0 | AY153: 0 | AZ153: =IF($AY153<=6,SUM($C153:$AV153),SUMPRODUCT(LARGE($C153:$AV153,{1,2,3,4,5,6}))) -> 0 | BB153: =IFERROR(SUMPRODUCT(LARGE($C153:$AV153,{1,2,3,4})), "") ->  | BC153: =IFERROR(SUMPRODUCT(LARGE($C153:$AV153,{1,2,3,4,5,6,7})), "") ->  | BD153: =IFERROR(SUMPRODUCT(LARGE($C153:$AV153,{1,2,3,4,5,6,7,8})), "") -> 
AX154: 0 | AY154: 0 | AZ154: =IF($AY154<=6,SUM($C154:$AV154),SUMPRODUCT(LARGE($C154:$AV154,{1,2,3,4,5,6}))) -> 0 | BB154: =IFERROR(SUMPRODUCT(LARGE($C154:$AV154,{1,2,3,4})), "") ->  | BC154: =IFERROR(SUMPRODUCT(LARGE($C154:$AV154,{1,2,3,4,5,6,7})), "") ->  | BD154: =IFERROR(SUMPRODUCT(LARGE($C154:$AV154,{1,2,3,4,5,6,7,8})), "") -> 
AX155: 0 | AY155: 0 | AZ155: =IF($AY155<=6,SUM($C155:$AV155),SUMPRODUCT(LARGE($C155:$AV155,{1,2,3,4,5,6}))) -> 0 | BB155: =IFERROR(SUMPRODUCT(LARGE($C155:$AV155,{1,2,3,4})), "") ->  | BC155: =IFERROR(SUMPRODUCT(LARGE($C155:$AV155,{1,2,3,4,5,6,7})), "") ->  | BD155: =IFERROR(SUMPRODUCT(LARGE($C155:$AV155,{1,2,3,4,5,6,7,8})), "") -> 
AX156: 0 | AY156: 0 | AZ156: =IF($AY156<=6,SUM($C156:$AV156),SUMPRODUCT(LARGE($C156:$AV156,{1,2,3,4,5,6}))) -> 0 | BB156: =IFERROR(SUMPRODUCT(LARGE($C156:$AV156,{1,2,3,4})), "") ->  | BC156: =IFERROR(SUMPRODUCT(LARGE($C156:$AV156,{1,2,3,4,5,6,7})), "") ->  | BD156: =IFERROR(SUMPRODUCT(LARGE($C156:$AV156,{1,2,3,4,5,6,7,8})), "") -> 
AX157: 0 | AY157: 0 | AZ157: =IF($AY157<=6,SUM($C157:$AV157),SUMPRODUCT(LARGE($C157:$AV157,{1,2,3,4,5,6}))) -> 0 | BB157: =IFERROR(SUMPRODUCT(LARGE($C157:$AV157,{1,2,3,4})), "") ->  | BC157: =IFERROR(SUMPRODUCT(LARGE($C157:$AV157,{1,2,3,4,5,6,7})), "") ->  | BD157: =IFERROR(SUMPRODUCT(LARGE($C157:$AV157,{1,2,3,4,5,6,7,8})), "") -> 
AX158: 0 | AY158: 0 | AZ158: =IF($AY158<=6,SUM($C158:$AV158),SUMPRODUCT(LARGE($C158:$AV158,{1,2,3,4,5,6}))) -> 0 | BB158: =IFERROR(SUMPRODUCT(LARGE($C158:$AV158,{1,2,3,4})), "") ->  | BC158: =IFERROR(SUMPRODUCT(LARGE($C158:$AV158,{1,2,3,4,5,6,7})), "") ->  | BD158: =IFERROR(SUMPRODUCT(LARGE($C158:$AV158,{1,2,3,4,5,6,7,8})), "") -> 
AX159: 0 | AY159: 0 | AZ159: =IF($AY159<=6,SUM($C159:$AV159),SUMPRODUCT(LARGE($C159:$AV159,{1,2,3,4,5,6}))) -> 0 | BB159: =IFERROR(SUMPRODUCT(LARGE($C159:$AV159,{1,2,3,4})), "") ->  | BC159: =IFERROR(SUMPRODUCT(LARGE($C159:$AV159,{1,2,3,4,5,6,7})), "") ->  | BD159: =IFERROR(SUMPRODUCT(LARGE($C159:$AV159,{1,2,3,4,5,6,7,8})), "") -> 
AX160: 0 | AY160: 0 | AZ160: =IF($AY160<=6,SUM($C160:$AV160),SUMPRODUCT(LARGE($C160:$AV160,{1,2,3,4,5,6}))) -> 0 | BB160: =IFERROR(SUMPRODUCT(LARGE($C160:$AV160,{1,2,3,4})), "") ->  | BC160: =IFERROR(SUMPRODUCT(LARGE($C160:$AV160,{1,2,3,4,5,6,7})), "") ->  | BD160: =IFERROR(SUMPRODUCT(LARGE($C160:$AV160,{1,2,3,4,5,6,7,8})), "") -> 
AX161: 0 | AY161: 0 | AZ161: =IF($AY161<=6,SUM($C161:$AV161),SUMPRODUCT(LARGE($C161:$AV161,{1,2,3,4,5,6}))) -> 0 | BB161: =IFERROR(SUMPRODUCT(LARGE($C161:$AV161,{1,2,3,4})), "") ->  | BC161: =IFERROR(SUMPRODUCT(LARGE($C161:$AV161,{1,2,3,4,5,6,7})), "") ->  | BD161: =IFERROR(SUMPRODUCT(LARGE($C161:$AV161,{1,2,3,4,5,6,7,8})), "") -> 
AX162: 0 | AY162: 0 | AZ162: =IF($AY162<=6,SUM($C162:$AV162),SUMPRODUCT(LARGE($C162:$AV162,{1,2,3,4,5,6}))) -> 0 | BB162: =IFERROR(SUMPRODUCT(LARGE($C162:$AV162,{1,2,3,4})), "") ->  | BC162: =IFERROR(SUMPRODUCT(LARGE($C162:$AV162,{1,2,3,4,5,6,7})), "") ->  | BD162: =IFERROR(SUMPRODUCT(LARGE($C162:$AV162,{1,2,3,4,5,6,7,8})), "") -> 
AX163: 0 | AY163: 0 | AZ163: =IF($AY163<=6,SUM($C163:$AV163),SUMPRODUCT(LARGE($C163:$AV163,{1,2,3,4,5,6}))) -> 0 | BB163: =IFERROR(SUMPRODUCT(LARGE($C163:$AV163,{1,2,3,4})), "") ->  | BC163: =IFERROR(SUMPRODUCT(LARGE($C163:$AV163,{1,2,3,4,5,6,7})), "") ->  | BD163: =IFERROR(SUMPRODUCT(LARGE($C163:$AV163,{1,2,3,4,5,6,7,8})), "") -> 
AX164: 0 | AY164: 0 | AZ164: =IF($AY164<=6,SUM($C164:$AV164),SUMPRODUCT(LARGE($C164:$AV164,{1,2,3,4,5,6}))) -> 0 | BB164: =IFERROR(SUMPRODUCT(LARGE($C164:$AV164,{1,2,3,4})), "") ->  | BC164: =IFERROR(SUMPRODUCT(LARGE($C164:$AV164,{1,2,3,4,5,6,7})), "") ->  | BD164: =IFERROR(SUMPRODUCT(LARGE($C164:$AV164,{1,2,3,4,5,6,7,8})), "") -> 
AX165: 0 | AY165: 0 | AZ165: =IF($AY165<=6,SUM($C165:$AV165),SUMPRODUCT(LARGE($C165:$AV165,{1,2,3,4,5,6}))) -> 0 | BB165: =IFERROR(SUMPRODUCT(LARGE($C165:$AV165,{1,2,3,4})), "") ->  | BC165: =IFERROR(SUMPRODUCT(LARGE($C165:$AV165,{1,2,3,4,5,6,7})), "") ->  | BD165: =IFERROR(SUMPRODUCT(LARGE($C165:$AV165,{1,2,3,4,5,6,7,8})), "") -> 
AX166: 0 | AY166: 0 | AZ166: =IF($AY166<=6,SUM($C166:$AV166),SUMPRODUCT(LARGE($C166:$AV166,{1,2,3,4,5,6}))) -> 0 | BB166: =IFERROR(SUMPRODUCT(LARGE($C166:$AV166,{1,2,3,4})), "") ->  | BC166: =IFERROR(SUMPRODUCT(LARGE($C166:$AV166,{1,2,3,4,5,6,7})), "") ->  | BD166: =IFERROR(SUMPRODUCT(LARGE($C166:$AV166,{1,2,3,4,5,6,7,8})), "") -> 
AX167: 0 | AY167: 0 | AZ167: =IF($AY167<=6,SUM($C167:$AV167),SUMPRODUCT(LARGE($C167:$AV167,{1,2,3,4,5,6}))) -> 0 | BB167: =IFERROR(SUMPRODUCT(LARGE($C167:$AV167,{1,2,3,4})), "") ->  | BC167: =IFERROR(SUMPRODUCT(LARGE($C167:$AV167,{1,2,3,4,5,6,7})), "") ->  | BD167: =IFERROR(SUMPRODUCT(LARGE($C167:$AV167,{1,2,3,4,5,6,7,8})), "") -> 
AX168: 0 | AY168: 0 | AZ168: =IF($AY168<=6,SUM($C168:$AV168),SUMPRODUCT(LARGE($C168:$AV168,{1,2,3,4,5,6}))) -> 0 | BB168: =IFERROR(SUMPRODUCT(LARGE($C168:$AV168,{1,2,3,4})), "") ->  | BC168: =IFERROR(SUMPRODUCT(LARGE($C168:$AV168,{1,2,3,4,5,6,7})), "") ->  | BD168: =IFERROR(SUMPRODUCT(LARGE($C168:$AV168,{1,2,3,4,5,6,7,8})), "") -> 
AX169: 0 | AY169: 0 | AZ169: =IF($AY169<=6,SUM($C169:$AV169),SUMPRODUCT(LARGE($C169:$AV169,{1,2,3,4,5,6}))) -> 0 | BB169: =IFERROR(SUMPRODUCT(LARGE($C169:$AV169,{1,2,3,4})), "") ->  | BC169: =IFERROR(SUMPRODUCT(LARGE($C169:$AV169,{1,2,3,4,5,6,7})), "") ->  | BD169: =IFERROR(SUMPRODUCT(LARGE($C169:$AV169,{1,2,3,4,5,6,7,8})), "") -> 
AX170: 0 | AY170: 0 | AZ170: =IF($AY170<=6,SUM($C170:$AV170),SUMPRODUCT(LARGE($C170:$AV170,{1,2,3,4,5,6}))) -> 0 | BB170: =IFERROR(SUMPRODUCT(LARGE($C170:$AV170,{1,2,3,4})), "") ->  | BC170: =IFERROR(SUMPRODUCT(LARGE($C170:$AV170,{1,2,3,4,5,6,7})), "") ->  | BD170: =IFERROR(SUMPRODUCT(LARGE($C170:$AV170,{1,2,3,4,5,6,7,8})), "") -> 
AX171: 0 | AY171: 0 | AZ171: =IF($AY171<=6,SUM($C171:$AV171),SUMPRODUCT(LARGE($C171:$AV171,{1,2,3,4,5,6}))) -> 0 | BB171: =IFERROR(SUMPRODUCT(LARGE($C171:$AV171,{1,2,3,4})), "") ->  | BC171: =IFERROR(SUMPRODUCT(LARGE($C171:$AV171,{1,2,3,4,5,6,7})), "") ->  | BD171: =IFERROR(SUMPRODUCT(LARGE($C171:$AV171,{1,2,3,4,5,6,7,8})), "") -> 
AX172: 0 | AY172: 0 | AZ172: =IF($AY172<=6,SUM($C172:$AV172),SUMPRODUCT(LARGE($C172:$AV172,{1,2,3,4,5,6}))) -> 0 | BB172: =IFERROR(SUMPRODUCT(LARGE($C172:$AV172,{1,2,3,4})), "") ->  | BC172: =IFERROR(SUMPRODUCT(LARGE($C172:$AV172,{1,2,3,4,5,6,7})), "") ->  | BD172: =IFERROR(SUMPRODUCT(LARGE($C172:$AV172,{1,2,3,4,5,6,7,8})), "") -> 
AX173: 0 | AY173: 0 | AZ173: =IF($AY173<=6,SUM($C173:$AV173),SUMPRODUCT(LARGE($C173:$AV173,{1,2,3,4,5,6}))) -> 0 | BB173: =IFERROR(SUMPRODUCT(LARGE($C173:$AV173,{1,2,3,4})), "") ->  | BC173: =IFERROR(SUMPRODUCT(LARGE($C173:$AV173,{1,2,3,4,5,6,7})), "") ->  | BD173: =IFERROR(SUMPRODUCT(LARGE($C173:$AV173,{1,2,3,4,5,6,7,8})), "") -> 
AX174: 0 | AY174: 0 | AZ174: =IF($AY174<=6,SUM($C174:$AV174),SUMPRODUCT(LARGE($C174:$AV174,{1,2,3,4,5,6}))) -> 0 | BB174: =IFERROR(SUMPRODUCT(LARGE($C174:$AV174,{1,2,3,4})), "") ->  | BC174: =IFERROR(SUMPRODUCT(LARGE($C174:$AV174,{1,2,3,4,5,6,7})), "") ->  | BD174: =IFERROR(SUMPRODUCT(LARGE($C174:$AV174,{1,2,3,4,5,6,7,8})), "") -> 
AX175: 0 | AY175: 0 | AZ175: =IF($AY175<=6,SUM($C175:$AV175),SUMPRODUCT(LARGE($C175:$AV175,{1,2,3,4,5,6}))) -> 0 | BB175: =IFERROR(SUMPRODUCT(LARGE($C175:$AV175,{1,2,3,4})), "") ->  | BC175: =IFERROR(SUMPRODUCT(LARGE($C175:$AV175,{1,2,3,4,5,6,7})), "") ->  | BD175: =IFERROR(SUMPRODUCT(LARGE($C175:$AV175,{1,2,3,4,5,6,7,8})), "") -> 
AX176: 0 | AY176: 0 | AZ176: =IF($AY176<=6,SUM($C176:$AV176),SUMPRODUCT(LARGE($C176:$AV176,{1,2,3,4,5,6}))) -> 0 | BB176: =IFERROR(SUMPRODUCT(LARGE($C176:$AV176,{1,2,3,4})), "") ->  | BC176: =IFERROR(SUMPRODUCT(LARGE($C176:$AV176,{1,2,3,4,5,6,7})), "") ->  | BD176: =IFERROR(SUMPRODUCT(LARGE($C176:$AV176,{1,2,3,4,5,6,7,8})), "") -> 
AX177: 0 | AY177: 0 | AZ177: =IF($AY177<=6,SUM($C177:$AV177),SUMPRODUCT(LARGE($C177:$AV177,{1,2,3,4,5,6}))) -> 0 | BB177: =IFERROR(SUMPRODUCT(LARGE($C177:$AV177,{1,2,3,4})), "") ->  | BC177: =IFERROR(SUMPRODUCT(LARGE($C177:$AV177,{1,2,3,4,5,6,7})), "") ->  | BD177: =IFERROR(SUMPRODUCT(LARGE($C177:$AV177,{1,2,3,4,5,6,7,8})), "") -> 
AX178: 0 | AY178: 0 | AZ178: =IF($AY178<=6,SUM($C178:$AV178),SUMPRODUCT(LARGE($C178:$AV178,{1,2,3,4,5,6}))) -> 0 | BB178: =IFERROR(SUMPRODUCT(LARGE($C178:$AV178,{1,2,3,4})), "") ->  | BC178: =IFERROR(SUMPRODUCT(LARGE($C178:$AV178,{1,2,3,4,5,6,7})), "") ->  | BD178: =IFERROR(SUMPRODUCT(LARGE($C178:$AV178,{1,2,3,4,5,6,7,8})), "") -> 
AX179: 0 | AY179: 0 | AZ179: =IF($AY179<=6,SUM($C179:$AV179),SUMPRODUCT(LARGE($C179:$AV179,{1,2,3,4,5,6}))) -> 0 | BB179: =IFERROR(SUMPRODUCT(LARGE($C179:$AV179,{1,2,3,4})), "") ->  | BC179: =IFERROR(SUMPRODUCT(LARGE($C179:$AV179,{1,2,3,4,5,6,7})), "") ->  | BD179: =IFERROR(SUMPRODUCT(LARGE($C179:$AV179,{1,2,3,4,5,6,7,8})), "") -> 
AX180: 0 | AY180: 0 | AZ180: =IF($AY180<=6,SUM($C180:$AV180),SUMPRODUCT(LARGE($C180:$AV180,{1,2,3,4,5,6}))) -> 0 | BB180: =IFERROR(SUMPRODUCT(LARGE($C180:$AV180,{1,2,3,4})), "") ->  | BC180: =IFERROR(SUMPRODUCT(LARGE($C180:$AV180,{1,2,3,4,5,6,7})), "") ->  | BD180: =IFERROR(SUMPRODUCT(LARGE($C180:$AV180,{1,2,3,4,5,6,7,8})), "") -> 
AX181: 0 | AY181: 0 | AZ181: =IF($AY181<=6,SUM($C181:$AV181),SUMPRODUCT(LARGE($C181:$AV181,{1,2,3,4,5,6}))) -> 0 | BB181: =IFERROR(SUMPRODUCT(LARGE($C181:$AV181,{1,2,3,4})), "") ->  | BC181: =IFERROR(SUMPRODUCT(LARGE($C181:$AV181,{1,2,3,4,5,6,7})), "") ->  | BD181: =IFERROR(SUMPRODUCT(LARGE($C181:$AV181,{1,2,3,4,5,6,7,8})), "") -> 
AX182: 0 | AY182: 0 | AZ182: =IF($AY182<=6,SUM($C182:$AV182),SUMPRODUCT(LARGE($C182:$AV182,{1,2,3,4,5,6}))) -> 0 | BB182: =IFERROR(SUMPRODUCT(LARGE($C182:$AV182,{1,2,3,4})), "") ->  | BC182: =IFERROR(SUMPRODUCT(LARGE($C182:$AV182,{1,2,3,4,5,6,7})), "") ->  | BD182: =IFERROR(SUMPRODUCT(LARGE($C182:$AV182,{1,2,3,4,5,6,7,8})), "") -> 
AX183: 0 | AY183: 0 | AZ183: =IF($AY183<=6,SUM($C183:$AV183),SUMPRODUCT(LARGE($C183:$AV183,{1,2,3,4,5,6}))) -> 0 | BB183: =IFERROR(SUMPRODUCT(LARGE($C183:$AV183,{1,2,3,4})), "") ->  | BC183: =IFERROR(SUMPRODUCT(LARGE($C183:$AV183,{1,2,3,4,5,6,7})), "") ->  | BD183: =IFERROR(SUMPRODUCT(LARGE($C183:$AV183,{1,2,3,4,5,6,7,8})), "") -> 
AX184: 0 | AY184: 0 | AZ184: =IF($AY184<=6,SUM($C184:$AV184),SUMPRODUCT(LARGE($C184:$AV184,{1,2,3,4,5,6}))) -> 0 | BB184: =IFERROR(SUMPRODUCT(LARGE($C184:$AV184,{1,2,3,4})), "") ->  | BC184: =IFERROR(SUMPRODUCT(LARGE($C184:$AV184,{1,2,3,4,5,6,7})), "") ->  | BD184: =IFERROR(SUMPRODUCT(LARGE($C184:$AV184,{1,2,3,4,5,6,7,8})), "") -> 
AX185: 0 | AY185: 0 | AZ185: =IF($AY185<=6,SUM($C185:$AV185),SUMPRODUCT(LARGE($C185:$AV185,{1,2,3,4,5,6}))) -> 0 | BB185: =IFERROR(SUMPRODUCT(LARGE($C185:$AV185,{1,2,3,4})), "") ->  | BC185: =IFERROR(SUMPRODUCT(LARGE($C185:$AV185,{1,2,3,4,5,6,7})), "") ->  | BD185: =IFERROR(SUMPRODUCT(LARGE($C185:$AV185,{1,2,3,4,5,6,7,8})), "") -> 
AX186: 0 | AY186: 0 | AZ186: =IF($AY186<=6,SUM($C186:$AV186),SUMPRODUCT(LARGE($C186:$AV186,{1,2,3,4,5,6}))) -> 0 | BB186: =IFERROR(SUMPRODUCT(LARGE($C186:$AV186,{1,2,3,4})), "") ->  | BC186: =IFERROR(SUMPRODUCT(LARGE($C186:$AV186,{1,2,3,4,5,6,7})), "") ->  | BD186: =IFERROR(SUMPRODUCT(LARGE($C186:$AV186,{1,2,3,4,5,6,7,8})), "") -> 
AX187: 0 | AY187: 0 | AZ187: =IF($AY187<=6,SUM($C187:$AV187),SUMPRODUCT(LARGE($C187:$AV187,{1,2,3,4,5,6}))) -> 0 | BB187: =IFERROR(SUMPRODUCT(LARGE($C187:$AV187,{1,2,3,4})), "") ->  | BC187: =IFERROR(SUMPRODUCT(LARGE($C187:$AV187,{1,2,3,4,5,6,7})), "") ->  | BD187: =IFERROR(SUMPRODUCT(LARGE($C187:$AV187,{1,2,3,4,5,6,7,8})), "") -> 
AX188: 0 | AY188: 0 | AZ188: =IF($AY188<=6,SUM($C188:$AV188),SUMPRODUCT(LARGE($C188:$AV188,{1,2,3,4,5,6}))) -> 0 | BB188: =IFERROR(SUMPRODUCT(LARGE($C188:$AV188,{1,2,3,4})), "") ->  | BC188: =IFERROR(SUMPRODUCT(LARGE($C188:$AV188,{1,2,3,4,5,6,7})), "") ->  | BD188: =IFERROR(SUMPRODUCT(LARGE($C188:$AV188,{1,2,3,4,5,6,7,8})), "") -> 
AX189: 0 | AY189: 0 | AZ189: =IF($AY189<=6,SUM($C189:$AV189),SUMPRODUCT(LARGE($C189:$AV189,{1,2,3,4,5,6}))) -> 0 | BB189: =IFERROR(SUMPRODUCT(LARGE($C189:$AV189,{1,2,3,4})), "") ->  | BC189: =IFERROR(SUMPRODUCT(LARGE($C189:$AV189,{1,2,3,4,5,6,7})), "") ->  | BD189: =IFERROR(SUMPRODUCT(LARGE($C189:$AV189,{1,2,3,4,5,6,7,8})), "") -> 
AX190: 0 | AY190: 0 | AZ190: =IF($AY190<=6,SUM($C190:$AV190),SUMPRODUCT(LARGE($C190:$AV190,{1,2,3,4,5,6}))) -> 0 | BB190: =IFERROR(SUMPRODUCT(LARGE($C190:$AV190,{1,2,3,4})), "") ->  | BC190: =IFERROR(SUMPRODUCT(LARGE($C190:$AV190,{1,2,3,4,5,6,7})), "") ->  | BD190: =IFERROR(SUMPRODUCT(LARGE($C190:$AV190,{1,2,3,4,5,6,7,8})), "") -> 
AX191: 0 | AY191: 0 | AZ191: =IF($AY191<=6,SUM($C191:$AV191),SUMPRODUCT(LARGE($C191:$AV191,{1,2,3,4,5,6}))) -> 0 | BB191: =IFERROR(SUMPRODUCT(LARGE($C191:$AV191,{1,2,3,4})), "") ->  | BC191: =IFERROR(SUMPRODUCT(LARGE($C191:$AV191,{1,2,3,4,5,6,7})), "") ->  | BD191: =IFERROR(SUMPRODUCT(LARGE($C191:$AV191,{1,2,3,4,5,6,7,8})), "") -> 
AX192: 0 | AY192: 0 | AZ192: =IF($AY192<=6,SUM($C192:$AV192),SUMPRODUCT(LARGE($C192:$AV192,{1,2,3,4,5,6}))) -> 0 | BB192: =IFERROR(SUMPRODUCT(LARGE($C192:$AV192,{1,2,3,4})), "") ->  | BC192: =IFERROR(SUMPRODUCT(LARGE($C192:$AV192,{1,2,3,4,5,6,7})), "") ->  | BD192: =IFERROR(SUMPRODUCT(LARGE($C192:$AV192,{1,2,3,4,5,6,7,8})), "") -> 
AX193: 0 | AY193: 0 | AZ193: =IF($AY193<=6,SUM($C193:$AV193),SUMPRODUCT(LARGE($C193:$AV193,{1,2,3,4,5,6}))) -> 0 | BB193: =IFERROR(SUMPRODUCT(LARGE($C193:$AV193,{1,2,3,4})), "") ->  | BC193: =IFERROR(SUMPRODUCT(LARGE($C193:$AV193,{1,2,3,4,5,6,7})), "") ->  | BD193: =IFERROR(SUMPRODUCT(LARGE($C193:$AV193,{1,2,3,4,5,6,7,8})), "") -> 
AX194: 0 | AY194: 0 | AZ194: =IF($AY194<=6,SUM($C194:$AV194),SUMPRODUCT(LARGE($C194:$AV194,{1,2,3,4,5,6}))) -> 0 | BB194: =IFERROR(SUMPRODUCT(LARGE($C194:$AV194,{1,2,3,4})), "") ->  | BC194: =IFERROR(SUMPRODUCT(LARGE($C194:$AV194,{1,2,3,4,5,6,7})), "") ->  | BD194: =IFERROR(SUMPRODUCT(LARGE($C194:$AV194,{1,2,3,4,5,6,7,8})), "") -> 
AX195: =SUM($C195:$AW195) -> 0 | AY195: =COUNTA(C195:AV195) -> 0 | AZ195: =IF($AY195<=6,SUM($C195:$AV195),SUMPRODUCT(LARGE($C195:$AV195,{1,2,3,4,5,6}))) -> 0 | BB195: =IFERROR(SUMPRODUCT(LARGE($C195:$AV195,{1,2,3,4})), "") ->  | BC195: =IFERROR(SUMPRODUCT(LARGE($C195:$AV195,{1,2,3,4,5,6,7})), "") ->  | BD195: =IFERROR(SUMPRODUCT(LARGE($C195:$AV195,{1,2,3,4,5,6,7,8})), "") -> 
AX196: 0 | AY196: 0 | AZ196: =IF($AY196<=6,SUM($C196:$AV196),SUMPRODUCT(LARGE($C196:$AV196,{1,2,3,4,5,6}))) -> 0 | BA196: =IF(AND($AY196>=6,AZ196=AZ197),"Manual Calc Needed","") ->  | BB196: =IFERROR(SUMPRODUCT(LARGE($C196:$AV196,{1,2,3,4})), "") ->  | BC196: =IFERROR(SUMPRODUCT(LARGE($C196:$AV196,{1,2,3,4,5,6,7})), "") ->  | BD196: =IFERROR(SUMPRODUCT(LARGE($C196:$AV196,{1,2,3,4,5,6,7,8})), "") -> 
AX197: 0 | AY197: 0 | AZ197: =IF($AY197<=6,SUM($C197:$AV197),SUMPRODUCT(LARGE($C197:$AV197,{1,2,3,4,5,6}))) -> 0 | BB197: =IFERROR(SUMPRODUCT(LARGE($C197:$AV197,{1,2,3,4})), "") ->  | BC197: =IFERROR(SUMPRODUCT(LARGE($C197:$AV197,{1,2,3,4,5,6,7})), "") ->  | BD197: =IFERROR(SUMPRODUCT(LARGE($C197:$AV197,{1,2,3,4,5,6,7,8})), "") -> 
AX198: 0 | AY198: 0 | AZ198: =IF($AY198<=6,SUM($C198:$AV198),SUMPRODUCT(LARGE($C198:$AV198,{1,2,3,4,5,6}))) -> 0 | BB198: =IFERROR(SUMPRODUCT(LARGE($C198:$AV198,{1,2,3,4})), "") ->  | BC198: =IFERROR(SUMPRODUCT(LARGE($C198:$AV198,{1,2,3,4,5,6,7})), "") ->  | BD198: =IFERROR(SUMPRODUCT(LARGE($C198:$AV198,{1,2,3,4,5,6,7,8})), "") -> 
AX199: 0 | AY199: 0 | AZ199: =IF($AY199<=6,SUM($C199:$AV199),SUMPRODUCT(LARGE($C199:$AV199,{1,2,3,4,5,6}))) -> 0 | BB199: =IFERROR(SUMPRODUCT(LARGE($C199:$AV199,{1,2,3,4})), "") ->  | BC199: =IFERROR(SUMPRODUCT(LARGE($C199:$AV199,{1,2,3,4,5,6,7})), "") ->  | BD199: =IFERROR(SUMPRODUCT(LARGE($C199:$AV199,{1,2,3,4,5,6,7,8})), "") -> 
AX200: 0 | AY200: 0 | AZ200: =IF($AY200<=6,SUM($C200:$AV200),SUMPRODUCT(LARGE($C200:$AV200,{1,2,3,4,5,6}))) -> 0 | BB200: =IFERROR(SUMPRODUCT(LARGE($C200:$AV200,{1,2,3,4})), "") ->  | BC200: =IFERROR(SUMPRODUCT(LARGE($C200:$AV200,{1,2,3,4,5,6,7})), "") ->  | BD200: =IFERROR(SUMPRODUCT(LARGE($C200:$AV200,{1,2,3,4,5,6,7,8})), "") -> 
... 101 more rows

Sheet CC List
A1: BCC
A2: BeC | AR2: =SUM(C2:AP2) -> 0
A3: BPCC | AR3: 0
A4: BuCC | AR4: 0
A5: CasC | AR5: 0
A6: CeC | AR6: 0
A7: ClC | AR7: 0
A8: CoM | AR8: 0
A9: CrC | AR9: 0
A10: CSI | AR10: 0
A11: CTC | AR11: 0
A12: CWI | AR12: 0
A13: CyC | AR13: 0
A14: DCC | AR14: 0
A15: DVC | AR15: 0
A16: ECC | AR16: 0
A17: ELAC | AR17: 0
A18: EPCC | AR18: 0
A19: EWC | AR19: 0
A20: FC | AR20: 0
A21: FSCJ
A22: GCC | AR22: =SUM(C22:AP22) -> 0
A23: GCTC | AR23: 0
A24: GrCC | AR24: 0
A25: HCC | AR25: 0
A26: ICC | AR26: 0
A27: IllC | AR27: 0
A28: IVC | AR28: 0
A29: KCCC | AR29: 0
A30: LaCC | AR30: 0
A31: LAVC | AR31: 0
A32: LCC | AR32: 0
A33: Lee | AR33: 0
A34: LSC | AR34: 0
A35: LSCO | AR35: 0
A36: MHCC | AR36: 0
A37: MpC | AR37: 0
A38: MSAC | AR38: 0
A39: MSCC | AR39: 0
A40: NCC | AR40: 0
A41: NwC | AR41: 0
A42: OCC | AR42: 0
A43: OCTC | AR43: 0
A44: PaC | AR44: 0
A45: PCC | AR45: 0
A46: PSCC | AR46: 0
A47: RC | AR47: 0
A48: RCC | AR48: 0
A49: RHC | AR49: 0
A50: SaC | AR50: 0
A51: SCC | AR51: 0
A52: SFCC | AR52: 0
A53: SJC | AR53: 0
A54: SJCN | AR54: 0
A55: SnC | AR55: 0
A56: SoC | AR56: 0
A57: StC | AR57: 0
A58: TaCC | AR58: 0
A59: TCC
A60: TCCNE | AR60: =SUM(C60:AP60) -> 0
A61: TJC | AR61: 0
A62: TVCC | AR62: 0
A63: VSCC | AR63: 0
A64: WNCC | AR64: 0
A65: WSCC | AR65: 0
A66: WSCC | AR66: 0
A67: WWCC | AR67: 0
AR68: =SUM(C68:AP68) -> 0
AR69: 0
AR70: 0
AR71: 0
AR72: 0
AR73: 0
AR74: 0
AR75: 0
AR76: 0
AR77: 0
AR78: 0
AR79: 0
AR80: 0
AR81: 0
AR82: 0
AR83: 0
AR84: 0
AR85: 0
AR86: 0
AR87: 0
AR88: 0
AR89: 0
AR90: 0
AR91: 0
AR92: 0
AR93: 0
AR94: 0
AR95: 0
AR96: 0
AR97: 0
AR98: 0
AR99: 0
AR100: 0
AR101: 0
AR102: 0
AR103: 0
AR104: 0
AR105: 0
AR106: 0
AR107: 0
AR108: 0
AR109: 0
AR110: 0
AR111: 0
AR112: 0
AR113: 0
AR114: 0
AR115: 0
AR116: 0
AR117: 0
AR118: 0
AR119: 0
AR120: 0
AR121: 0
AR122: 0
AR123: 0
AR124: 0
AR125: 0
AR126: 0
AR127: 0
AR128: 0
AR129: 0
AR130: 0
AR131: =SUM(C131:AP131) -> 0
AR132: 0
AR133: 0
AR134: 0
AR135: 0
AR136: 0
AR137: 0
AR138: 0
AR139: 0
AR140: 0
AR141: 0
AR142: 0
AR143: 0
AR144: 0
AR145: 0
AR146: 0
AR147: 0
AR148: 0
AR149: 0
AR150: 0
AR151: 0
AR152: 0
AR153: 0
AR154: 0
AR155: 0
AR156: 0
AR157: 0
AR158: 0
AR159: 0
AR160: 0
AR161: 0
AR162: 0
AR163: 0
AR164: 0
AR165: 0
AR166: 0
AR167: 0
AR168: 0
AR169: 0
AR170: 0
AR171: 0
AR172: 0
AR173: 0
AR174: 0
AR175: 0
AR176: 0
AR177: 0
AR178: 0
AR179: 0
AR180: 0
AR181: 0
AR182: 0
AR183: 0
AR184: 0
AR185: 0
AR186: 0
AR187: 0
AR188: 0
AR189: 0
AR190: 0
AR191: 0
AR192: 0
AR193: 0
AR194: 0
AR195: =SUM(C195:AP195) -> 0
AR196: 0
AR197: 0
AR198: 0
AR199: 0
AR200: 0
... 39 more rows

Sheet CC
C1: USM | D1: CSI | E1: NWC | F1: UAM | G1: L&C | H1: BGS1 | I1: BGS2 | J1: MTSU | K1: PLNU | L1: LSUS | M1: LiC | N1: ETBU | O1: ACU | P1: LCC | BA1: Head to Head | BB1: H/L | BC1: 7th Tourn. | BD1: 8th Tourn.
B2: Squad | C2: USM (9/25-26) | D2: CSI (9/24-25) | E2: NW College (9/24-25) | F2: UAM (10/8-10) | G2: L & C / Whitman (10/8-10) | H2: BGSU 1 (10/16-17) | I2: BGSU 2 (10/16-17) | J2: MTSU (10/22-23) | K2: PLNU (10/22-23) | L2: LSUS (11/5-7) | M2: LiC (11/12-14) | N2: ETBU (11/19-20) | O2: ACU (12/3-5) | P2: LCC (12/4-6) | AW2: over 6/2nd host | AX2: Total Points | AY2: Tournament Count | AZ2: Best Top 6 | BA2: 1st Tie Breaker | BB2: 2nd Tie Breaker | BC2: 3rd Tie Breaker | BD2: 4th Tie Breaker
B3: CSI | D3: 28 | G3: 18 | M3: 18 | O3: 36 | AX3: =SUM($C3:$AW3) -> 100 | AY3: =COUNTA(C3:AV3) -> 4 | AZ3: =IF($AY3<=6,SUM($C3:$AV3),SUMPRODUCT(LARGE($C3:$AV3,{1,2,3,4,5,6}))) -> 100 | BA3: =IF(AND($AY3>=6,AZ3=AZ4),"Manual Calc Needed","") ->  | BB3: =IFERROR(SUMPRODUCT(LARGE($C3:$AV3,{1,2,3,4})), "") -> 100 | BC3: =IFERROR(SUMPRODUCT(LARGE($C3:$AV3,{1,2,3,4,5,6,7})), "") ->  | BD3: =IFERROR(SUMPRODUCT(LARGE($C3:$AV3,{1,2,3,4,5,6,7,8})), "") -> 
B4: CWI | G4: 30 | M4: 29 | P4: 33 | AX4: =SUM($C4:$AW4) -> 92 | AY4: =COUNTA(C4:AV4) -> 3 | AZ4: =IF($AY4<=6,SUM($C4:$AV4),SUMPRODUCT(LARGE($C4:$AV4,{1,2,3,4,5,6}))) -> 92 | BA4: =IF(AND($AY4>=6,AZ4=AZ5),"Manual Calc Needed","") ->  | BB4: =IFERROR(SUMPRODUCT(LARGE($C4:$AV4,{1,2,3,4})), "") ->  | BC4: =IFERROR(SUMPRODUCT(LARGE($C4:$AV4,{1,2,3,4,5,6,7})), "") ->  | BD4: =IFERROR(SUMPRODUCT(LARGE($C4:$AV4,{1,2,3,4,5,6,7,8})), "") -> 
B5: Lee | F5: 14 | L5: 17 | N5: 35 | O5: 26 | AX5: =SUM($C5:$AW5) -> 92 | AY5: =COUNTA(C5:AV5) -> 4 | AZ5: =IF($AY5<=6,SUM($C5:$AV5),SUMPRODUCT(LARGE($C5:$AV5,{1,2,3,4,5,6}))) -> 92 | BA5: =IF(AND($AY5>=6,AZ5=AZ6),"Manual Calc Needed","") ->  | BB5: =IFERROR(SUMPRODUCT(LARGE($C5:$AV5,{1,2,3,4})), "") -> 92 | BC5: =IFERROR(SUMPRODUCT(LARGE($C5:$AV5,{1,2,3,4,5,6,7})), "") ->  | BD5: =IFERROR(SUMPRODUCT(LARGE($C5:$AV5,{1,2,3,4,5,6,7,8})), "") -> 
B6: JSCC | C6: 19 | F6: 16 | O6: 22 | AX6: =SUM($C6:$AW6) -> 57 | AY6: =COUNTA(C6:AV6) -> 3 | AZ6: =IF($AY6<=6,SUM($C6:$AV6),SUMPRODUCT(LARGE($C6:$AV6,{1,2,3,4,5,6}))) -> 57 | BA6: =IF(AND($AY6>=6,AZ6=AZ7),"Manual Calc Needed","") ->  | BB6: =IFERROR(SUMPRODUCT(LARGE($C6:$AV6,{1,2,3,4})), "") ->  | BC6: =IFERROR(SUMPRODUCT(LARGE($C6:$AV6,{1,2,3,4,5,6,7})), "") ->  | BD6: =IFERROR(SUMPRODUCT(LARGE($C6:$AV6,{1,2,3,4,5,6,7,8})), "") -> 
B7: BPCC | C7: 7 | F7: 6 | J7: 1 | L7: 8 | N7: 15 | O7: 18 | AX7: =SUM($C7:$AW7) -> 55 | AY7: =COUNTA(C7:AV7) -> 6 | AZ7: =IF($AY7<=6,SUM($C7:$AV7),SUMPRODUCT(LARGE($C7:$AV7,{1,2,3,4,5,6}))) -> 55 | BA7: =IF(AND($AY7>=6,AZ7=AZ8),"Manual Calc Needed","") ->  | BB7: =IFERROR(SUMPRODUCT(LARGE($C7:$AV7,{1,2,3,4})), "") -> 48 | BC7: =IFERROR(SUMPRODUCT(LARGE($C7:$AV7,{1,2,3,4,5,6,7})), "") ->  | BD7: =IFERROR(SUMPRODUCT(LARGE($C7:$AV7,{1,2,3,4,5,6,7,8})), "") -> 
B8: CasC | E8: 28 | I8: 17 | AX8: =SUM($C8:$AW8) -> 45 | AY8: =COUNTA(C8:AV8) -> 2 | AZ8: =IF($AY8<=6,SUM($C8:$AV8),SUMPRODUCT(LARGE($C8:$AV8,{1,2,3,4,5,6}))) -> 45 | BA8: =IF(AND($AY8>=6,AZ8=AZ9),"Manual Calc Needed","") ->  | BB8: =IFERROR(SUMPRODUCT(LARGE($C8:$AV8,{1,2,3,4})), "") ->  | BC8: =IFERROR(SUMPRODUCT(LARGE($C8:$AV8,{1,2,3,4,5,6,7})), "") ->  | BD8: =IFERROR(SUMPRODUCT(LARGE($C8:$AV8,{1,2,3,4,5,6,7,8})), "") -> 
B9: ECC | K9: 45 | AX9: =SUM($C9:$AW9) -> 45 | AY9: =COUNTA(C9:AV9) -> 1 | AZ9: =IF($AY9<=6,SUM($C9:$AV9),SUMPRODUCT(LARGE($C9:$AV9,{1,2,3,4,5,6}))) -> 45 | BA9: =IF(AND($AY9>=6,AZ9=AZ10),"Manual Calc Needed","") ->  | BB9: =IFERROR(SUMPRODUCT(LARGE($C9:$AV9,{1,2,3,4})), "") ->  | BC9: =IFERROR(SUMPRODUCT(LARGE($C9:$AV9,{1,2,3,4,5,6,7})), "") ->  | BD9: =IFERROR(SUMPRODUCT(LARGE($C9:$AV9,{1,2,3,4,5,6,7,8})), "") -> 
B10: LCC | M10: 6 | P10: 18 | AX10: =SUM($C10:$AW10) -> 24 | AY10: =COUNTA(C10:AV10) -> 2 | AZ10: =IF($AY10<=6,SUM($C10:$AV10),SUMPRODUCT(LARGE($C10:$AV10,{1,2,3,4,5,6}))) -> 24 | BA10: =IF(AND($AY10>=6,AZ10=AZ11),"Manual Calc Needed","") ->  | BB10: =IFERROR(SUMPRODUCT(LARGE($C10:$AV10,{1,2,3,4})), "") ->  | BC10: =IFERROR(SUMPRODUCT(LARGE($C10:$AV10,{1,2,3,4,5,6,7})), "") ->  | BD10: =IFERROR(SUMPRODUCT(LARGE($C10:$AV10,{1,2,3,4,5,6,7,8})), "") -> 
B11: NwC | E11: 10 | K11: 10 | AX11: =SUM($C11:$AW11) -> 20 | AY11: =COUNTA(C11:AV11) -> 2 | AZ11: =IF($AY11<=6,SUM($C11:$AV11),SUMPRODUCT(LARGE($C11:$AV11,{1,2,3,4,5,6}))) -> 20 | BA11: =IF(AND($AY11>=6,AZ11=#REF!),"Manual Calc Needed","") ->  | BB11: =IFERROR(SUMPRODUCT(LARGE($C11:$AV11,{1,2,3,4})), "") ->  | BC11: =IFERROR(SUMPRODUCT(LARGE($C11:$AV11,{1,2,3,4,5,6,7})), "") ->  | BD11: =IFERROR(SUMPRODUCT(LARGE($C11:$AV11,{1,2,3,4,5,6,7,8})), "") -> 
B12: OCC | K12: 15 | AX12: =SUM($C12:$AW12) -> 15 | AY12: =COUNTA(C12:AV12) -> 1 | AZ12: =IF($AY12<=6,SUM($C12:$AV12),SUMPRODUCT(LARGE($C12:$AV12,{1,2,3,4,5,6}))) -> 15 | BA12: =IF(AND($AY12>=6,AZ12=AZ13),"Manual Calc Needed","") ->  | BB12: =IFERROR(SUMPRODUCT(LARGE($C12:$AV12,{1,2,3,4})), "") ->  | BC12: =IFERROR(SUMPRODUCT(LARGE($C12:$AV12,{1,2,3,4,5,6,7})), "") ->  | BD12: =IFERROR(SUMPRODUCT(LARGE($C12:$AV12,{1,2,3,4,5,6,7,8})), "") -> 
B13: OCTC | G13: 15 | AX13: =SUM($C13:$AW13) -> 15 | AY13: =COUNTA(C13:AV13) -> 1 | AZ13: =IF($AY13<=6,SUM($C13:$AV13),SUMPRODUCT(LARGE($C13:$AV13,{1,2,3,4,5,6}))) -> 15 | BA13: =IF(AND($AY13>=6,AZ13=AZ14),"Manual Calc Needed","") ->  | BB13: =IFERROR(SUMPRODUCT(LARGE($C13:$AV13,{1,2,3,4})), "") ->  | BC13: =IFERROR(SUMPRODUCT(LARGE($C13:$AV13,{1,2,3,4,5,6,7})), "") ->  | BD13: =IFERROR(SUMPRODUCT(LARGE($C13:$AV13,{1,2,3,4,5,6,7,8})), "") -> 
B14: FSCJ | H14: 9 | AX14: =SUM($C14:$AW14) -> 9 | AY14: =COUNTA(C14:AV14) -> 1 | AZ14: =IF($AY14<=6,SUM($C14:$AV14),SUMPRODUCT(LARGE($C14:$AV14,{1,2,3,4,5,6}))) -> 9 | BA14: =IF(AND($AY14>=6,AZ14=AZ15),"Manual Calc Needed","") ->  | BB14: =IFERROR(SUMPRODUCT(LARGE($C14:$AV14,{1,2,3,4})), "") ->  | BC14: =IFERROR(SUMPRODUCT(LARGE($C14:$AV14,{1,2,3,4,5,6,7})), "") ->  | BD14: =IFERROR(SUMPRODUCT(LARGE($C14:$AV14,{1,2,3,4,5,6,7,8})), "") -> 
B15: MSCC | L15: 5 | AX15: =SUM($C15:$AW15) -> 5 | AY15: =COUNTA(C15:AV15) -> 1 | AZ15: =IF($AY15<=6,SUM($C15:$AV15),SUMPRODUCT(LARGE($C15:$AV15,{1,2,3,4,5,6}))) -> 5 | BA15: =IF(AND($AY15>=6,AZ15=AZ16),"Manual Calc Needed","") ->  | BB15: =IFERROR(SUMPRODUCT(LARGE($C15:$AV15,{1,2,3,4})), "") ->  | BC15: =IFERROR(SUMPRODUCT(LARGE($C15:$AV15,{1,2,3,4,5,6,7})), "") ->  | BD15: =IFERROR(SUMPRODUCT(LARGE($C15:$AV15,{1,2,3,4,5,6,7,8})), "") -> 
B16: RHCC | K16: 4 | AX16: =SUM($C16:$AW16) -> 4 | AY16: =COUNTA(C16:AV16) -> 1 | AZ16: =IF($AY16<=6,SUM($C16:$AV16),SUMPRODUCT(LARGE($C16:$AV16,{1,2,3,4,5,6}))) -> 4 | BA16: =IF(AND($AY16>=6,AZ16=AZ17),"Manual Calc Needed","") ->  | BB16: =IFERROR(SUMPRODUCT(LARGE($C16:$AV16,{1,2,3,4})), "") ->  | BC16: =IFERROR(SUMPRODUCT(LARGE($C16:$AV16,{1,2,3,4,5,6,7})), "") ->  | BD16: =IFERROR(SUMPRODUCT(LARGE($C16:$AV16,{1,2,3,4,5,6,7,8})), "") -> 
B17: TaCC | I17: 4 | AX17: =SUM($C17:$AW17) -> 4 | AY17: =COUNTA(C17:AV17) -> 1 | AZ17: =IF($AY17<=6,SUM($C17:$AV17),SUMPRODUCT(LARGE($C17:$AV17,{1,2,3,4,5,6}))) -> 4 | BA17: =IF(AND($AY17>=6,AZ17=AZ18),"Manual Calc Needed","") ->  | BB17: =IFERROR(SUMPRODUCT(LARGE($C17:$AV17,{1,2,3,4})), "") ->  | BC17: =IFERROR(SUMPRODUCT(LARGE($C17:$AV17,{1,2,3,4,5,6,7})), "") ->  | BD17: =IFERROR(SUMPRODUCT(LARGE($C17:$AV17,{1,2,3,4,5,6,7,8})), "") -> 
B18: LSCO | F18: 3 | AX18: =SUM($C18:$AW18) -> 3 | AY18: =COUNTA(C18:AV18) -> 1 | AZ18: =IF($AY18<=6,SUM($C18:$AV18),SUMPRODUCT(LARGE($C18:$AV18,{1,2,3,4,5,6}))) -> 3 | BA18: =IF(AND($AY18>=6,AZ18=AZ19),"Manual Calc Needed","") ->  | BB18: =IFERROR(SUMPRODUCT(LARGE($C18:$AV18,{1,2,3,4})), "") ->  | BC18: =IFERROR(SUMPRODUCT(LARGE($C18:$AV18,{1,2,3,4,5,6,7})), "") ->  | BD18: =IFERROR(SUMPRODUCT(LARGE($C18:$AV18,{1,2,3,4,5,6,7,8})), "") -> 
B19: GC | K19: 2 | AX19: =SUM($C19:$AW19) -> 2 | AY19: =COUNTA(C19:AV19) -> 1 | AZ19: =IF($AY19<=6,SUM($C19:$AV19),SUMPRODUCT(LARGE($C19:$AV19,{1,2,3,4,5,6}))) -> 2 | BA19: =IF(AND($AY19>=6,AZ19=AZ20),"Manual Calc Needed","") ->  | BB19: =IFERROR(SUMPRODUCT(LARGE($C19:$AV19,{1,2,3,4})), "") ->  | BC19: =IFERROR(SUMPRODUCT(LARGE($C19:$AV19,{1,2,3,4,5,6,7})), "") ->  | BD19: =IFERROR(SUMPRODUCT(LARGE($C19:$AV19,{1,2,3,4,5,6,7,8})), "") -> 
B20: MHCC | G20: 2 | AX20: =SUM($C20:$AW20) -> 2 | AY20: =COUNTA(C20:AV20) -> 1 | AZ20: =IF($AY20<=6,SUM($C20:$AV20),SUMPRODUCT(LARGE($C20:$AV20,{1,2,3,4,5,6}))) -> 2 | BA20: =IF(AND($AY20>=6,AZ20=#REF!),"Manual Calc Needed","") ->  | BB20: =IFERROR(SUMPRODUCT(LARGE($C20:$AV20,{1,2,3,4})), "") ->  | BC20: =IFERROR(SUMPRODUCT(LARGE($C20:$AV20,{1,2,3,4,5,6,7})), "") ->  | BD20: =IFERROR(SUMPRODUCT(LARGE($C20:$AV20,{1,2,3,4,5,6,7,8})), "") -> 
B21: PC | K21: 2 | AX21: =SUM($C21:$AW21) -> 2 | AY21: =COUNTA(C21:AV21) -> 1 | AZ21: =IF($AY21<=6,SUM($C21:$AV21),SUMPRODUCT(LARGE($C21:$AV21,{1,2,3,4,5,6}))) -> 2 | BA21: =IF(AND($AY21>=6,AZ21=AZ22),"Manual Calc Needed","") ->  | BB21: =IFERROR(SUMPRODUCT(LARGE($C21:$AV21,{1,2,3,4})), "") ->  | BC21: =IFERROR(SUMPRODUCT(LARGE($C21:$AV21,{1,2,3,4,5,6,7})), "") ->  | BD21: =IFERROR(SUMPRODUCT(LARGE($C21:$AV21,{1,2,3,4,5,6,7,8})), "") -> 
AX22: =SUM($C22:$AW22) -> 0 | AY22: =COUNTA(C22:AV22) -> 0 | AZ22: =IF($AY22<=6,SUM($C22:$AV22),SUMPRODUCT(LARGE($C22:$AV22,{1,2,3,4,5,6}))) -> 0 | BA22: =IF(AND($AY22>=6,AZ22=AZ23),"Manual Calc Needed","") ->  | BB22: =IFERROR(SUMPRODUCT(LARGE($C22:$AV22,{1,2,3,4})), "") ->  | BC22: =IFERROR(SUMPRODUCT(LARGE($C22:$AV22,{1,2,3,4,5,6,7})), "") ->  | BD22: =IFERROR(SUMPRODUCT(LARGE($C22:$AV22,{1,2,3,4,5,6,7,8})), "") -> 
AX23: 0 | AY23: 0 | AZ23: =IF($AY23<=6,SUM($C23:$AV23),SUMPRODUCT(LARGE($C23:$AV23,{1,2,3,4,5,6}))) -> 0 | BB23: =IFERROR(SUMPRODUCT(LARGE($C23:$AV23,{1,2,3,4})), "") ->  | BC23: =IFERROR(SUMPRODUCT(LARGE($C23:$AV23,{1,2,3,4,5,6,7})), "") ->  | BD23: =IFERROR(SUMPRODUCT(LARGE($C23:$AV23,{1,2,3,4,5,6,7,8})), "") -> 
AX24: 0 | AY24: 0 | AZ24: =IF($AY24<=6,SUM($C24:$AV24),SUMPRODUCT(LARGE($C24:$AV24,{1,2,3,4,5,6}))) -> 0 | BB24: =IFERROR(SUMPRODUCT(LARGE($C24:$AV24,{1,2,3,4})), "") ->  | BC24: =IFERROR(SUMPRODUCT(LARGE($C24:$AV24,{1,2,3,4,5,6,7})), "") ->  | BD24: =IFERROR(SUMPRODUCT(LARGE($C24:$AV24,{1,2,3,4,5,6,7,8})), "") -> 
AX25: 0 | AY25: 0 | AZ25: =IF($AY25<=6,SUM($C25:$AV25),SUMPRODUCT(LARGE($C25:$AV25,{1,2,3,4,5,6}))) -> 0 | BB25: =IFERROR(SUMPRODUCT(LARGE($C25:$AV25,{1,2,3,4})), "") ->  | BC25: =IFERROR(SUMPRODUCT(LARGE($C25:$AV25,{1,2,3,4,5,6,7})), "") ->  | BD25: =IFERROR(SUMPRODUCT(LARGE($C25:$AV25,{1,2,3,4,5,6,7,8})), "") -> 
AX26: 0 | AY26: 0 | AZ26: =IF($AY26<=6,SUM($C26:$AV26),SUMPRODUCT(LARGE($C26:$AV26,{1,2,3,4,5,6}))) -> 0 | BB26: =IFERROR(SUMPRODUCT(LARGE($C26:$AV26,{1,2,3,4})), "") ->  | BC26: =IFERROR(SUMPRODUCT(LARGE($C26:$AV26,{1,2,3,4,5,6,7})), "") ->  | BD26: =IFERROR(SUMPRODUCT(LARGE($C26:$AV26,{1,2,3,4,5,6,7,8})), "") -> 
AX27: 0 | AY27: 0 | AZ27: =IF($AY27<=6,SUM($C27:$AV27),SUMPRODUCT(LARGE($C27:$AV27,{1,2,3,4,5,6}))) -> 0 | BB27: =IFERROR(SUMPRODUCT(LARGE($C27:$AV27,{1,2,3,4})), "") ->  | BC27: =IFERROR(SUMPRODUCT(LARGE($C27:$AV27,{1,2,3,4,5,6,7})), "") ->  | BD27: =IFERROR(SUMPRODUCT(LARGE($C27:$AV27,{1,2,3,4,5,6,7,8})), "") -> 
AX28: 0 | AY28: 0 | AZ28: =IF($AY28<=6,SUM($C28:$AV28),SUMPRODUCT(LARGE($C28:$AV28,{1,2,3,4,5,6}))) -> 0 | BB28: =IFERROR(SUMPRODUCT(LARGE($C28:$AV28,{1,2,3,4})), "") ->  | BC28: =IFERROR(SUMPRODUCT(LARGE($C28:$AV28,{1,2,3,4,5,6,7})), "") ->  | BD28: =IFERROR(SUMPRODUCT(LARGE($C28:$AV28,{1,2,3,4,5,6,7,8})), "") -> 
AX29: 0 | AY29: 0 | AZ29: =IF($AY29<=6,SUM($C29:$AV29),SUMPRODUCT(LARGE($C29:$AV29,{1,2,3,4,5,6}))) -> 0 | BB29: =IFERROR(SUMPRODUCT(LARGE($C29:$AV29,{1,2,3,4})), "") ->  | BC29: =IFERROR(SUMPRODUCT(LARGE($C29:$AV29,{1,2,3,4,5,6,7})), "") ->  | BD29: =IFERROR(SUMPRODUCT(LARGE($C29:$AV29,{1,2,3,4,5,6,7,8})), "") -> 
AX30: 0 | AY30: 0 | AZ30: =IF($AY30<=6,SUM($C30:$AV30),SUMPRODUCT(LARGE($C30:$AV30,{1,2,3,4,5,6}))) -> 0 | BB30: =IFERROR(SUMPRODUCT(LARGE($C30:$AV30,{1,2,3,4})), "") ->  | BC30: =IFERROR(SUMPRODUCT(LARGE($C30:$AV30,{1,2,3,4,5,6,7})), "") ->  | BD30: =IFERROR(SUMPRODUCT(LARGE($C30:$AV30,{1,2,3,4,5,6,7,8})), "") -> 
AX31: 0 | AY31: 0 | AZ31: =IF($AY31<=6,SUM($C31:$AV31),SUMPRODUCT(LARGE($C31:$AV31,{1,2,3,4,5,6}))) -> 0 | BB31: =IFERROR(SUMPRODUCT(LARGE($C31:$AV31,{1,2,3,4})), "") ->  | BC31: =IFERROR(SUMPRODUCT(LARGE($C31:$AV31,{1,2,3,4,5,6,7})), "") ->  | BD31: =IFERROR(SUMPRODUCT(LARGE($C31:$AV31,{1,2,3,4,5,6,7,8})), "") -> 
AX32: 0 | AY32: 0 | AZ32: =IF($AY32<=6,SUM($C32:$AV32),SUMPRODUCT(LARGE($C32:$AV32,{1,2,3,4,5,6}))) -> 0 | BB32: =IFERROR(SUMPRODUCT(LARGE($C32:$AV32,{1,2,3,4})), "") ->  | BC32: =IFERROR(SUMPRODUCT(LARGE($C32:$AV32,{1,2,3,4,5,6,7})), "") ->  | BD32: =IFERROR(SUMPRODUCT(LARGE($C32:$AV32,{1,2,3,4,5,6,7,8})), "") -> 
AX33: 0 | AY33: 0 | AZ33: =IF($AY33<=6,SUM($C33:$AV33),SUMPRODUCT(LARGE($C33:$AV33,{1,2,3,4,5,6}))) -> 0 | BB33: =IFERROR(SUMPRODUCT(LARGE($C33:$AV33,{1,2,3,4})), "") ->  | BC33: =IFERROR(SUMPRODUCT(LARGE($C33:$AV33,{1,2,3,4,5,6,7})), "") ->  | BD33: =IFERROR(SUMPRODUCT(LARGE($C33:$AV33,{1,2,3,4,5,6,7,8})), "") -> 
AX34: 0 | AY34: 0 | AZ34: =IF($AY34<=6,SUM($C34:$AV34),SUMPRODUCT(LARGE($C34:$AV34,{1,2,3,4,5,6}))) -> 0 | BB34: =IFERROR(SUMPRODUCT(LARGE($C34:$AV34,{1,2,3,4})), "") ->  | BC34: =IFERROR(SUMPRODUCT(LARGE($C34:$AV34,{1,2,3,4,5,6,7})), "") ->  | BD34: =IFERROR(SUMPRODUCT(LARGE($C34:$AV34,{1,2,3,4,5,6,7,8})), "") -> 
AX35: 0 | AY35: 0 | AZ35: =IF($AY35<=6,SUM($C35:$AV35),SUMPRODUCT(LARGE($C35:$AV35,{1,2,3,4,5,6}))) -> 0 | BB35: =IFERROR(SUMPRODUCT(LARGE($C35:$AV35,{1,2,3,4})), "") ->  | BC35: =IFERROR(SUMPRODUCT(LARGE($C35:$AV35,{1,2,3,4,5,6,7})), "") ->  | BD35: =IFERROR(SUMPRODUCT(LARGE($C35:$AV35,{1,2,3,4,5,6,7,8})), "") -> 
AX36: 0 | AY36: 0 | AZ36: =IF($AY36<=6,SUM($C36:$AV36),SUMPRODUCT(LARGE($C36:$AV36,{1,2,3,4,5,6}))) -> 0 | BB36: =IFERROR(SUMPRODUCT(LARGE($C36:$AV36,{1,2,3,4})), "") ->  | BC36: =IFERROR(SUMPRODUCT(LARGE($C36:$AV36,{1,2,3,4,5,6,7})), "") ->  | BD36: =IFERROR(SUMPRODUCT(LARGE($C36:$AV36,{1,2,3,4,5,6,7,8})), "") -> 
AX37: 0 | AY37: 0 | AZ37: =IF($AY37<=6,SUM($C37:$AV37),SUMPRODUCT(LARGE($C37:$AV37,{1,2,3,4,5,6}))) -> 0 | BB37: =IFERROR(SUMPRODUCT(LARGE($C37:$AV37,{1,2,3,4})), "") ->  | BC37: =IFERROR(SUMPRODUCT(LARGE($C37:$AV37,{1,2,3,4,5,6,7})), "") ->  | BD37: =IFERROR(SUMPRODUCT(LARGE($C37:$AV37,{1,2,3,4,5,6,7,8})), "") -> 
AX38: 0 | AY38: 0 | AZ38: =IF($AY38<=6,SUM($C38:$AV38),SUMPRODUCT(LARGE($C38:$AV38,{1,2,3,4,5,6}))) -> 0 | BB38: =IFERROR(SUMPRODUCT(LARGE($C38:$AV38,{1,2,3,4})), "") ->  | BC38: =IFERROR(SUMPRODUCT(LARGE($C38:$AV38,{1,2,3,4,5,6,7})), "") ->  | BD38: =IFERROR(SUMPRODUCT(LARGE($C38:$AV38,{1,2,3,4,5,6,7,8})), "") -> 
AX39: 0 | AY39: 0 | AZ39: =IF($AY39<=6,SUM($C39:$AV39),SUMPRODUCT(LARGE($C39:$AV39,{1,2,3,4,5,6}))) -> 0 | BB39: =IFERROR(SUMPRODUCT(LARGE($C39:$AV39,{1,2,3,4})), "") ->  | BC39: =IFERROR(SUMPRODUCT(LARGE($C39:$AV39,{1,2,3,4,5,6,7})), "") ->  | BD39: =IFERROR(SUMPRODUCT(LARGE($C39:$AV39,{1,2,3,4,5,6,7,8})), "") -> 
AX40: 0 | AY40: 0 | AZ40: =IF($AY40<=6,SUM($C40:$AV40),SUMPRODUCT(LARGE($C40:$AV40,{1,2,3,4,5,6}))) -> 0 | BB40: =IFERROR(SUMPRODUCT(LARGE($C40:$AV40,{1,2,3,4})), "") ->  | BC40: =IFERROR(SUMPRODUCT(LARGE($C40:$AV40,{1,2,3,4,5,6,7})), "") ->  | BD40: =IFERROR(SUMPRODUCT(LARGE($C40:$AV40,{1,2,3,4,5,6,7,8})), "") -> 
AX41: 0 | AY41: 0 | AZ41: =IF($AY41<=6,SUM($C41:$AV41),SUMPRODUCT(LARGE($C41:$AV41,{1,2,3,4,5,6}))) -> 0 | BB41: =IFERROR(SUMPRODUCT(LARGE($C41:$AV41,{1,2,3,4})), "") ->  | BC41: =IFERROR(SUMPRODUCT(LARGE($C41:$AV41,{1,2,3,4,5,6,7})), "") ->  | BD41: =IFERROR(SUMPRODUCT(LARGE($C41:$AV41,{1,2,3,4,5,6,7,8})), "") -> 
AX42: 0 | AY42: 0 | AZ42: =IF($AY42<=6,SUM($C42:$AV42),SUMPRODUCT(LARGE($C42:$AV42,{1,2,3,4,5,6}))) -> 0 | BB42: =IFERROR(SUMPRODUCT(LARGE($C42:$AV42,{1,2,3,4})), "") ->  | BC42: =IFERROR(SUMPRODUCT(LARGE($C42:$AV42,{1,2,3,4,5,6,7})), "") ->  | BD42: =IFERROR(SUMPRODUCT(LARGE($C42:$AV42,{1,2,3,4,5,6,7,8})), "") -> 
AX43: 0 | AY43: 0 | AZ43: =IF($AY43<=6,SUM($C43:$AV43),SUMPRODUCT(LARGE($C43:$AV43,{1,2,3,4,5,6}))) -> 0 | BB43: =IFERROR(SUMPRODUCT(LARGE($C43:$AV43,{1,2,3,4})), "") ->  | BC43: =IFERROR(SUMPRODUCT(LARGE($C43:$AV43,{1,2,3,4,5,6,7})), "") ->  | BD43: =IFERROR(SUMPRODUCT(LARGE($C43:$AV43,{1,2,3,4,5,6,7,8})), "") -> 
AX44: 0 | AY44: 0 | AZ44: =IF($AY44<=6,SUM($C44:$AV44),SUMPRODUCT(LARGE($C44:$AV44,{1,2,3,4,5,6}))) -> 0 | BB44: =IFERROR(SUMPRODUCT(LARGE($C44:$AV44,{1,2,3,4})), "") ->  | BC44: =IFERROR(SUMPRODUCT(LARGE($C44:$AV44,{1,2,3,4,5,6,7})), "") ->  | BD44: =IFERROR(SUMPRODUCT(LARGE($C44:$AV44,{1,2,3,4,5,6,7,8})), "") -> 
AX45: 0 | AY45: 0 | AZ45: =IF($AY45<=6,SUM($C45:$AV45),SUMPRODUCT(LARGE($C45:$AV45,{1,2,3,4,5,6}))) -> 0 | BB45: =IFERROR(SUMPRODUCT(LARGE($C45:$AV45,{1,2,3,4})), "") ->  | BC45: =IFERROR(SUMPRODUCT(LARGE($C45:$AV45,{1,2,3,4,5,6,7})), "") ->  | BD45: =IFERROR(SUMPRODUCT(LARGE($C45:$AV45,{1,2,3,4,5,6,7,8})), "") -> 
AX46: 0 | AY46: 0 | AZ46: =IF($AY46<=6,SUM($C46:$AV46),SUMPRODUCT(LARGE($C46:$AV46,{1,2,3,4,5,6}))) -> 0 | BB46: =IFERROR(SUMPRODUCT(LARGE($C46:$AV46,{1,2,3,4})), "") ->  | BC46: =IFERROR(SUMPRODUCT(LARGE($C46:$AV46,{1,2,3,4,5,6,7})), "") ->  | BD46: =IFERROR(SUMPRODUCT(LARGE($C46:$AV46,{1,2,3,4,5,6,7,8})), "") -> 
AX47: 0 | AY47: 0 | AZ47: =IF($AY47<=6,SUM($C47:$AV47),SUMPRODUCT(LARGE($C47:$AV47,{1,2,3,4,5,6}))) -> 0 | BB47: =IFERROR(SUMPRODUCT(LARGE($C47:$AV47,{1,2,3,4})), "") ->  | BC47: =IFERROR(SUMPRODUCT(LARGE($C47:$AV47,{1,2,3,4,5,6,7})), "") ->  | BD47: =IFERROR(SUMPRODUCT(LARGE($C47:$AV47,{1,2,3,4,5,6,7,8})), "") -> 
AX48: 0 | AY48: 0 | AZ48: =IF($AY48<=6,SUM($C48:$AV48),SUMPRODUCT(LARGE($C48:$AV48,{1,2,3,4,5,6}))) -> 0 | BB48: =IFERROR(SUMPRODUCT(LARGE($C48:$AV48,{1,2,3,4})), "") ->  | BC48: =IFERROR(SUMPRODUCT(LARGE($C48:$AV48,{1,2,3,4,5,6,7})), "") ->  | BD48: =IFERROR(SUMPRODUCT(LARGE($C48:$AV48,{1,2,3,4,5,6,7,8})), "") -> 
AX49: 0 | AY49: 0 | AZ49: =IF($AY49<=6,SUM($C49:$AV49),SUMPRODUCT(LARGE($C49:$AV49,{1,2,3,4,5,6}))) -> 0 | BB49: =IFERROR(SUMPRODUCT(LARGE($C49:$AV49,{1,2,3,4})), "") ->  | BC49: =IFERROR(SUMPRODUCT(LARGE($C49:$AV49,{1,2,3,4,5,6,7})), "") ->  | BD49: =IFERROR(SUMPRODUCT(LARGE($C49:$AV49,{1,2,3,4,5,6,7,8})), "") -> 
AX50: 0 | AY50: 0 | AZ50: =IF($AY50<=6,SUM($C50:$AV50),SUMPRODUCT(LARGE($C50:$AV50,{1,2,3,4,5,6}))) -> 0 | BB50: =IFERROR(SUMPRODUCT(LARGE($C50:$AV50,{1,2,3,4})), "") ->  | BC50: =IFERROR(SUMPRODUCT(LARGE($C50:$AV50,{1,2,3,4,5,6,7})), "") ->  | BD50: =IFERROR(SUMPRODUCT(LARGE($C50:$AV50,{1,2,3,4,5,6,7,8})), "") -> 
AX51: 0 | AY51: 0 | AZ51: =IF($AY51<=6,SUM($C51:$AV51),SUMPRODUCT(LARGE($C51:$AV51,{1,2,3,4,5,6}))) -> 0 | BB51: =IFERROR(SUMPRODUCT(LARGE($C51:$AV51,{1,2,3,4})), "") ->  | BC51: =IFERROR(SUMPRODUCT(LARGE($C51:$AV51,{1,2,3,4,5,6,7})), "") ->  | BD51: =IFERROR(SUMPRODUCT(LARGE($C51:$AV51,{1,2,3,4,5,6,7,8})), "") -> 
AX52: 0 | AY52: 0 | AZ52: =IF($AY52<=6,SUM($C52:$AV52),SUMPRODUCT(LARGE($C52:$AV52,{1,2,3,4,5,6}))) -> 0 | BB52: =IFERROR(SUMPRODUCT(LARGE($C52:$AV52,{1,2,3,4})), "") ->  | BC52: =IFERROR(SUMPRODUCT(LARGE($C52:$AV52,{1,2,3,4,5,6,7})), "") ->  | BD52: =IFERROR(SUMPRODUCT(LARGE($C52:$AV52,{1,2,3,4,5,6,7,8})), "") -> 
AX53: 0 | AY53: 0 | AZ53: =IF($AY53<=6,SUM($C53:$AV53),SUMPRODUCT(LARGE($C53:$AV53,{1,2,3,4,5,6}))) -> 0 | BB53: =IFERROR(SUMPRODUCT(LARGE($C53:$AV53,{1,2,3,4})), "") ->  | BC53: =IFERROR(SUMPRODUCT(LARGE($C53:$AV53,{1,2,3,4,5,6,7})), "") ->  | BD53: =IFERROR(SUMPRODUCT(LARGE($C53:$AV53,{1,2,3,4,5,6,7,8})), "") -> 
AX54: 0 | AY54: 0 | AZ54: =IF($AY54<=6,SUM($C54:$AV54),SUMPRODUCT(LARGE($C54:$AV54,{1,2,3,4,5,6}))) -> 0 | BB54: =IFERROR(SUMPRODUCT(LARGE($C54:$AV54,{1,2,3,4})), "") ->  | BC54: =IFERROR(SUMPRODUCT(LARGE($C54:$AV54,{1,2,3,4,5,6,7})), "") ->  | BD54: =IFERROR(SUMPRODUCT(LARGE($C54:$AV54,{1,2,3,4,5,6,7,8})), "") -> 
AX55: 0 | AY55: 0 | AZ55: =IF($AY55<=6,SUM($C55:$AV55),SUMPRODUCT(LARGE($C55:$AV55,{1,2,3,4,5,6}))) -> 0 | BB55: =IFERROR(SUMPRODUCT(LARGE($C55:$AV55,{1,2,3,4})), "") ->  | BC55: =IFERROR(SUMPRODUCT(LARGE($C55:$AV55,{1,2,3,4,5,6,7})), "") ->  | BD55: =IFERROR(SUMPRODUCT(LARGE($C55:$AV55,{1,2,3,4,5,6,7,8})), "") -> 
AX56: 0 | AY56: 0 | AZ56: =IF($AY56<=6,SUM($C56:$AV56),SUMPRODUCT(LARGE($C56:$AV56,{1,2,3,4,5,6}))) -> 0 | BB56: =IFERROR(SUMPRODUCT(LARGE($C56:$AV56,{1,2,3,4})), "") ->  | BC56: =IFERROR(SUMPRODUCT(LARGE($C56:$AV56,{1,2,3,4,5,6,7})), "") ->  | BD56: =IFERROR(SUMPRODUCT(LARGE($C56:$AV56,{1,2,3,4,5,6,7,8})), "") -> 
AX57: 0 | AY57: 0 | AZ57: =IF($AY57<=6,SUM($C57:$AV57),SUMPRODUCT(LARGE($C57:$AV57,{1,2,3,4,5,6}))) -> 0 | BB57: =IFERROR(SUMPRODUCT(LARGE($C57:$AV57,{1,2,3,4})), "") ->  | BC57: =IFERROR(SUMPRODUCT(LARGE($C57:$AV57,{1,2,3,4,5,6,7})), "") ->  | BD57: =IFERROR(SUMPRODUCT(LARGE($C57:$AV57,{1,2,3,4,5,6,7,8})), "") -> 
AX58: 0 | AY58: 0 | AZ58: =IF($AY58<=6,SUM($C58:$AV58),SUMPRODUCT(LARGE($C58:$AV58,{1,2,3,4,5,6}))) -> 0 | BB58: =IFERROR(SUMPRODUCT(LARGE($C58:$AV58,{1,2,3,4})), "") ->  | BC58: =IFERROR(SUMPRODUCT(LARGE($C58:$AV58,{1,2,3,4,5,6,7})), "") ->  | BD58: =IFERROR(SUMPRODUCT(LARGE($C58:$AV58,{1,2,3,4,5,6,7,8})), "") -> 
AX59: 0 | AY59: 0 | AZ59: =IF($AY59<=6,SUM($C59:$AV59),SUMPRODUCT(LARGE($C59:$AV59,{1,2,3,4,5,6}))) -> 0 | BB59: =IFERROR(SUMPRODUCT(LARGE($C59:$AV59,{1,2,3,4})), "") ->  | BC59: =IFERROR(SUMPRODUCT(LARGE($C59:$AV59,{1,2,3,4,5,6,7})), "") ->  | BD59: =IFERROR(SUMPRODUCT(LARGE($C59:$AV59,{1,2,3,4,5,6,7,8})), "") -> 
AX60: 0 | AY60: 0 | AZ60: =IF($AY60<=6,SUM($C60:$AV60),SUMPRODUCT(LARGE($C60:$AV60,{1,2,3,4,5,6}))) -> 0 | BB60: =IFERROR(SUMPRODUCT(LARGE($C60:$AV60,{1,2,3,4})), "") ->  | BC60: =IFERROR(SUMPRODUCT(LARGE($C60:$AV60,{1,2,3,4,5,6,7})), "") ->  | BD60: =IFERROR(SUMPRODUCT(LARGE($C60:$AV60,{1,2,3,4,5,6,7,8})), "") -> 
AX61: 0 | AY61: 0 | AZ61: =IF($AY61<=6,SUM($C61:$AV61),SUMPRODUCT(LARGE($C61:$AV61,{1,2,3,4,5,6}))) -> 0 | BB61: =IFERROR(SUMPRODUCT(LARGE($C61:$AV61,{1,2,3,4})), "") ->  | BC61: =IFERROR(SUMPRODUCT(LARGE($C61:$AV61,{1,2,3,4,5,6,7})), "") ->  | BD61: =IFERROR(SUMPRODUCT(LARGE($C61:$AV61,{1,2,3,4,5,6,7,8})), "") -> 
AX62: 0 | AY62: 0 | AZ62: =IF($AY62<=6,SUM($C62:$AV62),SUMPRODUCT(LARGE($C62:$AV62,{1,2,3,4,5,6}))) -> 0 | BB62: =IFERROR(SUMPRODUCT(LARGE($C62:$AV62,{1,2,3,4})), "") ->  | BC62: =IFERROR(SUMPRODUCT(LARGE($C62:$AV62,{1,2,3,4,5,6,7})), "") ->  | BD62: =IFERROR(SUMPRODUCT(LARGE($C62:$AV62,{1,2,3,4,5,6,7,8})), "") -> 
AX63: 0 | AY63: 0 | AZ63: =IF($AY63<=6,SUM($C63:$AV63),SUMPRODUCT(LARGE($C63:$AV63,{1,2,3,4,5,6}))) -> 0 | BB63: =IFERROR(SUMPRODUCT(LARGE($C63:$AV63,{1,2,3,4})), "") ->  | BC63: =IFERROR(SUMPRODUCT(LARGE($C63:$AV63,{1,2,3,4,5,6,7})), "") ->  | BD63: =IFERROR(SUMPRODUCT(LARGE($C63:$AV63,{1,2,3,4,5,6,7,8})), "") -> 
AX64: 0 | AY64: 0 | AZ64: =IF($AY64<=6,SUM($C64:$AV64),SUMPRODUCT(LARGE($C64:$AV64,{1,2,3,4,5,6}))) -> 0 | BB64: =IFERROR(SUMPRODUCT(LARGE($C64:$AV64,{1,2,3,4})), "") ->  | BC64: =IFERROR(SUMPRODUCT(LARGE($C64:$AV64,{1,2,3,4,5,6,7})), "") ->  | BD64: =IFERROR(SUMPRODUCT(LARGE($C64:$AV64,{1,2,3,4,5,6,7,8})), "") -> 
AX65: =SUM($C65:$AW65) -> 0 | AY65: =COUNTA(C65:AV65) -> 0 | AZ65: =IF($AY65<=6,SUM($C65:$AV65),SUMPRODUCT(LARGE($C65:$AV65,{1,2,3,4,5,6}))) -> 0 | BB65: =IFERROR(SUMPRODUCT(LARGE($C65:$AV65,{1,2,3,4})), "") ->  | BC65: =IFERROR(SUMPRODUCT(LARGE($C65:$AV65,{1,2,3,4,5,6,7})), "") ->  | BD65: =IFERROR(SUMPRODUCT(LARGE($C65:$AV65,{1,2,3,4,5,6,7,8})), "") -> 
AX66: 0 | AY66: 0 | AZ66: =IF($AY66<=6,SUM($C66:$AV66),SUMPRODUCT(LARGE($C66:$AV66,{1,2,3,4,5,6}))) -> 0 | BA66: =IF(AND($AY66>=6,AZ66=AZ67),"Manual Calc Needed","") ->  | BB66: =IFERROR(SUMPRODUCT(LARGE($C66:$AV66,{1,2,3,4})), "") ->  | BC66: =IFERROR(SUMPRODUCT(LARGE($C66:$AV66,{1,2,3,4,5,6,7})), "") ->  | BD66: =IFERROR(SUMPRODUCT(LARGE($C66:$AV66,{1,2,3,4,5,6,7,8})), "") -> 
AX67: 0 | AY67: 0 | AZ67: =IF($AY67<=6,SUM($C67:$AV67),SUMPRODUCT(LARGE($C67:$AV67,{1,2,3,4,5,6}))) -> 0 | BB67: =IFERROR(SUMPRODUCT(LARGE($C67:$AV67,{1,2,3,4})), "") ->  | BC67: =IFERROR(SUMPRODUCT(LARGE($C67:$AV67,{1,2,3,4,5,6,7})), "") ->  | BD67: =IFERROR(SUMPRODUCT(LARGE($C67:$AV67,{1,2,3,4,5,6,7,8})), "") -> 
AX68: 0 | AY68: 0 | AZ68: =IF($AY68<=6,SUM($C68:$AV68),SUMPRODUCT(LARGE($C68:$AV68,{1,2,3,4,5,6}))) -> 0 | BB68: =IFERROR(SUMPRODUCT(LARGE($C68:$AV68,{1,2,3,4})), "") ->  | BC68: =IFERROR(SUMPRODUCT(LARGE($C68:$AV68,{1,2,3,4,5,6,7})), "") ->  | BD68: =IFERROR(SUMPRODUCT(LARGE($C68:$AV68,{1,2,3,4,5,6,7,8})), "") -> 
AX69: 0 | AY69: 0 | AZ69: =IF($AY69<=6,SUM($C69:$AV69),SUMPRODUCT(LARGE($C69:$AV69,{1,2,3,4,5,6}))) -> 0 | BB69: =IFERROR(SUMPRODUCT(LARGE($C69:$AV69,{1,2,3,4})), "") ->  | BC69: =IFERROR(SUMPRODUCT(LARGE($C69:$AV69,{1,2,3,4,5,6,7})), "") ->  | BD69: =IFERROR(SUMPRODUCT(LARGE($C69:$AV69,{1,2,3,4,5,6,7,8})), "") -> 
AX70: 0 | AY70: 0 | AZ70: =IF($AY70<=6,SUM($C70:$AV70),SUMPRODUCT(LARGE($C70:$AV70,{1,2,3,4,5,6}))) -> 0 | BB70: =IFERROR(SUMPRODUCT(LARGE($C70:$AV70,{1,2,3,4})), "") ->  | BC70: =IFERROR(SUMPRODUCT(LARGE($C70:$AV70,{1,2,3,4,5,6,7})), "") ->  | BD70: =IFERROR(SUMPRODUCT(LARGE($C70:$AV70,{1,2,3,4,5,6,7,8})), "") -> 
AX71: 0 | AY71: 0 | AZ71: =IF($AY71<=6,SUM($C71:$AV71),SUMPRODUCT(LARGE($C71:$AV71,{1,2,3,4,5,6}))) -> 0 | BB71: =IFERROR(SUMPRODUCT(LARGE($C71:$AV71,{1,2,3,4})), "") ->  | BC71: =IFERROR(SUMPRODUCT(LARGE($C71:$AV71,{1,2,3,4,5,6,7})), "") ->  | BD71: =IFERROR(SUMPRODUCT(LARGE($C71:$AV71,{1,2,3,4,5,6,7,8})), "") -> 
AX72: 0 | AY72: 0 | AZ72: =IF($AY72<=6,SUM($C72:$AV72),SUMPRODUCT(LARGE($C72:$AV72,{1,2,3,4,5,6}))) -> 0 | BB72: =IFERROR(SUMPRODUCT(LARGE($C72:$AV72,{1,2,3,4})), "") ->  | BC72: =IFERROR(SUMPRODUCT(LARGE($C72:$AV72,{1,2,3,4,5,6,7})), "") ->  | BD72: =IFERROR(SUMPRODUCT(LARGE($C72:$AV72,{1,2,3,4,5,6,7,8})), "") -> 
AX73: 0 | AY73: 0 | AZ73: =IF($AY73<=6,SUM($C73:$AV73),SUMPRODUCT(LARGE($C73:$AV73,{1,2,3,4,5,6}))) -> 0 | BB73: =IFERROR(SUMPRODUCT(LARGE($C73:$AV73,{1,2,3,4})), "") ->  | BC73: =IFERROR(SUMPRODUCT(LARGE($C73:$AV73,{1,2,3,4,5,6,7})), "") ->  | BD73: =IFERROR(SUMPRODUCT(LARGE($C73:$AV73,{1,2,3,4,5,6,7,8})), "") -> 
AX74: 0 | AY74: 0 | AZ74: =IF($AY74<=6,SUM($C74:$AV74),SUMPRODUCT(LARGE($C74:$AV74,{1,2,3,4,5,6}))) -> 0 | BB74: =IFERROR(SUMPRODUCT(LARGE($C74:$AV74,{1,2,3,4})), "") ->  | BC74: =IFERROR(SUMPRODUCT(LARGE($C74:$AV74,{1,2,3,4,5,6,7})), "") ->  | BD74: =IFERROR(SUMPRODUCT(LARGE($C74:$AV74,{1,2,3,4,5,6,7,8})), "") -> 
AX75: 0 | AY75: 0 | AZ75: =IF($AY75<=6,SUM($C75:$AV75),SUMPRODUCT(LARGE($C75:$AV75,{1,2,3,4,5,6}))) -> 0 | BB75: =IFERROR(SUMPRODUCT(LARGE($C75:$AV75,{1,2,3,4})), "") ->  | BC75: =IFERROR(SUMPRODUCT(LARGE($C75:$AV75,{1,2,3,4,5,6,7})), "") ->  | BD75: =IFERROR(SUMPRODUCT(LARGE($C75:$AV75,{1,2,3,4,5,6,7,8})), "") -> 
AX76: 0 | AY76: 0 | AZ76: =IF($AY76<=6,SUM($C76:$AV76),SUMPRODUCT(LARGE($C76:$AV76,{1,2,3,4,5,6}))) -> 0 | BB76: =IFERROR(SUMPRODUCT(LARGE($C76:$AV76,{1,2,3,4})), "") ->  | BC76: =IFERROR(SUMPRODUCT(LARGE($C76:$AV76,{1,2,3,4,5,6,7})), "") ->  | BD76: =IFERROR(SUMPRODUCT(LARGE($C76:$AV76,{1,2,3,4,5,6,7,8})), "") -> 
AX77: 0 | AY77: 0 | AZ77: =IF($AY77<=6,SUM($C77:$AV77),SUMPRODUCT(LARGE($C77:$AV77,{1,2,3,4,5,6}))) -> 0 | BB77: =IFERROR(SUMPRODUCT(LARGE($C77:$AV77,{1,2,3,4})), "") ->  | BC77: =IFERROR(SUMPRODUCT(LARGE($C77:$AV77,{1,2,3,4,5,6,7})), "") ->  | BD77: =IFERROR(SUMPRODUCT(LARGE($C77:$AV77,{1,2,3,4,5,6,7,8})), "") -> 
AX78: 0 | AY78: 0 | AZ78: =IF($AY78<=6,SUM($C78:$AV78),SUMPRODUCT(LARGE($C78:$AV78,{1,2,3,4,5,6}))) -> 0 | BB78: =IFERROR(SUMPRODUCT(LARGE($C78:$AV78,{1,2,3,4})), "") ->  | BC78: =IFERROR(SUMPRODUCT(LARGE($C78:$AV78,{1,2,3,4,5,6,7})), "") ->  | BD78: =IFERROR(SUMPRODUCT(LARGE($C78:$AV78,{1,2,3,4,5,6,7,8})), "") -> 
AX79: 0 | AY79: 0 | AZ79: =IF($AY79<=6,SUM($C79:$AV79),SUMPRODUCT(LARGE($C79:$AV79,{1,2,3,4,5,6}))) -> 0 | BB79: =IFERROR(SUMPRODUCT(LARGE($C79:$AV79,{1,2,3,4})), "") ->  | BC79: =IFERROR(SUMPRODUCT(LARGE($C79:$AV79,{1,2,3,4,5,6,7})), "") ->  | BD79: =IFERROR(SUMPRODUCT(LARGE($C79:$AV79,{1,2,3,4,5,6,7,8})), "") -> 
AX80: 0 | AY80: 0 | AZ80: =IF($AY80<=6,SUM($C80:$AV80),SUMPRODUCT(LARGE($C80:$AV80,{1,2,3,4,5,6}))) -> 0 | BB80: =IFERROR(SUMPRODUCT(LARGE($C80:$AV80,{1,2,3,4})), "") ->  | BC80: =IFERROR(SUMPRODUCT(LARGE($C80:$AV80,{1,2,3,4,5,6,7})), "") ->  | BD80: =IFERROR(SUMPRODUCT(LARGE($C80:$AV80,{1,2,3,4,5,6,7,8})), "") -> 
AX81: 0 | AY81: 0 | AZ81: =IF($AY81<=6,SUM($C81:$AV81),SUMPRODUCT(LARGE($C81:$AV81,{1,2,3,4,5,6}))) -> 0 | BB81: =IFERROR(SUMPRODUCT(LARGE($C81:$AV81,{1,2,3,4})), "") ->  | BC81: =IFERROR(SUMPRODUCT(LARGE($C81:$AV81,{1,2,3,4,5,6,7})), "") ->  | BD81: =IFERROR(SUMPRODUCT(LARGE($C81:$AV81,{1,2,3,4,5,6,7,8})), "") -> 
AX82: 0 | AY82: 0 | AZ82: =IF($AY82<=6,SUM($C82:$AV82),SUMPRODUCT(LARGE($C82:$AV82,{1,2,3,4,5,6}))) -> 0 | BB82: =IFERROR(SUMPRODUCT(LARGE($C82:$AV82,{1,2,3,4})), "") ->  | BC82: =IFERROR(SUMPRODUCT(LARGE($C82:$AV82,{1,2,3,4,5,6,7})), "") ->  | BD82: =IFERROR(SUMPRODUCT(LARGE($C82:$AV82,{1,2,3,4,5,6,7,8})), "") -> 
AX83: 0 | AY83: 0 | AZ83: =IF($AY83<=6,SUM($C83:$AV83),SUMPRODUCT(LARGE($C83:$AV83,{1,2,3,4,5,6}))) -> 0 | BB83: =IFERROR(SUMPRODUCT(LARGE($C83:$AV83,{1,2,3,4})), "") ->  | BC83: =IFERROR(SUMPRODUCT(LARGE($C83:$AV83,{1,2,3,4,5,6,7})), "") ->  | BD83: =IFERROR(SUMPRODUCT(LARGE($C83:$AV83,{1,2,3,4,5,6,7,8})), "") -> 
AX84: 0 | AY84: 0 | AZ84: =IF($AY84<=6,SUM($C84:$AV84),SUMPRODUCT(LARGE($C84:$AV84,{1,2,3,4,5,6}))) -> 0 | BB84: =IFERROR(SUMPRODUCT(LARGE($C84:$AV84,{1,2,3,4})), "") ->  | BC84: =IFERROR(SUMPRODUCT(LARGE($C84:$AV84,{1,2,3,4,5,6,7})), "") ->  | BD84: =IFERROR(SUMPRODUCT(LARGE($C84:$AV84,{1,2,3,4,5,6,7,8})), "") -> 
AX85: 0 | AY85: 0 | AZ85: =IF($AY85<=6,SUM($C85:$AV85),SUMPRODUCT(LARGE($C85:$AV85,{1,2,3,4,5,6}))) -> 0 | BB85: =IFERROR(SUMPRODUCT(LARGE($C85:$AV85,{1,2,3,4})), "") ->  | BC85: =IFERROR(SUMPRODUCT(LARGE($C85:$AV85,{1,2,3,4,5,6,7})), "") ->  | BD85: =IFERROR(SUMPRODUCT(LARGE($C85:$AV85,{1,2,3,4,5,6,7,8})), "") -> 
AX86: 0 | AY86: 0 | AZ86: =IF($AY86<=6,SUM($C86:$AV86),SUMPRODUCT(LARGE($C86:$AV86,{1,2,3,4,5,6}))) -> 0 | BB86: =IFERROR(SUMPRODUCT(LARGE($C86:$AV86,{1,2,3,4})), "") ->  | BC86: =IFERROR(SUMPRODUCT(LARGE($C86:$AV86,{1,2,3,4,5,6,7})), "") ->  | BD86: =IFERROR(SUMPRODUCT(LARGE($C86:$AV86,{1,2,3,4,5,6,7,8})), "") -> 
AX87: 0 | AY87: 0 | AZ87: =IF($AY87<=6,SUM($C87:$AV87),SUMPRODUCT(LARGE($C87:$AV87,{1,2,3,4,5,6}))) -> 0 | BB87: =IFERROR(SUMPRODUCT(LARGE($C87:$AV87,{1,2,3,4})), "") ->  | BC87: =IFERROR(SUMPRODUCT(LARGE($C87:$AV87,{1,2,3,4,5,6,7})), "") ->  | BD87: =IFERROR(SUMPRODUCT(LARGE($C87:$AV87,{1,2,3,4,5,6,7,8})), "") -> 
AX88: 0 | AY88: 0 | AZ88: =IF($AY88<=6,SUM($C88:$AV88),SUMPRODUCT(LARGE($C88:$AV88,{1,2,3,4,5,6}))) -> 0 | BB88: =IFERROR(SUMPRODUCT(LARGE($C88:$AV88,{1,2,3,4})), "") ->  | BC88: =IFERROR(SUMPRODUCT(LARGE($C88:$AV88,{1,2,3,4,5,6,7})), "") ->  | BD88: =IFERROR(SUMPRODUCT(LARGE($C88:$AV88,{1,2,3,4,5,6,7,8})), "") -> 
AX89: 0 | AY89: 0 | AZ89: =IF($AY89<=6,SUM($C89:$AV89),SUMPRODUCT(LARGE($C89:$AV89,{1,2,3,4,5,6}))) -> 0 | BB89: =IFERROR(SUMPRODUCT(LARGE($C89:$AV89,{1,2,3,4})), "") ->  | BC89: =IFERROR(SUMPRODUCT(LARGE($C89:$AV89,{1,2,3,4,5,6,7})), "") ->  | BD89: =IFERROR(SUMPRODUCT(LARGE($C89:$AV89,{1,2,3,4,5,6,7,8})), "") -> 
AX90: 0 | AY90: 0 | AZ90: =IF($AY90<=6,SUM($C90:$AV90),SUMPRODUCT(LARGE($C90:$AV90,{1,2,3,4,5,6}))) -> 0 | BB90: =IFERROR(SUMPRODUCT(LARGE($C90:$AV90,{1,2,3,4})), "") ->  | BC90: =IFERROR(SUMPRODUCT(LARGE($C90:$AV90,{1,2,3,4,5,6,7})), "") ->  | BD90: =IFERROR(SUMPRODUCT(LARGE($C90:$AV90,{1,2,3,4,5,6,7,8})), "") -> 
AX91: 0 | AY91: 0 | AZ91: =IF($AY91<=6,SUM($C91:$AV91),SUMPRODUCT(LARGE($C91:$AV91,{1,2,3,4,5,6}))) -> 0 | BB91: =IFERROR(SUMPRODUCT(LARGE($C91:$AV91,{1,2,3,4})), "") ->  | BC91: =IFERROR(SUMPRODUCT(LARGE($C91:$AV91,{1,2,3,4,5,6,7})), "") ->  | BD91: =IFERROR(SUMPRODUCT(LARGE($C91:$AV91,{1,2,3,4,5,6,7,8})), "") -> 
AX92: 0 | AY92: 0 | AZ92: =IF($AY92<=6,SUM($C92:$AV92),SUMPRODUCT(LARGE($C92:$AV92,{1,2,3,4,5,6}))) -> 0 | BB92: =IFERROR(SUMPRODUCT(LARGE($C92:$AV92,{1,2,3,4})), "") ->  | BC92: =IFERROR(SUMPRODUCT(LARGE($C92:$AV92,{1,2,3,4,5,6,7})), "") ->  | BD92: =IFERROR(SUMPRODUCT(LARGE($C92:$AV92,{1,2,3,4,5,6,7,8})), "") -> 
AX93: 0 | AY93: 0 | AZ93: =IF($AY93<=6,SUM($C93:$AV93),SUMPRODUCT(LARGE($C93:$AV93,{1,2,3,4,5,6}))) -> 0 | BB93: =IFERROR(SUMPRODUCT(LARGE($C93:$AV93,{1,2,3,4})), "") ->  | BC93: =IFERROR(SUMPRODUCT(LARGE($C93:$AV93,{1,2,3,4,5,6,7})), "") ->  | BD93: =IFERROR(SUMPRODUCT(LARGE($C93:$AV93,{1,2,3,4,5,6,7,8})), "") -> 
AX94: 0 | AY94: 0 | AZ94: =IF($AY94<=6,SUM($C94:$AV94),SUMPRODUCT(LARGE($C94:$AV94,{1,2,3,4,5,6}))) -> 0 | BB94: =IFERROR(SUMPRODUCT(LARGE($C94:$AV94,{1,2,3,4})), "") ->  | BC94: =IFERROR(SUMPRODUCT(LARGE($C94:$AV94,{1,2,3,4,5,6,7})), "") ->  | BD94: =IFERROR(SUMPRODUCT(LARGE($C94:$AV94,{1,2,3,4,5,6,7,8})), "") -> 
AX95: 0 | AY95: 0 | AZ95: =IF($AY95<=6,SUM($C95:$AV95),SUMPRODUCT(LARGE($C95:$AV95,{1,2,3,4,5,6}))) -> 0 | BB95: =IFERROR(SUMPRODUCT(LARGE($C95:$AV95,{1,2,3,4})), "") ->  | BC95: =IFERROR(SUMPRODUCT(LARGE($C95:$AV95,{1,2,3,4,5,6,7})), "") ->  | BD95: =IFERROR(SUMPRODUCT(LARGE($C95:$AV95,{1,2,3,4,5,6,7,8})), "") -> 
AX96: 0 | AY96: 0 | AZ96: =IF($AY96<=6,SUM($C96:$AV96),SUMPRODUCT(LARGE($C96:$AV96,{1,2,3,4,5,6}))) -> 0 | BB96: =IFERROR(SUMPRODUCT(LARGE($C96:$AV96,{1,2,3,4})), "") ->  | BC96: =IFERROR(SUMPRODUCT(LARGE($C96:$AV96,{1,2,3,4,5,6,7})), "") ->  | BD96: =IFERROR(SUMPRODUCT(LARGE($C96:$AV96,{1,2,3,4,5,6,7,8})), "") -> 
AX97: 0 | AY97: 0 | AZ97: =IF($AY97<=6,SUM($C97:$AV97),SUMPRODUCT(LARGE($C97:$AV97,{1,2,3,4,5,6}))) -> 0 | BB97: =IFERROR(SUMPRODUCT(LARGE($C97:$AV97,{1,2,3,4})), "") ->  | BC97: =IFERROR(SUMPRODUCT(LARGE($C97:$AV97,{1,2,3,4,5,6,7})), "") ->  | BD97: =IFERROR(SUMPRODUCT(LARGE($C97:$AV97,{1,2,3,4,5,6,7,8})), "") -> 
AX98: 0 | AY98: 0 | AZ98: =IF($AY98<=6,SUM($C98:$AV98),SUMPRODUCT(LARGE($C98:$AV98,{1,2,3,4,5,6}))) -> 0 | BB98: =IFERROR(SUMPRODUCT(LARGE($C98:$AV98,{1,2,3,4})), "") ->  | BC98: =IFERROR(SUMPRODUCT(LARGE($C98:$AV98,{1,2,3,4,5,6,7})), "") ->  | BD98: =IFERROR(SUMPRODUCT(LARGE($C98:$AV98,{1,2,3,4,5,6,7,8})), "") -> 
AX99: 0 | AY99: 0 | AZ99: =IF($AY99<=6,SUM($C99:$AV99),SUMPRODUCT(LARGE($C99:$AV99,{1,2,3,4,5,6}))) -> 0 | BB99: =IFERROR(SUMPRODUCT(LARGE($C99:$AV99,{1,2,3,4})), "") ->  | BC99: =IFERROR(SUMPRODUCT(LARGE($C99:$AV99,{1,2,3,4,5,6,7})), "") ->  | BD99: =IFERROR(SUMPRODUCT(LARGE($C99:$AV99,{1,2,3,4,5,6,7,8})), "") -> 
AX100: 0 | AY100: 0 | AZ100: =IF($AY100<=6,SUM($C100:$AV100),SUMPRODUCT(LARGE($C100:$AV100,{1,2,3,4,5,6}))) -> 0 | BB100: =IFERROR(SUMPRODUCT(LARGE($C100:$AV100,{1,2,3,4})), "") ->  | BC100: =IFERROR(SUMPRODUCT(LARGE($C100:$AV100,{1,2,3,4,5,6,7})), "") ->  | BD100: =IFERROR(SUMPRODUCT(LARGE($C100:$AV100,{1,2,3,4,5,6,7,8})), "") -> 
AX101: 0 | AY101: 0 | AZ101: =IF($AY101<=6,SUM($C101:$AV101),SUMPRODUCT(LARGE($C101:$AV101,{1,2,3,4,5,6}))) -> 0 | BB101: =IFERROR(SUMPRODUCT(LARGE($C101:$AV101,{1,2,3,4})), "") ->  | BC101: =IFERROR(SUMPRODUCT(LARGE($C101:$AV101,{1,2,3,4,5,6,7})), "") ->  | BD101: =IFERROR(SUMPRODUCT(LARGE($C101:$AV101,{1,2,3,4,5,6,7,8})), "") -> 
AX102: 0 | AY102: 0 | AZ102: =IF($AY102<=6,SUM($C102:$AV102),SUMPRODUCT(LARGE($C102:$AV102,{1,2,3,4,5,6}))) -> 0 | BB102: =IFERROR(SUMPRODUCT(LARGE($C102:$AV102,{1,2,3,4})), "") ->  | BC102: =IFERROR(SUMPRODUCT(LARGE($C102:$AV102,{1,2,3,4,5,6,7})), "") ->  | BD102: =IFERROR(SUMPRODUCT(LARGE($C102:$AV102,{1,2,3,4,5,6,7,8})), "") -> 
AX103: 0 | AY103: 0 | AZ103: =IF($AY103<=6,SUM($C103:$AV103),SUMPRODUCT(LARGE($C103:$AV103,{1,2,3,4,5,6}))) -> 0 | BB103: =IFERROR(SUMPRODUCT(LARGE($C103:$AV103,{1,2,3,4})), "") ->  | BC103: =IFERROR(SUMPRODUCT(LARGE($C103:$AV103,{1,2,3,4,5,6,7})), "") ->  | BD103: =IFERROR(SUMPRODUCT(LARGE($C103:$AV103,{1,2,3,4,5,6,7,8})), "") -> 
AX104: 0 | AY104: 0 | AZ104: =IF($AY104<=6,SUM($C104:$AV104),SUMPRODUCT(LARGE($C104:$AV104,{1,2,3,4,5,6}))) -> 0 | BB104: =IFERROR(SUMPRODUCT(LARGE($C104:$AV104,{1,2,3,4})), "") ->  | BC104: =IFERROR(SUMPRODUCT(LARGE($C104:$AV104,{1,2,3,4,5,6,7})), "") ->  | BD104: =IFERROR(SUMPRODUCT(LARGE($C104:$AV104,{1,2,3,4,5,6,7,8})), "") -> 
AX105: 0 | AY105: 0 | AZ105: =IF($AY105<=6,SUM($C105:$AV105),SUMPRODUCT(LARGE($C105:$AV105,{1,2,3,4,5,6}))) -> 0 | BB105: =IFERROR(SUMPRODUCT(LARGE($C105:$AV105,{1,2,3,4})), "") ->  | BC105: =IFERROR(SUMPRODUCT(LARGE($C105:$AV105,{1,2,3,4,5,6,7})), "") ->  | BD105: =IFERROR(SUMPRODUCT(LARGE($C105:$AV105,{1,2,3,4,5,6,7,8})), "") -> 
AX106: 0 | AY106: 0 | AZ106: =IF($AY106<=6,SUM($C106:$AV106),SUMPRODUCT(LARGE($C106:$AV106,{1,2,3,4,5,6}))) -> 0 | BB106: =IFERROR(SUMPRODUCT(LARGE($C106:$AV106,{1,2,3,4})), "") ->  | BC106: =IFERROR(SUMPRODUCT(LARGE($C106:$AV106,{1,2,3,4,5,6,7})), "") ->  | BD106: =IFERROR(SUMPRODUCT(LARGE($C106:$AV106,{1,2,3,4,5,6,7,8})), "") -> 
AX107: 0 | AY107: 0 | AZ107: =IF($AY107<=6,SUM($C107:$AV107),SUMPRODUCT(LARGE($C107:$AV107,{1,2,3,4,5,6}))) -> 0 | BB107: =IFERROR(SUMPRODUCT(LARGE($C107:$AV107,{1,2,3,4})), "") ->  | BC107: =IFERROR(SUMPRODUCT(LARGE($C107:$AV107,{1,2,3,4,5,6,7})), "") ->  | BD107: =IFERROR(SUMPRODUCT(LARGE($C107:$AV107,{1,2,3,4,5,6,7,8})), "") -> 
AX108: 0 | AY108: 0 | AZ108: =IF($AY108<=6,SUM($C108:$AV108),SUMPRODUCT(LARGE($C108:$AV108,{1,2,3,4,5,6}))) -> 0 | BB108: =IFERROR(SUMPRODUCT(LARGE($C108:$AV108,{1,2,3,4})), "") ->  | BC108: =IFERROR(SUMPRODUCT(LARGE($C108:$AV108,{1,2,3,4,5,6,7})), "") ->  | BD108: =IFERROR(SUMPRODUCT(LARGE($C108:$AV108,{1,2,3,4,5,6,7,8})), "") -> 
AX109: 0 | AY109: 0 | AZ109: =IF($AY109<=6,SUM($C109:$AV109),SUMPRODUCT(LARGE($C109:$AV109,{1,2,3,4,5,6}))) -> 0 | BB109: =IFERROR(SUMPRODUCT(LARGE($C109:$AV109,{1,2,3,4})), "") ->  | BC109: =IFERROR(SUMPRODUCT(LARGE($C109:$AV109,{1,2,3,4,5,6,7})), "") ->  | BD109: =IFERROR(SUMPRODUCT(LARGE($C109:$AV109,{1,2,3,4,5,6,7,8})), "") -> 
AX110: 0 | AY110: 0 | AZ110: =IF($AY110<=6,SUM($C110:$AV110),SUMPRODUCT(LARGE($C110:$AV110,{1,2,3,4,5,6}))) -> 0 | BB110: =IFERROR(SUMPRODUCT(LARGE($C110:$AV110,{1,2,3,4})), "") ->  | BC110: =IFERROR(SUMPRODUCT(LARGE($C110:$AV110,{1,2,3,4,5,6,7})), "") ->  | BD110: =IFERROR(SUMPRODUCT(LARGE($C110:$AV110,{1,2,3,4,5,6,7,8})), "") -> 
AX111: 0 | AY111: 0 | AZ111: =IF($AY111<=6,SUM($C111:$AV111),SUMPRODUCT(LARGE($C111:$AV111,{1,2,3,4,5,6}))) -> 0 | BB111: =IFERROR(SUMPRODUCT(LARGE($C111:$AV111,{1,2,3,4})), "") ->  | BC111: =IFERROR(SUMPRODUCT(LARGE($C111:$AV111,{1,2,3,4,5,6,7})), "") ->  | BD111: =IFERROR(SUMPRODUCT(LARGE($C111:$AV111,{1,2,3,4,5,6,7,8})), "") -> 
AX112: 0 | AY112: 0 | AZ112: =IF($AY112<=6,SUM($C112:$AV112),SUMPRODUCT(LARGE($C112:$AV112,{1,2,3,4,5,6}))) -> 0 | BB112: =IFERROR(SUMPRODUCT(LARGE($C112:$AV112,{1,2,3,4})), "") ->  | BC112: =IFERROR(SUMPRODUCT(LARGE($C112:$AV112,{1,2,3,4,5,6,7})), "") ->  | BD112: =IFERROR(SUMPRODUCT(LARGE($C112:$AV112,{1,2,3,4,5,6,7,8})), "") -> 
AX113: 0 | AY113: 0 | AZ113: =IF($AY113<=6,SUM($C113:$AV113),SUMPRODUCT(LARGE($C113:$AV113,{1,2,3,4,5,6}))) -> 0 | BB113: =IFERROR(SUMPRODUCT(LARGE($C113:$AV113,{1,2,3,4})), "") ->  | BC113: =IFERROR(SUMPRODUCT(LARGE($C113:$AV113,{1,2,3,4,5,6,7})), "") ->  | BD113: =IFERROR(SUMPRODUCT(LARGE($C113:$AV113,{1,2,3,4,5,6,7,8})), "") -> 
AX114: 0 | AY114: 0 | AZ114: =IF($AY114<=6,SUM($C114:$AV114),SUMPRODUCT(LARGE($C114:$AV114,{1,2,3,4,5,6}))) -> 0 | BB114: =IFERROR(SUMPRODUCT(LARGE($C114:$AV114,{1,2,3,4})), "") ->  | BC114: =IFERROR(SUMPRODUCT(LARGE($C114:$AV114,{1,2,3,4,5,6,7})), "") ->  | BD114: =IFERROR(SUMPRODUCT(LARGE($C114:$AV114,{1,2,3,4,5,6,7,8})), "") -> 
AX115: 0 | AY115: 0 | AZ115: =IF($AY115<=6,SUM($C115:$AV115),SUMPRODUCT(LARGE($C115:$AV115,{1,2,3,4,5,6}))) -> 0 | BB115: =IFERROR(SUMPRODUCT(LARGE($C115:$AV115,{1,2,3,4})), "") ->  | BC115: =IFERROR(SUMPRODUCT(LARGE($C115:$AV115,{1,2,3,4,5,6,7})), "") ->  | BD115: =IFERROR(SUMPRODUCT(LARGE($C115:$AV115,{1,2,3,4,5,6,7,8})), "") -> 
AX116: 0 | AY116: 0 | AZ116: =IF($AY116<=6,SUM($C116:$AV116),SUMPRODUCT(LARGE($C116:$AV116,{1,2,3,4,5,6}))) -> 0 | BB116: =IFERROR(SUMPRODUCT(LARGE($C116:$AV116,{1,2,3,4})), "") ->  | BC116: =IFERROR(SUMPRODUCT(LARGE($C116:$AV116,{1,2,3,4,5,6,7})), "") ->  | BD116: =IFERROR(SUMPRODUCT(LARGE($C116:$AV116,{1,2,3,4,5,6,7,8})), "") -> 
AX117: 0 | AY117: 0 | AZ117: =IF($AY117<=6,SUM($C117:$AV117),SUMPRODUCT(LARGE($C117:$AV117,{1,2,3,4,5,6}))) -> 0 | BB117: =IFERROR(SUMPRODUCT(LARGE($C117:$AV117,{1,2,3,4})), "") ->  | BC117: =IFERROR(SUMPRODUCT(LARGE($C117:$AV117,{1,2,3,4,5,6,7})), "") ->  | BD117: =IFERROR(SUMPRODUCT(LARGE($C117:$AV117,{1,2,3,4,5,6,7,8})), "") -> 
AX118: 0 | AY118: 0 | AZ118: =IF($AY118<=6,SUM($C118:$AV118),SUMPRODUCT(LARGE($C118:$AV118,{1,2,3,4,5,6}))) -> 0 | BB118: =IFERROR(SUMPRODUCT(LARGE($C118:$AV118,{1,2,3,4})), "") ->  | BC118: =IFERROR(SUMPRODUCT(LARGE($C118:$AV118,{1,2,3,4,5,6,7})), "") ->  | BD118: =IFERROR(SUMPRODUCT(LARGE($C118:$AV118,{1,2,3,4,5,6,7,8})), "") -> 
AX119: 0 | AY119: 0 | AZ119: =IF($AY119<=6,SUM($C119:$AV119),SUMPRODUCT(LARGE($C119:$AV119,{1,2,3,4,5,6}))) -> 0 | BB119: =IFERROR(SUMPRODUCT(LARGE($C119:$AV119,{1,2,3,4})), "") ->  | BC119: =IFERROR(SUMPRODUCT(LARGE($C119:$AV119,{1,2,3,4,5,6,7})), "") ->  | BD119: =IFERROR(SUMPRODUCT(LARGE($C119:$AV119,{1,2,3,4,5,6,7,8})), "") -> 
AX120: 0 | AY120: 0 | AZ120: =IF($AY120<=6,SUM($C120:$AV120),SUMPRODUCT(LARGE($C120:$AV120,{1,2,3,4,5,6}))) -> 0 | BB120: =IFERROR(SUMPRODUCT(LARGE($C120:$AV120,{1,2,3,4})), "") ->  | BC120: =IFERROR(SUMPRODUCT(LARGE($C120:$AV120,{1,2,3,4,5,6,7})), "") ->  | BD120: =IFERROR(SUMPRODUCT(LARGE($C120:$AV120,{1,2,3,4,5,6,7,8})), "") -> 
AX121: 0 | AY121: 0 | AZ121: =IF($AY121<=6,SUM($C121:$AV121),SUMPRODUCT(LARGE($C121:$AV121,{1,2,3,4,5,6}))) -> 0 | BB121: =IFERROR(SUMPRODUCT(LARGE($C121:$AV121,{1,2,3,4})), "") ->  | BC121: =IFERROR(SUMPRODUCT(LARGE($C121:$AV121,{1,2,3,4,5,6,7})), "") ->  | BD121: =IFERROR(SUMPRODUCT(LARGE($C121:$AV121,{1,2,3,4,5,6,7,8})), "") -> 
AX122: 0 | AY122: 0 | AZ122: =IF($AY122<=6,SUM($C122:$AV122),SUMPRODUCT(LARGE($C122:$AV122,{1,2,3,4,5,6}))) -> 0 | BB122: =IFERROR(SUMPRODUCT(LARGE($C122:$AV122,{1,2,3,4})), "") ->  | BC122: =IFERROR(SUMPRODUCT(LARGE($C122:$AV122,{1,2,3,4,5,6,7})), "") ->  | BD122: =IFERROR(SUMPRODUCT(LARGE($C122:$AV122,{1,2,3,4,5,6,7,8})), "") -> 
AX123: 0 | AY123: 0 | AZ123: =IF($AY123<=6,SUM($C123:$AV123),SUMPRODUCT(LARGE($C123:$AV123,{1,2,3,4,5,6}))) -> 0 | BB123: =IFERROR(SUMPRODUCT(LARGE($C123:$AV123,{1,2,3,4})), "") ->  | BC123: =IFERROR(SUMPRODUCT(LARGE($C123:$AV123,{1,2,3,4,5,6,7})), "") ->  | BD123: =IFERROR(SUMPRODUCT(LARGE($C123:$AV123,{1,2,3,4,5,6,7,8})), "") -> 
AX124: 0 | AY124: 0 | AZ124: =IF($AY124<=6,SUM($C124:$AV124),SUMPRODUCT(LARGE($C124:$AV124,{1,2,3,4,5,6}))) -> 0 | BB124: =IFERROR(SUMPRODUCT(LARGE($C124:$AV124,{1,2,3,4})), "") ->  | BC124: =IFERROR(SUMPRODUCT(LARGE($C124:$AV124,{1,2,3,4,5,6,7})), "") ->  | BD124: =IFERROR(SUMPRODUCT(LARGE($C124:$AV124,{1,2,3,4,5,6,7,8})), "") -> 
AX125: 0 | AY125: 0 | AZ125: =IF($AY125<=6,SUM($C125:$AV125),SUMPRODUCT(LARGE($C125:$AV125,{1,2,3,4,5,6}))) -> 0 | BB125: =IFERROR(SUMPRODUCT(LARGE($C125:$AV125,{1,2,3,4})), "") ->  | BC125: =IFERROR(SUMPRODUCT(LARGE($C125:$AV125,{1,2,3,4,5,6,7})), "") ->  | BD125: =IFERROR(SUMPRODUCT(LARGE($C125:$AV125,{1,2,3,4,5,6,7,8})), "") -> 
AX126: 0 | AY126: 0 | AZ126: =IF($AY126<=6,SUM($C126:$AV126),SUMPRODUCT(LARGE($C126:$AV126,{1,2,3,4,5,6}))) -> 0 | BB126: =IFERROR(SUMPRODUCT(LARGE($C126:$AV126,{1,2,3,4})), "") ->  | BC126: =IFERROR(SUMPRODUCT(LARGE($C126:$AV126,{1,2,3,4,5,6,7})), "") ->  | BD126: =IFERROR(SUMPRODUCT(LARGE($C126:$AV126,{1,2,3,4,5,6,7,8})), "") -> 
AX127: 0 | AY127: 0 | AZ127: =IF($AY127<=6,SUM($C127:$AV127),SUMPRODUCT(LARGE($C127:$AV127,{1,2,3,4,5,6}))) -> 0 | BB127: =IFERROR(SUMPRODUCT(LARGE($C127:$AV127,{1,2,3,4})), "") ->  | BC127: =IFERROR(SUMPRODUCT(LARGE($C127:$AV127,{1,2,3,4,5,6,7})), "") ->  | BD127: =IFERROR(SUMPRODUCT(LARGE($C127:$AV127,{1,2,3,4,5,6,7,8})), "") -> 
AX128: 0 | AY128: 0 | AZ128: =IF($AY128<=6,SUM($C128:$AV128),SUMPRODUCT(LARGE($C128:$AV128,{1,2,3,4,5,6}))) -> 0 | BB128: =IFERROR(SUMPRODUCT(LARGE($C128:$AV128,{1,2,3,4})), "") ->  | BC128: =IFERROR(SUMPRODUCT(LARGE($C128:$AV128,{1,2,3,4,5,6,7})), "") ->  | BD128: =IFERROR(SUMPRODUCT(LARGE($C128:$AV128,{1,2,3,4,5,6,7,8})), "") -> 
AX129: =SUM($C129:$AW129) -> 0 | AY129: =COUNTA(C129:AV129) -> 0 | AZ129: =IF($AY129<=6,SUM($C129:$AV129),SUMPRODUCT(LARGE($C129:$AV129,{1,2,3,4,5,6}))) -> 0 | BB129: =IFERROR(SUMPRODUCT(LARGE($C129:$AV129,{1,2,3,4})), "") ->  | BC129: =IFERROR(SUMPRODUCT(LARGE($C129:$AV129,{1,2,3,4,5,6,7})), "") ->  | BD129: =IFERROR(SUMPRODUCT(LARGE($C129:$AV129,{1,2,3,4,5,6,7,8})), "") -> 
AX130: 0 | AY130: 0 | AZ130: =IF($AY130<=6,SUM($C130:$AV130),SUMPRODUCT(LARGE($C130:$AV130,{1,2,3,4,5,6}))) -> 0 | BA130: =IF(AND($AY130>=6,AZ130=AZ131),"Manual Calc Needed","") ->  | BB130: =IFERROR(SUMPRODUCT(LARGE($C130:$AV130,{1,2,3,4})), "") ->  | BC130: =IFERROR(SUMPRODUCT(LARGE($C130:$AV130,{1,2,3,4,5,6,7})), "") ->  | BD130: =IFERROR(SUMPRODUCT(LARGE($C130:$AV130,{1,2,3,4,5,6,7,8})), "") -> 
AX131: 0 | AY131: 0 | AZ131: =IF($AY131<=6,SUM($C131:$AV131),SUMPRODUCT(LARGE($C131:$AV131,{1,2,3,4,5,6}))) -> 0 | BB131: =IFERROR(SUMPRODUCT(LARGE($C131:$AV131,{1,2,3,4})), "") ->  | BC131: =IFERROR(SUMPRODUCT(LARGE($C131:$AV131,{1,2,3,4,5,6,7})), "") ->  | BD131: =IFERROR(SUMPRODUCT(LARGE($C131:$AV131,{1,2,3,4,5,6,7,8})), "") -> 
AX132: 0 | AY132: 0 | AZ132: =IF($AY132<=6,SUM($C132:$AV132),SUMPRODUCT(LARGE($C132:$AV132,{1,2,3,4,5,6}))) -> 0 | BB132: =IFERROR(SUMPRODUCT(LARGE($C132:$AV132,{1,2,3,4})), "") ->  | BC132: =IFERROR(SUMPRODUCT(LARGE($C132:$AV132,{1,2,3,4,5,6,7})), "") ->  | BD132: =IFERROR(SUMPRODUCT(LARGE($C132:$AV132,{1,2,3,4,5,6,7,8})), "") -> 
AX133: 0 | AY133: 0 | AZ133: =IF($AY133<=6,SUM($C133:$AV133),SUMPRODUCT(LARGE($C133:$AV133,{1,2,3,4,5,6}))) -> 0 | BB133: =IFERROR(SUMPRODUCT(LARGE($C133:$AV133,{1,2,3,4})), "") ->  | BC133: =IFERROR(SUMPRODUCT(LARGE($C133:$AV133,{1,2,3,4,5,6,7})), "") ->  | BD133: =IFERROR(SUMPRODUCT(LARGE($C133:$AV133,{1,2,3,4,5,6,7,8})), "") -> 
AX134: 0 | AY134: 0 | AZ134: =IF($AY134<=6,SUM($C134:$AV134),SUMPRODUCT(LARGE($C134:$AV134,{1,2,3,4,5,6}))) -> 0 | BB134: =IFERROR(SUMPRODUCT(LARGE($C134:$AV134,{1,2,3,4})), "") ->  | BC134: =IFERROR(SUMPRODUCT(LARGE($C134:$AV134,{1,2,3,4,5,6,7})), "") ->  | BD134: =IFERROR(SUMPRODUCT(LARGE($C134:$AV134,{1,2,3,4,5,6,7,8})), "") -> 
AX135: 0 | AY135: 0 | AZ135: =IF($AY135<=6,SUM($C135:$AV135),SUMPRODUCT(LARGE($C135:$AV135,{1,2,3,4,5,6}))) -> 0 | BB135: =IFERROR(SUMPRODUCT(LARGE($C135:$AV135,{1,2,3,4})), "") ->  | BC135: =IFERROR(SUMPRODUCT(LARGE($C135:$AV135,{1,2,3,4,5,6,7})), "") ->  | BD135: =IFERROR(SUMPRODUCT(LARGE($C135:$AV135,{1,2,3,4,5,6,7,8})), "") -> 
AX136: 0 | AY136: 0 | AZ136: =IF($AY136<=6,SUM($C136:$AV136),SUMPRODUCT(LARGE($C136:$AV136,{1,2,3,4,5,6}))) -> 0 | BB136: =IFERROR(SUMPRODUCT(LARGE($C136:$AV136,{1,2,3,4})), "") ->  | BC136: =IFERROR(SUMPRODUCT(LARGE($C136:$AV136,{1,2,3,4,5,6,7})), "") ->  | BD136: =IFERROR(SUMPRODUCT(LARGE($C136:$AV136,{1,2,3,4,5,6,7,8})), "") -> 
AX137: 0 | AY137: 0 | AZ137: =IF($AY137<=6,SUM($C137:$AV137),SUMPRODUCT(LARGE($C137:$AV137,{1,2,3,4,5,6}))) -> 0 | BB137: =IFERROR(SUMPRODUCT(LARGE($C137:$AV137,{1,2,3,4})), "") ->  | BC137: =IFERROR(SUMPRODUCT(LARGE($C137:$AV137,{1,2,3,4,5,6,7})), "") ->  | BD137: =IFERROR(SUMPRODUCT(LARGE($C137:$AV137,{1,2,3,4,5,6,7,8})), "") -> 
AX138: 0 | AY138: 0 | AZ138: =IF($AY138<=6,SUM($C138:$AV138),SUMPRODUCT(LARGE($C138:$AV138,{1,2,3,4,5,6}))) -> 0 | BB138: =IFERROR(SUMPRODUCT(LARGE($C138:$AV138,{1,2,3,4})), "") ->  | BC138: =IFERROR(SUMPRODUCT(LARGE($C138:$AV138,{1,2,3,4,5,6,7})), "") ->  | BD138: =IFERROR(SUMPRODUCT(LARGE($C138:$AV138,{1,2,3,4,5,6,7,8})), "") -> 
AX139: 0 | AY139: 0 | AZ139: =IF($AY139<=6,SUM($C139:$AV139),SUMPRODUCT(LARGE($C139:$AV139,{1,2,3,4,5,6}))) -> 0 | BB139: =IFERROR(SUMPRODUCT(LARGE($C139:$AV139,{1,2,3,4})), "") ->  | BC139: =IFERROR(SUMPRODUCT(LARGE($C139:$AV139,{1,2,3,4,5,6,7})), "") ->  | BD139: =IFERROR(SUMPRODUCT(LARGE($C139:$AV139,{1,2,3,4,5,6,7,8})), "") -> 
AX140: 0 | AY140: 0 | AZ140: =IF($AY140<=6,SUM($C140:$AV140),SUMPRODUCT(LARGE($C140:$AV140,{1,2,3,4,5,6}))) -> 0 | BB140: =IFERROR(SUMPRODUCT(LARGE($C140:$AV140,{1,2,3,4})), "") ->  | BC140: =IFERROR(SUMPRODUCT(LARGE($C140:$AV140,{1,2,3,4,5,6,7})), "") ->  | BD140: =IFERROR(SUMPRODUCT(LARGE($C140:$AV140,{1,2,3,4,5,6,7,8})), "") -> 
AX141: 0 | AY141: 0 | AZ141: =IF($AY141<=6,SUM($C141:$AV141),SUMPRODUCT(LARGE($C141:$AV141,{1,2,3,4,5,6}))) -> 0 | BB141: =IFERROR(SUMPRODUCT(LARGE($C141:$AV141,{1,2,3,4})), "") ->  | BC141: =IFERROR(SUMPRODUCT(LARGE($C141:$AV141,{1,2,3,4,5,6,7})), "") ->  | BD141: =IFERROR(SUMPRODUCT(LARGE($C141:$AV141,{1,2,3,4,5,6,7,8})), "") -> 
AX142: 0 | AY142: 0 | AZ142: =IF($AY142<=6,SUM($C142:$AV142),SUMPRODUCT(LARGE($C142:$AV142,{1,2,3,4,5,6}))) -> 0 | BB142: =IFERROR(SUMPRODUCT(LARGE($C142:$AV142,{1,2,3,4})), "") ->  | BC142: =IFERROR(SUMPRODUCT(LARGE($C142:$AV142,{1,2,3,4,5,6,7})), "") ->  | BD142: =IFERROR(SUMPRODUCT(LARGE($C142:$AV142,{1,2,3,4,5,6,7,8})), "") -> 
AX143: 0 | AY143: 0 | AZ143: =IF($AY143<=6,SUM($C143:$AV143),SUMPRODUCT(LARGE($C143:$AV143,{1,2,3,4,5,6}))) -> 0 | BB143: =IFERROR(SUMPRODUCT(LARGE($C143:$AV143,{1,2,3,4})), "") ->  | BC143: =IFERROR(SUMPRODUCT(LARGE($C143:$AV143,{1,2,3,4,5,6,7})), "") ->  | BD143: =IFERROR(SUMPRODUCT(LARGE($C143:$AV143,{1,2,3,4,5,6,7,8})), "") -> 
AX144: 0 | AY144: 0 | AZ144: =IF($AY144<=6,SUM($C144:$AV144),SUMPRODUCT(LARGE($C144:$AV144,{1,2,3,4,5,6}))) -> 0 | BB144: =IFERROR(SUMPRODUCT(LARGE($C144:$AV144,{1,2,3,4})), "") ->  | BC144: =IFERROR(SUMPRODUCT(LARGE($C144:$AV144,{1,2,3,4,5,6,7})), "") ->  | BD144: =IFERROR(SUMPRODUCT(LARGE($C144:$AV144,{1,2,3,4,5,6,7,8})), "") -> 
AX145: 0 | AY145: 0 | AZ145: =IF($AY145<=6,SUM($C145:$AV145),SUMPRODUCT(LARGE($C145:$AV145,{1,2,3,4,5,6}))) -> 0 | BB145: =IFERROR(SUMPRODUCT(LARGE($C145:$AV145,{1,2,3,4})), "") ->  | BC145: =IFERROR(SUMPRODUCT(LARGE($C145:$AV145,{1,2,3,4,5,6,7})), "") ->  | BD145: =IFERROR(SUMPRODUCT(LARGE($C145:$AV145,{1,2,3,4,5,6,7,8})), "") -> 
AX146: 0 | AY146: 0 | AZ146: =IF($AY146<=6,SUM($C146:$AV146),SUMPRODUCT(LARGE($C146:$AV146,{1,2,3,4,5,6}))) -> 0 | BB146: =IFERROR(SUMPRODUCT(LARGE($C146:$AV146,{1,2,3,4})), "") ->  | BC146: =IFERROR(SUMPRODUCT(LARGE($C146:$AV146,{1,2,3,4,5,6,7})), "") ->  | BD146: =IFERROR(SUMPRODUCT(LARGE($C146:$AV146,{1,2,3,4,5,6,7,8})), "") -> 
AX147: 0 | AY147: 0 | AZ147: =IF($AY147<=6,SUM($C147:$AV147),SUMPRODUCT(LARGE($C147:$AV147,{1,2,3,4,5,6}))) -> 0 | BB147: =IFERROR(SUMPRODUCT(LARGE($C147:$AV147,{1,2,3,4})), "") ->  | BC147: =IFERROR(SUMPRODUCT(LARGE($C147:$AV147,{1,2,3,4,5,6,7})), "") ->  | BD147: =IFERROR(SUMPRODUCT(LARGE($C147:$AV147,{1,2,3,4,5,6,7,8})), "") -> 
AX148: 0 | AY148: 0 | AZ148: =IF($AY148<=6,SUM($C148:$AV148),SUMPRODUCT(LARGE($C148:$AV148,{1,2,3,4,5,6}))) -> 0 | BB148: =IFERROR(SUMPRODUCT(LARGE($C148:$AV148,{1,2,3,4})), "") ->  | BC148: =IFERROR(SUMPRODUCT(LARGE($C148:$AV148,{1,2,3,4,5,6,7})), "") ->  | BD148: =IFERROR(SUMPRODUCT(LARGE($C148:$AV148,{1,2,3,4,5,6,7,8})), "") -> 
AX149: 0 | AY149: 0 | AZ149: =IF($AY149<=6,SUM($C149:$AV149),SUMPRODUCT(LARGE($C149:$AV149,{1,2,3,4,5,6}))) -> 0 | BB149: =IFERROR(SUMPRODUCT(LARGE($C149:$AV149,{1,2,3,4})), "") ->  | BC149: =IFERROR(SUMPRODUCT(LARGE($C149:$AV149,{1,2,3,4,5,6,7})), "") ->  | BD149: =IFERROR(SUMPRODUCT(LARGE($C149:$AV149,{1,2,3,4,5,6,7,8})), "") -> 
AX150: 0 | AY150: 0 | AZ150: =IF($AY150<=6,SUM($C150:$AV150),SUMPRODUCT(LARGE($C150:$AV150,{1,2,3,4,5,6}))) -> 0 | BB150: =IFERROR(SUMPRODUCT(LARGE($C150:$AV150,{1,2,3,4})), "") ->  | BC150: =IFERROR(SUMPRODUCT(LARGE($C150:$AV150,{1,2,3,4,5,6,7})), "") ->  | BD150: =IFERROR(SUMPRODUCT(LARGE($C150:$AV150,{1,2,3,4,5,6,7,8})), "") -> 
AX151: 0 | AY151: 0 | AZ151: =IF($AY151<=6,SUM($C151:$AV151),SUMPRODUCT(LARGE($C151:$AV151,{1,2,3,4,5,6}))) -> 0 | BB151: =IFERROR(SUMPRODUCT(LARGE($C151:$AV151,{1,2,3,4})), "") ->  | BC151: =IFERROR(SUMPRODUCT(LARGE($C151:$AV151,{1,2,3,4,5,6,7})), "") ->  | BD151: =IFERROR(SUMPRODUCT(LARGE($C151:$AV151,{1,2,3,4,5,6,7,8})), "") -> 
AX152: 0 | AY152: 0 | AZ152: =IF($AY152<=6,SUM($C152:$AV152),SUMPRODUCT(LARGE($C152:$AV152,{1,2,3,4,5,6}))) -> 0 | BB152: =IFERROR(SUMPRODUCT(LARGE($C152:$AV152,{1,2,3,4})), "") ->  | BC152: =IFERROR(SUMPRODUCT(LARGE($C152:$AV152,{1,2,3,4,5,6,7})), "") ->  | BD152: =IFERROR(SUMPRODUCT(LARGE($C152:$AV152,{1,2,3,4,5,6,7,8})), "") -> 
AX153: 0 | AY153: 0 | AZ153: =IF($AY153<=6,SUM($C153:$AV153),SUMPRODUCT(LARGE($C153:$AV153,{1,2,3,4,5,6}))) -> 0 | BB153: =IFERROR(SUMPRODUCT(LARGE($C153:$AV153,{1,2,3,4})), "") ->  | BC153: =IFERROR(SUMPRODUCT(LARGE($C153:$AV153,{1,2,3,4,5,6,7})), "") ->  | BD153: =IFERROR(SUMPRODUCT(LARGE($C153:$AV153,{1,2,3,4,5,6,7,8})), "") -> 
AX154: 0 | AY154: 0 | AZ154: =IF($AY154<=6,SUM($C154:$AV154),SUMPRODUCT(LARGE($C154:$AV154,{1,2,3,4,5,6}))) -> 0 | BB154: =IFERROR(SUMPRODUCT(LARGE($C154:$AV154,{1,2,3,4})), "") ->  | BC154: =IFERROR(SUMPRODUCT(LARGE($C154:$AV154,{1,2,3,4,5,6,7})), "") ->  | BD154: =IFERROR(SUMPRODUCT(LARGE($C154:$AV154,{1,2,3,4,5,6,7,8})), "") -> 
AX155: 0 | AY155: 0 | AZ155: =IF($AY155<=6,SUM($C155:$AV155),SUMPRODUCT(LARGE($C155:$AV155,{1,2,3,4,5,6}))) -> 0 | BB155: =IFERROR(SUMPRODUCT(LARGE($C155:$AV155,{1,2,3,4})), "") ->  | BC155: =IFERROR(SUMPRODUCT(LARGE($C155:$AV155,{1,2,3,4,5,6,7})), "") ->  | BD155: =IFERROR(SUMPRODUCT(LARGE($C155:$AV155,{1,2,3,4,5,6,7,8})), "") -> 
AX156: 0 | AY156: 0 | AZ156: =IF($AY156<=6,SUM($C156:$AV156),SUMPRODUCT(LARGE($C156:$AV156,{1,2,3,4,5,6}))) -> 0 | BB156: =IFERROR(SUMPRODUCT(LARGE($C156:$AV156,{1,2,3,4})), "") ->  | BC156: =IFERROR(SUMPRODUCT(LARGE($C156:$AV156,{1,2,3,4,5,6,7})), "") ->  | BD156: =IFERROR(SUMPRODUCT(LARGE($C156:$AV156,{1,2,3,4,5,6,7,8})), "") -> 
AX157: 0 | AY157: 0 | AZ157: =IF($AY157<=6,SUM($C157:$AV157),SUMPRODUCT(LARGE($C157:$AV157,{1,2,3,4,5,6}))) -> 0 | BB157: =IFERROR(SUMPRODUCT(LARGE($C157:$AV157,{1,2,3,4})), "") ->  | BC157: =IFERROR(SUMPRODUCT(LARGE($C157:$AV157,{1,2,3,4,5,6,7})), "") ->  | BD157: =IFERROR(SUMPRODUCT(LARGE($C157:$AV157,{1,2,3,4,5,6,7,8})), "") -> 
AX158: 0 | AY158: 0 | AZ158: =IF($AY158<=6,SUM($C158:$AV158),SUMPRODUCT(LARGE($C158:$AV158,{1,2,3,4,5,6}))) -> 0 | BB158: =IFERROR(SUMPRODUCT(LARGE($C158:$AV158,{1,2,3,4})), "") ->  | BC158: =IFERROR(SUMPRODUCT(LARGE($C158:$AV158,{1,2,3,4,5,6,7})), "") ->  | BD158: =IFERROR(SUMPRODUCT(LARGE($C158:$AV158,{1,2,3,4,5,6,7,8})), "") -> 
AX159: 0 | AY159: 0 | AZ159: =IF($AY159<=6,SUM($C159:$AV159),SUMPRODUCT(LARGE($C159:$AV159,{1,2,3,4,5,6}))) -> 0 | BB159: =IFERROR(SUMPRODUCT(LARGE($C159:$AV159,{1,2,3,4})), "") ->  | BC159: =IFERROR(SUMPRODUCT(LARGE($C159:$AV159,{1,2,3,4,5,6,7})), "") ->  | BD159: =IFERROR(SUMPRODUCT(LARGE($C159:$AV159,{1,2,3,4,5,6,7,8})), "") -> 
AX160: 0 | AY160: 0 | AZ160: =IF($AY160<=6,SUM($C160:$AV160),SUMPRODUCT(LARGE($C160:$AV160,{1,2,3,4,5,6}))) -> 0 | BB160: =IFERROR(SUMPRODUCT(LARGE($C160:$AV160,{1,2,3,4})), "") ->  | BC160: =IFERROR(SUMPRODUCT(LARGE($C160:$AV160,{1,2,3,4,5,6,7})), "") ->  | BD160: =IFERROR(SUMPRODUCT(LARGE($C160:$AV160,{1,2,3,4,5,6,7,8})), "") -> 
AX161: 0 | AY161: 0 | AZ161: =IF($AY161<=6,SUM($C161:$AV161),SUMPRODUCT(LARGE($C161:$AV161,{1,2,3,4,5,6}))) -> 0 | BB161: =IFERROR(SUMPRODUCT(LARGE($C161:$AV161,{1,2,3,4})), "") ->  | BC161: =IFERROR(SUMPRODUCT(LARGE($C161:$AV161,{1,2,3,4,5,6,7})), "") ->  | BD161: =IFERROR(SUMPRODUCT(LARGE($C161:$AV161,{1,2,3,4,5,6,7,8})), "") -> 
AX162: 0 | AY162: 0 | AZ162: =IF($AY162<=6,SUM($C162:$AV162),SUMPRODUCT(LARGE($C162:$AV162,{1,2,3,4,5,6}))) -> 0 | BB162: =IFERROR(SUMPRODUCT(LARGE($C162:$AV162,{1,2,3,4})), "") ->  | BC162: =IFERROR(SUMPRODUCT(LARGE($C162:$AV162,{1,2,3,4,5,6,7})), "") ->  | BD162: =IFERROR(SUMPRODUCT(LARGE($C162:$AV162,{1,2,3,4,5,6,7,8})), "") -> 
AX163: 0 | AY163: 0 | AZ163: =IF($AY163<=6,SUM($C163:$AV163),SUMPRODUCT(LARGE($C163:$AV163,{1,2,3,4,5,6}))) -> 0 | BB163: =IFERROR(SUMPRODUCT(LARGE($C163:$AV163,{1,2,3,4})), "") ->  | BC163: =IFERROR(SUMPRODUCT(LARGE($C163:$AV163,{1,2,3,4,5,6,7})), "") ->  | BD163: =IFERROR(SUMPRODUCT(LARGE($C163:$AV163,{1,2,3,4,5,6,7,8})), "") -> 
AX164: 0 | AY164: 0 | AZ164: =IF($AY164<=6,SUM($C164:$AV164),SUMPRODUCT(LARGE($C164:$AV164,{1,2,3,4,5,6}))) -> 0 | BB164: =IFERROR(SUMPRODUCT(LARGE($C164:$AV164,{1,2,3,4})), "") ->  | BC164: =IFERROR(SUMPRODUCT(LARGE($C164:$AV164,{1,2,3,4,5,6,7})), "") ->  | BD164: =IFERROR(SUMPRODUCT(LARGE($C164:$AV164,{1,2,3,4,5,6,7,8})), "") -> 
AX165: 0 | AY165: 0 | AZ165: =IF($AY165<=6,SUM($C165:$AV165),SUMPRODUCT(LARGE($C165:$AV165,{1,2,3,4,5,6}))) -> 0 | BB165: =IFERROR(SUMPRODUCT(LARGE($C165:$AV165,{1,2,3,4})), "") ->  | BC165: =IFERROR(SUMPRODUCT(LARGE($C165:$AV165,{1,2,3,4,5,6,7})), "") ->  | BD165: =IFERROR(SUMPRODUCT(LARGE($C165:$AV165,{1,2,3,4,5,6,7,8})), "") -> 
AX166: 0 | AY166: 0 | AZ166: =IF($AY166<=6,SUM($C166:$AV166),SUMPRODUCT(LARGE($C166:$AV166,{1,2,3,4,5,6}))) -> 0 | BB166: =IFERROR(SUMPRODUCT(LARGE($C166:$AV166,{1,2,3,4})), "") ->  | BC166: =IFERROR(SUMPRODUCT(LARGE($C166:$AV166,{1,2,3,4,5,6,7})), "") ->  | BD166: =IFERROR(SUMPRODUCT(LARGE($C166:$AV166,{1,2,3,4,5,6,7,8})), "") -> 
AX167: 0 | AY167: 0 | AZ167: =IF($AY167<=6,SUM($C167:$AV167),SUMPRODUCT(LARGE($C167:$AV167,{1,2,3,4,5,6}))) -> 0 | BB167: =IFERROR(SUMPRODUCT(LARGE($C167:$AV167,{1,2,3,4})), "") ->  | BC167: =IFERROR(SUMPRODUCT(LARGE($C167:$AV167,{1,2,3,4,5,6,7})), "") ->  | BD167: =IFERROR(SUMPRODUCT(LARGE($C167:$AV167,{1,2,3,4,5,6,7,8})), "") -> 
AX168: 0 | AY168: 0 | AZ168: =IF($AY168<=6,SUM($C168:$AV168),SUMPRODUCT(LARGE($C168:$AV168,{1,2,3,4,5,6}))) -> 0 | BB168: =IFERROR(SUMPRODUCT(LARGE($C168:$AV168,{1,2,3,4})), "") ->  | BC168: =IFERROR(SUMPRODUCT(LARGE($C168:$AV168,{1,2,3,4,5,6,7})), "") ->  | BD168: =IFERROR(SUMPRODUCT(LARGE($C168:$AV168,{1,2,3,4,5,6,7,8})), "") -> 
AX169: 0 | AY169: 0 | AZ169: =IF($AY169<=6,SUM($C169:$AV169),SUMPRODUCT(LARGE($C169:$AV169,{1,2,3,4,5,6}))) -> 0 | BB169: =IFERROR(SUMPRODUCT(LARGE($C169:$AV169,{1,2,3,4})), "") ->  | BC169: =IFERROR(SUMPRODUCT(LARGE($C169:$AV169,{1,2,3,4,5,6,7})), "") ->  | BD169: =IFERROR(SUMPRODUCT(LARGE($C169:$AV169,{1,2,3,4,5,6,7,8})), "") -> 
AX170: 0 | AY170: 0 | AZ170: =IF($AY170<=6,SUM($C170:$AV170),SUMPRODUCT(LARGE($C170:$AV170,{1,2,3,4,5,6}))) -> 0 | BB170: =IFERROR(SUMPRODUCT(LARGE($C170:$AV170,{1,2,3,4})), "") ->  | BC170: =IFERROR(SUMPRODUCT(LARGE($C170:$AV170,{1,2,3,4,5,6,7})), "") ->  | BD170: =IFERROR(SUMPRODUCT(LARGE($C170:$AV170,{1,2,3,4,5,6,7,8})), "") -> 
AX171: 0 | AY171: 0 | AZ171: =IF($AY171<=6,SUM($C171:$AV171),SUMPRODUCT(LARGE($C171:$AV171,{1,2,3,4,5,6}))) -> 0 | BB171: =IFERROR(SUMPRODUCT(LARGE($C171:$AV171,{1,2,3,4})), "") ->  | BC171: =IFERROR(SUMPRODUCT(LARGE($C171:$AV171,{1,2,3,4,5,6,7})), "") ->  | BD171: =IFERROR(SUMPRODUCT(LARGE($C171:$AV171,{1,2,3,4,5,6,7,8})), "") -> 
AX172: 0 | AY172: 0 | AZ172: =IF($AY172<=6,SUM($C172:$AV172),SUMPRODUCT(LARGE($C172:$AV172,{1,2,3,4,5,6}))) -> 0 | BB172: =IFERROR(SUMPRODUCT(LARGE($C172:$AV172,{1,2,3,4})), "") ->  | BC172: =IFERROR(SUMPRODUCT(LARGE($C172:$AV172,{1,2,3,4,5,6,7})), "") ->  | BD172: =IFERROR(SUMPRODUCT(LARGE($C172:$AV172,{1,2,3,4,5,6,7,8})), "") -> 
AX173: 0 | AY173: 0 | AZ173: =IF($AY173<=6,SUM($C173:$AV173),SUMPRODUCT(LARGE($C173:$AV173,{1,2,3,4,5,6}))) -> 0 | BB173: =IFERROR(SUMPRODUCT(LARGE($C173:$AV173,{1,2,3,4})), "") ->  | BC173: =IFERROR(SUMPRODUCT(LARGE($C173:$AV173,{1,2,3,4,5,6,7})), "") ->  | BD173: =IFERROR(SUMPRODUCT(LARGE($C173:$AV173,{1,2,3,4,5,6,7,8})), "") -> 
AX174: 0 | AY174: 0 | AZ174: =IF($AY174<=6,SUM($C174:$AV174),SUMPRODUCT(LARGE($C174:$AV174,{1,2,3,4,5,6}))) -> 0 | BB174: =IFERROR(SUMPRODUCT(LARGE($C174:$AV174,{1,2,3,4})), "") ->  | BC174: =IFERROR(SUMPRODUCT(LARGE($C174:$AV174,{1,2,3,4,5,6,7})), "") ->  | BD174: =IFERROR(SUMPRODUCT(LARGE($C174:$AV174,{1,2,3,4,5,6,7,8})), "") -> 
AX175: 0 | AY175: 0 | AZ175: =IF($AY175<=6,SUM($C175:$AV175),SUMPRODUCT(LARGE($C175:$AV175,{1,2,3,4,5,6}))) -> 0 | BB175: =IFERROR(SUMPRODUCT(LARGE($C175:$AV175,{1,2,3,4})), "") ->  | BC175: =IFERROR(SUMPRODUCT(LARGE($C175:$AV175,{1,2,3,4,5,6,7})), "") ->  | BD175: =IFERROR(SUMPRODUCT(LARGE($C175:$AV175,{1,2,3,4,5,6,7,8})), "") -> 
AX176: 0 | AY176: 0 | AZ176: =IF($AY176<=6,SUM($C176:$AV176),SUMPRODUCT(LARGE($C176:$AV176,{1,2,3,4,5,6}))) -> 0 | BB176: =IFERROR(SUMPRODUCT(LARGE($C176:$AV176,{1,2,3,4})), "") ->  | BC176: =IFERROR(SUMPRODUCT(LARGE($C176:$AV176,{1,2,3,4,5,6,7})), "") ->  | BD176: =IFERROR(SUMPRODUCT(LARGE($C176:$AV176,{1,2,3,4,5,6,7,8})), "") -> 
AX177: 0 | AY177: 0 | AZ177: =IF($AY177<=6,SUM($C177:$AV177),SUMPRODUCT(LARGE($C177:$AV177,{1,2,3,4,5,6}))) -> 0 | BB177: =IFERROR(SUMPRODUCT(LARGE($C177:$AV177,{1,2,3,4})), "") ->  | BC177: =IFERROR(SUMPRODUCT(LARGE($C177:$AV177,{1,2,3,4,5,6,7})), "") ->  | BD177: =IFERROR(SUMPRODUCT(LARGE($C177:$AV177,{1,2,3,4,5,6,7,8})), "") -> 
AX178: 0 | AY178: 0 | AZ178: =IF($AY178<=6,SUM($C178:$AV178),SUMPRODUCT(LARGE($C178:$AV178,{1,2,3,4,5,6}))) -> 0 | BB178: =IFERROR(SUMPRODUCT(LARGE($C178:$AV178,{1,2,3,4})), "") ->  | BC178: =IFERROR(SUMPRODUCT(LARGE($C178:$AV178,{1,2,3,4,5,6,7})), "") ->  | BD178: =IFERROR(SUMPRODUCT(LARGE($C178:$AV178,{1,2,3,4,5,6,7,8})), "") -> 
AX179: 0 | AY179: 0 | AZ179: =IF($AY179<=6,SUM($C179:$AV179),SUMPRODUCT(LARGE($C179:$AV179,{1,2,3,4,5,6}))) -> 0 | BB179: =IFERROR(SUMPRODUCT(LARGE($C179:$AV179,{1,2,3,4})), "") ->  | BC179: =IFERROR(SUMPRODUCT(LARGE($C179:$AV179,{1,2,3,4,5,6,7})), "") ->  | BD179: =IFERROR(SUMPRODUCT(LARGE($C179:$AV179,{1,2,3,4,5,6,7,8})), "") -> 
AX180: 0 | AY180: 0 | AZ180: =IF($AY180<=6,SUM($C180:$AV180),SUMPRODUCT(LARGE($C180:$AV180,{1,2,3,4,5,6}))) -> 0 | BB180: =IFERROR(SUMPRODUCT(LARGE($C180:$AV180,{1,2,3,4})), "") ->  | BC180: =IFERROR(SUMPRODUCT(LARGE($C180:$AV180,{1,2,3,4,5,6,7})), "") ->  | BD180: =IFERROR(SUMPRODUCT(LARGE($C180:$AV180,{1,2,3,4,5,6,7,8})), "") -> 
AX181: 0 | AY181: 0 | AZ181: =IF($AY181<=6,SUM($C181:$AV181),SUMPRODUCT(LARGE($C181:$AV181,{1,2,3,4,5,6}))) -> 0 | BB181: =IFERROR(SUMPRODUCT(LARGE($C181:$AV181,{1,2,3,4})), "") ->  | BC181: =IFERROR(SUMPRODUCT(LARGE($C181:$AV181,{1,2,3,4,5,6,7})), "") ->  | BD181: =IFERROR(SUMPRODUCT(LARGE($C181:$AV181,{1,2,3,4,5,6,7,8})), "") -> 
AX182: 0 | AY182: 0 | AZ182: =IF($AY182<=6,SUM($C182:$AV182),SUMPRODUCT(LARGE($C182:$AV182,{1,2,3,4,5,6}))) -> 0 | BB182: =IFERROR(SUMPRODUCT(LARGE($C182:$AV182,{1,2,3,4})), "") ->  | BC182: =IFERROR(SUMPRODUCT(LARGE($C182:$AV182,{1,2,3,4,5,6,7})), "") ->  | BD182: =IFERROR(SUMPRODUCT(LARGE($C182:$AV182,{1,2,3,4,5,6,7,8})), "") -> 
AX183: 0 | AY183: 0 | AZ183: =IF($AY183<=6,SUM($C183:$AV183),SUMPRODUCT(LARGE($C183:$AV183,{1,2,3,4,5,6}))) -> 0 | BB183: =IFERROR(SUMPRODUCT(LARGE($C183:$AV183,{1,2,3,4})), "") ->  | BC183: =IFERROR(SUMPRODUCT(LARGE($C183:$AV183,{1,2,3,4,5,6,7})), "") ->  | BD183: =IFERROR(SUMPRODUCT(LARGE($C183:$AV183,{1,2,3,4,5,6,7,8})), "") -> 
AX184: 0 | AY184: 0 | AZ184: =IF($AY184<=6,SUM($C184:$AV184),SUMPRODUCT(LARGE($C184:$AV184,{1,2,3,4,5,6}))) -> 0 | BB184: =IFERROR(SUMPRODUCT(LARGE($C184:$AV184,{1,2,3,4})), "") ->  | BC184: =IFERROR(SUMPRODUCT(LARGE($C184:$AV184,{1,2,3,4,5,6,7})), "") ->  | BD184: =IFERROR(SUMPRODUCT(LARGE($C184:$AV184,{1,2,3,4,5,6,7,8})), "") -> 
AX185: 0 | AY185: 0 | AZ185: =IF($AY185<=6,SUM($C185:$AV185),SUMPRODUCT(LARGE($C185:$AV185,{1,2,3,4,5,6}))) -> 0 | BB185: =IFERROR(SUMPRODUCT(LARGE($C185:$AV185,{1,2,3,4})), "") ->  | BC185: =IFERROR(SUMPRODUCT(LARGE($C185:$AV185,{1,2,3,4,5,6,7})), "") ->  | BD185: =IFERROR(SUMPRODUCT(LARGE($C185:$AV185,{1,2,3,4,5,6,7,8})), "") -> 
AX186: 0 | AY186: 0 | AZ186: =IF($AY186<=6,SUM($C186:$AV186),SUMPRODUCT(LARGE($C186:$AV186,{1,2,3,4,5,6}))) -> 0 | BB186: =IFERROR(SUMPRODUCT(LARGE($C186:$AV186,{1,2,3,4})), "") ->  | BC186: =IFERROR(SUMPRODUCT(LARGE($C186:$AV186,{1,2,3,4,5,6,7})), "") ->  | BD186: =IFERROR(SUMPRODUCT(LARGE($C186:$AV186,{1,2,3,4,5,6,7,8})), "") -> 
AX187: 0 | AY187: 0 | AZ187: =IF($AY187<=6,SUM($C187:$AV187),SUMPRODUCT(LARGE($C187:$AV187,{1,2,3,4,5,6}))) -> 0 | BB187: =IFERROR(SUMPRODUCT(LARGE($C187:$AV187,{1,2,3,4})), "") ->  | BC187: =IFERROR(SUMPRODUCT(LARGE($C187:$AV187,{1,2,3,4,5,6,7})), "") ->  | BD187: =IFERROR(SUMPRODUCT(LARGE($C187:$AV187,{1,2,3,4,5,6,7,8})), "") -> 
AX188: 0 | AY188: 0 | AZ188: =IF($AY188<=6,SUM($C188:$AV188),SUMPRODUCT(LARGE($C188:$AV188,{1,2,3,4,5,6}))) -> 0 | BB188: =IFERROR(SUMPRODUCT(LARGE($C188:$AV188,{1,2,3,4})), "") ->  | BC188: =IFERROR(SUMPRODUCT(LARGE($C188:$AV188,{1,2,3,4,5,6,7})), "") ->  | BD188: =IFERROR(SUMPRODUCT(LARGE($C188:$AV188,{1,2,3,4,5,6,7,8})), "") -> 
AX189: 0 | AY189: 0 | AZ189: =IF($AY189<=6,SUM($C189:$AV189),SUMPRODUCT(LARGE($C189:$AV189,{1,2,3,4,5,6}))) -> 0 | BB189: =IFERROR(SUMPRODUCT(LARGE($C189:$AV189,{1,2,3,4})), "") ->  | BC189: =IFERROR(SUMPRODUCT(LARGE($C189:$AV189,{1,2,3,4,5,6,7})), "") ->  | BD189: =IFERROR(SUMPRODUCT(LARGE($C189:$AV189,{1,2,3,4,5,6,7,8})), "") -> 
AX190: 0 | AY190: 0 | AZ190: =IF($AY190<=6,SUM($C190:$AV190),SUMPRODUCT(LARGE($C190:$AV190,{1,2,3,4,5,6}))) -> 0 | BB190: =IFERROR(SUMPRODUCT(LARGE($C190:$AV190,{1,2,3,4})), "") ->  | BC190: =IFERROR(SUMPRODUCT(LARGE($C190:$AV190,{1,2,3,4,5,6,7})), "") ->  | BD190: =IFERROR(SUMPRODUCT(LARGE($C190:$AV190,{1,2,3,4,5,6,7,8})), "") -> 
AX191: 0 | AY191: 0 | AZ191: =IF($AY191<=6,SUM($C191:$AV191),SUMPRODUCT(LARGE($C191:$AV191,{1,2,3,4,5,6}))) -> 0 | BB191: =IFERROR(SUMPRODUCT(LARGE($C191:$AV191,{1,2,3,4})), "") ->  | BC191: =IFERROR(SUMPRODUCT(LARGE($C191:$AV191,{1,2,3,4,5,6,7})), "") ->  | BD191: =IFERROR(SUMPRODUCT(LARGE($C191:$AV191,{1,2,3,4,5,6,7,8})), "") -> 
AX192: 0 | AY192: 0 | AZ192: =IF($AY192<=6,SUM($C192:$AV192),SUMPRODUCT(LARGE($C192:$AV192,{1,2,3,4,5,6}))) -> 0 | BB192: =IFERROR(SUMPRODUCT(LARGE($C192:$AV192,{1,2,3,4})), "") ->  | BC192: =IFERROR(SUMPRODUCT(LARGE($C192:$AV192,{1,2,3,4,5,6,7})), "") ->  | BD192: =IFERROR(SUMPRODUCT(LARGE($C192:$AV192,{1,2,3,4,5,6,7,8})), "") -> 
AX193: =SUM($C193:$AW193) -> 0 | AY193: =COUNTA(C193:AV193) -> 0 | AZ193: =IF($AY193<=6,SUM($C193:$AV193),SUMPRODUCT(LARGE($C193:$AV193,{1,2,3,4,5,6}))) -> 0 | BB193: =IFERROR(SUMPRODUCT(LARGE($C193:$AV193,{1,2,3,4})), "") ->  | BC193: =IFERROR(SUMPRODUCT(LARGE($C193:$AV193,{1,2,3,4,5,6,7})), "") ->  | BD193: =IFERROR(SUMPRODUCT(LARGE($C193:$AV193,{1,2,3,4,5,6,7,8})), "") -> 
AX194: 0 | AY194: 0 | AZ194: =IF($AY194<=6,SUM($C194:$AV194),SUMPRODUCT(LARGE($C194:$AV194,{1,2,3,4,5,6}))) -> 0 | BA194: =IF(AND($AY194>=6,AZ194=AZ195),"Manual Calc Needed","") ->  | BB194: =IFERROR(SUMPRODUCT(LARGE($C194:$AV194,{1,2,3,4})), "") ->  | BC194: =IFERROR(SUMPRODUCT(LARGE($C194:$AV194,{1,2,3,4,5,6,7})), "") ->  | BD194: =IFERROR(SUMPRODUCT(LARGE($C194:$AV194,{1,2,3,4,5,6,7,8})), "") -> 
AX195: 0 | AY195: 0 | AZ195: =IF($AY195<=6,SUM($C195:$AV195),SUMPRODUCT(LARGE($C195:$AV195,{1,2,3,4,5,6}))) -> 0 | BB195: =IFERROR(SUMPRODUCT(LARGE($C195:$AV195,{1,2,3,4})), "") ->  | BC195: =IFERROR(SUMPRODUCT(LARGE($C195:$AV195,{1,2,3,4,5,6,7})), "") ->  | BD195: =IFERROR(SUMPRODUCT(LARGE($C195:$AV195,{1,2,3,4,5,6,7,8})), "") -> 
AX196: 0 | AY196: 0 | AZ196: =IF($AY196<=6,SUM($C196:$AV196),SUMPRODUCT(LARGE($C196:$AV196,{1,2,3,4,5,6}))) -> 0 | BB196: =IFERROR(SUMPRODUCT(LARGE($C196:$AV196,{1,2,3,4})), "") ->  | BC196: =IFERROR(SUMPRODUCT(LARGE($C196:$AV196,{1,2,3,4,5,6,7})), "") ->  | BD196: =IFERROR(SUMPRODUCT(LARGE($C196:$AV196,{1,2,3,4,5,6,7,8})), "") -> 
AX197: 0 | AY197: 0 | AZ197: =IF($AY197<=6,SUM($C197:$AV197),SUMPRODUCT(LARGE($C197:$AV197,{1,2,3,4,5,6}))) -> 0 | BB197: =IFERROR(SUMPRODUCT(LARGE($C197:$AV197,{1,2,3,4})), "") ->  | BC197: =IFERROR(SUMPRODUCT(LARGE($C197:$AV197,{1,2,3,4,5,6,7})), "") ->  | BD197: =IFERROR(SUMPRODUCT(LARGE($C197:$AV197,{1,2,3,4,5,6,7,8})), "") -> 
AX198: 0 | AY198: 0 | AZ198: =IF($AY198<=6,SUM($C198:$AV198),SUMPRODUCT(LARGE($C198:$AV198,{1,2,3,4,5,6}))) -> 0 | BB198: =IFERROR(SUMPRODUCT(LARGE($C198:$AV198,{1,2,3,4})), "") ->  | BC198: =IFERROR(SUMPRODUCT(LARGE($C198:$AV198,{1,2,3,4,5,6,7})), "") ->  | BD198: =IFERROR(SUMPRODUCT(LARGE($C198:$AV198,{1,2,3,4,5,6,7,8})), "") -> 
AX199: 0 | AY199: 0 | AZ199: =IF($AY199<=6,SUM($C199:$AV199),SUMPRODUCT(LARGE($C199:$AV199,{1,2,3,4,5,6}))) -> 0 | BB199: =IFERROR(SUMPRODUCT(LARGE($C199:$AV199,{1,2,3,4})), "") ->  | BC199: =IFERROR(SUMPRODUCT(LARGE($C199:$AV199,{1,2,3,4,5,6,7})), "") ->  | BD199: =IFERROR(SUMPRODUCT(LARGE($C199:$AV199,{1,2,3,4,5,6,7,8})), "") -> 
AX200: 0 | AY200: 0 | AZ200: =IF($AY200<=6,SUM($C200:$AV200),SUMPRODUCT(LARGE($C200:$AV200,{1,2,3,4,5,6}))) -> 0 | BB200: =IFERROR(SUMPRODUCT(LARGE($C200:$AV200,{1,2,3,4})), "") ->  | BC200: =IFERROR(SUMPRODUCT(LARGE($C200:$AV200,{1,2,3,4,5,6,7})), "") ->  | BD200: =IFERROR(SUMPRODUCT(LARGE($C200:$AV200,{1,2,3,4,5,6,7,8})), "") -> 
... 99 more rows

Sheet Novice
C1: USM | D1: CSI | E1: NWC | F1: UAM | G1: L&C | H1: BGS1 | I1: BGS2 | J1: MTSU | K1: PLNU | L1: LSUS | M1: LiC | N1: ETBU | O1: ACU | P1: LCC | BA1: Head to Head | BB1: Calc | BC1: H/L | BD1: 7th Tourn. | BE1: 8th Tourn.
B2: Novice Indivudual | C2: USM (9/25-26) | D2: CSI (9/24-25) | E2: NW College (9/24-25) | F2: UAM (10/8-10) | G2: L & C / Whitman (10/8-10) | H2: BGSU 1 (10/16-17) | I2: BGSU 2* (10/16-17) | J2: MTSU (10/22-23) | K2: PLNU (10/22-23) | L2: LSUS (11/5-7) | M2: LiC (11/12-14) | N2: ETBU (11/19-20) | O2: ACU (12/3-5) | P2: LCC (12/4-6) | AW2: over 6/2nd host | AX2: Total Points | AY2: Tournament Count | AZ2: Best Top 6 | BA2: 1st Tie Breaker | BB2: 2nd Tie Breaker | BC2: 3rd Tie Breaker | BD2: 4th Tie Breaker | BE2: 5th Tie Breaker
B3: ACU- Danaher | C3: 9 | F3: 7 | N3: 12 | AX3: =SUM($C3:$AW3) -> 28 | AY3: =COUNTA(C3:AV3) -> 3 | AZ3: =IF($AY3<=6,SUM($C3:$AV3),SUMPRODUCT(LARGE($C3:$AV3,{1,2,3,4,5,6}))) -> 28 | BA3: =IF(AND($AY3>=6,AZ3=AZ4),"Manual Calc Needed","") ->  | BB3: =IF(AND($AY3>=6,$BA3="Tie"),"Manual Calc Needed"," ") ->  | BC3: =IFERROR(SUMPRODUCT(LARGE($C3:$AV3,{1,2,3,4})), "") ->  | BD3: =IFERROR(SUMPRODUCT(LARGE($C3:$AV3,{1,2,3,4,5,6,7})), "") ->  | BE3: =IFERROR(SUMPRODUCT(LARGE($C3:$AV3,{1,2,3,4,5,6,7,8})), "") -> 
B4: ACU- Davis | F4: 6 | L4: 6 | N4: 7 | AX4: 19 | AY4: 3 | AZ4: =IF($AY4<=6,SUM($C4:$AV4),SUMPRODUCT(LARGE($C4:$AV4,{1,2,3,4,5,6}))) -> 19 | BC4: =IFERROR(SUMPRODUCT(LARGE($C4:$AV4,{1,2,3,4})), "") ->  | BD4: =IFERROR(SUMPRODUCT(LARGE($C4:$AV4,{1,2,3,4,5,6,7})), "") ->  | BE4: =IFERROR(SUMPRODUCT(LARGE($C4:$AV4,{1,2,3,4,5,6,7,8})), "") -> 
B5: ACU- McDonald | C5: 3 | AX5: 3 | AY5: 1 | AZ5: =IF($AY5<=6,SUM($C5:$AV5),SUMPRODUCT(LARGE($C5:$AV5,{1,2,3,4,5,6}))) -> 3 | BC5: =IFERROR(SUMPRODUCT(LARGE($C5:$AV5,{1,2,3,4})), "") ->  | BD5: =IFERROR(SUMPRODUCT(LARGE($C5:$AV5,{1,2,3,4,5,6,7})), "") ->  | BE5: =IFERROR(SUMPRODUCT(LARGE($C5:$AV5,{1,2,3,4,5,6,7,8})), "") -> 
A6: 12 | B6: ACU- McGathy | C6: 11 | F6: 11 | L6: 12 | AX6: 34 | AY6: 3 | AZ6: =IF($AY6<=6,SUM($C6:$AV6),SUMPRODUCT(LARGE($C6:$AV6,{1,2,3,4,5,6}))) -> 34 | BC6: =IFERROR(SUMPRODUCT(LARGE($C6:$AV6,{1,2,3,4})), "") ->  | BD6: =IFERROR(SUMPRODUCT(LARGE($C6:$AV6,{1,2,3,4,5,6,7})), "") ->  | BE6: =IFERROR(SUMPRODUCT(LARGE($C6:$AV6,{1,2,3,4,5,6,7,8})), "") -> 
B7: BGSU- Firelands | H7: 1 | AX7: 1 | AY7: 1 | AZ7: =IF($AY7<=6,SUM($C7:$AV7),SUMPRODUCT(LARGE($C7:$AV7,{1,2,3,4,5,6}))) -> 1 | BC7: =IFERROR(SUMPRODUCT(LARGE($C7:$AV7,{1,2,3,4})), "") ->  | BD7: =IFERROR(SUMPRODUCT(LARGE($C7:$AV7,{1,2,3,4,5,6,7})), "") ->  | BE7: =IFERROR(SUMPRODUCT(LARGE($C7:$AV7,{1,2,3,4,5,6,7,8})), "") -> 
A8: WCU | B8: BPCC- Calhoun | L8: 3 | N8: 3 | O8: 4 | AX8: 10 | AY8: 3 | AZ8: =IF($AY8<=6,SUM($C8:$AV8),SUMPRODUCT(LARGE($C8:$AV8,{1,2,3,4,5,6}))) -> 10 | BC8: =IFERROR(SUMPRODUCT(LARGE($C8:$AV8,{1,2,3,4})), "") ->  | BD8: =IFERROR(SUMPRODUCT(LARGE($C8:$AV8,{1,2,3,4,5,6,7})), "") ->  | BE8: =IFERROR(SUMPRODUCT(LARGE($C8:$AV8,{1,2,3,4,5,6,7,8})), "") -> 
B9: BPCC- Longino | N9: 9 | O9: 1 | AX9: 10 | AY9: 2 | AZ9: =IF($AY9<=6,SUM($C9:$AV9),SUMPRODUCT(LARGE($C9:$AV9,{1,2,3,4,5,6}))) -> 10 | BC9: =IFERROR(SUMPRODUCT(LARGE($C9:$AV9,{1,2,3,4})), "") ->  | BD9: =IFERROR(SUMPRODUCT(LARGE($C9:$AV9,{1,2,3,4,5,6,7})), "") ->  | BE9: =IFERROR(SUMPRODUCT(LARGE($C9:$AV9,{1,2,3,4,5,6,7,8})), "") -> 
B10: BU- Allen | C10: 5 | J10: 8 | AX10: 13 | AY10: 2 | AZ10: =IF($AY10<=6,SUM($C10:$AV10),SUMPRODUCT(LARGE($C10:$AV10,{1,2,3,4,5,6}))) -> 13 | BC10: =IFERROR(SUMPRODUCT(LARGE($C10:$AV10,{1,2,3,4})), "") ->  | BD10: =IFERROR(SUMPRODUCT(LARGE($C10:$AV10,{1,2,3,4,5,6,7})), "") ->  | BE10: =IFERROR(SUMPRODUCT(LARGE($C10:$AV10,{1,2,3,4,5,6,7,8})), "") -> 
A11: BU | B11: BU- Crawford | C11: 5 | AX11: 5 | AY11: 1 | AZ11: =IF($AY11<=6,SUM($C11:$AV11),SUMPRODUCT(LARGE($C11:$AV11,{1,2,3,4,5,6}))) -> 5 | BC11: =IFERROR(SUMPRODUCT(LARGE($C11:$AV11,{1,2,3,4})), "") ->  | BD11: =IFERROR(SUMPRODUCT(LARGE($C11:$AV11,{1,2,3,4,5,6,7})), "") ->  | BE11: =IFERROR(SUMPRODUCT(LARGE($C11:$AV11,{1,2,3,4,5,6,7,8})), "") -> 
B12: ButU- Puricelli | G12: 8 | AX12: 8 | AY12: 1 | AZ12: =IF($AY12<=6,SUM($C12:$AV12),SUMPRODUCT(LARGE($C12:$AV12,{1,2,3,4,5,6}))) -> 8 | BC12: =IFERROR(SUMPRODUCT(LARGE($C12:$AV12,{1,2,3,4})), "") ->  | BD12: =IFERROR(SUMPRODUCT(LARGE($C12:$AV12,{1,2,3,4,5,6,7})), "") ->  | BE12: =IFERROR(SUMPRODUCT(LARGE($C12:$AV12,{1,2,3,4,5,6,7,8})), "") -> 
A13: HPU | B13: CCU- Kenders | G13: 6 | AX13: 6 | AY13: 1 | AZ13: =IF($AY13<=6,SUM($C13:$AV13),SUMPRODUCT(LARGE($C13:$AV13,{1,2,3,4,5,6}))) -> 6 | BC13: =IFERROR(SUMPRODUCT(LARGE($C13:$AV13,{1,2,3,4})), "") ->  | BD13: =IFERROR(SUMPRODUCT(LARGE($C13:$AV13,{1,2,3,4,5,6,7})), "") ->  | BE13: =IFERROR(SUMPRODUCT(LARGE($C13:$AV13,{1,2,3,4,5,6,7,8})), "") -> 
B14: CCU- Toennis | G14: 11 | AX14: 11 | AY14: 1 | AZ14: =IF($AY14<=6,SUM($C14:$AV14),SUMPRODUCT(LARGE($C14:$AV14,{1,2,3,4,5,6}))) -> 11 | BC14: =IFERROR(SUMPRODUCT(LARGE($C14:$AV14,{1,2,3,4})), "") ->  | BD14: =IFERROR(SUMPRODUCT(LARGE($C14:$AV14,{1,2,3,4,5,6,7})), "") ->  | BE14: =IFERROR(SUMPRODUCT(LARGE($C14:$AV14,{1,2,3,4,5,6,7,8})), "") -> 
B15: CSI- Dunn | G15: 0 | AX15: 0 | AY15: 1 | AZ15: =IF($AY15<=6,SUM($C15:$AV15),SUMPRODUCT(LARGE($C15:$AV15,{1,2,3,4,5,6}))) -> 0 | BC15: =IFERROR(SUMPRODUCT(LARGE($C15:$AV15,{1,2,3,4})), "") ->  | BD15: =IFERROR(SUMPRODUCT(LARGE($C15:$AV15,{1,2,3,4,5,6,7})), "") ->  | BE15: =IFERROR(SUMPRODUCT(LARGE($C15:$AV15,{1,2,3,4,5,6,7,8})), "") -> 
B16: CSI- E. Jones | G16: 6 | M16: 1 | O16: 11 | AX16: 18 | AY16: 3 | AZ16: =IF($AY16<=6,SUM($C16:$AV16),SUMPRODUCT(LARGE($C16:$AV16,{1,2,3,4,5,6}))) -> 18 | BC16: =IFERROR(SUMPRODUCT(LARGE($C16:$AV16,{1,2,3,4})), "") ->  | BD16: =IFERROR(SUMPRODUCT(LARGE($C16:$AV16,{1,2,3,4,5,6,7})), "") ->  | BE16: =IFERROR(SUMPRODUCT(LARGE($C16:$AV16,{1,2,3,4,5,6,7,8})), "") -> 
A17: LTU | B17: CSI- George | G17: 2 | M17: 2 | AX17: 4 | AY17: 2 | AZ17: =IF($AY17<=6,SUM($C17:$AV17),SUMPRODUCT(LARGE($C17:$AV17,{1,2,3,4,5,6}))) -> 4 | BC17: =IFERROR(SUMPRODUCT(LARGE($C17:$AV17,{1,2,3,4})), "") ->  | BD17: =IFERROR(SUMPRODUCT(LARGE($C17:$AV17,{1,2,3,4,5,6,7})), "") ->  | BE17: =IFERROR(SUMPRODUCT(LARGE($C17:$AV17,{1,2,3,4,5,6,7,8})), "") -> 
A18: MTSU | B18: CSI- Gilch | D18: 4 | G18: 2 | M18: 1 | O18: 3 | AX18: 10 | AY18: 4 | AZ18: =IF($AY18<=6,SUM($C18:$AV18),SUMPRODUCT(LARGE($C18:$AV18,{1,2,3,4,5,6}))) -> 10 | BC18: =IFERROR(SUMPRODUCT(LARGE($C18:$AV18,{1,2,3,4})), "") -> 10 | BD18: =IFERROR(SUMPRODUCT(LARGE($C18:$AV18,{1,2,3,4,5,6,7})), "") ->  | BE18: =IFERROR(SUMPRODUCT(LARGE($C18:$AV18,{1,2,3,4,5,6,7,8})), "") -> 
B19: CSI- J. Jones | D19: 9 | G19: 2 | O19: 3 | AX19: 14 | AY19: 3 | AZ19: =IF($AY19<=6,SUM($C19:$AV19),SUMPRODUCT(LARGE($C19:$AV19,{1,2,3,4,5,6}))) -> 14 | BC19: =IFERROR(SUMPRODUCT(LARGE($C19:$AV19,{1,2,3,4})), "") ->  | BD19: =IFERROR(SUMPRODUCT(LARGE($C19:$AV19,{1,2,3,4,5,6,7})), "") ->  | BE19: =IFERROR(SUMPRODUCT(LARGE($C19:$AV19,{1,2,3,4,5,6,7,8})), "") -> 
A20: OKBU | B20: CSI- Madrid | D20: 3 | M20: 7 | O20: 3 | AX20: 13 | AY20: 3 | AZ20: =IF($AY20<=6,SUM($C20:$AV20),SUMPRODUCT(LARGE($C20:$AV20,{1,2,3,4,5,6}))) -> 13 | BC20: =IFERROR(SUMPRODUCT(LARGE($C20:$AV20,{1,2,3,4})), "") ->  | BD20: =IFERROR(SUMPRODUCT(LARGE($C20:$AV20,{1,2,3,4,5,6,7})), "") ->  | BE20: =IFERROR(SUMPRODUCT(LARGE($C20:$AV20,{1,2,3,4,5,6,7,8})), "") -> 
B21: CSI- Mattson | D21: 6 | AX21: 6 | AY21: 1 | AZ21: =IF($AY21<=6,SUM($C21:$AV21),SUMPRODUCT(LARGE($C21:$AV21,{1,2,3,4,5,6}))) -> 6 | BC21: =IFERROR(SUMPRODUCT(LARGE($C21:$AV21,{1,2,3,4})), "") ->  | BD21: =IFERROR(SUMPRODUCT(LARGE($C21:$AV21,{1,2,3,4,5,6,7})), "") ->  | BE21: =IFERROR(SUMPRODUCT(LARGE($C21:$AV21,{1,2,3,4,5,6,7,8})), "") -> 
B22: CSI- McDonald | G22: 2 | M22: 4 | AX22: 6 | AY22: 2 | AZ22: =IF($AY22<=6,SUM($C22:$AV22),SUMPRODUCT(LARGE($C22:$AV22,{1,2,3,4,5,6}))) -> 6 | BC22: =IFERROR(SUMPRODUCT(LARGE($C22:$AV22,{1,2,3,4})), "") ->  | BD22: =IFERROR(SUMPRODUCT(LARGE($C22:$AV22,{1,2,3,4,5,6,7})), "") ->  | BE22: =IFERROR(SUMPRODUCT(LARGE($C22:$AV22,{1,2,3,4,5,6,7,8})), "") -> 
A23: MTSU | B23: CSI- Wallace | M23: 5 | AX23: 5 | AY23: 1 | AZ23: =IF($AY23<=6,SUM($C23:$AV23),SUMPRODUCT(LARGE($C23:$AV23,{1,2,3,4,5,6}))) -> 5 | BC23: =IFERROR(SUMPRODUCT(LARGE($C23:$AV23,{1,2,3,4})), "") ->  | BD23: =IFERROR(SUMPRODUCT(LARGE($C23:$AV23,{1,2,3,4,5,6,7})), "") ->  | BE23: =IFERROR(SUMPRODUCT(LARGE($C23:$AV23,{1,2,3,4,5,6,7,8})), "") -> 
B24: CWI- Chase | G24: 9 | AX24: 9 | AY24: 1 | AZ24: =IF($AY24<=6,SUM($C24:$AV24),SUMPRODUCT(LARGE($C24:$AV24,{1,2,3,4,5,6}))) -> 9 | BC24: =IFERROR(SUMPRODUCT(LARGE($C24:$AV24,{1,2,3,4})), "") ->  | BD24: =IFERROR(SUMPRODUCT(LARGE($C24:$AV24,{1,2,3,4,5,6,7})), "") ->  | BE24: =IFERROR(SUMPRODUCT(LARGE($C24:$AV24,{1,2,3,4,5,6,7,8})), "") -> 
B25: CWI- Haslam | G25: 1 | M25: 2 | P25: 0 | AX25: 3 | AY25: 3 | AZ25: =IF($AY25<=6,SUM($C25:$AV25),SUMPRODUCT(LARGE($C25:$AV25,{1,2,3,4,5,6}))) -> 3 | BC25: =IFERROR(SUMPRODUCT(LARGE($C25:$AV25,{1,2,3,4})), "") ->  | BD25: =IFERROR(SUMPRODUCT(LARGE($C25:$AV25,{1,2,3,4,5,6,7})), "") ->  | BE25: =IFERROR(SUMPRODUCT(LARGE($C25:$AV25,{1,2,3,4,5,6,7,8})), "") -> 
B26: CWI- Heaviside | G26: 9 | M26: 5 | P26: 8 | AX26: 22 | AY26: 3 | AZ26: =IF($AY26<=6,SUM($C26:$AV26),SUMPRODUCT(LARGE($C26:$AV26,{1,2,3,4,5,6}))) -> 22 | BC26: =IFERROR(SUMPRODUCT(LARGE($C26:$AV26,{1,2,3,4})), "") ->  | BD26: =IFERROR(SUMPRODUCT(LARGE($C26:$AV26,{1,2,3,4,5,6,7})), "") ->  | BE26: =IFERROR(SUMPRODUCT(LARGE($C26:$AV26,{1,2,3,4,5,6,7,8})), "") -> 
B27: CWI- Holton | G27: 6 | M27: 2 | P27: 2 | AX27: 10 | AY27: 3 | AZ27: =IF($AY27<=6,SUM($C27:$AV27),SUMPRODUCT(LARGE($C27:$AV27,{1,2,3,4,5,6}))) -> 10 | BC27: =IFERROR(SUMPRODUCT(LARGE($C27:$AV27,{1,2,3,4})), "") ->  | BD27: =IFERROR(SUMPRODUCT(LARGE($C27:$AV27,{1,2,3,4,5,6,7})), "") ->  | BE27: =IFERROR(SUMPRODUCT(LARGE($C27:$AV27,{1,2,3,4,5,6,7,8})), "") -> 
B28: CWI- Ludlow | G28: 2 | M28: 1 | AX28: 3 | AY28: 2 | AZ28: =IF($AY28<=6,SUM($C28:$AV28),SUMPRODUCT(LARGE($C28:$AV28,{1,2,3,4,5,6}))) -> 3 | BC28: =IFERROR(SUMPRODUCT(LARGE($C28:$AV28,{1,2,3,4})), "") ->  | BD28: =IFERROR(SUMPRODUCT(LARGE($C28:$AV28,{1,2,3,4,5,6,7})), "") ->  | BE28: =IFERROR(SUMPRODUCT(LARGE($C28:$AV28,{1,2,3,4,5,6,7,8})), "") -> 
B29: CWI- Paul | G29: 2 | M29: 2 | P29: 2 | AX29: 6 | AY29: 3 | AZ29: =IF($AY29<=6,SUM($C29:$AV29),SUMPRODUCT(LARGE($C29:$AV29,{1,2,3,4,5,6}))) -> 6 | BC29: =IFERROR(SUMPRODUCT(LARGE($C29:$AV29,{1,2,3,4})), "") ->  | BD29: =IFERROR(SUMPRODUCT(LARGE($C29:$AV29,{1,2,3,4,5,6,7})), "") ->  | BE29: =IFERROR(SUMPRODUCT(LARGE($C29:$AV29,{1,2,3,4,5,6,7,8})), "") -> 
B30: CWI- Peterson | M30: 13 | P30: 12 | AX30: 25 | AY30: 2 | AZ30: =IF($AY30<=6,SUM($C30:$AV30),SUMPRODUCT(LARGE($C30:$AV30,{1,2,3,4,5,6}))) -> 25 | BC30: =IFERROR(SUMPRODUCT(LARGE($C30:$AV30,{1,2,3,4})), "") ->  | BD30: =IFERROR(SUMPRODUCT(LARGE($C30:$AV30,{1,2,3,4,5,6,7})), "") ->  | BE30: =IFERROR(SUMPRODUCT(LARGE($C30:$AV30,{1,2,3,4,5,6,7,8})), "") -> 
B31: CWI- Ryan | M31: 4 | AX31: 4 | AY31: 1 | AZ31: =IF($AY31<=6,SUM($C31:$AV31),SUMPRODUCT(LARGE($C31:$AV31,{1,2,3,4,5,6}))) -> 4 | BC31: =IFERROR(SUMPRODUCT(LARGE($C31:$AV31,{1,2,3,4})), "") ->  | BD31: =IFERROR(SUMPRODUCT(LARGE($C31:$AV31,{1,2,3,4,5,6,7})), "") ->  | BE31: =IFERROR(SUMPRODUCT(LARGE($C31:$AV31,{1,2,3,4,5,6,7,8})), "") -> 
B32: CWI- Sharrer | G32: 1 | M32: 5 | P32: 7 | AX32: 13 | AY32: 3 | AZ32: =IF($AY32<=6,SUM($C32:$AV32),SUMPRODUCT(LARGE($C32:$AV32,{1,2,3,4,5,6}))) -> 13 | BC32: =IFERROR(SUMPRODUCT(LARGE($C32:$AV32,{1,2,3,4})), "") ->  | BD32: =IFERROR(SUMPRODUCT(LARGE($C32:$AV32,{1,2,3,4,5,6,7})), "") ->  | BE32: =IFERROR(SUMPRODUCT(LARGE($C32:$AV32,{1,2,3,4,5,6,7,8})), "") -> 
B33: CWI- Zanders | M33: 6 | P33: 2 | AX33: 8 | AY33: 2 | AZ33: =IF($AY33<=6,SUM($C33:$AV33),SUMPRODUCT(LARGE($C33:$AV33,{1,2,3,4,5,6}))) -> 8 | BC33: =IFERROR(SUMPRODUCT(LARGE($C33:$AV33,{1,2,3,4})), "") ->  | BD33: =IFERROR(SUMPRODUCT(LARGE($C33:$AV33,{1,2,3,4,5,6,7})), "") ->  | BE33: =IFERROR(SUMPRODUCT(LARGE($C33:$AV33,{1,2,3,4,5,6,7,8})), "") -> 
B34: DBU- Ballard | J34: 6 | L34: 3 | N34: 3 | AX34: 12 | AY34: 3 | AZ34: =IF($AY34<=6,SUM($C34:$AV34),SUMPRODUCT(LARGE($C34:$AV34,{1,2,3,4,5,6}))) -> 12 | BC34: =IFERROR(SUMPRODUCT(LARGE($C34:$AV34,{1,2,3,4})), "") ->  | BD34: =IFERROR(SUMPRODUCT(LARGE($C34:$AV34,{1,2,3,4,5,6,7})), "") ->  | BE34: =IFERROR(SUMPRODUCT(LARGE($C34:$AV34,{1,2,3,4,5,6,7,8})), "") -> 
B35: DBU- Colbert | J35: 5 | L35: 5 | N35: 5 | AX35: 15 | AY35: 3 | AZ35: =IF($AY35<=6,SUM($C35:$AV35),SUMPRODUCT(LARGE($C35:$AV35,{1,2,3,4,5,6}))) -> 15 | BC35: =IFERROR(SUMPRODUCT(LARGE($C35:$AV35,{1,2,3,4})), "") ->  | BD35: =IFERROR(SUMPRODUCT(LARGE($C35:$AV35,{1,2,3,4,5,6,7})), "") ->  | BE35: =IFERROR(SUMPRODUCT(LARGE($C35:$AV35,{1,2,3,4,5,6,7,8})), "") -> 
A36: LTU | B36: DBU- Flores | L36: 3 | AX36: 3 | AY36: 1 | AZ36: =IF($AY36<=6,SUM($C36:$AV36),SUMPRODUCT(LARGE($C36:$AV36,{1,2,3,4,5,6}))) -> 3 | BC36: =IFERROR(SUMPRODUCT(LARGE($C36:$AV36,{1,2,3,4})), "") ->  | BD36: =IFERROR(SUMPRODUCT(LARGE($C36:$AV36,{1,2,3,4,5,6,7})), "") ->  | BE36: =IFERROR(SUMPRODUCT(LARGE($C36:$AV36,{1,2,3,4,5,6,7,8})), "") -> 
B37: DBU- Kitner | J37: 4 | L37: 2 | AX37: 6 | AY37: 2 | AZ37: =IF($AY37<=6,SUM($C37:$AV37),SUMPRODUCT(LARGE($C37:$AV37,{1,2,3,4,5,6}))) -> 6 | BC37: =IFERROR(SUMPRODUCT(LARGE($C37:$AV37,{1,2,3,4})), "") ->  | BD37: =IFERROR(SUMPRODUCT(LARGE($C37:$AV37,{1,2,3,4,5,6,7})), "") ->  | BE37: =IFERROR(SUMPRODUCT(LARGE($C37:$AV37,{1,2,3,4,5,6,7,8})), "") -> 
B38: DBU- Parker | C38: 5 | J38: 1 | L38: 3 | N38: 3 | AX38: 12 | AY38: 4 | AZ38: =IF($AY38<=6,SUM($C38:$AV38),SUMPRODUCT(LARGE($C38:$AV38,{1,2,3,4,5,6}))) -> 12 | BC38: =IFERROR(SUMPRODUCT(LARGE($C38:$AV38,{1,2,3,4})), "") -> 12 | BD38: =IFERROR(SUMPRODUCT(LARGE($C38:$AV38,{1,2,3,4,5,6,7})), "") ->  | BE38: =IFERROR(SUMPRODUCT(LARGE($C38:$AV38,{1,2,3,4,5,6,7,8})), "") -> 
B39: DBU- Perez | C39: 5 | J39: 5 | L39: 9 | AX39: 19 | AY39: 3 | AZ39: =IF($AY39<=6,SUM($C39:$AV39),SUMPRODUCT(LARGE($C39:$AV39,{1,2,3,4,5,6}))) -> 19 | BC39: =IFERROR(SUMPRODUCT(LARGE($C39:$AV39,{1,2,3,4})), "") ->  | BD39: =IFERROR(SUMPRODUCT(LARGE($C39:$AV39,{1,2,3,4,5,6,7})), "") ->  | BE39: =IFERROR(SUMPRODUCT(LARGE($C39:$AV39,{1,2,3,4,5,6,7,8})), "") -> 
B40: ECC- Abdrahman | K40: 3 | AX40: 3 | AY40: 1 | AZ40: =IF($AY40<=6,SUM($C40:$AV40),SUMPRODUCT(LARGE($C40:$AV40,{1,2,3,4,5,6}))) -> 3 | BC40: =IFERROR(SUMPRODUCT(LARGE($C40:$AV40,{1,2,3,4})), "") ->  | BD40: =IFERROR(SUMPRODUCT(LARGE($C40:$AV40,{1,2,3,4,5,6,7})), "") ->  | BE40: =IFERROR(SUMPRODUCT(LARGE($C40:$AV40,{1,2,3,4,5,6,7,8})), "") -> 
B41: ECC- Abulaban | K41: 2 | AX41: 2 | AY41: 1 | AZ41: =IF($AY41<=6,SUM($C41:$AV41),SUMPRODUCT(LARGE($C41:$AV41,{1,2,3,4,5,6}))) -> 2 | BC41: =IFERROR(SUMPRODUCT(LARGE($C41:$AV41,{1,2,3,4})), "") ->  | BD41: =IFERROR(SUMPRODUCT(LARGE($C41:$AV41,{1,2,3,4,5,6,7})), "") ->  | BE41: =IFERROR(SUMPRODUCT(LARGE($C41:$AV41,{1,2,3,4,5,6,7,8})), "") -> 
B42: ECC- Dornberg | K42: 8 | AX42: 8 | AY42: 1 | AZ42: =IF($AY42<=6,SUM($C42:$AV42),SUMPRODUCT(LARGE($C42:$AV42,{1,2,3,4,5,6}))) -> 8 | BC42: =IFERROR(SUMPRODUCT(LARGE($C42:$AV42,{1,2,3,4})), "") ->  | BD42: =IFERROR(SUMPRODUCT(LARGE($C42:$AV42,{1,2,3,4,5,6,7})), "") ->  | BE42: =IFERROR(SUMPRODUCT(LARGE($C42:$AV42,{1,2,3,4,5,6,7,8})), "") -> 
B43: ECC- Gil | K43: 1 | AX43: 1 | AY43: 1 | AZ43: =IF($AY43<=6,SUM($C43:$AV43),SUMPRODUCT(LARGE($C43:$AV43,{1,2,3,4,5,6}))) -> 1 | BC43: =IFERROR(SUMPRODUCT(LARGE($C43:$AV43,{1,2,3,4})), "") ->  | BD43: =IFERROR(SUMPRODUCT(LARGE($C43:$AV43,{1,2,3,4,5,6,7})), "") ->  | BE43: =IFERROR(SUMPRODUCT(LARGE($C43:$AV43,{1,2,3,4,5,6,7,8})), "") -> 
B44: ECC- Gonzalez | K44: 5 | AX44: 5 | AY44: 1 | AZ44: =IF($AY44<=6,SUM($C44:$AV44),SUMPRODUCT(LARGE($C44:$AV44,{1,2,3,4,5,6}))) -> 5 | BC44: =IFERROR(SUMPRODUCT(LARGE($C44:$AV44,{1,2,3,4})), "") ->  | BD44: =IFERROR(SUMPRODUCT(LARGE($C44:$AV44,{1,2,3,4,5,6,7})), "") ->  | BE44: =IFERROR(SUMPRODUCT(LARGE($C44:$AV44,{1,2,3,4,5,6,7,8})), "") -> 
B45: ECC- Hagemeier | K45: 9 | AX45: 9 | AY45: 1 | AZ45: =IF($AY45<=6,SUM($C45:$AV45),SUMPRODUCT(LARGE($C45:$AV45,{1,2,3,4,5,6}))) -> 9 | BC45: =IFERROR(SUMPRODUCT(LARGE($C45:$AV45,{1,2,3,4})), "") ->  | BD45: =IFERROR(SUMPRODUCT(LARGE($C45:$AV45,{1,2,3,4,5,6,7})), "") ->  | BE45: =IFERROR(SUMPRODUCT(LARGE($C45:$AV45,{1,2,3,4,5,6,7,8})), "") -> 
A46: DBU | B46: ECC- Tesfay | K46: 2 | AX46: 2 | AY46: 1 | AZ46: =IF($AY46<=6,SUM($C46:$AV46),SUMPRODUCT(LARGE($C46:$AV46,{1,2,3,4,5,6}))) -> 2 | BC46: =IFERROR(SUMPRODUCT(LARGE($C46:$AV46,{1,2,3,4})), "") ->  | BD46: =IFERROR(SUMPRODUCT(LARGE($C46:$AV46,{1,2,3,4,5,6,7})), "") ->  | BE46: =IFERROR(SUMPRODUCT(LARGE($C46:$AV46,{1,2,3,4,5,6,7,8})), "") -> 
A47: UA | B47: ETBU- Ashcraft | H47: 1 | AX47: 1 | AY47: 1 | AZ47: =IF($AY47<=6,SUM($C47:$AV47),SUMPRODUCT(LARGE($C47:$AV47,{1,2,3,4,5,6}))) -> 1 | BC47: =IFERROR(SUMPRODUCT(LARGE($C47:$AV47,{1,2,3,4})), "") ->  | BD47: =IFERROR(SUMPRODUCT(LARGE($C47:$AV47,{1,2,3,4,5,6,7})), "") ->  | BE47: =IFERROR(SUMPRODUCT(LARGE($C47:$AV47,{1,2,3,4,5,6,7,8})), "") -> 
A48: UA | B48: ETBU- Bach | H48: 2 | AX48: 2 | AY48: 1 | AZ48: =IF($AY48<=6,SUM($C48:$AV48),SUMPRODUCT(LARGE($C48:$AV48,{1,2,3,4,5,6}))) -> 2 | BC48: =IFERROR(SUMPRODUCT(LARGE($C48:$AV48,{1,2,3,4})), "") ->  | BD48: =IFERROR(SUMPRODUCT(LARGE($C48:$AV48,{1,2,3,4,5,6,7})), "") ->  | BE48: =IFERROR(SUMPRODUCT(LARGE($C48:$AV48,{1,2,3,4,5,6,7,8})), "") -> 
B49: ETBU- Bagley | C49: 1 | N49: 1 | AX49: 2 | AY49: 2 | AZ49: =IF($AY49<=6,SUM($C49:$AV49),SUMPRODUCT(LARGE($C49:$AV49,{1,2,3,4,5,6}))) -> 2 | BC49: =IFERROR(SUMPRODUCT(LARGE($C49:$AV49,{1,2,3,4})), "") ->  | BD49: =IFERROR(SUMPRODUCT(LARGE($C49:$AV49,{1,2,3,4,5,6,7})), "") ->  | BE49: =IFERROR(SUMPRODUCT(LARGE($C49:$AV49,{1,2,3,4,5,6,7,8})), "") -> 
B50: ETBU- Bagley | H50: 0 | AX50: 0 | AY50: 1 | AZ50: =IF($AY50<=6,SUM($C50:$AV50),SUMPRODUCT(LARGE($C50:$AV50,{1,2,3,4,5,6}))) -> 0 | BC50: =IFERROR(SUMPRODUCT(LARGE($C50:$AV50,{1,2,3,4})), "") ->  | BD50: =IFERROR(SUMPRODUCT(LARGE($C50:$AV50,{1,2,3,4,5,6,7})), "") ->  | BE50: =IFERROR(SUMPRODUCT(LARGE($C50:$AV50,{1,2,3,4,5,6,7,8})), "") -> 
B51: ETBU- Bloomfield | H51: 2 | AX51: 2 | AY51: 1 | AZ51: =IF($AY51<=6,SUM($C51:$AV51),SUMPRODUCT(LARGE($C51:$AV51,{1,2,3,4,5,6}))) -> 2 | BC51: =IFERROR(SUMPRODUCT(LARGE($C51:$AV51,{1,2,3,4})), "") ->  | BD51: =IFERROR(SUMPRODUCT(LARGE($C51:$AV51,{1,2,3,4,5,6,7})), "") ->  | BE51: =IFERROR(SUMPRODUCT(LARGE($C51:$AV51,{1,2,3,4,5,6,7,8})), "") -> 
B52: ETBU- Collins | H52: 1 | AX52: 1 | AY52: 1 | AZ52: =IF($AY52<=6,SUM($C52:$AV52),SUMPRODUCT(LARGE($C52:$AV52,{1,2,3,4,5,6}))) -> 1 | BC52: =IFERROR(SUMPRODUCT(LARGE($C52:$AV52,{1,2,3,4})), "") ->  | BD52: =IFERROR(SUMPRODUCT(LARGE($C52:$AV52,{1,2,3,4,5,6,7})), "") ->  | BE52: =IFERROR(SUMPRODUCT(LARGE($C52:$AV52,{1,2,3,4,5,6,7,8})), "") -> 
B53: ETBU- Cooper | H53: 0 | AX53: 0 | AY53: 1 | AZ53: =IF($AY53<=6,SUM($C53:$AV53),SUMPRODUCT(LARGE($C53:$AV53,{1,2,3,4,5,6}))) -> 0 | BC53: =IFERROR(SUMPRODUCT(LARGE($C53:$AV53,{1,2,3,4})), "") ->  | BD53: =IFERROR(SUMPRODUCT(LARGE($C53:$AV53,{1,2,3,4,5,6,7})), "") ->  | BE53: =IFERROR(SUMPRODUCT(LARGE($C53:$AV53,{1,2,3,4,5,6,7,8})), "") -> 
B54: ETBU- Dunn | N54: 4 | AX54: 4 | AY54: 1 | AZ54: =IF($AY54<=6,SUM($C54:$AV54),SUMPRODUCT(LARGE($C54:$AV54,{1,2,3,4,5,6}))) -> 4 | BC54: =IFERROR(SUMPRODUCT(LARGE($C54:$AV54,{1,2,3,4})), "") ->  | BD54: =IFERROR(SUMPRODUCT(LARGE($C54:$AV54,{1,2,3,4,5,6,7})), "") ->  | BE54: =IFERROR(SUMPRODUCT(LARGE($C54:$AV54,{1,2,3,4,5,6,7,8})), "") -> 
B55: ETBU- Gear | N55: 3 | AX55: 3 | AY55: 1 | AZ55: =IF($AY55<=6,SUM($C55:$AV55),SUMPRODUCT(LARGE($C55:$AV55,{1,2,3,4,5,6}))) -> 3 | BC55: =IFERROR(SUMPRODUCT(LARGE($C55:$AV55,{1,2,3,4})), "") ->  | BD55: =IFERROR(SUMPRODUCT(LARGE($C55:$AV55,{1,2,3,4,5,6,7})), "") ->  | BE55: =IFERROR(SUMPRODUCT(LARGE($C55:$AV55,{1,2,3,4,5,6,7,8})), "") -> 
B56: FSCJ- Garrison | H56: 2 | AX56: 2 | AY56: 1 | AZ56: =IF($AY56<=6,SUM($C56:$AV56),SUMPRODUCT(LARGE($C56:$AV56,{1,2,3,4,5,6}))) -> 2 | BC56: =IFERROR(SUMPRODUCT(LARGE($C56:$AV56,{1,2,3,4})), "") ->  | BD56: =IFERROR(SUMPRODUCT(LARGE($C56:$AV56,{1,2,3,4,5,6,7})), "") ->  | BE56: =IFERROR(SUMPRODUCT(LARGE($C56:$AV56,{1,2,3,4,5,6,7,8})), "") -> 
B57: FSCJ- Murie | H57: 2 | AX57: 2 | AY57: 1 | AZ57: =IF($AY57<=6,SUM($C57:$AV57),SUMPRODUCT(LARGE($C57:$AV57,{1,2,3,4,5,6}))) -> 2 | BC57: =IFERROR(SUMPRODUCT(LARGE($C57:$AV57,{1,2,3,4})), "") ->  | BD57: =IFERROR(SUMPRODUCT(LARGE($C57:$AV57,{1,2,3,4,5,6,7})), "") ->  | BE57: =IFERROR(SUMPRODUCT(LARGE($C57:$AV57,{1,2,3,4,5,6,7,8})), "") -> 
B58: FSCJ- Smith | H58: 5 | AX58: 5 | AY58: 1 | AZ58: =IF($AY58<=6,SUM($C58:$AV58),SUMPRODUCT(LARGE($C58:$AV58,{1,2,3,4,5,6}))) -> 5 | BC58: =IFERROR(SUMPRODUCT(LARGE($C58:$AV58,{1,2,3,4})), "") ->  | BD58: =IFERROR(SUMPRODUCT(LARGE($C58:$AV58,{1,2,3,4,5,6,7})), "") ->  | BE58: =IFERROR(SUMPRODUCT(LARGE($C58:$AV58,{1,2,3,4,5,6,7,8})), "") -> 
